Workbook

Sheet 1. Algemeen
Q3: Deze tool is mede
Q4: mogelijk gemaakt door:
S6: versie 19-02-2024_1
A69: * | B69: Rekenhulp Medewerkersberekening Generatiebeleid
A70: * | B70: Cao Ziekenhuizen
A71: * | B71: StAZ

Sheet 2. Overzicht
B2: Rekentool Regeling Generatiebeleid
B3: 2. De organisatie in beeld
B6: Overzichten
B8: Leeftijdsopbouw
B10: Gemiddeld bruto fulltime maandsalaris naar leeftijd
B12: Inzetbaarheid
B14: Uren verzuim per jaar naar leeftijd
B16: Saldo openstaand PLB op peildatum naar leeftijd
B18: Formatie contractueel versus realisatie
B20: Aantal 60-plussers naar functie
B22: Gemiddeld bruto fulltime jaarsalaris per functie
B26: Leeftijdsopbouw organisatie
B27: Onderstaand overzicht geeft het aantal werknemers / fte per leeftijdsklasse weer.
G32: Leeftijdsklasse | H32: Werknemers | I32: FTE (contracturen)
G33: ='8. Beheer_Tabellen'!D104 -> jonger dan 20 | H33: =COUNTIF('6. Stamkaart'!$T$35:$T$6012,'2. Overzicht'!G33) -> 0 | I33: =SUMIFS('6. Stamkaart'!$E$35:$E$6012,'6. Stamkaart'!$T$35:$T$6012,'2. Overzicht'!G33) -> 0
G34: ='8. Beheer_Tabellen'!D105 -> 20 - 24 | H34: =COUNTIF('6. Stamkaart'!$T$35:$T$6012,'2. Overzicht'!G34) -> 0 | I34: =SUMIFS('6. Stamkaart'!$E$35:$E$6012,'6. Stamkaart'!$T$35:$T$6012,'2. Overzicht'!G34) -> 0
G35: ='8. Beheer_Tabellen'!D106 -> 25 - 29 | H35: =COUNTIF('6. Stamkaart'!$T$35:$T$6012,'2. Overzicht'!G35) -> 0 | I35: =SUMIFS('6. Stamkaart'!$E$35:$E$6012,'6. Stamkaart'!$T$35:$T$6012,'2. Overzicht'!G35) -> 0
G36: ='8. Beheer_Tabellen'!D107 -> 30 - 34 | H36: =COUNTIF('6. Stamkaart'!$T$35:$T$6012,'2. Overzicht'!G36) -> 0 | I36: =SUMIFS('6. Stamkaart'!$E$35:$E$6012,'6. Stamkaart'!$T$35:$T$6012,'2. Overzicht'!G36) -> 0
G37: ='8. Beheer_Tabellen'!D108 -> 35 - 39 | H37: =COUNTIF('6. Stamkaart'!$T$35:$T$6012,'2. Overzicht'!G37) -> 0 | I37: =SUMIFS('6. Stamkaart'!$E$35:$E$6012,'6. Stamkaart'!$T$35:$T$6012,'2. Overzicht'!G37) -> 0
G38: ='8. Beheer_Tabellen'!D109 -> 40 - 44 | H38: =COUNTIF('6. Stamkaart'!$T$35:$T$6012,'2. Overzicht'!G38) -> 0 | I38: =SUMIFS('6. Stamkaart'!$E$35:$E$6012,'6. Stamkaart'!$T$35:$T$6012,'2. Overzicht'!G38) -> 0
G39: ='8. Beheer_Tabellen'!D110 -> 45 - 49 | H39: =COUNTIF('6. Stamkaart'!$T$35:$T$6012,'2. Overzicht'!G39) -> 0 | I39: =SUMIFS('6. Stamkaart'!$E$35:$E$6012,'6. Stamkaart'!$T$35:$T$6012,'2. Overzicht'!G39) -> 0
G40: ='8. Beheer_Tabellen'!D111 -> 50 - 54 | H40: =COUNTIF('6. Stamkaart'!$T$35:$T$6012,'2. Overzicht'!G40) -> 0 | I40: =SUMIFS('6. Stamkaart'!$E$35:$E$6012,'6. Stamkaart'!$T$35:$T$6012,'2. Overzicht'!G40) -> 0
G41: ='8. Beheer_Tabellen'!D112 -> 55 - 59 | H41: =COUNTIF('6. Stamkaart'!$T$35:$T$6012,'2. Overzicht'!G41) -> 0 | I41: =SUMIFS('6. Stamkaart'!$E$35:$E$6012,'6. Stamkaart'!$T$35:$T$6012,'2. Overzicht'!G41) -> 0
G42: ='8. Beheer_Tabellen'!D113 -> 60 - 64 | H42: =COUNTIF('6. Stamkaart'!$T$35:$T$6012,'2. Overzicht'!G42) -> 0 | I42: =SUMIFS('6. Stamkaart'!$E$35:$E$6012,'6. Stamkaart'!$T$35:$T$6012,'2. Overzicht'!G42) -> 0
G43: ='8. Beheer_Tabellen'!D114 -> 65 - 69 | H43: =COUNTIF('6. Stamkaart'!$T$35:$T$6012,'2. Overzicht'!G43) -> 0 | I43: =SUMIFS('6. Stamkaart'!$E$35:$E$6012,'6. Stamkaart'!$T$35:$T$6012,'2. Overzicht'!G43) -> 0
G44: ='8. Beheer_Tabellen'!D115 -> 70 - 74 | H44: =COUNTIF('6. Stamkaart'!$T$35:$T$6012,'2. Overzicht'!G44) -> 0 | I44: =SUMIFS('6. Stamkaart'!$E$35:$E$6012,'6. Stamkaart'!$T$35:$T$6012,'2. Overzicht'!G44) -> 0
G45: Totaal | H45: =SUM(H33:H44) -> 0 | I45: =SUM(I33:I44) -> 0
B55: Gemiddeld bruto fulltime jaarsalaris naar leeftijd
B56: Onderstaand overzicht geeft het gemiddeld bruto fulltime jaarsalaris per leeftijdsklasse weer.
B57: Het jaarsalaris is hierbij inclusief de vakantietoeslag en de eindejaarsuitkering.
G60: Leeftijdsklasse | H60: Werknemers | I60: Gemiddeld FT salaris
G61: =G33 -> jonger dan 20 | H61: =COUNTIF('6. Stamkaart'!$T$35:$T$6012,'2. Overzicht'!G61) -> 0 | I61: =IFERROR(AVERAGEIFS('6. Stamkaart'!$AF$35:$AF$6012,'6. Stamkaart'!$T$35:$T$6012,Tabel13[[#This Row],[Leeftijdsklasse]]),0) -> 0
G62: 20 - 24 | H62: =COUNTIF('6. Stamkaart'!$T$35:$T$6012,'2. Overzicht'!G62) -> 0 | I62: =IFERROR(AVERAGEIFS('6. Stamkaart'!$AF$35:$AF$6012,'6. Stamkaart'!$T$35:$T$6012,Tabel13[[#This Row],[Leeftijdsklasse]]),0) -> 0
G63: 25 - 29 | H63: =COUNTIF('6. Stamkaart'!$T$35:$T$6012,'2. Overzicht'!G63) -> 0 | I63: =IFERROR(AVERAGEIFS('6. Stamkaart'!$AF$35:$AF$6012,'6. Stamkaart'!$T$35:$T$6012,Tabel13[[#This Row],[Leeftijdsklasse]]),0) -> 0
G64: 30 - 34 | H64: =COUNTIF('6. Stamkaart'!$T$35:$T$6012,'2. Overzicht'!G64) -> 0 | I64: =IFERROR(AVERAGEIFS('6. Stamkaart'!$AF$35:$AF$6012,'6. Stamkaart'!$T$35:$T$6012,Tabel13[[#This Row],[Leeftijdsklasse]]),0) -> 0
G65: 35 - 39 | H65: =COUNTIF('6. Stamkaart'!$T$35:$T$6012,'2. Overzicht'!G65) -> 0 | I65: =IFERROR(AVERAGEIFS('6. Stamkaart'!$AF$35:$AF$6012,'6. Stamkaart'!$T$35:$T$6012,Tabel13[[#This Row],[Leeftijdsklasse]]),0) -> 0
G66: 40 - 44 | H66: =COUNTIF('6. Stamkaart'!$T$35:$T$6012,'2. Overzicht'!G66) -> 0 | I66: =IFERROR(AVERAGEIFS('6. Stamkaart'!$AF$35:$AF$6012,'6. Stamkaart'!$T$35:$T$6012,Tabel13[[#This Row],[Leeftijdsklasse]]),0) -> 0
G67: 45 - 49 | H67: =COUNTIF('6. Stamkaart'!$T$35:$T$6012,'2. Overzicht'!G67) -> 0 | I67: =IFERROR(AVERAGEIFS('6. Stamkaart'!$AF$35:$AF$6012,'6. Stamkaart'!$T$35:$T$6012,Tabel13[[#This Row],[Leeftijdsklasse]]),0) -> 0
G68: 50 - 54 | H68: =COUNTIF('6. Stamkaart'!$T$35:$T$6012,'2. Overzicht'!G68) -> 0 | I68: =IFERROR(AVERAGEIFS('6. Stamkaart'!$AF$35:$AF$6012,'6. Stamkaart'!$T$35:$T$6012,Tabel13[[#This Row],[Leeftijdsklasse]]),0) -> 0
G69: 55 - 59 | H69: =COUNTIF('6. Stamkaart'!$T$35:$T$6012,'2. Overzicht'!G69) -> 0 | I69: =IFERROR(AVERAGEIFS('6. Stamkaart'!$AF$35:$AF$6012,'6. Stamkaart'!$T$35:$T$6012,Tabel13[[#This Row],[Leeftijdsklasse]]),0) -> 0
G70: 60 - 64 | H70: =COUNTIF('6. Stamkaart'!$T$35:$T$6012,'2. Overzicht'!G70) -> 0 | I70: =IFERROR(AVERAGEIFS('6. Stamkaart'!$AF$35:$AF$6012,'6. Stamkaart'!$T$35:$T$6012,Tabel13[[#This Row],[Leeftijdsklasse]]),0) -> 0
G71: 65 - 69 | H71: =COUNTIF('6. Stamkaart'!$T$35:$T$6012,'2. Overzicht'!G71) -> 0 | I71: =IFERROR(AVERAGEIFS('6. Stamkaart'!$AF$35:$AF$6012,'6. Stamkaart'!$T$35:$T$6012,Tabel13[[#This Row],[Leeftijdsklasse]]),0) -> 0
G72: 70 - 74 | H72: =COUNTIF('6. Stamkaart'!$T$35:$T$6012,'2. Overzicht'!G72) -> 0 | I72: =IFERROR(AVERAGEIFS('6. Stamkaart'!$AF$35:$AF$6012,'6. Stamkaart'!$T$35:$T$6012,Tabel13[[#This Row],[Leeftijdsklasse]]),0) -> 0
G73: Totaal | H73: =SUM(H61:H72) -> 0 | I73: =(SUM('6. Stamkaart'!AF35:AF6012)/H73) -> 
B84: Inzetbaarheid
B85: Onderstaand overzicht geeft de inzetbaarheid weer per leeftijdsklasse.
B86: Onder inzetbaarheid wordt verstaan: % inzetbare uren (=contracturen minus verlof en verzuim).
G89: Leeftijdsklasse | H89: % inzetbaarheid
G90: =G61 -> jonger dan 20 | H90: =IFERROR(AVERAGEIFS('6. Stamkaart'!$AA$35:$AA$6012,'6. Stamkaart'!$T$35:$T$6012,Tabel135[[#This Row],[Leeftijdsklasse]]),0) -> 0
G91: =G62 -> 20 - 24 | H91: =IFERROR(AVERAGEIFS('6. Stamkaart'!$AA$35:$AA$6012,'6. Stamkaart'!$T$35:$T$6012,Tabel135[[#This Row],[Leeftijdsklasse]]),0) -> 0
G92: 25 - 29 | H92: =IFERROR(AVERAGEIFS('6. Stamkaart'!$AA$35:$AA$6012,'6. Stamkaart'!$T$35:$T$6012,Tabel135[[#This Row],[Leeftijdsklasse]]),0) -> 0
G93: 30 - 34 | H93: =IFERROR(AVERAGEIFS('6. Stamkaart'!$AA$35:$AA$6012,'6. Stamkaart'!$T$35:$T$6012,Tabel135[[#This Row],[Leeftijdsklasse]]),0) -> 0
G94: 35 - 39 | H94: =IFERROR(AVERAGEIFS('6. Stamkaart'!$AA$35:$AA$6012,'6. Stamkaart'!$T$35:$T$6012,Tabel135[[#This Row],[Leeftijdsklasse]]),0) -> 0
G95: 40 - 44 | H95: =IFERROR(AVERAGEIFS('6. Stamkaart'!$AA$35:$AA$6012,'6. Stamkaart'!$T$35:$T$6012,Tabel135[[#This Row],[Leeftijdsklasse]]),0) -> 0
G96: 45 - 49 | H96: =IFERROR(AVERAGEIFS('6. Stamkaart'!$AA$35:$AA$6012,'6. Stamkaart'!$T$35:$T$6012,Tabel135[[#This Row],[Leeftijdsklasse]]),0) -> 0
G97: 50 - 54 | H97: =IFERROR(AVERAGEIFS('6. Stamkaart'!$AA$35:$AA$6012,'6. Stamkaart'!$T$35:$T$6012,Tabel135[[#This Row],[Leeftijdsklasse]]),0) -> 0
G98: 55 - 59 | H98: =IFERROR(AVERAGEIFS('6. Stamkaart'!$AA$35:$AA$6012,'6. Stamkaart'!$T$35:$T$6012,Tabel135[[#This Row],[Leeftijdsklasse]]),0) -> 0
G99: 60 - 64 | H99: =IFERROR(AVERAGEIFS('6. Stamkaart'!$AA$35:$AA$6012,'6. Stamkaart'!$T$35:$T$6012,Tabel135[[#This Row],[Leeftijdsklasse]]),0) -> 0
G100: 65 - 69 | H100: =IFERROR(AVERAGEIFS('6. Stamkaart'!$AA$35:$AA$6012,'6. Stamkaart'!$T$35:$T$6012,Tabel135[[#This Row],[Leeftijdsklasse]]),0) -> 0
G101: 70 - 74 | H101: =IFERROR(AVERAGEIFS('6. Stamkaart'!$AA$35:$AA$6012,'6. Stamkaart'!$T$35:$T$6012,Tabel135[[#This Row],[Leeftijdsklasse]]),0) -> 0
B115: Uren verzuim per jaar naar leeftijd
B116: Onderstaand overzicht geeft het totaal en gemiddeld aantal uren verzuim per leeftijdsklasse weer.
B117: In fte: | C117: =C132/Uren_per_jaar -> 0
B119: Leeftijdsklasse | C119: Totaal uren verzuim | D119: Gemiddelde per medewerker (uren verzuim)
B120: =G33 -> jonger dan 20 | C120: =SUMIFS('6. Stamkaart'!$Y$35:$Y$6012,'6. Stamkaart'!$T$35:$T$6012,Tabel1356[[#This Row],[Leeftijdsklasse]]) -> 0 | D120: =IFERROR(Tabel1356[[#This Row],[Totaal uren verzuim]]/H33,0) -> 0
B121: 20 - 24 | C121: =SUMIFS('6. Stamkaart'!$Y$35:$Y$6012,'6. Stamkaart'!$T$35:$T$6012,Tabel1356[[#This Row],[Leeftijdsklasse]]) -> 0 | D121: =IFERROR(Tabel1356[[#This Row],[Totaal uren verzuim]]/H34,0) -> 0
B122: 25 - 29 | C122: =SUMIFS('6. Stamkaart'!$Y$35:$Y$6012,'6. Stamkaart'!$T$35:$T$6012,Tabel1356[[#This Row],[Leeftijdsklasse]]) -> 0 | D122: =IFERROR(Tabel1356[[#This Row],[Totaal uren verzuim]]/H35,0) -> 0
B123: 30 - 34 | C123: =SUMIFS('6. Stamkaart'!$Y$35:$Y$6012,'6. Stamkaart'!$T$35:$T$6012,Tabel1356[[#This Row],[Leeftijdsklasse]]) -> 0 | D123: =IFERROR(Tabel1356[[#This Row],[Totaal uren verzuim]]/H36,0) -> 0
B124: 35 - 39 | C124: =SUMIFS('6. Stamkaart'!$Y$35:$Y$6012,'6. Stamkaart'!$T$35:$T$6012,Tabel1356[[#This Row],[Leeftijdsklasse]]) -> 0 | D124: =IFERROR(Tabel1356[[#This Row],[Totaal uren verzuim]]/H37,0) -> 0
B125: 40 - 44 | C125: =SUMIFS('6. Stamkaart'!$Y$35:$Y$6012,'6. Stamkaart'!$T$35:$T$6012,Tabel1356[[#This Row],[Leeftijdsklasse]]) -> 0 | D125: =IFERROR(Tabel1356[[#This Row],[Totaal uren verzuim]]/H38,0) -> 0
B126: 45 - 49 | C126: =SUMIFS('6. Stamkaart'!$Y$35:$Y$6012,'6. Stamkaart'!$T$35:$T$6012,Tabel1356[[#This Row],[Leeftijdsklasse]]) -> 0 | D126: =IFERROR(Tabel1356[[#This Row],[Totaal uren verzuim]]/H39,0) -> 0
B127: 50 - 54 | C127: =SUMIFS('6. Stamkaart'!$Y$35:$Y$6012,'6. Stamkaart'!$T$35:$T$6012,Tabel1356[[#This Row],[Leeftijdsklasse]]) -> 0 | D127: =IFERROR(Tabel1356[[#This Row],[Totaal uren verzuim]]/H40,0) -> 0
B128: 55 - 59 | C128: =SUMIFS('6. Stamkaart'!$Y$35:$Y$6012,'6. Stamkaart'!$T$35:$T$6012,Tabel1356[[#This Row],[Leeftijdsklasse]]) -> 0 | D128: =IFERROR(Tabel1356[[#This Row],[Totaal uren verzuim]]/H41,0) -> 0
B129: 60 - 64 | C129: =SUMIFS('6. Stamkaart'!$Y$35:$Y$6012,'6. Stamkaart'!$T$35:$T$6012,Tabel1356[[#This Row],[Leeftijdsklasse]]) -> 0 | D129: =IFERROR(Tabel1356[[#This Row],[Totaal uren verzuim]]/H42,0) -> 0
B130: 65 - 69 | C130: =SUMIFS('6. Stamkaart'!$Y$35:$Y$6012,'6. Stamkaart'!$T$35:$T$6012,Tabel1356[[#This Row],[Leeftijdsklasse]]) -> 0 | D130: =IFERROR(Tabel1356[[#This Row],[Totaal uren verzuim]]/H43,0) -> 0
B131: 70 - 74 | C131: =SUMIFS('6. Stamkaart'!$Y$35:$Y$6012,'6. Stamkaart'!$T$35:$T$6012,Tabel1356[[#This Row],[Leeftijdsklasse]]) -> 0 | D131: =IFERROR(Tabel1356[[#This Row],[Totaal uren verzuim]]/H44,0) -> 0
B132: Totaal | C132: =SUBTOTAL(109,C120:C131) -> 0 | D132: =IFERROR(Tabel1356[[#This Row],[Totaal uren verzuim]]/H45,0) -> 0
B136: Saldo openstaand PLB op peildatum naar leeftijd (gemiddeld en totaal)
B137: Onderstaand overzicht geeft zowel het totale aantal PLB-uren per leeftijdsklasse als het gemiddeld aantal PLB-uren weer.
G139: Leeftijdsklasse | H139: Gemiddeld saldo PLB in uren | I139: Totaal saldo PLB in uren
G140: ='8. Beheer_Tabellen'!D104 -> jonger dan 20 | H140: =IFERROR(AVERAGEIF('6. Stamkaart'!$T$35:$T$6012,'2. Overzicht'!G140,'6. Stamkaart'!$K$35:$K$6012),0) -> 0 | I140: =SUMIFS('6. Stamkaart'!$K$35:$K$6012,'6. Stamkaart'!$T$35:$T$6012,'2. Overzicht'!G140) -> 0
G141: ='8. Beheer_Tabellen'!D105 -> 20 - 24 | H141: =IFERROR(AVERAGEIF('6. Stamkaart'!$T$35:$T$6012,'2. Overzicht'!G141,'6. Stamkaart'!$K$35:$K$6012),0) -> 0 | I141: =SUMIFS('6. Stamkaart'!$K$35:$K$6012,'6. Stamkaart'!$T$35:$T$6012,'2. Overzicht'!G141) -> 0
G142: ='8. Beheer_Tabellen'!D106 -> 25 - 29 | H142: =IFERROR(AVERAGEIF('6. Stamkaart'!$T$35:$T$6012,'2. Overzicht'!G142,'6. Stamkaart'!$K$35:$K$6012),0) -> 0 | I142: =SUMIFS('6. Stamkaart'!$K$35:$K$6012,'6. Stamkaart'!$T$35:$T$6012,'2. Overzicht'!G142) -> 0
G143: ='8. Beheer_Tabellen'!D107 -> 30 - 34 | H143: =IFERROR(AVERAGEIF('6. Stamkaart'!$T$35:$T$6012,'2. Overzicht'!G143,'6. Stamkaart'!$K$35:$K$6012),0) -> 0 | I143: =SUMIFS('6. Stamkaart'!$K$35:$K$6012,'6. Stamkaart'!$T$35:$T$6012,'2. Overzicht'!G143) -> 0
G144: ='8. Beheer_Tabellen'!D108 -> 35 - 39 | H144: =IFERROR(AVERAGEIF('6. Stamkaart'!$T$35:$T$6012,'2. Overzicht'!G144,'6. Stamkaart'!$K$35:$K$6012),0) -> 0 | I144: =SUMIFS('6. Stamkaart'!$K$35:$K$6012,'6. Stamkaart'!$T$35:$T$6012,'2. Overzicht'!G144) -> 0
G145: ='8. Beheer_Tabellen'!D109 -> 40 - 44 | H145: =IFERROR(AVERAGEIF('6. Stamkaart'!$T$35:$T$6012,'2. Overzicht'!G145,'6. Stamkaart'!$K$35:$K$6012),0) -> 0 | I145: =SUMIFS('6. Stamkaart'!$K$35:$K$6012,'6. Stamkaart'!$T$35:$T$6012,'2. Overzicht'!G145) -> 0
G146: ='8. Beheer_Tabellen'!D110 -> 45 - 49 | H146: =IFERROR(AVERAGEIF('6. Stamkaart'!$T$35:$T$6012,'2. Overzicht'!G146,'6. Stamkaart'!$K$35:$K$6012),0) -> 0 | I146: =SUMIFS('6. Stamkaart'!$K$35:$K$6012,'6. Stamkaart'!$T$35:$T$6012,'2. Overzicht'!G146) -> 0
G147: ='8. Beheer_Tabellen'!D111 -> 50 - 54 | H147: =IFERROR(AVERAGEIF('6. Stamkaart'!$T$35:$T$6012,'2. Overzicht'!G147,'6. Stamkaart'!$K$35:$K$6012),0) -> 0 | I147: =SUMIFS('6. Stamkaart'!$K$35:$K$6012,'6. Stamkaart'!$T$35:$T$6012,'2. Overzicht'!G147) -> 0
G148: ='8. Beheer_Tabellen'!D112 -> 55 - 59 | H148: =IFERROR(AVERAGEIF('6. Stamkaart'!$T$35:$T$6012,'2. Overzicht'!G148,'6. Stamkaart'!$K$35:$K$6012),0) -> 0 | I148: =SUMIFS('6. Stamkaart'!$K$35:$K$6012,'6. Stamkaart'!$T$35:$T$6012,'2. Overzicht'!G148) -> 0
G149: ='8. Beheer_Tabellen'!D113 -> 60 - 64 | H149: =IFERROR(AVERAGEIF('6. Stamkaart'!$T$35:$T$6012,'2. Overzicht'!G149,'6. Stamkaart'!$K$35:$K$6012),0) -> 0 | I149: =SUMIFS('6. Stamkaart'!$K$35:$K$6012,'6. Stamkaart'!$T$35:$T$6012,'2. Overzicht'!G149) -> 0
G150: ='8. Beheer_Tabellen'!D114 -> 65 - 69 | H150: =IFERROR(AVERAGEIF('6. Stamkaart'!$T$35:$T$6012,'2. Overzicht'!G150,'6. Stamkaart'!$K$35:$K$6012),0) -> 0 | I150: =SUMIFS('6. Stamkaart'!$K$35:$K$6012,'6. Stamkaart'!$T$35:$T$6012,'2. Overzicht'!G150) -> 0
G151: ='8. Beheer_Tabellen'!D115 -> 70 - 74 | H151: =IFERROR(AVERAGEIF('6. Stamkaart'!$T$35:$T$6012,'2. Overzicht'!G151,'6. Stamkaart'!$K$35:$K$6012),0) -> 0 | I151: =SUMIFS('6. Stamkaart'!$K$35:$K$6012,'6. Stamkaart'!$T$35:$T$6012,'2. Overzicht'!G151) -> 0
G152: Totaal | H152: =AVERAGE('6. Stamkaart'!$K$35:$K$6012) ->  | I152: =SUM(I140:I151) -> 0
B165: Formatie contractueel versus realisatie
B166: Onderstaand overzicht laat de formatie zien in contractuele uren per leeftijdsklasse als wel in daadwerkelijke, gerealiseerde uren per leeftijdsklasse. Het verschil tussen beide wordt in het rode kader weergegeven*.
B167: Verschil in fte: | C167: =(D183-C183)/Uren_per_jaar -> 0
B168: *Geen gerealiseerde formatie opgenomen in de stamkaart? Dan wordt het verschil hieronder in een rood kader -als negatief getal- weergegeven.
B170: Leeftijdsklasse | C170: Uren contractueel | D170: Uren gerealiseerd | E170: Meeruren (verschil contract - realisatie) | F170: Meeruren in fte
B171: =G61 -> jonger dan 20 | C171: =SUMIFS('6. Stamkaart'!$AB$35:$AB$6012,'6. Stamkaart'!$T$35:$T$6012,Tabel13567[[#This Row],[Leeftijdsklasse]]) -> 0 | D171: =SUMIFS('6. Stamkaart'!$AC$35:$AC$6012,'6. Stamkaart'!$T$35:$T$6012,Tabel13567[[#This Row],[Leeftijdsklasse]]) -> 0 | E171: =+Tabel13567[[#This Row],[Uren gerealiseerd]]-Tabel13567[[#This Row],[Uren contractueel ]] -> 0 | F171: =(Tabel13567[[#This Row],[Uren contractueel ]] - Tabel13567[[#This Row],[Uren gerealiseerd]])/Uren_per_jaar -> 0
B172: 20 - 24 | C172: =SUMIFS('6. Stamkaart'!$AB$35:$AB$6012,'6. Stamkaart'!$T$35:$T$6012,Tabel13567[[#This Row],[Leeftijdsklasse]]) -> 0 | D172: =SUMIFS('6. Stamkaart'!$AC$35:$AC$6012,'6. Stamkaart'!$T$35:$T$6012,Tabel13567[[#This Row],[Leeftijdsklasse]]) -> 0 | E172: =+Tabel13567[[#This Row],[Uren gerealiseerd]]-Tabel13567[[#This Row],[Uren contractueel ]] -> 0 | F172: =(Tabel13567[[#This Row],[Uren contractueel ]] - Tabel13567[[#This Row],[Uren gerealiseerd]])/Uren_per_jaar -> 0
B173: 25 - 29 | C173: =SUMIFS('6. Stamkaart'!$AB$35:$AB$6012,'6. Stamkaart'!$T$35:$T$6012,Tabel13567[[#This Row],[Leeftijdsklasse]]) -> 0 | D173: =SUMIFS('6. Stamkaart'!$AC$35:$AC$6012,'6. Stamkaart'!$T$35:$T$6012,Tabel13567[[#This Row],[Leeftijdsklasse]]) -> 0 | E173: =+Tabel13567[[#This Row],[Uren gerealiseerd]]-Tabel13567[[#This Row],[Uren contractueel ]] -> 0 | F173: =(Tabel13567[[#This Row],[Uren contractueel ]] - Tabel13567[[#This Row],[Uren gerealiseerd]])/Uren_per_jaar -> 0
B174: 30 - 34 | C174: =SUMIFS('6. Stamkaart'!$AB$35:$AB$6012,'6. Stamkaart'!$T$35:$T$6012,Tabel13567[[#This Row],[Leeftijdsklasse]]) -> 0 | D174: =SUMIFS('6. Stamkaart'!$AC$35:$AC$6012,'6. Stamkaart'!$T$35:$T$6012,Tabel13567[[#This Row],[Leeftijdsklasse]]) -> 0 | E174: =+Tabel13567[[#This Row],[Uren gerealiseerd]]-Tabel13567[[#This Row],[Uren contractueel ]] -> 0 | F174: =(Tabel13567[[#This Row],[Uren contractueel ]] - Tabel13567[[#This Row],[Uren gerealiseerd]])/Uren_per_jaar -> 0
B175: 35 - 39 | C175: =SUMIFS('6. Stamkaart'!$AB$35:$AB$6012,'6. Stamkaart'!$T$35:$T$6012,Tabel13567[[#This Row],[Leeftijdsklasse]]) -> 0 | D175: =SUMIFS('6. Stamkaart'!$AC$35:$AC$6012,'6. Stamkaart'!$T$35:$T$6012,Tabel13567[[#This Row],[Leeftijdsklasse]]) -> 0 | E175: =+Tabel13567[[#This Row],[Uren gerealiseerd]]-Tabel13567[[#This Row],[Uren contractueel ]] -> 0 | F175: =(Tabel13567[[#This Row],[Uren contractueel ]] - Tabel13567[[#This Row],[Uren gerealiseerd]])/Uren_per_jaar -> 0
B176: 40 - 44 | C176: =SUMIFS('6. Stamkaart'!$AB$35:$AB$6012,'6. Stamkaart'!$T$35:$T$6012,Tabel13567[[#This Row],[Leeftijdsklasse]]) -> 0 | D176: =SUMIFS('6. Stamkaart'!$AC$35:$AC$6012,'6. Stamkaart'!$T$35:$T$6012,Tabel13567[[#This Row],[Leeftijdsklasse]]) -> 0 | E176: =+Tabel13567[[#This Row],[Uren gerealiseerd]]-Tabel13567[[#This Row],[Uren contractueel ]] -> 0 | F176: =(Tabel13567[[#This Row],[Uren contractueel ]] - Tabel13567[[#This Row],[Uren gerealiseerd]])/Uren_per_jaar -> 0
B177: 45 - 49 | C177: =SUMIFS('6. Stamkaart'!$AB$35:$AB$6012,'6. Stamkaart'!$T$35:$T$6012,Tabel13567[[#This Row],[Leeftijdsklasse]]) -> 0 | D177: =SUMIFS('6. Stamkaart'!$AC$35:$AC$6012,'6. Stamkaart'!$T$35:$T$6012,Tabel13567[[#This Row],[Leeftijdsklasse]]) -> 0 | E177: =+Tabel13567[[#This Row],[Uren gerealiseerd]]-Tabel13567[[#This Row],[Uren contractueel ]] -> 0 | F177: =(Tabel13567[[#This Row],[Uren contractueel ]] - Tabel13567[[#This Row],[Uren gerealiseerd]])/Uren_per_jaar -> 0
B178: 50 - 54 | C178: =SUMIFS('6. Stamkaart'!$AB$35:$AB$6012,'6. Stamkaart'!$T$35:$T$6012,Tabel13567[[#This Row],[Leeftijdsklasse]]) -> 0 | D178: =SUMIFS('6. Stamkaart'!$AC$35:$AC$6012,'6. Stamkaart'!$T$35:$T$6012,Tabel13567[[#This Row],[Leeftijdsklasse]]) -> 0 | E178: =+Tabel13567[[#This Row],[Uren gerealiseerd]]-Tabel13567[[#This Row],[Uren contractueel ]] -> 0 | F178: =(Tabel13567[[#This Row],[Uren contractueel ]] - Tabel13567[[#This Row],[Uren gerealiseerd]])/Uren_per_jaar -> 0
B179: 55 - 59 | C179: =SUMIFS('6. Stamkaart'!$AB$35:$AB$6012,'6. Stamkaart'!$T$35:$T$6012,Tabel13567[[#This Row],[Leeftijdsklasse]]) -> 0 | D179: =SUMIFS('6. Stamkaart'!$AC$35:$AC$6012,'6. Stamkaart'!$T$35:$T$6012,Tabel13567[[#This Row],[Leeftijdsklasse]]) -> 0 | E179: =+Tabel13567[[#This Row],[Uren gerealiseerd]]-Tabel13567[[#This Row],[Uren contractueel ]] -> 0 | F179: =(Tabel13567[[#This Row],[Uren contractueel ]] - Tabel13567[[#This Row],[Uren gerealiseerd]])/Uren_per_jaar -> 0
B180: 60 - 64 | C180: =SUMIFS('6. Stamkaart'!$AB$35:$AB$6012,'6. Stamkaart'!$T$35:$T$6012,Tabel13567[[#This Row],[Leeftijdsklasse]]) -> 0 | D180: =SUMIFS('6. Stamkaart'!$AC$35:$AC$6012,'6. Stamkaart'!$T$35:$T$6012,Tabel13567[[#This Row],[Leeftijdsklasse]]) -> 0 | E180: =+Tabel13567[[#This Row],[Uren gerealiseerd]]-Tabel13567[[#This Row],[Uren contractueel ]] -> 0 | F180: =(Tabel13567[[#This Row],[Uren contractueel ]] - Tabel13567[[#This Row],[Uren gerealiseerd]])/Uren_per_jaar -> 0
B181: 65 - 69 | C181: =SUMIFS('6. Stamkaart'!$AB$35:$AB$6012,'6. Stamkaart'!$T$35:$T$6012,Tabel13567[[#This Row],[Leeftijdsklasse]]) -> 0 | D181: =SUMIFS('6. Stamkaart'!$AC$35:$AC$6012,'6. Stamkaart'!$T$35:$T$6012,Tabel13567[[#This Row],[Leeftijdsklasse]]) -> 0 | E181: =+Tabel13567[[#This Row],[Uren gerealiseerd]]-Tabel13567[[#This Row],[Uren contractueel ]] -> 0 | F181: =(Tabel13567[[#This Row],[Uren contractueel ]] - Tabel13567[[#This Row],[Uren gerealiseerd]])/Uren_per_jaar -> 0
B182: 70 - 74 | C182: =SUMIFS('6. Stamkaart'!$AB$35:$AB$6012,'6. Stamkaart'!$T$35:$T$6012,Tabel13567[[#This Row],[Leeftijdsklasse]]) -> 0 | D182: =SUMIFS('6. Stamkaart'!$AC$35:$AC$6012,'6. Stamkaart'!$T$35:$T$6012,Tabel13567[[#This Row],[Leeftijdsklasse]]) -> 0 | E182: =+Tabel13567[[#This Row],[Uren gerealiseerd]]-Tabel13567[[#This Row],[Uren contractueel ]] -> 0 | F182: =(Tabel13567[[#This Row],[Uren contractueel ]] - Tabel13567[[#This Row],[Uren gerealiseerd]])/Uren_per_jaar -> 0
B183: Totaal | C183: =SUBTOTAL(109,C171:C182) -> 0 | D183: =SUBTOTAL(109,D171:D182) -> 0 | E183: =+Tabel13567[[#This Row],[Uren gerealiseerd]]-Tabel13567[[#This Row],[Uren contractueel ]] -> 0 | F183: =(Tabel13567[[#This Row],[Uren contractueel ]] - Tabel13567[[#This Row],[Uren gerealiseerd]])/Uren_per_jaar -> 0
B187: Aantal 60-plussers naar functie | F187: Gemiddeld bruto fulltime jaar salaris per functie
B188: Onderstaan overzicht laat het aantal medewerker met een leeftijd van 60 jaar en ouder zien. | F188: Onderstaand overzicht laat het gemiddeld fulltime jaarsalaris per functiegroep zien.
B189: Dit per functiegroep en in aantallen en in Fte. | F189: Het jaarsalaris is hierbij inclusief vakantietoeslag en eindejaarsuitkering (excl. ORT).
B190: Totaal | C190: =SUM(C193:C232) -> 0 | D190: =SUM(D193:D232) -> 0
B192: Functie(groep) | C192: Werknemers | D192: Fte | F192: Functie(groep) | G192: Gemiddeld bruto fulltime jaarsalaris
B193: =Beheer_Salaristabellen!B6 -> 0 | C193: =COUNTIFS('6. Stamkaart'!$G$35:$G$6012,B193,'6. Stamkaart'!$S$35:$S$6012,">=60") -> 0 | D193: =SUMIFS('6. Stamkaart'!$E$35:$E$6012,'6. Stamkaart'!$G$35:$G$6012,'2. Overzicht'!B193,'6. Stamkaart'!$S$35:$S$6012,">=60") -> 0 | F193: =Tabel7[[#This Row],[Functie(groep)]] -> 0 | G193: =IFERROR(AVERAGEIFS('6. Stamkaart'!$AF$35:$AF$6012,'6. Stamkaart'!$G$35:$G$6012,'2. Overzicht'!F193),0) -> 0
B194: =Beheer_Salaristabellen!B7 ->  | C194: =COUNTIFS('6. Stamkaart'!$G$35:$G$6012,B194,'6. Stamkaart'!$S$35:$S$6012,">=60") -> 0 | D194: =SUMIFS('6. Stamkaart'!$E$35:$E$6012,'6. Stamkaart'!$G$35:$G$6012,'2. Overzicht'!B194,'6. Stamkaart'!$S$35:$S$6012,">=60") -> 0 | F194: =Tabel7[[#This Row],[Functie(groep)]] ->  | G194: =IFERROR(AVERAGEIFS('6. Stamkaart'!$AF$35:$AF$6012,'6. Stamkaart'!$G$35:$G$6012,'2. Overzicht'!F194),0) -> 0
B195: =Beheer_Salaristabellen!B8 ->  | C195: =COUNTIFS('6. Stamkaart'!$G$35:$G$6012,B195,'6. Stamkaart'!$S$35:$S$6012,">=60") -> 0 | D195: =SUMIFS('6. Stamkaart'!$E$35:$E$6012,'6. Stamkaart'!$G$35:$G$6012,'2. Overzicht'!B195,'6. Stamkaart'!$S$35:$S$6012,">=60") -> 0 | F195: =Tabel7[[#This Row],[Functie(groep)]] ->  | G195: =IFERROR(AVERAGEIFS('6. Stamkaart'!$AF$35:$AF$6012,'6. Stamkaart'!$G$35:$G$6012,'2. Overzicht'!F195),0) -> 0
B196: =Beheer_Salaristabellen!B9 ->  | C196: =COUNTIFS('6. Stamkaart'!$G$35:$G$6012,B196,'6. Stamkaart'!$S$35:$S$6012,">=60") -> 0 | D196: =SUMIFS('6. Stamkaart'!$E$35:$E$6012,'6. Stamkaart'!$G$35:$G$6012,'2. Overzicht'!B196,'6. Stamkaart'!$S$35:$S$6012,">=60") -> 0 | F196: =Tabel7[[#This Row],[Functie(groep)]] ->  | G196: =IFERROR(AVERAGEIFS('6. Stamkaart'!$AF$35:$AF$6012,'6. Stamkaart'!$G$35:$G$6012,'2. Overzicht'!F196),0) -> 0
B197: =Beheer_Salaristabellen!B10 ->  | C197: =COUNTIFS('6. Stamkaart'!$G$35:$G$6012,B197,'6. Stamkaart'!$S$35:$S$6012,">=60") -> 0 | D197: =SUMIFS('6. Stamkaart'!$E$35:$E$6012,'6. Stamkaart'!$G$35:$G$6012,'2. Overzicht'!B197,'6. Stamkaart'!$S$35:$S$6012,">=60") -> 0 | F197: =Tabel7[[#This Row],[Functie(groep)]] ->  | G197: =IFERROR(AVERAGEIFS('6. Stamkaart'!$AF$35:$AF$6012,'6. Stamkaart'!$G$35:$G$6012,'2. Overzicht'!F197),0) -> 0
B198: =Beheer_Salaristabellen!B11 ->  | C198: =COUNTIFS('6. Stamkaart'!$G$35:$G$6012,B198,'6. Stamkaart'!$S$35:$S$6012,">=60") -> 0 | D198: =SUMIFS('6. Stamkaart'!$E$35:$E$6012,'6. Stamkaart'!$G$35:$G$6012,'2. Overzicht'!B198,'6. Stamkaart'!$S$35:$S$6012,">=60") -> 0 | F198: =Tabel7[[#This Row],[Functie(groep)]] ->  | G198: =IFERROR(AVERAGEIFS('6. Stamkaart'!$AF$35:$AF$6012,'6. Stamkaart'!$G$35:$G$6012,'2. Overzicht'!F198),0) -> 0
B199: =Beheer_Salaristabellen!B12 ->  | C199: =COUNTIFS('6. Stamkaart'!$G$35:$G$6012,B199,'6. Stamkaart'!$S$35:$S$6012,">=60") -> 0 | D199: =SUMIFS('6. Stamkaart'!$E$35:$E$6012,'6. Stamkaart'!$G$35:$G$6012,'2. Overzicht'!B199,'6. Stamkaart'!$S$35:$S$6012,">=60") -> 0 | F199: =Tabel7[[#This Row],[Functie(groep)]] ->  | G199: =IFERROR(AVERAGEIFS('6. Stamkaart'!$AF$35:$AF$6012,'6. Stamkaart'!$G$35:$G$6012,'2. Overzicht'!F199),0) -> 0
B200: =Beheer_Salaristabellen!B13 ->  | C200: =COUNTIFS('6. Stamkaart'!$G$35:$G$6012,B200,'6. Stamkaart'!$S$35:$S$6012,">=60") -> 0 | D200: =SUMIFS('6. Stamkaart'!$E$35:$E$6012,'6. Stamkaart'!$G$35:$G$6012,'2. Overzicht'!B200,'6. Stamkaart'!$S$35:$S$6012,">=60") -> 0 | F200: =Tabel7[[#This Row],[Functie(groep)]] ->  | G200: =IFERROR(AVERAGEIFS('6. Stamkaart'!$AF$35:$AF$6012,'6. Stamkaart'!$G$35:$G$6012,'2. Overzicht'!F200),0) -> 0
B201: =Beheer_Salaristabellen!B14 ->  | C201: =COUNTIFS('6. Stamkaart'!$G$35:$G$6012,B201,'6. Stamkaart'!$S$35:$S$6012,">=60") -> 0 | D201: =SUMIFS('6. Stamkaart'!$E$35:$E$6012,'6. Stamkaart'!$G$35:$G$6012,'2. Overzicht'!B201,'6. Stamkaart'!$S$35:$S$6012,">=60") -> 0 | F201: =Tabel7[[#This Row],[Functie(groep)]] ->  | G201: =IFERROR(AVERAGEIFS('6. Stamkaart'!$AF$35:$AF$6012,'6. Stamkaart'!$G$35:$G$6012,'2. Overzicht'!F201),0) -> 0
B202: =Beheer_Salaristabellen!B15 ->  | C202: =COUNTIFS('6. Stamkaart'!$G$35:$G$6012,B202,'6. Stamkaart'!$S$35:$S$6012,">=60") -> 0 | D202: =SUMIFS('6. Stamkaart'!$E$35:$E$6012,'6. Stamkaart'!$G$35:$G$6012,'2. Overzicht'!B202,'6. Stamkaart'!$S$35:$S$6012,">=60") -> 0 | F202: =Tabel7[[#This Row],[Functie(groep)]] ->  | G202: =IFERROR(AVERAGEIFS('6. Stamkaart'!$AF$35:$AF$6012,'6. Stamkaart'!$G$35:$G$6012,'2. Overzicht'!F202),0) -> 0
B203: =Beheer_Salaristabellen!B16 ->  | C203: =COUNTIFS('6. Stamkaart'!$G$35:$G$6012,B203,'6. Stamkaart'!$S$35:$S$6012,">=60") -> 0 | D203: =SUMIFS('6. Stamkaart'!$E$35:$E$6012,'6. Stamkaart'!$G$35:$G$6012,'2. Overzicht'!B203,'6. Stamkaart'!$S$35:$S$6012,">=60") -> 0 | F203: =Tabel7[[#This Row],[Functie(groep)]] ->  | G203: =IFERROR(AVERAGEIFS('6. Stamkaart'!$AF$35:$AF$6012,'6. Stamkaart'!$G$35:$G$6012,'2. Overzicht'!F203),0) -> 0
B204: =Beheer_Salaristabellen!B17 ->  | C204: =COUNTIFS('6. Stamkaart'!$G$35:$G$6012,B204,'6. Stamkaart'!$S$35:$S$6012,">=60") -> 0 | D204: =SUMIFS('6. Stamkaart'!$E$35:$E$6012,'6. Stamkaart'!$G$35:$G$6012,'2. Overzicht'!B204,'6. Stamkaart'!$S$35:$S$6012,">=60") -> 0 | F204: =Tabel7[[#This Row],[Functie(groep)]] ->  | G204: =IFERROR(AVERAGEIFS('6. Stamkaart'!$AF$35:$AF$6012,'6. Stamkaart'!$G$35:$G$6012,'2. Overzicht'!F204),0) -> 0
B205: =Beheer_Salaristabellen!B18 ->  | C205: =COUNTIFS('6. Stamkaart'!$G$35:$G$6012,B205,'6. Stamkaart'!$S$35:$S$6012,">=60") -> 0 | D205: =SUMIFS('6. Stamkaart'!$E$35:$E$6012,'6. Stamkaart'!$G$35:$G$6012,'2. Overzicht'!B205,'6. Stamkaart'!$S$35:$S$6012,">=60") -> 0 | F205: =Tabel7[[#This Row],[Functie(groep)]] ->  | G205: =IFERROR(AVERAGEIFS('6. Stamkaart'!$AF$35:$AF$6012,'6. Stamkaart'!$G$35:$G$6012,'2. Overzicht'!F205),0) -> 0
B206: =Beheer_Salaristabellen!B19 ->  | C206: =COUNTIFS('6. Stamkaart'!$G$35:$G$6012,B206,'6. Stamkaart'!$S$35:$S$6012,">=60") -> 0 | D206: =SUMIFS('6. Stamkaart'!$E$35:$E$6012,'6. Stamkaart'!$G$35:$G$6012,'2. Overzicht'!B206,'6. Stamkaart'!$S$35:$S$6012,">=60") -> 0 | F206: =Tabel7[[#This Row],[Functie(groep)]] ->  | G206: =IFERROR(AVERAGEIFS('6. Stamkaart'!$AF$35:$AF$6012,'6. Stamkaart'!$G$35:$G$6012,'2. Overzicht'!F206),0) -> 0
B207: =Beheer_Salaristabellen!B20 ->  | C207: =COUNTIFS('6. Stamkaart'!$G$35:$G$6012,B207,'6. Stamkaart'!$S$35:$S$6012,">=60") -> 0 | D207: =SUMIFS('6. Stamkaart'!$E$35:$E$6012,'6. Stamkaart'!$G$35:$G$6012,'2. Overzicht'!B207,'6. Stamkaart'!$S$35:$S$6012,">=60") -> 0 | F207: =Tabel7[[#This Row],[Functie(groep)]] ->  | G207: =IFERROR(AVERAGEIFS('6. Stamkaart'!$AF$35:$AF$6012,'6. Stamkaart'!$G$35:$G$6012,'2. Overzicht'!F207),0) -> 0
B208: =Beheer_Salaristabellen!B21 ->  | C208: =COUNTIFS('6. Stamkaart'!$G$35:$G$6012,B208,'6. Stamkaart'!$S$35:$S$6012,">=60") -> 0 | D208: =SUMIFS('6. Stamkaart'!$E$35:$E$6012,'6. Stamkaart'!$G$35:$G$6012,'2. Overzicht'!B208,'6. Stamkaart'!$S$35:$S$6012,">=60") -> 0 | F208: =Tabel7[[#This Row],[Functie(groep)]] ->  | G208: =IFERROR(AVERAGEIFS('6. Stamkaart'!$AF$35:$AF$6012,'6. Stamkaart'!$G$35:$G$6012,'2. Overzicht'!F208),0) -> 0
B209: =Beheer_Salaristabellen!B22 ->  | C209: =COUNTIFS('6. Stamkaart'!$G$35:$G$6012,B209,'6. Stamkaart'!$S$35:$S$6012,">=60") -> 0 | D209: =SUMIFS('6. Stamkaart'!$E$35:$E$6012,'6. Stamkaart'!$G$35:$G$6012,'2. Overzicht'!B209,'6. Stamkaart'!$S$35:$S$6012,">=60") -> 0 | F209: =Tabel7[[#This Row],[Functie(groep)]] ->  | G209: =IFERROR(AVERAGEIFS('6. Stamkaart'!$AF$35:$AF$6012,'6. Stamkaart'!$G$35:$G$6012,'2. Overzicht'!F209),0) -> 0
B210: =Beheer_Salaristabellen!B23 ->  | C210: =COUNTIFS('6. Stamkaart'!$G$35:$G$6012,B210,'6. Stamkaart'!$S$35:$S$6012,">=60") -> 0 | D210: =SUMIFS('6. Stamkaart'!$E$35:$E$6012,'6. Stamkaart'!$G$35:$G$6012,'2. Overzicht'!B210,'6. Stamkaart'!$S$35:$S$6012,">=60") -> 0 | F210: =Tabel7[[#This Row],[Functie(groep)]] ->  | G210: =IFERROR(AVERAGEIFS('6. Stamkaart'!$AF$35:$AF$6012,'6. Stamkaart'!$G$35:$G$6012,'2. Overzicht'!F210),0) -> 0
B211: =Beheer_Salaristabellen!B24 ->  | C211: =COUNTIFS('6. Stamkaart'!$G$35:$G$6012,B211,'6. Stamkaart'!$S$35:$S$6012,">=60") -> 0 | D211: =SUMIFS('6. Stamkaart'!$E$35:$E$6012,'6. Stamkaart'!$G$35:$G$6012,'2. Overzicht'!B211,'6. Stamkaart'!$S$35:$S$6012,">=60") -> 0 | F211: =Tabel7[[#This Row],[Functie(groep)]] ->  | G211: =IFERROR(AVERAGEIFS('6. Stamkaart'!$AF$35:$AF$6012,'6. Stamkaart'!$G$35:$G$6012,'2. Overzicht'!F211),0) -> 0
B212: =Beheer_Salaristabellen!B25 ->  | C212: =COUNTIFS('6. Stamkaart'!$G$35:$G$6012,B212,'6. Stamkaart'!$S$35:$S$6012,">=60") -> 0 | D212: =SUMIFS('6. Stamkaart'!$E$35:$E$6012,'6. Stamkaart'!$G$35:$G$6012,'2. Overzicht'!B212,'6. Stamkaart'!$S$35:$S$6012,">=60") -> 0 | F212: =Tabel7[[#This Row],[Functie(groep)]] ->  | G212: =IFERROR(AVERAGEIFS('6. Stamkaart'!$AF$35:$AF$6012,'6. Stamkaart'!$G$35:$G$6012,'2. Overzicht'!F212),0) -> 0
B213: =Beheer_Salaristabellen!B26 ->  | C213: =COUNTIFS('6. Stamkaart'!$G$35:$G$6012,B213,'6. Stamkaart'!$S$35:$S$6012,">=60") -> 0 | D213: =SUMIFS('6. Stamkaart'!$E$35:$E$6012,'6. Stamkaart'!$G$35:$G$6012,'2. Overzicht'!B213,'6. Stamkaart'!$S$35:$S$6012,">=60") -> 0 | F213: =Tabel7[[#This Row],[Functie(groep)]] ->  | G213: =IFERROR(AVERAGEIFS('6. Stamkaart'!$AF$35:$AF$6012,'6. Stamkaart'!$G$35:$G$6012,'2. Overzicht'!F213),0) -> 0
B214: =Beheer_Salaristabellen!B27 ->  | C214: =COUNTIFS('6. Stamkaart'!$G$35:$G$6012,B214,'6. Stamkaart'!$S$35:$S$6012,">=60") -> 0 | D214: =SUMIFS('6. Stamkaart'!$E$35:$E$6012,'6. Stamkaart'!$G$35:$G$6012,'2. Overzicht'!B214,'6. Stamkaart'!$S$35:$S$6012,">=60") -> 0 | F214: =Tabel7[[#This Row],[Functie(groep)]] ->  | G214: =IFERROR(AVERAGEIFS('6. Stamkaart'!$AF$35:$AF$6012,'6. Stamkaart'!$G$35:$G$6012,'2. Overzicht'!F214),0) -> 0
B215: =Beheer_Salaristabellen!B28 ->  | C215: =COUNTIFS('6. Stamkaart'!$G$35:$G$6012,B215,'6. Stamkaart'!$S$35:$S$6012,">=60") -> 0 | D215: =SUMIFS('6. Stamkaart'!$E$35:$E$6012,'6. Stamkaart'!$G$35:$G$6012,'2. Overzicht'!B215,'6. Stamkaart'!$S$35:$S$6012,">=60") -> 0 | F215: =Tabel7[[#This Row],[Functie(groep)]] ->  | G215: =IFERROR(AVERAGEIFS('6. Stamkaart'!$AF$35:$AF$6012,'6. Stamkaart'!$G$35:$G$6012,'2. Overzicht'!F215),0) -> 0
B216: =Beheer_Salaristabellen!B29 ->  | C216: =COUNTIFS('6. Stamkaart'!$G$35:$G$6012,B216,'6. Stamkaart'!$S$35:$S$6012,">=60") -> 0 | D216: =SUMIFS('6. Stamkaart'!$E$35:$E$6012,'6. Stamkaart'!$G$35:$G$6012,'2. Overzicht'!B216,'6. Stamkaart'!$S$35:$S$6012,">=60") -> 0 | F216: =Tabel7[[#This Row],[Functie(groep)]] ->  | G216: =IFERROR(AVERAGEIFS('6. Stamkaart'!$AF$35:$AF$6012,'6. Stamkaart'!$G$35:$G$6012,'2. Overzicht'!F216),0) -> 0
B217: =Beheer_Salaristabellen!B30 ->  | C217: =COUNTIFS('6. Stamkaart'!$G$35:$G$6012,B217,'6. Stamkaart'!$S$35:$S$6012,">=60") -> 0 | D217: =SUMIFS('6. Stamkaart'!$E$35:$E$6012,'6. Stamkaart'!$G$35:$G$6012,'2. Overzicht'!B217,'6. Stamkaart'!$S$35:$S$6012,">=60") -> 0 | F217: =Tabel7[[#This Row],[Functie(groep)]] ->  | G217: =IFERROR(AVERAGEIFS('6. Stamkaart'!$AF$35:$AF$6012,'6. Stamkaart'!$G$35:$G$6012,'2. Overzicht'!F217),0) -> 0
B218: =Beheer_Salaristabellen!B31 ->  | C218: =COUNTIFS('6. Stamkaart'!$G$35:$G$6012,B218,'6. Stamkaart'!$S$35:$S$6012,">=60") -> 0 | D218: =SUMIFS('6. Stamkaart'!$E$35:$E$6012,'6. Stamkaart'!$G$35:$G$6012,'2. Overzicht'!B218,'6. Stamkaart'!$S$35:$S$6012,">=60") -> 0 | F218: =Tabel7[[#This Row],[Functie(groep)]] ->  | G218: =IFERROR(AVERAGEIFS('6. Stamkaart'!$AF$35:$AF$6012,'6. Stamkaart'!$G$35:$G$6012,'2. Overzicht'!F218),0) -> 0
B219: =Beheer_Salaristabellen!B32 ->  | C219: =COUNTIFS('6. Stamkaart'!$G$35:$G$6012,B219,'6. Stamkaart'!$S$35:$S$6012,">=60") -> 0 | D219: =SUMIFS('6. Stamkaart'!$E$35:$E$6012,'6. Stamkaart'!$G$35:$G$6012,'2. Overzicht'!B219,'6. Stamkaart'!$S$35:$S$6012,">=60") -> 0 | F219: =Tabel7[[#This Row],[Functie(groep)]] ->  | G219: =IFERROR(AVERAGEIFS('6. Stamkaart'!$AF$35:$AF$6012,'6. Stamkaart'!$G$35:$G$6012,'2. Overzicht'!F219),0) -> 0
B220: =Beheer_Salaristabellen!B33 ->  | C220: =COUNTIFS('6. Stamkaart'!$G$35:$G$6012,B220,'6. Stamkaart'!$S$35:$S$6012,">=60") -> 0 | D220: =SUMIFS('6. Stamkaart'!$E$35:$E$6012,'6. Stamkaart'!$G$35:$G$6012,'2. Overzicht'!B220,'6. Stamkaart'!$S$35:$S$6012,">=60") -> 0 | F220: =Tabel7[[#This Row],[Functie(groep)]] ->  | G220: =IFERROR(AVERAGEIFS('6. Stamkaart'!$AF$35:$AF$6012,'6. Stamkaart'!$G$35:$G$6012,'2. Overzicht'!F220),0) -> 0
B221: =Beheer_Salaristabellen!B34 ->  | C221: =COUNTIFS('6. Stamkaart'!$G$35:$G$6012,B221,'6. Stamkaart'!$S$35:$S$6012,">=60") -> 0 | D221: =SUMIFS('6. Stamkaart'!$E$35:$E$6012,'6. Stamkaart'!$G$35:$G$6012,'2. Overzicht'!B221,'6. Stamkaart'!$S$35:$S$6012,">=60") -> 0 | F221: =Tabel7[[#This Row],[Functie(groep)]] ->  | G221: =IFERROR(AVERAGEIFS('6. Stamkaart'!$AF$35:$AF$6012,'6. Stamkaart'!$G$35:$G$6012,'2. Overzicht'!F221),0) -> 0
B222: =Beheer_Salaristabellen!B35 ->  | C222: =COUNTIFS('6. Stamkaart'!$G$35:$G$6012,B222,'6. Stamkaart'!$S$35:$S$6012,">=60") -> 0 | D222: =SUMIFS('6. Stamkaart'!$E$35:$E$6012,'6. Stamkaart'!$G$35:$G$6012,'2. Overzicht'!B222,'6. Stamkaart'!$S$35:$S$6012,">=60") -> 0 | F222: =Tabel7[[#This Row],[Functie(groep)]] ->  | G222: =IFERROR(AVERAGEIFS('6. Stamkaart'!$AF$35:$AF$6012,'6. Stamkaart'!$G$35:$G$6012,'2. Overzicht'!F222),0) -> 0
B223: =Beheer_Salaristabellen!B36 ->  | C223: =COUNTIFS('6. Stamkaart'!$G$35:$G$6012,B223,'6. Stamkaart'!$S$35:$S$6012,">=60") -> 0 | D223: =SUMIFS('6. Stamkaart'!$E$35:$E$6012,'6. Stamkaart'!$G$35:$G$6012,'2. Overzicht'!B223,'6. Stamkaart'!$S$35:$S$6012,">=60") -> 0 | F223: =Tabel7[[#This Row],[Functie(groep)]] ->  | G223: =IFERROR(AVERAGEIFS('6. Stamkaart'!$AF$35:$AF$6012,'6. Stamkaart'!$G$35:$G$6012,'2. Overzicht'!F223),0) -> 0
B224: =Beheer_Salaristabellen!B37 ->  | C224: =COUNTIFS('6. Stamkaart'!$G$35:$G$6012,B224,'6. Stamkaart'!$S$35:$S$6012,">=60") -> 0 | D224: =SUMIFS('6. Stamkaart'!$E$35:$E$6012,'6. Stamkaart'!$G$35:$G$6012,'2. Overzicht'!B224,'6. Stamkaart'!$S$35:$S$6012,">=60") -> 0 | F224: =Tabel7[[#This Row],[Functie(groep)]] ->  | G224: =IFERROR(AVERAGEIFS('6. Stamkaart'!$AF$35:$AF$6012,'6. Stamkaart'!$G$35:$G$6012,'2. Overzicht'!F224),0) -> 0
B225: =Beheer_Salaristabellen!B38 ->  | C225: =COUNTIFS('6. Stamkaart'!$G$35:$G$6012,B225,'6. Stamkaart'!$S$35:$S$6012,">=60") -> 0 | D225: =SUMIFS('6. Stamkaart'!$E$35:$E$6012,'6. Stamkaart'!$G$35:$G$6012,'2. Overzicht'!B225,'6. Stamkaart'!$S$35:$S$6012,">=60") -> 0 | F225: =Tabel7[[#This Row],[Functie(groep)]] ->  | G225: =IFERROR(AVERAGEIFS('6. Stamkaart'!$AF$35:$AF$6012,'6. Stamkaart'!$G$35:$G$6012,'2. Overzicht'!F225),0) -> 0
B226: =Beheer_Salaristabellen!B39 ->  | C226: =COUNTIFS('6. Stamkaart'!$G$35:$G$6012,B226,'6. Stamkaart'!$S$35:$S$6012,">=60") -> 0 | D226: =SUMIFS('6. Stamkaart'!$E$35:$E$6012,'6. Stamkaart'!$G$35:$G$6012,'2. Overzicht'!B226,'6. Stamkaart'!$S$35:$S$6012,">=60") -> 0 | F226: =Tabel7[[#This Row],[Functie(groep)]] ->  | G226: =IFERROR(AVERAGEIFS('6. Stamkaart'!$AF$35:$AF$6012,'6. Stamkaart'!$G$35:$G$6012,'2. Overzicht'!F226),0) -> 0
B227: =Beheer_Salaristabellen!B40 ->  | C227: =COUNTIFS('6. Stamkaart'!$G$35:$G$6012,B227,'6. Stamkaart'!$S$35:$S$6012,">=60") -> 0 | D227: =SUMIFS('6. Stamkaart'!$E$35:$E$6012,'6. Stamkaart'!$G$35:$G$6012,'2. Overzicht'!B227,'6. Stamkaart'!$S$35:$S$6012,">=60") -> 0 | F227: =Tabel7[[#This Row],[Functie(groep)]] ->  | G227: =IFERROR(AVERAGEIFS('6. Stamkaart'!$AF$35:$AF$6012,'6. Stamkaart'!$G$35:$G$6012,'2. Overzicht'!F227),0) -> 0
B228: =Beheer_Salaristabellen!B41 ->  | C228: =COUNTIFS('6. Stamkaart'!$G$35:$G$6012,B228,'6. Stamkaart'!$S$35:$S$6012,">=60") -> 0 | D228: =SUMIFS('6. Stamkaart'!$E$35:$E$6012,'6. Stamkaart'!$G$35:$G$6012,'2. Overzicht'!B228,'6. Stamkaart'!$S$35:$S$6012,">=60") -> 0 | F228: =Tabel7[[#This Row],[Functie(groep)]] ->  | G228: =IFERROR(AVERAGEIFS('6. Stamkaart'!$AF$35:$AF$6012,'6. Stamkaart'!$G$35:$G$6012,'2. Overzicht'!F228),0) -> 0
B229: =Beheer_Salaristabellen!B42 ->  | C229: =COUNTIFS('6. Stamkaart'!$G$35:$G$6012,B229,'6. Stamkaart'!$S$35:$S$6012,">=60") -> 0 | D229: =SUMIFS('6. Stamkaart'!$E$35:$E$6012,'6. Stamkaart'!$G$35:$G$6012,'2. Overzicht'!B229,'6. Stamkaart'!$S$35:$S$6012,">=60") -> 0 | F229: =Tabel7[[#This Row],[Functie(groep)]] ->  | G229: =IFERROR(AVERAGEIFS('6. Stamkaart'!$AF$35:$AF$6012,'6. Stamkaart'!$G$35:$G$6012,'2. Overzicht'!F229),0) -> 0
B230: =Beheer_Salaristabellen!B43 ->  | C230: =COUNTIFS('6. Stamkaart'!$G$35:$G$6012,B230,'6. Stamkaart'!$S$35:$S$6012,">=60") -> 0 | D230: =SUMIFS('6. Stamkaart'!$E$35:$E$6012,'6. Stamkaart'!$G$35:$G$6012,'2. Overzicht'!B230,'6. Stamkaart'!$S$35:$S$6012,">=60") -> 0 | F230: =Tabel7[[#This Row],[Functie(groep)]] ->  | G230: =IFERROR(AVERAGEIFS('6. Stamkaart'!$AF$35:$AF$6012,'6. Stamkaart'!$G$35:$G$6012,'2. Overzicht'!F230),0) -> 0
B231: =Beheer_Salaristabellen!B44 ->  | C231: =COUNTIFS('6. Stamkaart'!$G$35:$G$6012,B231,'6. Stamkaart'!$S$35:$S$6012,">=60") -> 0 | D231: =SUMIFS('6. Stamkaart'!$E$35:$E$6012,'6. Stamkaart'!$G$35:$G$6012,'2. Overzicht'!B231,'6. Stamkaart'!$S$35:$S$6012,">=60") -> 0 | F231: =Tabel7[[#This Row],[Functie(groep)]] ->  | G231: =IFERROR(AVERAGEIFS('6. Stamkaart'!$AF$35:$AF$6012,'6. Stamkaart'!$G$35:$G$6012,'2. Overzicht'!F231),0) -> 0
B232: =Beheer_Salaristabellen!B45 ->  | C232: =COUNTIFS('6. Stamkaart'!$G$35:$G$6012,B232,'6. Stamkaart'!$S$35:$S$6012,">=60") -> 0 | D232: =SUMIFS('6. Stamkaart'!$E$35:$E$6012,'6. Stamkaart'!$G$35:$G$6012,'2. Overzicht'!B232,'6. Stamkaart'!$S$35:$S$6012,">=60") -> 0 | F232: =Tabel7[[#This Row],[Functie(groep)]] ->  | G232: =IFERROR(AVERAGEIFS('6. Stamkaart'!$AF$35:$AF$6012,'6. Stamkaart'!$G$35:$G$6012,'2. Overzicht'!F232),0) -> 0

Sheet 3.Varianten
B2: ='2. Overzicht'!B2 -> Rekentool Regeling Generatiebeleid
B3: 3. Invoeren van een variant
B18: 1. Parameters
B20: Nieuw feitelijk werk in % (1) | C20: 0.8
B22: Betaald vrijgesteld van werk in % (2) | C22: 0.1
B24: Berekening o.b.v. (3) | C24: Collectieve invoer | E24: =IF(E25=1,"Let op! Indien geen individuele invoer ingegeven op de stamkaart, wordt de collectieve invoer gebruikt","") -> 
E25: =IF(C24="individuele invoer",1,IF(C24="collectieve invoer",2,0)) -> 2 | H25: =IF(C20+C22>1,"FOUT: Feitelijk werk en suppletie moeten samen maximaal 100% zijn!","") -> 
B26: Percentage deelname aan de regeling (4) | C26: 1

Sheet 4. Kosten & Opbrengsten
B2: ='2. Overzicht'!B2 -> Rekentool Regeling Generatiebeleid
B3: 4. Kosten & Opbrengsten
B16: 1. Gekozen variant
B18: In het tabblad varianten zijn onderstaande waarden ingevoerd:
B20: ='3.Varianten'!B20 -> Nieuw feitelijk werk in % (1) | C20: ='3.Varianten'!C20 -> 0.8
B22: ='3.Varianten'!B22 -> Betaald vrijgesteld van werk in % (2) | C22: ='3.Varianten'!C22 -> 0.1
B24: ='8. Beheer_Tabellen'!E34 -> Vrijwillige voortzetting | C24: ='8. Beheer_Tabellen'!G34 -> 1
B26: ='8. Beheer_Tabellen'!B26 -> WG-bijdrage premie vrijwillige voortzetting | C26: ='8. Beheer_Tabellen'!C26 -> 0.5 | D26: N.B. in deze rekentool wordt er vanuit gegaan dat altijd een vrijwillige voortzetting pensioenopbouw plaatsvindt
B29: Potentiele instroom: aantal werknemers dat aan de voorwaarden van deelname voldoet voor een periode van tien jaar:
B31: Jaar | C31: ='6. Stamkaart'!BU31 -> 2024 | D31: ='6. Stamkaart'!BV31 -> 2025 | E31: ='6. Stamkaart'!BW31 -> 2026 | F31: ='6. Stamkaart'!BX31 -> 2027 | G31: ='6. Stamkaart'!BY31 -> 2028 | H31: ='6. Stamkaart'!BZ31 -> 2029 | I31: ='6. Stamkaart'!CA31 -> 2030 | J31: ='6. Stamkaart'!CB31 -> 2031 | K31: ='6. Stamkaart'!CC31 -> 2032 | L31: ='6. Stamkaart'!CD31 -> 2033 | M31: ='6. Stamkaart'!CE31 -> 2034
B32: ='6. Stamkaart'!BI26 -> Instroom in de regeling | C32: ='6. Stamkaart'!BJ26 -> 0 | D32: ='6. Stamkaart'!BK26 -> 0 | E32: ='6. Stamkaart'!BL26 -> 0 | F32: ='6. Stamkaart'!BM26 -> 0 | G32: ='6. Stamkaart'!BN26 -> 0 | H32: ='6. Stamkaart'!BO26 -> 0 | I32: ='6. Stamkaart'!BP26 -> 0 | J32: ='6. Stamkaart'!BQ26 -> 0 | K32: ='6. Stamkaart'!BR26 -> 0 | L32: ='6. Stamkaart'!BS26 -> 0 | M32: ='6. Stamkaart'!BT26 -> 0
B33: ='6. Stamkaart'!BI27 -> Uitstroom uit de regeling | C33: n.v.t. | D33: ='6. Stamkaart'!BK27 -> 0 | E33: ='6. Stamkaart'!BL27 -> 0 | F33: ='6. Stamkaart'!BM27 -> 0 | G33: ='6. Stamkaart'!BN27 -> 0 | H33: ='6. Stamkaart'!BO27 -> 0 | I33: ='6. Stamkaart'!BP27 -> 0 | J33: ='6. Stamkaart'!BQ27 -> 0 | K33: ='6. Stamkaart'!BR27 -> 0 | L33: ='6. Stamkaart'!BS27 -> 0 | M33: ='6. Stamkaart'!BT27 -> 0
B34: ='6. Stamkaart'!BI28 -> Deelnemers aan de regeling | C34: ='6. Stamkaart'!BJ28 -> 0 | D34: ='6. Stamkaart'!BK28 -> 0 | E34: ='6. Stamkaart'!BL28 -> 0 | F34: ='6. Stamkaart'!BM28 -> 0 | G34: ='6. Stamkaart'!BN28 -> 0 | H34: ='6. Stamkaart'!BO28 -> 0 | I34: ='6. Stamkaart'!BP28 -> 0 | J34: ='6. Stamkaart'!BQ28 -> 0 | K34: ='6. Stamkaart'!BR28 -> 0 | L34: ='6. Stamkaart'!BS28 -> 0 | M34: ='6. Stamkaart'!BT28 -> 0
B37: 2. Resultaat
B39: Op basis van de gekozen variant (inclusief gekozen deelnamepercentage) worden hieronder een aantal uitkomsten van doorrekeningen weergegeven. Deze uitkomsten kunnen dienen als onderdeel van de businesscase.
B40: En om te bepalen of deze aansluiten op de doelstelling van de instelling bij het Generatiebeleid. Voor een volledige businesscase is het aan te raden ook ook andere
B41: opbrengsten of aspecten te betrekken. Denk hierbij aan verlaging kosten ziekteverzuim, of aan een verlaging van de reservering verlof op de balans.
B43: 2.1 Financiële impact
B44: (over een periode van 10 jaar)
B46: Kosten van de regeling exclusief herbezetting | C46: =J52 -> 0 | E46: De kosten van de regeling bestaan uit:
E47: Kosten betaald vrijgesteld van werk | I47: ='6. Stamkaart'!AQ31*Percentage_deelname -> 0
E48: Kosten pensioenpremie (OP) over betaald vrijgesteld van werk | I48: =+'6. Stamkaart'!AX31*Percentage_deelname -> 0 | J48: +
E49: Subtotaal | J49: =+I48+I47 -> 0
E51: Kosten pensioenpremie vrijwillige voortzetting (OP) | J51: ='6. Stamkaart'!$AY$31*Percentage_deelname -> 0 | K51: +
E52: Totaal | J52: =+J51+J49 -> 0
B54: Jaar | C54: ='6. Stamkaart'!BU31 -> 2024 | D54: ='6. Stamkaart'!BV31 -> 2025 | E54: ='6. Stamkaart'!BW31 -> 2026 | F54: ='6. Stamkaart'!BX31 -> 2027 | G54: ='6. Stamkaart'!BY31 -> 2028 | H54: ='6. Stamkaart'!BZ31 -> 2029 | I54: ='6. Stamkaart'!CA31 -> 2030 | J54: ='6. Stamkaart'!CB31 -> 2031 | K54: ='6. Stamkaart'!CC31 -> 2032 | L54: ='6. Stamkaart'!CD31 -> 2033 | M54: ='6. Stamkaart'!CE31 -> 2034 | N54: Totaal
B55: Kosten van de regeling per jaar, exclusief herbezetting | C55: ='6. Stamkaart'!DC32 -> 0 | D55: ='6. Stamkaart'!DD32 -> 0 | E55: ='6. Stamkaart'!DE32 -> 0 | F55: ='6. Stamkaart'!DF32 -> 0 | G55: ='6. Stamkaart'!DG32 -> 0 | H55: ='6. Stamkaart'!DH32 -> 0 | I55: ='6. Stamkaart'!DI32 -> 0 | J55: ='6. Stamkaart'!DJ32 -> 0 | K55: ='6. Stamkaart'!DK32 -> 0 | L55: ='6. Stamkaart'!DL32 -> 0 | M55: ='6. Stamkaart'!DM32 -> 0 | N55: ='6. Stamkaart'!DN32 -> 0
B57: Vrijval (voor herbezetting beschikbaar)
B58: Vermindering salariskosten door vermindering FTE
B59: bij toepassing generatieregeling : | C59: ='6. Stamkaart'!BI31 -> 0
B62: 2.2 Effect in bruto uren en €
B64: Door de regeling zijn er minder uren beschikbaar. Onderstaand wordt de omvang hiervan in uren en fte per jaar voor het hele bestand weergegeven. (voor een specificatie per functie: zie tabblad 5. Formatie)
B65: Het verlies aan fte is berekend op basis van het aantal uren, niet op basis van de vrijval van salariskosten.
B67: Jaar | C67: ='6. Stamkaart'!BU31 -> 2024 | D67: ='6. Stamkaart'!BV31 -> 2025 | E67: ='6. Stamkaart'!BW31 -> 2026 | F67: ='6. Stamkaart'!BX31 -> 2027 | G67: ='6. Stamkaart'!BY31 -> 2028 | H67: ='6. Stamkaart'!BZ31 -> 2029 | I67: ='6. Stamkaart'!CA31 -> 2030 | J67: ='6. Stamkaart'!CB31 -> 2031 | K67: ='6. Stamkaart'!CC31 -> 2032 | L67: ='6. Stamkaart'!CD31 -> 2033 | M67: ='6. Stamkaart'!CE31 -> 2034 | N67: Totaal
B68: Verlies bruto uren | C68: ='6. Stamkaart'!BU30 -> 0 | D68: ='6. Stamkaart'!BV30 -> 0 | E68: ='6. Stamkaart'!BW30 -> 0 | F68: ='6. Stamkaart'!BX30 -> 0 | G68: ='6. Stamkaart'!BY30 -> 0 | H68: ='6. Stamkaart'!BZ30 -> 0 | I68: ='6. Stamkaart'!CA30 -> 0 | J68: ='6. Stamkaart'!CB30 -> 0 | K68: ='6. Stamkaart'!CC30 -> 0 | L68: ='6. Stamkaart'!CD30 -> 0 | M68: ='6. Stamkaart'!CE30 -> 0 | N68: =SUM(C68:M68) -> 0
B69: Verlies fte (o.b.v. uren) | C69: =+C68/Uren_per_jaar -> 0 | D69: =+D68/Uren_per_jaar -> 0 | E69: 0 | F69: 0 | G69: 0 | H69: 0 | I69: 0 | J69: 0 | K69: 0 | L69: 0 | M69: 0 | N69: =SUM(C69:M69) -> 0
B70: Vrijval in € | C70: ='6. Stamkaart'!CQ30 -> 0 | D70: ='6. Stamkaart'!CR30 -> 0 | E70: ='6. Stamkaart'!CS30 -> 0 | F70: ='6. Stamkaart'!CT30 -> 0 | G70: ='6. Stamkaart'!CU30 -> 0 | H70: ='6. Stamkaart'!CV30 -> 0 | I70: ='6. Stamkaart'!CW30 -> 0 | J70: ='6. Stamkaart'!CX30 -> 0 | K70: ='6. Stamkaart'!CY30 -> 0 | L70: ='6. Stamkaart'!CZ30 -> 0 | M70: ='6. Stamkaart'!DA30 -> 0 | N70: =SUM(C70:M70) -> 0
B72: Bovenstaand saldo geeft het aantal bruto uren aan dat door toepassing van de gekozen variant van een generatieregeling minder beschikbaar is.
B74: 2.3 Effect op netto inzetbare uren
B76: Bij 2.2. is het aantal bruto uren berekend dat door de toepassing van de generatieregeling minder beschikbaar is. Herbezetting wordt in deze tool berekend op basis van netto uren.
B77: Hieronder worden de bruto uren verminderd met verzuim en verlof en omgerekend naar netto inzetbare uren.
B79: Berekeningsgrondslag: | C79: ='7. Ziekteverzuim'!E12 -> Branche verzuimcijfers | D79: (n.b.: maak een keuze op tabblad 7. Ziekteverzuim; branchecijfers of eigen cijfers)
B81: Verzuimpercentage tot 35 jaar | C81: ='8. Beheer_Tabellen'!G91 -> 0.0483
B82: Verzuimpercentage vanaf 60 jaar | C82: ='8. Beheer_Tabellen'!G97 -> 0.0839
B85: Bruto-netto voor potentiële deelnemers | C85: =C137 -> 2024 | D85: 2025 | E85: 2026 | F85: 2027 | G85: 2028 | H85: 2029 | I85: 2030 | J85: 2031 | K85: 2032 | L85: 2033 | M85: 2034 | N85: Totaal
B86: Verzuim in uren | C86: =$C$82*C68 -> 0 | D86: 0 | E86: 0 | F86: 0 | G86: 0 | H86: 0 | I86: 0 | J86: 0 | K86: 0 | L86: 0 | M86: 0 | N86: =SUM(C86:M86) -> 0
B87: Wettelijk verlof | C87: =+C69*$C$123 -> 0 | D87: 0 | E87: 0 | F87: 0 | G87: 0 | H87: 0 | I87: 0 | J87: 0 | K87: 0 | L87: 0 | M87: 0 | N87: =+N69*$C$123 -> 0
B88: PLB-uren | C88: =C69*'8. Beheer_Tabellen'!$D$75 -> 0 | D88: =D69*'8. Beheer_Tabellen'!$D$75 -> 0 | E88: =E69*'8. Beheer_Tabellen'!$D$75 -> 0 | F88: =F69*'8. Beheer_Tabellen'!$D$75 -> 0 | G88: =G69*'8. Beheer_Tabellen'!$D$75 -> 0 | H88: =H69*'8. Beheer_Tabellen'!$D$75 -> 0 | I88: =I69*'8. Beheer_Tabellen'!$D$75 -> 0 | J88: =J69*'8. Beheer_Tabellen'!$D$75 -> 0 | K88: =K69*'8. Beheer_Tabellen'!$D$75 -> 0 | L88: =L69*'8. Beheer_Tabellen'!$D$75 -> 0 | M88: =M69*'8. Beheer_Tabellen'!$D$75 -> 0 | N88: =SUM(C88:M88) -> 0
B89: Totaal niet inzetbare uren | C89: =SUM(C86:C88) -> 0 | D89: =SUM(D86:D88) -> 0 | E89: 0 | F89: 0 | G89: 0 | H89: 0 | I89: 0 | J89: 0 | K89: 0 | L89: 0 | M89: 0 | N89: =SUM(N86:N88) -> 0
B91: Verlies bruto uren | C91: =C68 -> 0 | D91: =D68 -> 0 | E91: 0 | F91: 0 | G91: 0 | H91: 0 | I91: 0 | J91: 0 | K91: 0 | L91: 0 | M91: 0 | N91: =N68 -> 0
B92: Totaal niet inzetbare bruto uren | C92: =-C89 -> 0 | D92: =-D89 -> 0 | E92: 0 | F92: 0 | G92: 0 | H92: 0 | I92: 0 | J92: 0 | K92: 0 | L92: 0 | M92: 0 | N92: =-N89 -> 0
B93: Verlies netto uren | C93: =C91+C92 -> 0 | D93: =D91+D92 -> 0 | E93: 0 | F93: 0 | G93: 0 | H93: 0 | I93: 0 | J93: 0 | K93: 0 | L93: 0 | M93: 0 | N93: =N91+N92 -> 0
B95: Verlies aan netto inzetbare fte | C95: =C93/Uren_per_jaar -> 0 | D95: =D93/Uren_per_jaar -> 0 | E95: 0 | F95: 0 | G95: 0 | H95: 0 | I95: 0 | J95: 0 | K95: 0 | L95: 0 | M95: 0 | N95: =SUM(C95:M95) -> 0
B97: Dit bovenstaand saldo geeft het aantal netto uren aan dat door toepassing van de gekozen variant van een generatieregeling minder beschikbaar is.
B100: 2.4 Berekeningsgrondslag voor herbezetting
B102: De vrijval van salariskosten kan worden gebruikt om jongeren (tot 35 jaar) te laten instromen. Hieronder wordt berekend hoeveel fte kan worden "gefinancierd" uit de vrijval van de salariskosten.
B103: Hierbij kan worden gekozen voor een doorrekening op basis van een gemiddeld bruto salaris (voltijds) van het totale personeelsbestand of van een specifieke referentiefunctie (bestaande functie).
B106: Referentiefunctie: | C106: Eigen invoer | D106: (N.B. door op het invoerveld te gaan staan met de cursor worden de functies waaruit gekozen kan worden zichtbaar)
B108: Er kan ook worden gekozen om door te rekenen met een zelf gekozen bruto salaris (voltijds, inclusief EJU en VT). Vul dan hieronder de gewenste bedragen per leeftijdscategorie in en kies hierboven bij Referentiefunctie "Eigen invoer".
B110: Gemiddeld jaarloon instroom door herbezetting ('instromer') | C110: 25000
B112: Gemiddeld jaarloon uitstroom door de regeling ('uitstromer') | C112: 40601
B115: Gekozen bruto salaris: | C115: =C106 -> Eigen invoer
B116: Gemiddeld jaarloon instroom door herbezetting ('instromer') | C116: =VLOOKUP(C106,Beheer_Salaristabellen!$B$4:$C$46,2,FALSE) -> 25000 | D116: (Dit is het gemiddelde(voltijds) salaris dat behoort bij de gekozen referentiefunctie)
B117: Gemiddeld jaarloon uitstroom door de regeling ('uitstromer') | C117: =VLOOKUP(C106,Beheer_Salaristabellen!$B$4:$D$46,3,FALSE) -> 40601
B120: Berekeningsgrondslagen voor herbezetting (uitgangspunt 1 fte = 1878 uur) | C120: Instromer | D120: Uitstromer
B121: Verzuim in uren | C121: =$C$81*Uren_per_jaar -> 90.7074 | D121: =+C82*Uren_per_jaar -> 157.5642
B122: PLB-uren | C122: ='8. Beheer_Tabellen'!$F$18 -> 57 | D122: =+'8. Beheer_Tabellen'!D75 -> 187 | E122: *
B123: Wettelijk vakantieverlof | C123: 144 | D123: 144
B124: Netto inzetbaarheid per fte | C124: =Uren_per_jaar-SUM(C121:C123) -> 1586.2926 | D124: =Uren_per_jaar-SUM(D121:D123) -> 1389.4358
B125: Percentage netto inzetbaarheid | C125: =+C124/Uren_per_jaar -> 0.844671246 | D125: =+D124/Uren_per_jaar -> 0.7398486688
B126: Salariskosten per fte | C126: =C116 -> 25000 | D126: =C117 -> 40601
B127: Kostprijs per netto inzetbaar uur | C127: =+C126/C124 -> 15.76001804 | D127: =+D126/D124 -> 29.22121339
B129: * Voor de berekening van het bruto-netto verschil tussen instroom door herbezetting en uitstroom door gebruik van de regeling wordt voor uitstroom uitgegaan van de maximale PLB uit de overgangsregeling.
B133: 2.5. Herbezetting op basis van vrijval van de salariskosten
B135: Op basis van het gekozen salaris voor werknemers van 35 jaar en jonger wordt zichtbaar hoeveel bruto fte met de vrijval van salariskosten kan worden gefinancierd. En wat het effect is op de formatie.
B137: Jaar | C137: =C67 -> 2024 | D137: 2025 | E137: 2026 | F137: 2027 | G137: 2028 | H137: 2029 | I137: 2030 | J137: 2031 | K137: 2032 | L137: 2033 | M137: 2034 | N137: Totaal
B138: Benodigde bruto fte (zie 2.2) | C138: =C69 -> 0 | D138: =D69 -> 0 | E138: 0 | F138: 0 | G138: 0 | H138: 0 | I138: 0 | J138: 0 | K138: 0 | L138: 0 | M138: 0 | N138: =N69 -> 0
B139: Ruimte voor herbezetting in bruto fte | C139: =IFERROR(C70/$C$116,0) -> 0 | D139: 0 | E139: 0 | F139: 0 | G139: 0 | H139: 0 | I139: 0 | J139: 0 | K139: 0 | L139: 0 | M139: 0 | N139: 0
B140: Effect op bruto formatie | C140: =C139-C69 -> 0 | D140: 0 | E140: 0 | F140: 0 | G140: 0 | H140: 0 | I140: 0 | J140: 0 | K140: 0 | L140: 0 | M140: 0 | N140: =SUM(C140:M140) -> 0
B141: N.B.: een "-" betekent dat de vrijval niet voldoende is om volledige herbezetting te financieren uit de vrijval van salariskosten.
B144: Op basis van het gekozen salaris voor werknemers van 35 jaar en jonger wordt zichtbaar hoeveel netto fte met de vrijval van salariskosten kan worden gefinancierd. En wat het effect is op de formatie.
B146: jaar | C146: =C158 -> 2024 | D146: 2025 | E146: 2026 | F146: 2027 | G146: 2028 | H146: 2029 | I146: 2030 | J146: 2031 | K146: 2032 | L146: 2033 | M146: 2034 | N146: Totaal
B147: Ruimte voor bruto fte (zie 2.5) | C147: =IFERROR(C161/$C$126,0) -> 0 | D147: 0 | E147: 0 | F147: 0 | G147: 0 | H147: 0 | I147: 0 | J147: 0 | K147: 0 | L147: 0 | M147: 0 | N147: 0
B148: Benodigde netto fte (zie 2.3) | C148: =C95 -> 0 | D148: =D95 -> 0 | E148: 0 | F148: 0 | G148: 0 | H148: 0 | I148: 0 | J148: 0 | K148: 0 | L148: 0 | M148: 0 | N148: =SUM(C148:M148) -> 0
B149: Ruimte voor herbezetting in netto fte | C149: =+C147*$C$125 -> 0 | D149: =+D147*$C$125 -> 0 | E149: 0 | F149: 0 | G149: 0 | H149: 0 | I149: 0 | J149: 0 | K149: 0 | L149: 0 | M149: 0 | N149: =SUM(C149:M149) -> 0
B150: Effect op netto formatie | C150: =C149-C95 -> 0 | D150: 0 | E150: 0 | F150: 0 | G150: 0 | H150: 0 | I150: 0 | J150: 0 | K150: 0 | L150: =L149-L95 -> 0 | M150: 0 | N150: =SUM(C150:M150) -> 0
B151: N.B.: een "-" betekent dat de vrijval niet voldoende is om volledige herbezetting te financieren uit de vrijval van salariskosten.
B154: 2.6 Financiële gevolgen volledige netto herbezetting
B156: Onderstaande tabel geeft de financiële gevolgen weer van volledige netto herbezetting. Dat wil zeggen: hoeveel bruto fte is er nodig voor een volledige netto herbezetting.
B158: Ruimte herbezetting o.b.v. bruto-netto | C158: =C137 -> 2024 | D158: 2025 | E158: 2026 | F158: 2027 | G158: 2028 | H158: 2029 | I158: 2030 | J158: 2031 | K158: 2032 | L158: 2033 | M158: 2034 | N158: Totaal
B159: Benodigde bruto fte voor netto herbezetting | C159: =+C95/$C$125 -> 0 | D159: =+D95/$C$125 -> 0 | E159: 0 | F159: 0 | G159: 0 | H159: 0 | I159: 0 | J159: 0 | K159: 0 | L159: 0 | M159: 0 | N159: =SUM(C159:M159) -> 0
B160: Salariskosten herbezetting | C160: =+C159*$C$116 -> 0 | D160: =+D159*$C$116 -> 0 | E160: 0 | F160: 0 | G160: 0 | H160: 0 | I160: 0 | J160: 0 | K160: 0 | L160: 0 | M160: 0 | N160: =SUM(C160:M160) -> 0
B161: Beschikbaar door vrijval uit generatieregeling (zie 2.2) | C161: =C70 -> 0 | D161: 0 | E161: 0 | F161: 0 | G161: 0 | H161: 0 | I161: 0 | J161: 0 | K161: 0 | L161: 0 | M161: 0 | N161: =SUM(C161:M161) -> 0
B162: Tekort/overschot | C162: =+C161-C160 -> 0 | D162: =+D161-D160 -> 0 | E162: 0 | F162: 0 | G162: 0 | H162: 0 | I162: 0 | J162: 0 | K162: 0 | L162: 0 | M162: 0 | N162: =SUM(C162:M162) -> 0
B163: Kosten van de regeling | C163: =C55 -> 0 | D163: 0 | E163: 0 | F163: 0 | G163: 0 | H163: 0 | I163: 0 | J163: 0 | K163: 0 | L163: 0 | M163: 0 | N163: 0
B164: Totaal kosten inclusief herbezetting | C164: =C163-C162 -> 0 | D164: =D163-D162 -> 0 | E164: 0 | F164: 0 | G164: 0 | H164: 0 | I164: 0 | J164: 0 | K164: 0 | L164: 0 | M164: 0 | N164: 0
B166: Zoals hierboven opgemerkt, wordt bij deze doorrekening geen rekening gehouden met de financiele gevolgen die een regeling Generatiebeleid ook kan hebben.
B167: Denk hierbij aan een verlaging van kosten voortkomende uit arbeidsongeschiktheid of een vermindering van een verlofstuwmeer.
B168: Daarnaast wordt in deze tool geen rekening gehouden met de opname van het bovenwettelijk verlof en het PLB-verlof door werknemers voorafgaand aan de generatieregeling.

Sheet 5. Formatie
B2: ='2. Overzicht'!$B$2 -> Rekentool Regeling Generatiebeleid
B3: 5. Formatie
B12: Verlies in uren per jaar per functie | R12: Verlies in fte per jaar per functie
B14: Functie | C14: =Startjaar -> 2024 | D14: =C14+1 -> 2025 | E14: =D14+1 -> 2026 | F14: 2027 | G14: 2028 | H14: 2029 | I14: 2030 | J14: 2031 | K14: 2032 | L14: 2033 | M14: 2034 | N14: Totaal | R14: Functie | S14: =Startjaar -> 2024 | T14: =S14+1 -> 2025 | U14: =T14+1 -> 2026 | V14: 2027 | W14: 2028 | X14: 2029 | Y14: 2030 | Z14: 2031 | AA14: 2032 | AB14: 2033 | AC14: 2034 | AD14: Totaal
B15: Totaal | C15: =SUM(C16:C56) -> 0 | D15: =SUM(D16:D56) -> 0 | E15: 0 | F15: 0 | G15: 0 | H15: 0 | I15: 0 | J15: 0 | K15: 0 | L15: 0 | M15: 0 | N15: 0 | R15: Totaal | S15: =SUM(S16:S55) -> 0 | T15: =SUM(T16:T55) -> 0 | U15: 0 | V15: 0 | W15: 0 | X15: 0 | Y15: 0 | Z15: 0 | AA15: 0 | AB15: 0 | AC15: 0 | AD15: =SUM('5. Formatie'!$S15:$AC15) -> 0
B16: =Beheer_Salaristabellen!G6 ->  | C16: =SUMIFS('6. Stamkaart'!BU$35:BU$6012,'6. Stamkaart'!$G$35:$G$6012,'5. Formatie'!$B16) -> 0 | D16: =SUMIFS('6. Stamkaart'!BV$35:BV$6012,'6. Stamkaart'!$G$35:$G$6012,'5. Formatie'!$B16) -> 0 | E16: =SUMIFS('6. Stamkaart'!BW$35:BW$6012,'6. Stamkaart'!$G$35:$G$6012,'5. Formatie'!$B16) -> 0 | F16: =SUMIFS('6. Stamkaart'!BX$35:BX$6012,'6. Stamkaart'!$G$35:$G$6012,'5. Formatie'!$B16) -> 0 | G16: =SUMIFS('6. Stamkaart'!BY$35:BY$6012,'6. Stamkaart'!$G$35:$G$6012,'5. Formatie'!$B16) -> 0 | H16: =SUMIFS('6. Stamkaart'!BZ$35:BZ$6012,'6. Stamkaart'!$G$35:$G$6012,'5. Formatie'!$B16) -> 0 | I16: =SUMIFS('6. Stamkaart'!CA$35:CA$6012,'6. Stamkaart'!$G$35:$G$6012,'5. Formatie'!$B16) -> 0 | J16: =SUMIFS('6. Stamkaart'!CB$35:CB$6012,'6. Stamkaart'!$G$35:$G$6012,'5. Formatie'!$B16) -> 0 | K16: =SUMIFS('6. Stamkaart'!CC$35:CC$6012,'6. Stamkaart'!$G$35:$G$6012,'5. Formatie'!$B16) -> 0 | L16: =SUMIFS('6. Stamkaart'!CD$35:CD$6012,'6. Stamkaart'!$G$35:$G$6012,'5. Formatie'!$B16) -> 0 | M16: =SUMIFS('6. Stamkaart'!CE$35:CE$6012,'6. Stamkaart'!$G$35:$G$6012,'5. Formatie'!$B16) -> 0 | N16: =SUM('5. Formatie'!$C16:$M16) -> 0 | R16: =B16 ->  | S16: =SUMIFS('6. Stamkaart'!CF$35:CF$6012,'6. Stamkaart'!$G$35:$G$6012,'5. Formatie'!$R16) -> 0 | T16: =SUMIFS('6. Stamkaart'!CG$35:CG$6012,'6. Stamkaart'!$G$35:$G$6012,'5. Formatie'!$R16) -> 0 | U16: =SUMIFS('6. Stamkaart'!CH$35:CH$6012,'6. Stamkaart'!$G$35:$G$6012,'5. Formatie'!$R16) -> 0 | V16: =SUMIFS('6. Stamkaart'!CI$35:CI$6012,'6. Stamkaart'!$G$35:$G$6012,'5. Formatie'!$R16) -> 0 | W16: =SUMIFS('6. Stamkaart'!CJ$35:CJ$6012,'6. Stamkaart'!$G$35:$G$6012,'5. Formatie'!$R16) -> 0 | X16: =SUMIFS('6. Stamkaart'!CK$35:CK$6012,'6. Stamkaart'!$G$35:$G$6012,'5. Formatie'!$R16) -> 0 | Y16: =SUMIFS('6. Stamkaart'!CL$35:CL$6012,'6. Stamkaart'!$G$35:$G$6012,'5. Formatie'!$R16) -> 0 | Z16: =SUMIFS('6. Stamkaart'!CM$35:CM$6012,'6. Stamkaart'!$G$35:$G$6012,'5. Formatie'!$R16) -> 0 | AA16: =SUMIFS('6. Stamkaart'!CN$35:CN$6012,'6. Stamkaart'!$G$35:$G$6012,'5. Formatie'!$R16) -> 0 | AB16: =SUMIFS('6. Stamkaart'!CO$35:CO$6012,'6. Stamkaart'!$G$35:$G$6012,'5. Formatie'!$R16) -> 0 | AC16: =SUMIFS('6. Stamkaart'!CP$35:CP$6012,'6. Stamkaart'!$G$35:$G$6012,'5. Formatie'!$R16) -> 0 | AD16: =SUM('5. Formatie'!$S16:$AC16) -> 0
B17: =Beheer_Salaristabellen!G7 ->  | C17: =SUMIFS('6. Stamkaart'!BU$35:BU$6012,'6. Stamkaart'!$G$35:$G$6012,'5. Formatie'!$B17) -> 0 | D17: =SUMIFS('6. Stamkaart'!BV$35:BV$6012,'6. Stamkaart'!$G$35:$G$6012,'5. Formatie'!$B17) -> 0 | E17: =SUMIFS('6. Stamkaart'!BW$35:BW$6012,'6. Stamkaart'!$G$35:$G$6012,'5. Formatie'!$B17) -> 0 | F17: =SUMIFS('6. Stamkaart'!BX$35:BX$6012,'6. Stamkaart'!$G$35:$G$6012,'5. Formatie'!$B17) -> 0 | G17: =SUMIFS('6. Stamkaart'!BY$35:BY$6012,'6. Stamkaart'!$G$35:$G$6012,'5. Formatie'!$B17) -> 0 | H17: =SUMIFS('6. Stamkaart'!BZ$35:BZ$6012,'6. Stamkaart'!$G$35:$G$6012,'5. Formatie'!$B17) -> 0 | I17: =SUMIFS('6. Stamkaart'!CA$35:CA$6012,'6. Stamkaart'!$G$35:$G$6012,'5. Formatie'!$B17) -> 0 | J17: =SUMIFS('6. Stamkaart'!CB$35:CB$6012,'6. Stamkaart'!$G$35:$G$6012,'5. Formatie'!$B17) -> 0 | K17: =SUMIFS('6. Stamkaart'!CC$35:CC$6012,'6. Stamkaart'!$G$35:$G$6012,'5. Formatie'!$B17) -> 0 | L17: =SUMIFS('6. Stamkaart'!CD$35:CD$6012,'6. Stamkaart'!$G$35:$G$6012,'5. Formatie'!$B17) -> 0 | M17: =SUMIFS('6. Stamkaart'!CE$35:CE$6012,'6. Stamkaart'!$G$35:$G$6012,'5. Formatie'!$B17) -> 0 | N17: =SUM('5. Formatie'!$C17:$M17) -> 0 | S17: =SUMIFS('6. Stamkaart'!CF$35:CF$6012,'6. Stamkaart'!$G$35:$G$6012,'5. Formatie'!$R17) -> 0 | T17: =SUMIFS('6. Stamkaart'!CG$35:CG$6012,'6. Stamkaart'!$G$35:$G$6012,'5. Formatie'!$R17) -> 0 | U17: =SUMIFS('6. Stamkaart'!CH$35:CH$6012,'6. Stamkaart'!$G$35:$G$6012,'5. Formatie'!$R17) -> 0 | V17: =SUMIFS('6. Stamkaart'!CI$35:CI$6012,'6. Stamkaart'!$G$35:$G$6012,'5. Formatie'!$R17) -> 0 | W17: =SUMIFS('6. Stamkaart'!CJ$35:CJ$6012,'6. Stamkaart'!$G$35:$G$6012,'5. Formatie'!$R17) -> 0 | X17: =SUMIFS('6. Stamkaart'!CK$35:CK$6012,'6. Stamkaart'!$G$35:$G$6012,'5. Formatie'!$R17) -> 0 | Y17: =SUMIFS('6. Stamkaart'!CL$35:CL$6012,'6. Stamkaart'!$G$35:$G$6012,'5. Formatie'!$R17) -> 0 | Z17: =SUMIFS('6. Stamkaart'!CM$35:CM$6012,'6. Stamkaart'!$G$35:$G$6012,'5. Formatie'!$R17) -> 0 | AA17: =SUMIFS('6. Stamkaart'!CN$35:CN$6012,'6. Stamkaart'!$G$35:$G$6012,'5. Formatie'!$R17) -> 0 | AB17: =SUMIFS('6. Stamkaart'!CO$35:CO$6012,'6. Stamkaart'!$G$35:$G$6012,'5. Formatie'!$R17) -> 0 | AC17: =SUMIFS('6. Stamkaart'!CP$35:CP$6012,'6. Stamkaart'!$G$35:$G$6012,'5. Formatie'!$R17) -> 0 | AD17: =SUM('5. Formatie'!$S17:$AC17) -> 0
B18: =Beheer_Salaristabellen!G8 ->  | C18: =SUMIFS('6. Stamkaart'!BU$35:BU$6012,'6. Stamkaart'!$G$35:$G$6012,'5. Formatie'!$B18) -> 0 | D18: =SUMIFS('6. Stamkaart'!BV$35:BV$6012,'6. Stamkaart'!$G$35:$G$6012,'5. Formatie'!$B18) -> 0 | E18: =SUMIFS('6. Stamkaart'!BW$35:BW$6012,'6. Stamkaart'!$G$35:$G$6012,'5. Formatie'!$B18) -> 0 | F18: =SUMIFS('6. Stamkaart'!BX$35:BX$6012,'6. Stamkaart'!$G$35:$G$6012,'5. Formatie'!$B18) -> 0 | G18: =SUMIFS('6. Stamkaart'!BY$35:BY$6012,'6. Stamkaart'!$G$35:$G$6012,'5. Formatie'!$B18) -> 0 | H18: =SUMIFS('6. Stamkaart'!BZ$35:BZ$6012,'6. Stamkaart'!$G$35:$G$6012,'5. Formatie'!$B18) -> 0 | I18: =SUMIFS('6. Stamkaart'!CA$35:CA$6012,'6. Stamkaart'!$G$35:$G$6012,'5. Formatie'!$B18) -> 0 | J18: =SUMIFS('6. Stamkaart'!CB$35:CB$6012,'6. Stamkaart'!$G$35:$G$6012,'5. Formatie'!$B18) -> 0 | K18: =SUMIFS('6. Stamkaart'!CC$35:CC$6012,'6. Stamkaart'!$G$35:$G$6012,'5. Formatie'!$B18) -> 0 | L18: =SUMIFS('6. Stamkaart'!CD$35:CD$6012,'6. Stamkaart'!$G$35:$G$6012,'5. Formatie'!$B18) -> 0 | M18: =SUMIFS('6. Stamkaart'!CE$35:CE$6012,'6. Stamkaart'!$G$35:$G$6012,'5. Formatie'!$B18) -> 0 | N18: =SUM('5. Formatie'!$C18:$M18) -> 0 | S18: =SUMIFS('6. Stamkaart'!CF$35:CF$6012,'6. Stamkaart'!$G$35:$G$6012,'5. Formatie'!$R18) -> 0 | T18: =SUMIFS('6. Stamkaart'!CG$35:CG$6012,'6. Stamkaart'!$G$35:$G$6012,'5. Formatie'!$R18) -> 0 | U18: =SUMIFS('6. Stamkaart'!CH$35:CH$6012,'6. Stamkaart'!$G$35:$G$6012,'5. Formatie'!$R18) -> 0 | V18: =SUMIFS('6. Stamkaart'!CI$35:CI$6012,'6. Stamkaart'!$G$35:$G$6012,'5. Formatie'!$R18) -> 0 | W18: =SUMIFS('6. Stamkaart'!CJ$35:CJ$6012,'6. Stamkaart'!$G$35:$G$6012,'5. Formatie'!$R18) -> 0 | X18: =SUMIFS('6. Stamkaart'!CK$35:CK$6012,'6. Stamkaart'!$G$35:$G$6012,'5. Formatie'!$R18) -> 0 | Y18: =SUMIFS('6. Stamkaart'!CL$35:CL$6012,'6. Stamkaart'!$G$35:$G$6012,'5. Formatie'!$R18) -> 0 | Z18: =SUMIFS('6. Stamkaart'!CM$35:CM$6012,'6. Stamkaart'!$G$35:$G$6012,'5. Formatie'!$R18) -> 0 | AA18: =SUMIFS('6. Stamkaart'!CN$35:CN$6012,'6. Stamkaart'!$G$35:$G$6012,'5. Formatie'!$R18) -> 0 | AB18: =SUMIFS('6. Stamkaart'!CO$35:CO$6012,'6. Stamkaart'!$G$35:$G$6012,'5. Formatie'!$R18) -> 0 | AC18: =SUMIFS('6. Stamkaart'!CP$35:CP$6012,'6. Stamkaart'!$G$35:$G$6012,'5. Formatie'!$R18) -> 0 | AD18: =SUM('5. Formatie'!$S18:$AC18) -> 0
B19: =Beheer_Salaristabellen!G9 ->  | C19: =SUMIFS('6. Stamkaart'!BU$35:BU$6012,'6. Stamkaart'!$G$35:$G$6012,'5. Formatie'!$B19) -> 0 | D19: =SUMIFS('6. Stamkaart'!BV$35:BV$6012,'6. Stamkaart'!$G$35:$G$6012,'5. Formatie'!$B19) -> 0 | E19: =SUMIFS('6. Stamkaart'!BW$35:BW$6012,'6. Stamkaart'!$G$35:$G$6012,'5. Formatie'!$B19) -> 0 | F19: =SUMIFS('6. Stamkaart'!BX$35:BX$6012,'6. Stamkaart'!$G$35:$G$6012,'5. Formatie'!$B19) -> 0 | G19: =SUMIFS('6. Stamkaart'!BY$35:BY$6012,'6. Stamkaart'!$G$35:$G$6012,'5. Formatie'!$B19) -> 0 | H19: =SUMIFS('6. Stamkaart'!BZ$35:BZ$6012,'6. Stamkaart'!$G$35:$G$6012,'5. Formatie'!$B19) -> 0 | I19: =SUMIFS('6. Stamkaart'!CA$35:CA$6012,'6. Stamkaart'!$G$35:$G$6012,'5. Formatie'!$B19) -> 0 | J19: =SUMIFS('6. Stamkaart'!CB$35:CB$6012,'6. Stamkaart'!$G$35:$G$6012,'5. Formatie'!$B19) -> 0 | K19: =SUMIFS('6. Stamkaart'!CC$35:CC$6012,'6. Stamkaart'!$G$35:$G$6012,'5. Formatie'!$B19) -> 0 | L19: =SUMIFS('6. Stamkaart'!CD$35:CD$6012,'6. Stamkaart'!$G$35:$G$6012,'5. Formatie'!$B19) -> 0 | M19: =SUMIFS('6. Stamkaart'!CE$35:CE$6012,'6. Stamkaart'!$G$35:$G$6012,'5. Formatie'!$B19) -> 0 | N19: =SUM('5. Formatie'!$C19:$M19) -> 0 | S19: =SUMIFS('6. Stamkaart'!CF$35:CF$6012,'6. Stamkaart'!$G$35:$G$6012,'5. Formatie'!$R19) -> 0 | T19: =SUMIFS('6. Stamkaart'!CG$35:CG$6012,'6. Stamkaart'!$G$35:$G$6012,'5. Formatie'!$R19) -> 0 | U19: =SUMIFS('6. Stamkaart'!CH$35:CH$6012,'6. Stamkaart'!$G$35:$G$6012,'5. Formatie'!$R19) -> 0 | V19: =SUMIFS('6. Stamkaart'!CI$35:CI$6012,'6. Stamkaart'!$G$35:$G$6012,'5. Formatie'!$R19) -> 0 | W19: =SUMIFS('6. Stamkaart'!CJ$35:CJ$6012,'6. Stamkaart'!$G$35:$G$6012,'5. Formatie'!$R19) -> 0 | X19: =SUMIFS('6. Stamkaart'!CK$35:CK$6012,'6. Stamkaart'!$G$35:$G$6012,'5. Formatie'!$R19) -> 0 | Y19: =SUMIFS('6. Stamkaart'!CL$35:CL$6012,'6. Stamkaart'!$G$35:$G$6012,'5. Formatie'!$R19) -> 0 | Z19: =SUMIFS('6. Stamkaart'!CM$35:CM$6012,'6. Stamkaart'!$G$35:$G$6012,'5. Formatie'!$R19) -> 0 | AA19: =SUMIFS('6. Stamkaart'!CN$35:CN$6012,'6. Stamkaart'!$G$35:$G$6012,'5. Formatie'!$R19) -> 0 | AB19: =SUMIFS('6. Stamkaart'!CO$35:CO$6012,'6. Stamkaart'!$G$35:$G$6012,'5. Formatie'!$R19) -> 0 | AC19: =SUMIFS('6. Stamkaart'!CP$35:CP$6012,'6. Stamkaart'!$G$35:$G$6012,'5. Formatie'!$R19) -> 0 | AD19: =SUM('5. Formatie'!$S19:$AC19) -> 0
B20: =Beheer_Salaristabellen!G10 ->  | C20: =SUMIFS('6. Stamkaart'!BU$35:BU$6012,'6. Stamkaart'!$G$35:$G$6012,'5. Formatie'!$B20) -> 0 | D20: =SUMIFS('6. Stamkaart'!BV$35:BV$6012,'6. Stamkaart'!$G$35:$G$6012,'5. Formatie'!$B20) -> 0 | E20: =SUMIFS('6. Stamkaart'!BW$35:BW$6012,'6. Stamkaart'!$G$35:$G$6012,'5. Formatie'!$B20) -> 0 | F20: =SUMIFS('6. Stamkaart'!BX$35:BX$6012,'6. Stamkaart'!$G$35:$G$6012,'5. Formatie'!$B20) -> 0 | G20: =SUMIFS('6. Stamkaart'!BY$35:BY$6012,'6. Stamkaart'!$G$35:$G$6012,'5. Formatie'!$B20) -> 0 | H20: =SUMIFS('6. Stamkaart'!BZ$35:BZ$6012,'6. Stamkaart'!$G$35:$G$6012,'5. Formatie'!$B20) -> 0 | I20: =SUMIFS('6. Stamkaart'!CA$35:CA$6012,'6. Stamkaart'!$G$35:$G$6012,'5. Formatie'!$B20) -> 0 | J20: =SUMIFS('6. Stamkaart'!CB$35:CB$6012,'6. Stamkaart'!$G$35:$G$6012,'5. Formatie'!$B20) -> 0 | K20: =SUMIFS('6. Stamkaart'!CC$35:CC$6012,'6. Stamkaart'!$G$35:$G$6012,'5. Formatie'!$B20) -> 0 | L20: =SUMIFS('6. Stamkaart'!CD$35:CD$6012,'6. Stamkaart'!$G$35:$G$6012,'5. Formatie'!$B20) -> 0 | M20: =SUMIFS('6. Stamkaart'!CE$35:CE$6012,'6. Stamkaart'!$G$35:$G$6012,'5. Formatie'!$B20) -> 0 | N20: =SUM('5. Formatie'!$C20:$M20) -> 0 | S20: =SUMIFS('6. Stamkaart'!CF$35:CF$6012,'6. Stamkaart'!$G$35:$G$6012,'5. Formatie'!$R20) -> 0 | T20: =SUMIFS('6. Stamkaart'!CG$35:CG$6012,'6. Stamkaart'!$G$35:$G$6012,'5. Formatie'!$R20) -> 0 | U20: =SUMIFS('6. Stamkaart'!CH$35:CH$6012,'6. Stamkaart'!$G$35:$G$6012,'5. Formatie'!$R20) -> 0 | V20: =SUMIFS('6. Stamkaart'!CI$35:CI$6012,'6. Stamkaart'!$G$35:$G$6012,'5. Formatie'!$R20) -> 0 | W20: =SUMIFS('6. Stamkaart'!CJ$35:CJ$6012,'6. Stamkaart'!$G$35:$G$6012,'5. Formatie'!$R20) -> 0 | X20: =SUMIFS('6. Stamkaart'!CK$35:CK$6012,'6. Stamkaart'!$G$35:$G$6012,'5. Formatie'!$R20) -> 0 | Y20: =SUMIFS('6. Stamkaart'!CL$35:CL$6012,'6. Stamkaart'!$G$35:$G$6012,'5. Formatie'!$R20) -> 0 | Z20: =SUMIFS('6. Stamkaart'!CM$35:CM$6012,'6. Stamkaart'!$G$35:$G$6012,'5. Formatie'!$R20) -> 0 | AA20: =SUMIFS('6. Stamkaart'!CN$35:CN$6012,'6. Stamkaart'!$G$35:$G$6012,'5. Formatie'!$R20) -> 0 | AB20: =SUMIFS('6. Stamkaart'!CO$35:CO$6012,'6. Stamkaart'!$G$35:$G$6012,'5. Formatie'!$R20) -> 0 | AC20: =SUMIFS('6. Stamkaart'!CP$35:CP$6012,'6. Stamkaart'!$G$35:$G$6012,'5. Formatie'!$R20) -> 0 | AD20: =SUM('5. Formatie'!$S20:$AC20) -> 0
B21: =Beheer_Salaristabellen!G11 ->  | C21: =SUMIFS('6. Stamkaart'!BU$35:BU$6012,'6. Stamkaart'!$G$35:$G$6012,'5. Formatie'!$B21) -> 0 | D21: =SUMIFS('6. Stamkaart'!BV$35:BV$6012,'6. Stamkaart'!$G$35:$G$6012,'5. Formatie'!$B21) -> 0 | E21: =SUMIFS('6. Stamkaart'!BW$35:BW$6012,'6. Stamkaart'!$G$35:$G$6012,'5. Formatie'!$B21) -> 0 | F21: =SUMIFS('6. Stamkaart'!BX$35:BX$6012,'6. Stamkaart'!$G$35:$G$6012,'5. Formatie'!$B21) -> 0 | G21: =SUMIFS('6. Stamkaart'!BY$35:BY$6012,'6. Stamkaart'!$G$35:$G$6012,'5. Formatie'!$B21) -> 0 | H21: =SUMIFS('6. Stamkaart'!BZ$35:BZ$6012,'6. Stamkaart'!$G$35:$G$6012,'5. Formatie'!$B21) -> 0 | I21: =SUMIFS('6. Stamkaart'!CA$35:CA$6012,'6. Stamkaart'!$G$35:$G$6012,'5. Formatie'!$B21) -> 0 | J21: =SUMIFS('6. Stamkaart'!CB$35:CB$6012,'6. Stamkaart'!$G$35:$G$6012,'5. Formatie'!$B21) -> 0 | K21: =SUMIFS('6. Stamkaart'!CC$35:CC$6012,'6. Stamkaart'!$G$35:$G$6012,'5. Formatie'!$B21) -> 0 | L21: =SUMIFS('6. Stamkaart'!CD$35:CD$6012,'6. Stamkaart'!$G$35:$G$6012,'5. Formatie'!$B21) -> 0 | M21: =SUMIFS('6. Stamkaart'!CE$35:CE$6012,'6. Stamkaart'!$G$35:$G$6012,'5. Formatie'!$B21) -> 0 | N21: =SUM('5. Formatie'!$C21:$M21) -> 0 | S21: =SUMIFS('6. Stamkaart'!CF$35:CF$6012,'6. Stamkaart'!$G$35:$G$6012,'5. Formatie'!$R21) -> 0 | T21: =SUMIFS('6. Stamkaart'!CG$35:CG$6012,'6. Stamkaart'!$G$35:$G$6012,'5. Formatie'!$R21) -> 0 | U21: =SUMIFS('6. Stamkaart'!CH$35:CH$6012,'6. Stamkaart'!$G$35:$G$6012,'5. Formatie'!$R21) -> 0 | V21: =SUMIFS('6. Stamkaart'!CI$35:CI$6012,'6. Stamkaart'!$G$35:$G$6012,'5. Formatie'!$R21) -> 0 | W21: =SUMIFS('6. Stamkaart'!CJ$35:CJ$6012,'6. Stamkaart'!$G$35:$G$6012,'5. Formatie'!$R21) -> 0 | X21: =SUMIFS('6. Stamkaart'!CK$35:CK$6012,'6. Stamkaart'!$G$35:$G$6012,'5. Formatie'!$R21) -> 0 | Y21: =SUMIFS('6. Stamkaart'!CL$35:CL$6012,'6. Stamkaart'!$G$35:$G$6012,'5. Formatie'!$R21) -> 0 | Z21: =SUMIFS('6. Stamkaart'!CM$35:CM$6012,'6. Stamkaart'!$G$35:$G$6012,'5. Formatie'!$R21) -> 0 | AA21: =SUMIFS('6. Stamkaart'!CN$35:CN$6012,'6. Stamkaart'!$G$35:$G$6012,'5. Formatie'!$R21) -> 0 | AB21: =SUMIFS('6. Stamkaart'!CO$35:CO$6012,'6. Stamkaart'!$G$35:$G$6012,'5. Formatie'!$R21) -> 0 | AC21: =SUMIFS('6. Stamkaart'!CP$35:CP$6012,'6. Stamkaart'!$G$35:$G$6012,'5. Formatie'!$R21) -> 0 | AD21: =SUM('5. Formatie'!$S21:$AC21) -> 0
B22: =Beheer_Salaristabellen!G12 ->  | C22: =SUMIFS('6. Stamkaart'!BU$35:BU$6012,'6. Stamkaart'!$G$35:$G$6012,'5. Formatie'!$B22) -> 0 | D22: =SUMIFS('6. Stamkaart'!BV$35:BV$6012,'6. Stamkaart'!$G$35:$G$6012,'5. Formatie'!$B22) -> 0 | E22: =SUMIFS('6. Stamkaart'!BW$35:BW$6012,'6. Stamkaart'!$G$35:$G$6012,'5. Formatie'!$B22) -> 0 | F22: =SUMIFS('6. Stamkaart'!BX$35:BX$6012,'6. Stamkaart'!$G$35:$G$6012,'5. Formatie'!$B22) -> 0 | G22: =SUMIFS('6. Stamkaart'!BY$35:BY$6012,'6. Stamkaart'!$G$35:$G$6012,'5. Formatie'!$B22) -> 0 | H22: =SUMIFS('6. Stamkaart'!BZ$35:BZ$6012,'6. Stamkaart'!$G$35:$G$6012,'5. Formatie'!$B22) -> 0 | I22: =SUMIFS('6. Stamkaart'!CA$35:CA$6012,'6. Stamkaart'!$G$35:$G$6012,'5. Formatie'!$B22) -> 0 | J22: =SUMIFS('6. Stamkaart'!CB$35:CB$6012,'6. Stamkaart'!$G$35:$G$6012,'5. Formatie'!$B22) -> 0 | K22: =SUMIFS('6. Stamkaart'!CC$35:CC$6012,'6. Stamkaart'!$G$35:$G$6012,'5. Formatie'!$B22) -> 0 | L22: =SUMIFS('6. Stamkaart'!CD$35:CD$6012,'6. Stamkaart'!$G$35:$G$6012,'5. Formatie'!$B22) -> 0 | M22: =SUMIFS('6. Stamkaart'!CE$35:CE$6012,'6. Stamkaart'!$G$35:$G$6012,'5. Formatie'!$B22) -> 0 | N22: =SUM('5. Formatie'!$C22:$M22) -> 0 | S22: =SUMIFS('6. Stamkaart'!CF$35:CF$6012,'6. Stamkaart'!$G$35:$G$6012,'5. Formatie'!$R22) -> 0 | T22: =SUMIFS('6. Stamkaart'!CG$35:CG$6012,'6. Stamkaart'!$G$35:$G$6012,'5. Formatie'!$R22) -> 0 | U22: =SUMIFS('6. Stamkaart'!CH$35:CH$6012,'6. Stamkaart'!$G$35:$G$6012,'5. Formatie'!$R22) -> 0 | V22: =SUMIFS('6. Stamkaart'!CI$35:CI$6012,'6. Stamkaart'!$G$35:$G$6012,'5. Formatie'!$R22) -> 0 | W22: =SUMIFS('6. Stamkaart'!CJ$35:CJ$6012,'6. Stamkaart'!$G$35:$G$6012,'5. Formatie'!$R22) -> 0 | X22: =SUMIFS('6. Stamkaart'!CK$35:CK$6012,'6. Stamkaart'!$G$35:$G$6012,'5. Formatie'!$R22) -> 0 | Y22: =SUMIFS('6. Stamkaart'!CL$35:CL$6012,'6. Stamkaart'!$G$35:$G$6012,'5. Formatie'!$R22) -> 0 | Z22: =SUMIFS('6. Stamkaart'!CM$35:CM$6012,'6. Stamkaart'!$G$35:$G$6012,'5. Formatie'!$R22) -> 0 | AA22: =SUMIFS('6. Stamkaart'!CN$35:CN$6012,'6. Stamkaart'!$G$35:$G$6012,'5. Formatie'!$R22) -> 0 | AB22: =SUMIFS('6. Stamkaart'!CO$35:CO$6012,'6. Stamkaart'!$G$35:$G$6012,'5. Formatie'!$R22) -> 0 | AC22: =SUMIFS('6. Stamkaart'!CP$35:CP$6012,'6. Stamkaart'!$G$35:$G$6012,'5. Formatie'!$R22) -> 0 | AD22: =SUM('5. Formatie'!$S22:$AC22) -> 0
B23: =Beheer_Salaristabellen!G13 ->  | C23: =SUMIFS('6. Stamkaart'!BU$35:BU$6012,'6. Stamkaart'!$G$35:$G$6012,'5. Formatie'!$B23) -> 0 | D23: =SUMIFS('6. Stamkaart'!BV$35:BV$6012,'6. Stamkaart'!$G$35:$G$6012,'5. Formatie'!$B23) -> 0 | E23: =SUMIFS('6. Stamkaart'!BW$35:BW$6012,'6. Stamkaart'!$G$35:$G$6012,'5. Formatie'!$B23) -> 0 | F23: =SUMIFS('6. Stamkaart'!BX$35:BX$6012,'6. Stamkaart'!$G$35:$G$6012,'5. Formatie'!$B23) -> 0 | G23: =SUMIFS('6. Stamkaart'!BY$35:BY$6012,'6. Stamkaart'!$G$35:$G$6012,'5. Formatie'!$B23) -> 0 | H23: =SUMIFS('6. Stamkaart'!BZ$35:BZ$6012,'6. Stamkaart'!$G$35:$G$6012,'5. Formatie'!$B23) -> 0 | I23: =SUMIFS('6. Stamkaart'!CA$35:CA$6012,'6. Stamkaart'!$G$35:$G$6012,'5. Formatie'!$B23) -> 0 | J23: =SUMIFS('6. Stamkaart'!CB$35:CB$6012,'6. Stamkaart'!$G$35:$G$6012,'5. Formatie'!$B23) -> 0 | K23: =SUMIFS('6. Stamkaart'!CC$35:CC$6012,'6. Stamkaart'!$G$35:$G$6012,'5. Formatie'!$B23) -> 0 | L23: =SUMIFS('6. Stamkaart'!CD$35:CD$6012,'6. Stamkaart'!$G$35:$G$6012,'5. Formatie'!$B23) -> 0 | M23: =SUMIFS('6. Stamkaart'!CE$35:CE$6012,'6. Stamkaart'!$G$35:$G$6012,'5. Formatie'!$B23) -> 0 | N23: =SUM('5. Formatie'!$C23:$M23) -> 0 | S23: =SUMIFS('6. Stamkaart'!CF$35:CF$6012,'6. Stamkaart'!$G$35:$G$6012,'5. Formatie'!$R23) -> 0 | T23: =SUMIFS('6. Stamkaart'!CG$35:CG$6012,'6. Stamkaart'!$G$35:$G$6012,'5. Formatie'!$R23) -> 0 | U23: =SUMIFS('6. Stamkaart'!CH$35:CH$6012,'6. Stamkaart'!$G$35:$G$6012,'5. Formatie'!$R23) -> 0 | V23: =SUMIFS('6. Stamkaart'!CI$35:CI$6012,'6. Stamkaart'!$G$35:$G$6012,'5. Formatie'!$R23) -> 0 | W23: =SUMIFS('6. Stamkaart'!CJ$35:CJ$6012,'6. Stamkaart'!$G$35:$G$6012,'5. Formatie'!$R23) -> 0 | X23: =SUMIFS('6. Stamkaart'!CK$35:CK$6012,'6. Stamkaart'!$G$35:$G$6012,'5. Formatie'!$R23) -> 0 | Y23: =SUMIFS('6. Stamkaart'!CL$35:CL$6012,'6. Stamkaart'!$G$35:$G$6012,'5. Formatie'!$R23) -> 0 | Z23: =SUMIFS('6. Stamkaart'!CM$35:CM$6012,'6. Stamkaart'!$G$35:$G$6012,'5. Formatie'!$R23) -> 0 | AA23: =SUMIFS('6. Stamkaart'!CN$35:CN$6012,'6. Stamkaart'!$G$35:$G$6012,'5. Formatie'!$R23) -> 0 | AB23: =SUMIFS('6. Stamkaart'!CO$35:CO$6012,'6. Stamkaart'!$G$35:$G$6012,'5. Formatie'!$R23) -> 0 | AC23: =SUMIFS('6. Stamkaart'!CP$35:CP$6012,'6. Stamkaart'!$G$35:$G$6012,'5. Formatie'!$R23) -> 0 | AD23: =SUM('5. Formatie'!$S23:$AC23) -> 0
B24: =Beheer_Salaristabellen!G14 ->  | C24: =SUMIFS('6. Stamkaart'!BU$35:BU$6012,'6. Stamkaart'!$G$35:$G$6012,'5. Formatie'!$B24) -> 0 | D24: =SUMIFS('6. Stamkaart'!BV$35:BV$6012,'6. Stamkaart'!$G$35:$G$6012,'5. Formatie'!$B24) -> 0 | E24: =SUMIFS('6. Stamkaart'!BW$35:BW$6012,'6. Stamkaart'!$G$35:$G$6012,'5. Formatie'!$B24) -> 0 | F24: =SUMIFS('6. Stamkaart'!BX$35:BX$6012,'6. Stamkaart'!$G$35:$G$6012,'5. Formatie'!$B24) -> 0 | G24: =SUMIFS('6. Stamkaart'!BY$35:BY$6012,'6. Stamkaart'!$G$35:$G$6012,'5. Formatie'!$B24) -> 0 | H24: =SUMIFS('6. Stamkaart'!BZ$35:BZ$6012,'6. Stamkaart'!$G$35:$G$6012,'5. Formatie'!$B24) -> 0 | I24: =SUMIFS('6. Stamkaart'!CA$35:CA$6012,'6. Stamkaart'!$G$35:$G$6012,'5. Formatie'!$B24) -> 0 | J24: =SUMIFS('6. Stamkaart'!CB$35:CB$6012,'6. Stamkaart'!$G$35:$G$6012,'5. Formatie'!$B24) -> 0 | K24: =SUMIFS('6. Stamkaart'!CC$35:CC$6012,'6. Stamkaart'!$G$35:$G$6012,'5. Formatie'!$B24) -> 0 | L24: =SUMIFS('6. Stamkaart'!CD$35:CD$6012,'6. Stamkaart'!$G$35:$G$6012,'5. Formatie'!$B24) -> 0 | M24: =SUMIFS('6. Stamkaart'!CE$35:CE$6012,'6. Stamkaart'!$G$35:$G$6012,'5. Formatie'!$B24) -> 0 | N24: =SUM('5. Formatie'!$C24:$M24) -> 0 | S24: =SUMIFS('6. Stamkaart'!CF$35:CF$6012,'6. Stamkaart'!$G$35:$G$6012,'5. Formatie'!$R24) -> 0 | T24: =SUMIFS('6. Stamkaart'!CG$35:CG$6012,'6. Stamkaart'!$G$35:$G$6012,'5. Formatie'!$R24) -> 0 | U24: =SUMIFS('6. Stamkaart'!CH$35:CH$6012,'6. Stamkaart'!$G$35:$G$6012,'5. Formatie'!$R24) -> 0 | V24: =SUMIFS('6. Stamkaart'!CI$35:CI$6012,'6. Stamkaart'!$G$35:$G$6012,'5. Formatie'!$R24) -> 0 | W24: =SUMIFS('6. Stamkaart'!CJ$35:CJ$6012,'6. Stamkaart'!$G$35:$G$6012,'5. Formatie'!$R24) -> 0 | X24: =SUMIFS('6. Stamkaart'!CK$35:CK$6012,'6. Stamkaart'!$G$35:$G$6012,'5. Formatie'!$R24) -> 0 | Y24: =SUMIFS('6. Stamkaart'!CL$35:CL$6012,'6. Stamkaart'!$G$35:$G$6012,'5. Formatie'!$R24) -> 0 | Z24: =SUMIFS('6. Stamkaart'!CM$35:CM$6012,'6. Stamkaart'!$G$35:$G$6012,'5. Formatie'!$R24) -> 0 | AA24: =SUMIFS('6. Stamkaart'!CN$35:CN$6012,'6. Stamkaart'!$G$35:$G$6012,'5. Formatie'!$R24) -> 0 | AB24: =SUMIFS('6. Stamkaart'!CO$35:CO$6012,'6. Stamkaart'!$G$35:$G$6012,'5. Formatie'!$R24) -> 0 | AC24: =SUMIFS('6. Stamkaart'!CP$35:CP$6012,'6. Stamkaart'!$G$35:$G$6012,'5. Formatie'!$R24) -> 0 | AD24: =SUM('5. Formatie'!$S24:$AC24) -> 0
B25: =Beheer_Salaristabellen!G15 ->  | C25: =SUMIFS('6. Stamkaart'!BU$35:BU$6012,'6. Stamkaart'!$G$35:$G$6012,'5. Formatie'!$B25) -> 0 | D25: =SUMIFS('6. Stamkaart'!BV$35:BV$6012,'6. Stamkaart'!$G$35:$G$6012,'5. Formatie'!$B25) -> 0 | E25: =SUMIFS('6. Stamkaart'!BW$35:BW$6012,'6. Stamkaart'!$G$35:$G$6012,'5. Formatie'!$B25) -> 0 | F25: =SUMIFS('6. Stamkaart'!BX$35:BX$6012,'6. Stamkaart'!$G$35:$G$6012,'5. Formatie'!$B25) -> 0 | G25: =SUMIFS('6. Stamkaart'!BY$35:BY$6012,'6. Stamkaart'!$G$35:$G$6012,'5. Formatie'!$B25) -> 0 | H25: =SUMIFS('6. Stamkaart'!BZ$35:BZ$6012,'6. Stamkaart'!$G$35:$G$6012,'5. Formatie'!$B25) -> 0 | I25: =SUMIFS('6. Stamkaart'!CA$35:CA$6012,'6. Stamkaart'!$G$35:$G$6012,'5. Formatie'!$B25) -> 0 | J25: =SUMIFS('6. Stamkaart'!CB$35:CB$6012,'6. Stamkaart'!$G$35:$G$6012,'5. Formatie'!$B25) -> 0 | K25: =SUMIFS('6. Stamkaart'!CC$35:CC$6012,'6. Stamkaart'!$G$35:$G$6012,'5. Formatie'!$B25) -> 0 | L25: =SUMIFS('6. Stamkaart'!CD$35:CD$6012,'6. Stamkaart'!$G$35:$G$6012,'5. Formatie'!$B25) -> 0 | M25: =SUMIFS('6. Stamkaart'!CE$35:CE$6012,'6. Stamkaart'!$G$35:$G$6012,'5. Formatie'!$B25) -> 0 | N25: =SUM('5. Formatie'!$C25:$M25) -> 0 | S25: =SUMIFS('6. Stamkaart'!CF$35:CF$6012,'6. Stamkaart'!$G$35:$G$6012,'5. Formatie'!$R25) -> 0 | T25: =SUMIFS('6. Stamkaart'!CG$35:CG$6012,'6. Stamkaart'!$G$35:$G$6012,'5. Formatie'!$R25) -> 0 | U25: =SUMIFS('6. Stamkaart'!CH$35:CH$6012,'6. Stamkaart'!$G$35:$G$6012,'5. Formatie'!$R25) -> 0 | V25: =SUMIFS('6. Stamkaart'!CI$35:CI$6012,'6. Stamkaart'!$G$35:$G$6012,'5. Formatie'!$R25) -> 0 | W25: =SUMIFS('6. Stamkaart'!CJ$35:CJ$6012,'6. Stamkaart'!$G$35:$G$6012,'5. Formatie'!$R25) -> 0 | X25: =SUMIFS('6. Stamkaart'!CK$35:CK$6012,'6. Stamkaart'!$G$35:$G$6012,'5. Formatie'!$R25) -> 0 | Y25: =SUMIFS('6. Stamkaart'!CL$35:CL$6012,'6. Stamkaart'!$G$35:$G$6012,'5. Formatie'!$R25) -> 0 | Z25: =SUMIFS('6. Stamkaart'!CM$35:CM$6012,'6. Stamkaart'!$G$35:$G$6012,'5. Formatie'!$R25) -> 0 | AA25: =SUMIFS('6. Stamkaart'!CN$35:CN$6012,'6. Stamkaart'!$G$35:$G$6012,'5. Formatie'!$R25) -> 0 | AB25: =SUMIFS('6. Stamkaart'!CO$35:CO$6012,'6. Stamkaart'!$G$35:$G$6012,'5. Formatie'!$R25) -> 0 | AC25: =SUMIFS('6. Stamkaart'!CP$35:CP$6012,'6. Stamkaart'!$G$35:$G$6012,'5. Formatie'!$R25) -> 0 | AD25: =SUM('5. Formatie'!$S25:$AC25) -> 0
B26: =Beheer_Salaristabellen!G16 ->  | C26: =SUMIFS('6. Stamkaart'!BU$35:BU$6012,'6. Stamkaart'!$G$35:$G$6012,'5. Formatie'!$B26) -> 0 | D26: =SUMIFS('6. Stamkaart'!BV$35:BV$6012,'6. Stamkaart'!$G$35:$G$6012,'5. Formatie'!$B26) -> 0 | E26: =SUMIFS('6. Stamkaart'!BW$35:BW$6012,'6. Stamkaart'!$G$35:$G$6012,'5. Formatie'!$B26) -> 0 | F26: =SUMIFS('6. Stamkaart'!BX$35:BX$6012,'6. Stamkaart'!$G$35:$G$6012,'5. Formatie'!$B26) -> 0 | G26: =SUMIFS('6. Stamkaart'!BY$35:BY$6012,'6. Stamkaart'!$G$35:$G$6012,'5. Formatie'!$B26) -> 0 | H26: =SUMIFS('6. Stamkaart'!BZ$35:BZ$6012,'6. Stamkaart'!$G$35:$G$6012,'5. Formatie'!$B26) -> 0 | I26: =SUMIFS('6. Stamkaart'!CA$35:CA$6012,'6. Stamkaart'!$G$35:$G$6012,'5. Formatie'!$B26) -> 0 | J26: =SUMIFS('6. Stamkaart'!CB$35:CB$6012,'6. Stamkaart'!$G$35:$G$6012,'5. Formatie'!$B26) -> 0 | K26: =SUMIFS('6. Stamkaart'!CC$35:CC$6012,'6. Stamkaart'!$G$35:$G$6012,'5. Formatie'!$B26) -> 0 | L26: =SUMIFS('6. Stamkaart'!CD$35:CD$6012,'6. Stamkaart'!$G$35:$G$6012,'5. Formatie'!$B26) -> 0 | M26: =SUMIFS('6. Stamkaart'!CE$35:CE$6012,'6. Stamkaart'!$G$35:$G$6012,'5. Formatie'!$B26) -> 0 | N26: =SUM('5. Formatie'!$C26:$M26) -> 0 | S26: =SUMIFS('6. Stamkaart'!CF$35:CF$6012,'6. Stamkaart'!$G$35:$G$6012,'5. Formatie'!$R26) -> 0 | T26: =SUMIFS('6. Stamkaart'!CG$35:CG$6012,'6. Stamkaart'!$G$35:$G$6012,'5. Formatie'!$R26) -> 0 | U26: =SUMIFS('6. Stamkaart'!CH$35:CH$6012,'6. Stamkaart'!$G$35:$G$6012,'5. Formatie'!$R26) -> 0 | V26: =SUMIFS('6. Stamkaart'!CI$35:CI$6012,'6. Stamkaart'!$G$35:$G$6012,'5. Formatie'!$R26) -> 0 | W26: =SUMIFS('6. Stamkaart'!CJ$35:CJ$6012,'6. Stamkaart'!$G$35:$G$6012,'5. Formatie'!$R26) -> 0 | X26: =SUMIFS('6. Stamkaart'!CK$35:CK$6012,'6. Stamkaart'!$G$35:$G$6012,'5. Formatie'!$R26) -> 0 | Y26: =SUMIFS('6. Stamkaart'!CL$35:CL$6012,'6. Stamkaart'!$G$35:$G$6012,'5. Formatie'!$R26) -> 0 | Z26: =SUMIFS('6. Stamkaart'!CM$35:CM$6012,'6. Stamkaart'!$G$35:$G$6012,'5. Formatie'!$R26) -> 0 | AA26: =SUMIFS('6. Stamkaart'!CN$35:CN$6012,'6. Stamkaart'!$G$35:$G$6012,'5. Formatie'!$R26) -> 0 | AB26: =SUMIFS('6. Stamkaart'!CO$35:CO$6012,'6. Stamkaart'!$G$35:$G$6012,'5. Formatie'!$R26) -> 0 | AC26: =SUMIFS('6. Stamkaart'!CP$35:CP$6012,'6. Stamkaart'!$G$35:$G$6012,'5. Formatie'!$R26) -> 0 | AD26: =SUM('5. Formatie'!$S26:$AC26) -> 0
B27: =Beheer_Salaristabellen!G17 ->  | C27: =SUMIFS('6. Stamkaart'!BU$35:BU$6012,'6. Stamkaart'!$G$35:$G$6012,'5. Formatie'!$B27) -> 0 | D27: =SUMIFS('6. Stamkaart'!BV$35:BV$6012,'6. Stamkaart'!$G$35:$G$6012,'5. Formatie'!$B27) -> 0 | E27: =SUMIFS('6. Stamkaart'!BW$35:BW$6012,'6. Stamkaart'!$G$35:$G$6012,'5. Formatie'!$B27) -> 0 | F27: =SUMIFS('6. Stamkaart'!BX$35:BX$6012,'6. Stamkaart'!$G$35:$G$6012,'5. Formatie'!$B27) -> 0 | G27: =SUMIFS('6. Stamkaart'!BY$35:BY$6012,'6. Stamkaart'!$G$35:$G$6012,'5. Formatie'!$B27) -> 0 | H27: =SUMIFS('6. Stamkaart'!BZ$35:BZ$6012,'6. Stamkaart'!$G$35:$G$6012,'5. Formatie'!$B27) -> 0 | I27: =SUMIFS('6. Stamkaart'!CA$35:CA$6012,'6. Stamkaart'!$G$35:$G$6012,'5. Formatie'!$B27) -> 0 | J27: =SUMIFS('6. Stamkaart'!CB$35:CB$6012,'6. Stamkaart'!$G$35:$G$6012,'5. Formatie'!$B27) -> 0 | K27: =SUMIFS('6. Stamkaart'!CC$35:CC$6012,'6. Stamkaart'!$G$35:$G$6012,'5. Formatie'!$B27) -> 0 | L27: =SUMIFS('6. Stamkaart'!CD$35:CD$6012,'6. Stamkaart'!$G$35:$G$6012,'5. Formatie'!$B27) -> 0 | M27: =SUMIFS('6. Stamkaart'!CE$35:CE$6012,'6. Stamkaart'!$G$35:$G$6012,'5. Formatie'!$B27) -> 0 | N27: =SUM('5. Formatie'!$C27:$M27) -> 0 | S27: =SUMIFS('6. Stamkaart'!CF$35:CF$6012,'6. Stamkaart'!$G$35:$G$6012,'5. Formatie'!$R27) -> 0 | T27: =SUMIFS('6. Stamkaart'!CG$35:CG$6012,'6. Stamkaart'!$G$35:$G$6012,'5. Formatie'!$R27) -> 0 | U27: =SUMIFS('6. Stamkaart'!CH$35:CH$6012,'6. Stamkaart'!$G$35:$G$6012,'5. Formatie'!$R27) -> 0 | V27: =SUMIFS('6. Stamkaart'!CI$35:CI$6012,'6. Stamkaart'!$G$35:$G$6012,'5. Formatie'!$R27) -> 0 | W27: =SUMIFS('6. Stamkaart'!CJ$35:CJ$6012,'6. Stamkaart'!$G$35:$G$6012,'5. Formatie'!$R27) -> 0 | X27: =SUMIFS('6. Stamkaart'!CK$35:CK$6012,'6. Stamkaart'!$G$35:$G$6012,'5. Formatie'!$R27) -> 0 | Y27: =SUMIFS('6. Stamkaart'!CL$35:CL$6012,'6. Stamkaart'!$G$35:$G$6012,'5. Formatie'!$R27) -> 0 | Z27: =SUMIFS('6. Stamkaart'!CM$35:CM$6012,'6. Stamkaart'!$G$35:$G$6012,'5. Formatie'!$R27) -> 0 | AA27: =SUMIFS('6. Stamkaart'!CN$35:CN$6012,'6. Stamkaart'!$G$35:$G$6012,'5. Formatie'!$R27) -> 0 | AB27: =SUMIFS('6. Stamkaart'!CO$35:CO$6012,'6. Stamkaart'!$G$35:$G$6012,'5. Formatie'!$R27) -> 0 | AC27: =SUMIFS('6. Stamkaart'!CP$35:CP$6012,'6. Stamkaart'!$G$35:$G$6012,'5. Formatie'!$R27) -> 0 | AD27: =SUM('5. Formatie'!$S27:$AC27) -> 0
B28: =Beheer_Salaristabellen!G18 ->  | C28: =SUMIFS('6. Stamkaart'!BU$35:BU$6012,'6. Stamkaart'!$G$35:$G$6012,'5. Formatie'!$B28) -> 0 | D28: =SUMIFS('6. Stamkaart'!BV$35:BV$6012,'6. Stamkaart'!$G$35:$G$6012,'5. Formatie'!$B28) -> 0 | E28: =SUMIFS('6. Stamkaart'!BW$35:BW$6012,'6. Stamkaart'!$G$35:$G$6012,'5. Formatie'!$B28) -> 0 | F28: =SUMIFS('6. Stamkaart'!BX$35:BX$6012,'6. Stamkaart'!$G$35:$G$6012,'5. Formatie'!$B28) -> 0 | G28: =SUMIFS('6. Stamkaart'!BY$35:BY$6012,'6. Stamkaart'!$G$35:$G$6012,'5. Formatie'!$B28) -> 0 | H28: =SUMIFS('6. Stamkaart'!BZ$35:BZ$6012,'6. Stamkaart'!$G$35:$G$6012,'5. Formatie'!$B28) -> 0 | I28: =SUMIFS('6. Stamkaart'!CA$35:CA$6012,'6. Stamkaart'!$G$35:$G$6012,'5. Formatie'!$B28) -> 0 | J28: =SUMIFS('6. Stamkaart'!CB$35:CB$6012,'6. Stamkaart'!$G$35:$G$6012,'5. Formatie'!$B28) -> 0 | K28: =SUMIFS('6. Stamkaart'!CC$35:CC$6012,'6. Stamkaart'!$G$35:$G$6012,'5. Formatie'!$B28) -> 0 | L28: =SUMIFS('6. Stamkaart'!CD$35:CD$6012,'6. Stamkaart'!$G$35:$G$6012,'5. Formatie'!$B28) -> 0 | M28: =SUMIFS('6. Stamkaart'!CE$35:CE$6012,'6. Stamkaart'!$G$35:$G$6012,'5. Formatie'!$B28) -> 0 | N28: =SUM('5. Formatie'!$C28:$M28) -> 0 | S28: =SUMIFS('6. Stamkaart'!CF$35:CF$6012,'6. Stamkaart'!$G$35:$G$6012,'5. Formatie'!$R28) -> 0 | T28: =SUMIFS('6. Stamkaart'!CG$35:CG$6012,'6. Stamkaart'!$G$35:$G$6012,'5. Formatie'!$R28) -> 0 | U28: =SUMIFS('6. Stamkaart'!CH$35:CH$6012,'6. Stamkaart'!$G$35:$G$6012,'5. Formatie'!$R28) -> 0 | V28: =SUMIFS('6. Stamkaart'!CI$35:CI$6012,'6. Stamkaart'!$G$35:$G$6012,'5. Formatie'!$R28) -> 0 | W28: =SUMIFS('6. Stamkaart'!CJ$35:CJ$6012,'6. Stamkaart'!$G$35:$G$6012,'5. Formatie'!$R28) -> 0 | X28: =SUMIFS('6. Stamkaart'!CK$35:CK$6012,'6. Stamkaart'!$G$35:$G$6012,'5. Formatie'!$R28) -> 0 | Y28: =SUMIFS('6. Stamkaart'!CL$35:CL$6012,'6. Stamkaart'!$G$35:$G$6012,'5. Formatie'!$R28) -> 0 | Z28: =SUMIFS('6. Stamkaart'!CM$35:CM$6012,'6. Stamkaart'!$G$35:$G$6012,'5. Formatie'!$R28) -> 0 | AA28: =SUMIFS('6. Stamkaart'!CN$35:CN$6012,'6. Stamkaart'!$G$35:$G$6012,'5. Formatie'!$R28) -> 0 | AB28: =SUMIFS('6. Stamkaart'!CO$35:CO$6012,'6. Stamkaart'!$G$35:$G$6012,'5. Formatie'!$R28) -> 0 | AC28: =SUMIFS('6. Stamkaart'!CP$35:CP$6012,'6. Stamkaart'!$G$35:$G$6012,'5. Formatie'!$R28) -> 0 | AD28: =SUM('5. Formatie'!$S28:$AC28) -> 0
B29: =Beheer_Salaristabellen!G19 ->  | C29: =SUMIFS('6. Stamkaart'!BU$35:BU$6012,'6. Stamkaart'!$G$35:$G$6012,'5. Formatie'!$B29) -> 0 | D29: =SUMIFS('6. Stamkaart'!BV$35:BV$6012,'6. Stamkaart'!$G$35:$G$6012,'5. Formatie'!$B29) -> 0 | E29: =SUMIFS('6. Stamkaart'!BW$35:BW$6012,'6. Stamkaart'!$G$35:$G$6012,'5. Formatie'!$B29) -> 0 | F29: =SUMIFS('6. Stamkaart'!BX$35:BX$6012,'6. Stamkaart'!$G$35:$G$6012,'5. Formatie'!$B29) -> 0 | G29: =SUMIFS('6. Stamkaart'!BY$35:BY$6012,'6. Stamkaart'!$G$35:$G$6012,'5. Formatie'!$B29) -> 0 | H29: =SUMIFS('6. Stamkaart'!BZ$35:BZ$6012,'6. Stamkaart'!$G$35:$G$6012,'5. Formatie'!$B29) -> 0 | I29: =SUMIFS('6. Stamkaart'!CA$35:CA$6012,'6. Stamkaart'!$G$35:$G$6012,'5. Formatie'!$B29) -> 0 | J29: =SUMIFS('6. Stamkaart'!CB$35:CB$6012,'6. Stamkaart'!$G$35:$G$6012,'5. Formatie'!$B29) -> 0 | K29: =SUMIFS('6. Stamkaart'!CC$35:CC$6012,'6. Stamkaart'!$G$35:$G$6012,'5. Formatie'!$B29) -> 0 | L29: =SUMIFS('6. Stamkaart'!CD$35:CD$6012,'6. Stamkaart'!$G$35:$G$6012,'5. Formatie'!$B29) -> 0 | M29: =SUMIFS('6. Stamkaart'!CE$35:CE$6012,'6. Stamkaart'!$G$35:$G$6012,'5. Formatie'!$B29) -> 0 | N29: =SUM('5. Formatie'!$C29:$M29) -> 0 | S29: =SUMIFS('6. Stamkaart'!CF$35:CF$6012,'6. Stamkaart'!$G$35:$G$6012,'5. Formatie'!$R29) -> 0 | T29: =SUMIFS('6. Stamkaart'!CG$35:CG$6012,'6. Stamkaart'!$G$35:$G$6012,'5. Formatie'!$R29) -> 0 | U29: =SUMIFS('6. Stamkaart'!CH$35:CH$6012,'6. Stamkaart'!$G$35:$G$6012,'5. Formatie'!$R29) -> 0 | V29: =SUMIFS('6. Stamkaart'!CI$35:CI$6012,'6. Stamkaart'!$G$35:$G$6012,'5. Formatie'!$R29) -> 0 | W29: =SUMIFS('6. Stamkaart'!CJ$35:CJ$6012,'6. Stamkaart'!$G$35:$G$6012,'5. Formatie'!$R29) -> 0 | X29: =SUMIFS('6. Stamkaart'!CK$35:CK$6012,'6. Stamkaart'!$G$35:$G$6012,'5. Formatie'!$R29) -> 0 | Y29: =SUMIFS('6. Stamkaart'!CL$35:CL$6012,'6. Stamkaart'!$G$35:$G$6012,'5. Formatie'!$R29) -> 0 | Z29: =SUMIFS('6. Stamkaart'!CM$35:CM$6012,'6. Stamkaart'!$G$35:$G$6012,'5. Formatie'!$R29) -> 0 | AA29: =SUMIFS('6. Stamkaart'!CN$35:CN$6012,'6. Stamkaart'!$G$35:$G$6012,'5. Formatie'!$R29) -> 0 | AB29: =SUMIFS('6. Stamkaart'!CO$35:CO$6012,'6. Stamkaart'!$G$35:$G$6012,'5. Formatie'!$R29) -> 0 | AC29: =SUMIFS('6. Stamkaart'!CP$35:CP$6012,'6. Stamkaart'!$G$35:$G$6012,'5. Formatie'!$R29) -> 0 | AD29: =SUM('5. Formatie'!$S29:$AC29) -> 0
B30: =Beheer_Salaristabellen!G20 ->  | C30: =SUMIFS('6. Stamkaart'!BU$35:BU$6012,'6. Stamkaart'!$G$35:$G$6012,'5. Formatie'!$B30) -> 0 | D30: =SUMIFS('6. Stamkaart'!BV$35:BV$6012,'6. Stamkaart'!$G$35:$G$6012,'5. Formatie'!$B30) -> 0 | E30: =SUMIFS('6. Stamkaart'!BW$35:BW$6012,'6. Stamkaart'!$G$35:$G$6012,'5. Formatie'!$B30) -> 0 | F30: =SUMIFS('6. Stamkaart'!BX$35:BX$6012,'6. Stamkaart'!$G$35:$G$6012,'5. Formatie'!$B30) -> 0 | G30: =SUMIFS('6. Stamkaart'!BY$35:BY$6012,'6. Stamkaart'!$G$35:$G$6012,'5. Formatie'!$B30) -> 0 | H30: =SUMIFS('6. Stamkaart'!BZ$35:BZ$6012,'6. Stamkaart'!$G$35:$G$6012,'5. Formatie'!$B30) -> 0 | I30: =SUMIFS('6. Stamkaart'!CA$35:CA$6012,'6. Stamkaart'!$G$35:$G$6012,'5. Formatie'!$B30) -> 0 | J30: =SUMIFS('6. Stamkaart'!CB$35:CB$6012,'6. Stamkaart'!$G$35:$G$6012,'5. Formatie'!$B30) -> 0 | K30: =SUMIFS('6. Stamkaart'!CC$35:CC$6012,'6. Stamkaart'!$G$35:$G$6012,'5. Formatie'!$B30) -> 0 | L30: =SUMIFS('6. Stamkaart'!CD$35:CD$6012,'6. Stamkaart'!$G$35:$G$6012,'5. Formatie'!$B30) -> 0 | M30: =SUMIFS('6. Stamkaart'!CE$35:CE$6012,'6. Stamkaart'!$G$35:$G$6012,'5. Formatie'!$B30) -> 0 | N30: =SUM('5. Formatie'!$C30:$M30) -> 0 | S30: =SUMIFS('6. Stamkaart'!CF$35:CF$6012,'6. Stamkaart'!$G$35:$G$6012,'5. Formatie'!$R30) -> 0 | T30: =SUMIFS('6. Stamkaart'!CG$35:CG$6012,'6. Stamkaart'!$G$35:$G$6012,'5. Formatie'!$R30) -> 0 | U30: =SUMIFS('6. Stamkaart'!CH$35:CH$6012,'6. Stamkaart'!$G$35:$G$6012,'5. Formatie'!$R30) -> 0 | V30: =SUMIFS('6. Stamkaart'!CI$35:CI$6012,'6. Stamkaart'!$G$35:$G$6012,'5. Formatie'!$R30) -> 0 | W30: =SUMIFS('6. Stamkaart'!CJ$35:CJ$6012,'6. Stamkaart'!$G$35:$G$6012,'5. Formatie'!$R30) -> 0 | X30: =SUMIFS('6. Stamkaart'!CK$35:CK$6012,'6. Stamkaart'!$G$35:$G$6012,'5. Formatie'!$R30) -> 0 | Y30: =SUMIFS('6. Stamkaart'!CL$35:CL$6012,'6. Stamkaart'!$G$35:$G$6012,'5. Formatie'!$R30) -> 0 | Z30: =SUMIFS('6. Stamkaart'!CM$35:CM$6012,'6. Stamkaart'!$G$35:$G$6012,'5. Formatie'!$R30) -> 0 | AA30: =SUMIFS('6. Stamkaart'!CN$35:CN$6012,'6. Stamkaart'!$G$35:$G$6012,'5. Formatie'!$R30) -> 0 | AB30: =SUMIFS('6. Stamkaart'!CO$35:CO$6012,'6. Stamkaart'!$G$35:$G$6012,'5. Formatie'!$R30) -> 0 | AC30: =SUMIFS('6. Stamkaart'!CP$35:CP$6012,'6. Stamkaart'!$G$35:$G$6012,'5. Formatie'!$R30) -> 0 | AD30: =SUM('5. Formatie'!$S30:$AC30) -> 0
B31: =Beheer_Salaristabellen!G21 ->  | C31: =SUMIFS('6. Stamkaart'!BU$35:BU$6012,'6. Stamkaart'!$G$35:$G$6012,'5. Formatie'!$B31) -> 0 | D31: =SUMIFS('6. Stamkaart'!BV$35:BV$6012,'6. Stamkaart'!$G$35:$G$6012,'5. Formatie'!$B31) -> 0 | E31: =SUMIFS('6. Stamkaart'!BW$35:BW$6012,'6. Stamkaart'!$G$35:$G$6012,'5. Formatie'!$B31) -> 0 | F31: =SUMIFS('6. Stamkaart'!BX$35:BX$6012,'6. Stamkaart'!$G$35:$G$6012,'5. Formatie'!$B31) -> 0 | G31: =SUMIFS('6. Stamkaart'!BY$35:BY$6012,'6. Stamkaart'!$G$35:$G$6012,'5. Formatie'!$B31) -> 0 | H31: =SUMIFS('6. Stamkaart'!BZ$35:BZ$6012,'6. Stamkaart'!$G$35:$G$6012,'5. Formatie'!$B31) -> 0 | I31: =SUMIFS('6. Stamkaart'!CA$35:CA$6012,'6. Stamkaart'!$G$35:$G$6012,'5. Formatie'!$B31) -> 0 | J31: =SUMIFS('6. Stamkaart'!CB$35:CB$6012,'6. Stamkaart'!$G$35:$G$6012,'5. Formatie'!$B31) -> 0 | K31: =SUMIFS('6. Stamkaart'!CC$35:CC$6012,'6. Stamkaart'!$G$35:$G$6012,'5. Formatie'!$B31) -> 0 | L31: =SUMIFS('6. Stamkaart'!CD$35:CD$6012,'6. Stamkaart'!$G$35:$G$6012,'5. Formatie'!$B31) -> 0 | M31: =SUMIFS('6. Stamkaart'!CE$35:CE$6012,'6. Stamkaart'!$G$35:$G$6012,'5. Formatie'!$B31) -> 0 | N31: =SUM('5. Formatie'!$C31:$M31) -> 0 | S31: =SUMIFS('6. Stamkaart'!CF$35:CF$6012,'6. Stamkaart'!$G$35:$G$6012,'5. Formatie'!$R31) -> 0 | T31: =SUMIFS('6. Stamkaart'!CG$35:CG$6012,'6. Stamkaart'!$G$35:$G$6012,'5. Formatie'!$R31) -> 0 | U31: =SUMIFS('6. Stamkaart'!CH$35:CH$6012,'6. Stamkaart'!$G$35:$G$6012,'5. Formatie'!$R31) -> 0 | V31: =SUMIFS('6. Stamkaart'!CI$35:CI$6012,'6. Stamkaart'!$G$35:$G$6012,'5. Formatie'!$R31) -> 0 | W31: =SUMIFS('6. Stamkaart'!CJ$35:CJ$6012,'6. Stamkaart'!$G$35:$G$6012,'5. Formatie'!$R31) -> 0 | X31: =SUMIFS('6. Stamkaart'!CK$35:CK$6012,'6. Stamkaart'!$G$35:$G$6012,'5. Formatie'!$R31) -> 0 | Y31: =SUMIFS('6. Stamkaart'!CL$35:CL$6012,'6. Stamkaart'!$G$35:$G$6012,'5. Formatie'!$R31) -> 0 | Z31: =SUMIFS('6. Stamkaart'!CM$35:CM$6012,'6. Stamkaart'!$G$35:$G$6012,'5. Formatie'!$R31) -> 0 | AA31: =SUMIFS('6. Stamkaart'!CN$35:CN$6012,'6. Stamkaart'!$G$35:$G$6012,'5. Formatie'!$R31) -> 0 | AB31: =SUMIFS('6. Stamkaart'!CO$35:CO$6012,'6. Stamkaart'!$G$35:$G$6012,'5. Formatie'!$R31) -> 0 | AC31: =SUMIFS('6. Stamkaart'!CP$35:CP$6012,'6. Stamkaart'!$G$35:$G$6012,'5. Formatie'!$R31) -> 0 | AD31: =SUM('5. Formatie'!$S31:$AC31) -> 0
B32: =Beheer_Salaristabellen!G22 ->  | C32: =SUMIFS('6. Stamkaart'!BU$35:BU$6012,'6. Stamkaart'!$G$35:$G$6012,'5. Formatie'!$B32) -> 0 | D32: =SUMIFS('6. Stamkaart'!BV$35:BV$6012,'6. Stamkaart'!$G$35:$G$6012,'5. Formatie'!$B32) -> 0 | E32: =SUMIFS('6. Stamkaart'!BW$35:BW$6012,'6. Stamkaart'!$G$35:$G$6012,'5. Formatie'!$B32) -> 0 | F32: =SUMIFS('6. Stamkaart'!BX$35:BX$6012,'6. Stamkaart'!$G$35:$G$6012,'5. Formatie'!$B32) -> 0 | G32: =SUMIFS('6. Stamkaart'!BY$35:BY$6012,'6. Stamkaart'!$G$35:$G$6012,'5. Formatie'!$B32) -> 0 | H32: =SUMIFS('6. Stamkaart'!BZ$35:BZ$6012,'6. Stamkaart'!$G$35:$G$6012,'5. Formatie'!$B32) -> 0 | I32: =SUMIFS('6. Stamkaart'!CA$35:CA$6012,'6. Stamkaart'!$G$35:$G$6012,'5. Formatie'!$B32) -> 0 | J32: =SUMIFS('6. Stamkaart'!CB$35:CB$6012,'6. Stamkaart'!$G$35:$G$6012,'5. Formatie'!$B32) -> 0 | K32: =SUMIFS('6. Stamkaart'!CC$35:CC$6012,'6. Stamkaart'!$G$35:$G$6012,'5. Formatie'!$B32) -> 0 | L32: =SUMIFS('6. Stamkaart'!CD$35:CD$6012,'6. Stamkaart'!$G$35:$G$6012,'5. Formatie'!$B32) -> 0 | M32: =SUMIFS('6. Stamkaart'!CE$35:CE$6012,'6. Stamkaart'!$G$35:$G$6012,'5. Formatie'!$B32) -> 0 | N32: =SUM('5. Formatie'!$C32:$M32) -> 0 | S32: =SUMIFS('6. Stamkaart'!CF$35:CF$6012,'6. Stamkaart'!$G$35:$G$6012,'5. Formatie'!$R32) -> 0 | T32: =SUMIFS('6. Stamkaart'!CG$35:CG$6012,'6. Stamkaart'!$G$35:$G$6012,'5. Formatie'!$R32) -> 0 | U32: =SUMIFS('6. Stamkaart'!CH$35:CH$6012,'6. Stamkaart'!$G$35:$G$6012,'5. Formatie'!$R32) -> 0 | V32: =SUMIFS('6. Stamkaart'!CI$35:CI$6012,'6. Stamkaart'!$G$35:$G$6012,'5. Formatie'!$R32) -> 0 | W32: =SUMIFS('6. Stamkaart'!CJ$35:CJ$6012,'6. Stamkaart'!$G$35:$G$6012,'5. Formatie'!$R32) -> 0 | X32: =SUMIFS('6. Stamkaart'!CK$35:CK$6012,'6. Stamkaart'!$G$35:$G$6012,'5. Formatie'!$R32) -> 0 | Y32: =SUMIFS('6. Stamkaart'!CL$35:CL$6012,'6. Stamkaart'!$G$35:$G$6012,'5. Formatie'!$R32) -> 0 | Z32: =SUMIFS('6. Stamkaart'!CM$35:CM$6012,'6. Stamkaart'!$G$35:$G$6012,'5. Formatie'!$R32) -> 0 | AA32: =SUMIFS('6. Stamkaart'!CN$35:CN$6012,'6. Stamkaart'!$G$35:$G$6012,'5. Formatie'!$R32) -> 0 | AB32: =SUMIFS('6. Stamkaart'!CO$35:CO$6012,'6. Stamkaart'!$G$35:$G$6012,'5. Formatie'!$R32) -> 0 | AC32: =SUMIFS('6. Stamkaart'!CP$35:CP$6012,'6. Stamkaart'!$G$35:$G$6012,'5. Formatie'!$R32) -> 0 | AD32: =SUM('5. Formatie'!$S32:$AC32) -> 0
B33: =Beheer_Salaristabellen!G23 ->  | C33: =SUMIFS('6. Stamkaart'!BU$35:BU$6012,'6. Stamkaart'!$G$35:$G$6012,'5. Formatie'!$B33) -> 0 | D33: =SUMIFS('6. Stamkaart'!BV$35:BV$6012,'6. Stamkaart'!$G$35:$G$6012,'5. Formatie'!$B33) -> 0 | E33: =SUMIFS('6. Stamkaart'!BW$35:BW$6012,'6. Stamkaart'!$G$35:$G$6012,'5. Formatie'!$B33) -> 0 | F33: =SUMIFS('6. Stamkaart'!BX$35:BX$6012,'6. Stamkaart'!$G$35:$G$6012,'5. Formatie'!$B33) -> 0 | G33: =SUMIFS('6. Stamkaart'!BY$35:BY$6012,'6. Stamkaart'!$G$35:$G$6012,'5. Formatie'!$B33) -> 0 | H33: =SUMIFS('6. Stamkaart'!BZ$35:BZ$6012,'6. Stamkaart'!$G$35:$G$6012,'5. Formatie'!$B33) -> 0 | I33: =SUMIFS('6. Stamkaart'!CA$35:CA$6012,'6. Stamkaart'!$G$35:$G$6012,'5. Formatie'!$B33) -> 0 | J33: =SUMIFS('6. Stamkaart'!CB$35:CB$6012,'6. Stamkaart'!$G$35:$G$6012,'5. Formatie'!$B33) -> 0 | K33: =SUMIFS('6. Stamkaart'!CC$35:CC$6012,'6. Stamkaart'!$G$35:$G$6012,'5. Formatie'!$B33) -> 0 | L33: =SUMIFS('6. Stamkaart'!CD$35:CD$6012,'6. Stamkaart'!$G$35:$G$6012,'5. Formatie'!$B33) -> 0 | M33: =SUMIFS('6. Stamkaart'!CE$35:CE$6012,'6. Stamkaart'!$G$35:$G$6012,'5. Formatie'!$B33) -> 0 | N33: =SUM('5. Formatie'!$C33:$M33) -> 0 | S33: =SUMIFS('6. Stamkaart'!CF$35:CF$6012,'6. Stamkaart'!$G$35:$G$6012,'5. Formatie'!$R33) -> 0 | T33: =SUMIFS('6. Stamkaart'!CG$35:CG$6012,'6. Stamkaart'!$G$35:$G$6012,'5. Formatie'!$R33) -> 0 | U33: =SUMIFS('6. Stamkaart'!CH$35:CH$6012,'6. Stamkaart'!$G$35:$G$6012,'5. Formatie'!$R33) -> 0 | V33: =SUMIFS('6. Stamkaart'!CI$35:CI$6012,'6. Stamkaart'!$G$35:$G$6012,'5. Formatie'!$R33) -> 0 | W33: =SUMIFS('6. Stamkaart'!CJ$35:CJ$6012,'6. Stamkaart'!$G$35:$G$6012,'5. Formatie'!$R33) -> 0 | X33: =SUMIFS('6. Stamkaart'!CK$35:CK$6012,'6. Stamkaart'!$G$35:$G$6012,'5. Formatie'!$R33) -> 0 | Y33: =SUMIFS('6. Stamkaart'!CL$35:CL$6012,'6. Stamkaart'!$G$35:$G$6012,'5. Formatie'!$R33) -> 0 | Z33: =SUMIFS('6. Stamkaart'!CM$35:CM$6012,'6. Stamkaart'!$G$35:$G$6012,'5. Formatie'!$R33) -> 0 | AA33: =SUMIFS('6. Stamkaart'!CN$35:CN$6012,'6. Stamkaart'!$G$35:$G$6012,'5. Formatie'!$R33) -> 0 | AB33: =SUMIFS('6. Stamkaart'!CO$35:CO$6012,'6. Stamkaart'!$G$35:$G$6012,'5. Formatie'!$R33) -> 0 | AC33: =SUMIFS('6. Stamkaart'!CP$35:CP$6012,'6. Stamkaart'!$G$35:$G$6012,'5. Formatie'!$R33) -> 0 | AD33: =SUM('5. Formatie'!$S33:$AC33) -> 0
B34: =Beheer_Salaristabellen!G24 ->  | C34: =SUMIFS('6. Stamkaart'!BU$35:BU$6012,'6. Stamkaart'!$G$35:$G$6012,'5. Formatie'!$B34) -> 0 | D34: =SUMIFS('6. Stamkaart'!BV$35:BV$6012,'6. Stamkaart'!$G$35:$G$6012,'5. Formatie'!$B34) -> 0 | E34: =SUMIFS('6. Stamkaart'!BW$35:BW$6012,'6. Stamkaart'!$G$35:$G$6012,'5. Formatie'!$B34) -> 0 | F34: =SUMIFS('6. Stamkaart'!BX$35:BX$6012,'6. Stamkaart'!$G$35:$G$6012,'5. Formatie'!$B34) -> 0 | G34: =SUMIFS('6. Stamkaart'!BY$35:BY$6012,'6. Stamkaart'!$G$35:$G$6012,'5. Formatie'!$B34) -> 0 | H34: =SUMIFS('6. Stamkaart'!BZ$35:BZ$6012,'6. Stamkaart'!$G$35:$G$6012,'5. Formatie'!$B34) -> 0 | I34: =SUMIFS('6. Stamkaart'!CA$35:CA$6012,'6. Stamkaart'!$G$35:$G$6012,'5. Formatie'!$B34) -> 0 | J34: =SUMIFS('6. Stamkaart'!CB$35:CB$6012,'6. Stamkaart'!$G$35:$G$6012,'5. Formatie'!$B34) -> 0 | K34: =SUMIFS('6. Stamkaart'!CC$35:CC$6012,'6. Stamkaart'!$G$35:$G$6012,'5. Formatie'!$B34) -> 0 | L34: =SUMIFS('6. Stamkaart'!CD$35:CD$6012,'6. Stamkaart'!$G$35:$G$6012,'5. Formatie'!$B34) -> 0 | M34: =SUMIFS('6. Stamkaart'!CE$35:CE$6012,'6. Stamkaart'!$G$35:$G$6012,'5. Formatie'!$B34) -> 0 | N34: =SUM('5. Formatie'!$C34:$M34) -> 0 | S34: =SUMIFS('6. Stamkaart'!CF$35:CF$6012,'6. Stamkaart'!$G$35:$G$6012,'5. Formatie'!$R34) -> 0 | T34: =SUMIFS('6. Stamkaart'!CG$35:CG$6012,'6. Stamkaart'!$G$35:$G$6012,'5. Formatie'!$R34) -> 0 | U34: =SUMIFS('6. Stamkaart'!CH$35:CH$6012,'6. Stamkaart'!$G$35:$G$6012,'5. Formatie'!$R34) -> 0 | V34: =SUMIFS('6. Stamkaart'!CI$35:CI$6012,'6. Stamkaart'!$G$35:$G$6012,'5. Formatie'!$R34) -> 0 | W34: =SUMIFS('6. Stamkaart'!CJ$35:CJ$6012,'6. Stamkaart'!$G$35:$G$6012,'5. Formatie'!$R34) -> 0 | X34: =SUMIFS('6. Stamkaart'!CK$35:CK$6012,'6. Stamkaart'!$G$35:$G$6012,'5. Formatie'!$R34) -> 0 | Y34: =SUMIFS('6. Stamkaart'!CL$35:CL$6012,'6. Stamkaart'!$G$35:$G$6012,'5. Formatie'!$R34) -> 0 | Z34: =SUMIFS('6. Stamkaart'!CM$35:CM$6012,'6. Stamkaart'!$G$35:$G$6012,'5. Formatie'!$R34) -> 0 | AA34: =SUMIFS('6. Stamkaart'!CN$35:CN$6012,'6. Stamkaart'!$G$35:$G$6012,'5. Formatie'!$R34) -> 0 | AB34: =SUMIFS('6. Stamkaart'!CO$35:CO$6012,'6. Stamkaart'!$G$35:$G$6012,'5. Formatie'!$R34) -> 0 | AC34: =SUMIFS('6. Stamkaart'!CP$35:CP$6012,'6. Stamkaart'!$G$35:$G$6012,'5. Formatie'!$R34) -> 0 | AD34: =SUM('5. Formatie'!$S34:$AC34) -> 0
B35: =Beheer_Salaristabellen!G25 ->  | C35: =SUMIFS('6. Stamkaart'!BU$35:BU$6012,'6. Stamkaart'!$G$35:$G$6012,'5. Formatie'!$B35) -> 0 | D35: =SUMIFS('6. Stamkaart'!BV$35:BV$6012,'6. Stamkaart'!$G$35:$G$6012,'5. Formatie'!$B35) -> 0 | E35: =SUMIFS('6. Stamkaart'!BW$35:BW$6012,'6. Stamkaart'!$G$35:$G$6012,'5. Formatie'!$B35) -> 0 | F35: =SUMIFS('6. Stamkaart'!BX$35:BX$6012,'6. Stamkaart'!$G$35:$G$6012,'5. Formatie'!$B35) -> 0 | G35: =SUMIFS('6. Stamkaart'!BY$35:BY$6012,'6. Stamkaart'!$G$35:$G$6012,'5. Formatie'!$B35) -> 0 | H35: =SUMIFS('6. Stamkaart'!BZ$35:BZ$6012,'6. Stamkaart'!$G$35:$G$6012,'5. Formatie'!$B35) -> 0 | I35: =SUMIFS('6. Stamkaart'!CA$35:CA$6012,'6. Stamkaart'!$G$35:$G$6012,'5. Formatie'!$B35) -> 0 | J35: =SUMIFS('6. Stamkaart'!CB$35:CB$6012,'6. Stamkaart'!$G$35:$G$6012,'5. Formatie'!$B35) -> 0 | K35: =SUMIFS('6. Stamkaart'!CC$35:CC$6012,'6. Stamkaart'!$G$35:$G$6012,'5. Formatie'!$B35) -> 0 | L35: =SUMIFS('6. Stamkaart'!CD$35:CD$6012,'6. Stamkaart'!$G$35:$G$6012,'5. Formatie'!$B35) -> 0 | M35: =SUMIFS('6. Stamkaart'!CE$35:CE$6012,'6. Stamkaart'!$G$35:$G$6012,'5. Formatie'!$B35) -> 0 | N35: =SUM('5. Formatie'!$C35:$M35) -> 0 | S35: =SUMIFS('6. Stamkaart'!CF$35:CF$6012,'6. Stamkaart'!$G$35:$G$6012,'5. Formatie'!$R35) -> 0 | T35: =SUMIFS('6. Stamkaart'!CG$35:CG$6012,'6. Stamkaart'!$G$35:$G$6012,'5. Formatie'!$R35) -> 0 | U35: =SUMIFS('6. Stamkaart'!CH$35:CH$6012,'6. Stamkaart'!$G$35:$G$6012,'5. Formatie'!$R35) -> 0 | V35: =SUMIFS('6. Stamkaart'!CI$35:CI$6012,'6. Stamkaart'!$G$35:$G$6012,'5. Formatie'!$R35) -> 0 | W35: =SUMIFS('6. Stamkaart'!CJ$35:CJ$6012,'6. Stamkaart'!$G$35:$G$6012,'5. Formatie'!$R35) -> 0 | X35: =SUMIFS('6. Stamkaart'!CK$35:CK$6012,'6. Stamkaart'!$G$35:$G$6012,'5. Formatie'!$R35) -> 0 | Y35: =SUMIFS('6. Stamkaart'!CL$35:CL$6012,'6. Stamkaart'!$G$35:$G$6012,'5. Formatie'!$R35) -> 0 | Z35: =SUMIFS('6. Stamkaart'!CM$35:CM$6012,'6. Stamkaart'!$G$35:$G$6012,'5. Formatie'!$R35) -> 0 | AA35: =SUMIFS('6. Stamkaart'!CN$35:CN$6012,'6. Stamkaart'!$G$35:$G$6012,'5. Formatie'!$R35) -> 0 | AB35: =SUMIFS('6. Stamkaart'!CO$35:CO$6012,'6. Stamkaart'!$G$35:$G$6012,'5. Formatie'!$R35) -> 0 | AC35: =SUMIFS('6. Stamkaart'!CP$35:CP$6012,'6. Stamkaart'!$G$35:$G$6012,'5. Formatie'!$R35) -> 0 | AD35: =SUM('5. Formatie'!$S35:$AC35) -> 0
B36: =Beheer_Salaristabellen!G26 ->  | C36: =SUMIFS('6. Stamkaart'!BU$35:BU$6012,'6. Stamkaart'!$G$35:$G$6012,'5. Formatie'!$B36) -> 0 | D36: =SUMIFS('6. Stamkaart'!BV$35:BV$6012,'6. Stamkaart'!$G$35:$G$6012,'5. Formatie'!$B36) -> 0 | E36: =SUMIFS('6. Stamkaart'!BW$35:BW$6012,'6. Stamkaart'!$G$35:$G$6012,'5. Formatie'!$B36) -> 0 | F36: =SUMIFS('6. Stamkaart'!BX$35:BX$6012,'6. Stamkaart'!$G$35:$G$6012,'5. Formatie'!$B36) -> 0 | G36: =SUMIFS('6. Stamkaart'!BY$35:BY$6012,'6. Stamkaart'!$G$35:$G$6012,'5. Formatie'!$B36) -> 0 | H36: =SUMIFS('6. Stamkaart'!BZ$35:BZ$6012,'6. Stamkaart'!$G$35:$G$6012,'5. Formatie'!$B36) -> 0 | I36: =SUMIFS('6. Stamkaart'!CA$35:CA$6012,'6. Stamkaart'!$G$35:$G$6012,'5. Formatie'!$B36) -> 0 | J36: =SUMIFS('6. Stamkaart'!CB$35:CB$6012,'6. Stamkaart'!$G$35:$G$6012,'5. Formatie'!$B36) -> 0 | K36: =SUMIFS('6. Stamkaart'!CC$35:CC$6012,'6. Stamkaart'!$G$35:$G$6012,'5. Formatie'!$B36) -> 0 | L36: =SUMIFS('6. Stamkaart'!CD$35:CD$6012,'6. Stamkaart'!$G$35:$G$6012,'5. Formatie'!$B36) -> 0 | M36: =SUMIFS('6. Stamkaart'!CE$35:CE$6012,'6. Stamkaart'!$G$35:$G$6012,'5. Formatie'!$B36) -> 0 | N36: =SUM('5. Formatie'!$C36:$M36) -> 0 | S36: =SUMIFS('6. Stamkaart'!CF$35:CF$6012,'6. Stamkaart'!$G$35:$G$6012,'5. Formatie'!$R36) -> 0 | T36: =SUMIFS('6. Stamkaart'!CG$35:CG$6012,'6. Stamkaart'!$G$35:$G$6012,'5. Formatie'!$R36) -> 0 | U36: =SUMIFS('6. Stamkaart'!CH$35:CH$6012,'6. Stamkaart'!$G$35:$G$6012,'5. Formatie'!$R36) -> 0 | V36: =SUMIFS('6. Stamkaart'!CI$35:CI$6012,'6. Stamkaart'!$G$35:$G$6012,'5. Formatie'!$R36) -> 0 | W36: =SUMIFS('6. Stamkaart'!CJ$35:CJ$6012,'6. Stamkaart'!$G$35:$G$6012,'5. Formatie'!$R36) -> 0 | X36: =SUMIFS('6. Stamkaart'!CK$35:CK$6012,'6. Stamkaart'!$G$35:$G$6012,'5. Formatie'!$R36) -> 0 | Y36: =SUMIFS('6. Stamkaart'!CL$35:CL$6012,'6. Stamkaart'!$G$35:$G$6012,'5. Formatie'!$R36) -> 0 | Z36: =SUMIFS('6. Stamkaart'!CM$35:CM$6012,'6. Stamkaart'!$G$35:$G$6012,'5. Formatie'!$R36) -> 0 | AA36: =SUMIFS('6. Stamkaart'!CN$35:CN$6012,'6. Stamkaart'!$G$35:$G$6012,'5. Formatie'!$R36) -> 0 | AB36: =SUMIFS('6. Stamkaart'!CO$35:CO$6012,'6. Stamkaart'!$G$35:$G$6012,'5. Formatie'!$R36) -> 0 | AC36: =SUMIFS('6. Stamkaart'!CP$35:CP$6012,'6. Stamkaart'!$G$35:$G$6012,'5. Formatie'!$R36) -> 0 | AD36: =SUM('5. Formatie'!$S36:$AC36) -> 0
B37: =Beheer_Salaristabellen!G27 ->  | C37: =SUMIFS('6. Stamkaart'!BU$35:BU$6012,'6. Stamkaart'!$G$35:$G$6012,'5. Formatie'!$B37) -> 0 | D37: =SUMIFS('6. Stamkaart'!BV$35:BV$6012,'6. Stamkaart'!$G$35:$G$6012,'5. Formatie'!$B37) -> 0 | E37: =SUMIFS('6. Stamkaart'!BW$35:BW$6012,'6. Stamkaart'!$G$35:$G$6012,'5. Formatie'!$B37) -> 0 | F37: =SUMIFS('6. Stamkaart'!BX$35:BX$6012,'6. Stamkaart'!$G$35:$G$6012,'5. Formatie'!$B37) -> 0 | G37: =SUMIFS('6. Stamkaart'!BY$35:BY$6012,'6. Stamkaart'!$G$35:$G$6012,'5. Formatie'!$B37) -> 0 | H37: =SUMIFS('6. Stamkaart'!BZ$35:BZ$6012,'6. Stamkaart'!$G$35:$G$6012,'5. Formatie'!$B37) -> 0 | I37: =SUMIFS('6. Stamkaart'!CA$35:CA$6012,'6. Stamkaart'!$G$35:$G$6012,'5. Formatie'!$B37) -> 0 | J37: =SUMIFS('6. Stamkaart'!CB$35:CB$6012,'6. Stamkaart'!$G$35:$G$6012,'5. Formatie'!$B37) -> 0 | K37: =SUMIFS('6. Stamkaart'!CC$35:CC$6012,'6. Stamkaart'!$G$35:$G$6012,'5. Formatie'!$B37) -> 0 | L37: =SUMIFS('6. Stamkaart'!CD$35:CD$6012,'6. Stamkaart'!$G$35:$G$6012,'5. Formatie'!$B37) -> 0 | M37: =SUMIFS('6. Stamkaart'!CE$35:CE$6012,'6. Stamkaart'!$G$35:$G$6012,'5. Formatie'!$B37) -> 0 | N37: =SUM('5. Formatie'!$C37:$M37) -> 0 | S37: =SUMIFS('6. Stamkaart'!CF$35:CF$6012,'6. Stamkaart'!$G$35:$G$6012,'5. Formatie'!$R37) -> 0 | T37: =SUMIFS('6. Stamkaart'!CG$35:CG$6012,'6. Stamkaart'!$G$35:$G$6012,'5. Formatie'!$R37) -> 0 | U37: =SUMIFS('6. Stamkaart'!CH$35:CH$6012,'6. Stamkaart'!$G$35:$G$6012,'5. Formatie'!$R37) -> 0 | V37: =SUMIFS('6. Stamkaart'!CI$35:CI$6012,'6. Stamkaart'!$G$35:$G$6012,'5. Formatie'!$R37) -> 0 | W37: =SUMIFS('6. Stamkaart'!CJ$35:CJ$6012,'6. Stamkaart'!$G$35:$G$6012,'5. Formatie'!$R37) -> 0 | X37: =SUMIFS('6. Stamkaart'!CK$35:CK$6012,'6. Stamkaart'!$G$35:$G$6012,'5. Formatie'!$R37) -> 0 | Y37: =SUMIFS('6. Stamkaart'!CL$35:CL$6012,'6. Stamkaart'!$G$35:$G$6012,'5. Formatie'!$R37) -> 0 | Z37: =SUMIFS('6. Stamkaart'!CM$35:CM$6012,'6. Stamkaart'!$G$35:$G$6012,'5. Formatie'!$R37) -> 0 | AA37: =SUMIFS('6. Stamkaart'!CN$35:CN$6012,'6. Stamkaart'!$G$35:$G$6012,'5. Formatie'!$R37) -> 0 | AB37: =SUMIFS('6. Stamkaart'!CO$35:CO$6012,'6. Stamkaart'!$G$35:$G$6012,'5. Formatie'!$R37) -> 0 | AC37: =SUMIFS('6. Stamkaart'!CP$35:CP$6012,'6. Stamkaart'!$G$35:$G$6012,'5. Formatie'!$R37) -> 0 | AD37: =SUM('5. Formatie'!$S37:$AC37) -> 0
B38: =Beheer_Salaristabellen!G28 ->  | C38: =SUMIFS('6. Stamkaart'!BU$35:BU$6012,'6. Stamkaart'!$G$35:$G$6012,'5. Formatie'!$B38) -> 0 | D38: =SUMIFS('6. Stamkaart'!BV$35:BV$6012,'6. Stamkaart'!$G$35:$G$6012,'5. Formatie'!$B38) -> 0 | E38: =SUMIFS('6. Stamkaart'!BW$35:BW$6012,'6. Stamkaart'!$G$35:$G$6012,'5. Formatie'!$B38) -> 0 | F38: =SUMIFS('6. Stamkaart'!BX$35:BX$6012,'6. Stamkaart'!$G$35:$G$6012,'5. Formatie'!$B38) -> 0 | G38: =SUMIFS('6. Stamkaart'!BY$35:BY$6012,'6. Stamkaart'!$G$35:$G$6012,'5. Formatie'!$B38) -> 0 | H38: =SUMIFS('6. Stamkaart'!BZ$35:BZ$6012,'6. Stamkaart'!$G$35:$G$6012,'5. Formatie'!$B38) -> 0 | I38: =SUMIFS('6. Stamkaart'!CA$35:CA$6012,'6. Stamkaart'!$G$35:$G$6012,'5. Formatie'!$B38) -> 0 | J38: =SUMIFS('6. Stamkaart'!CB$35:CB$6012,'6. Stamkaart'!$G$35:$G$6012,'5. Formatie'!$B38) -> 0 | K38: =SUMIFS('6. Stamkaart'!CC$35:CC$6012,'6. Stamkaart'!$G$35:$G$6012,'5. Formatie'!$B38) -> 0 | L38: =SUMIFS('6. Stamkaart'!CD$35:CD$6012,'6. Stamkaart'!$G$35:$G$6012,'5. Formatie'!$B38) -> 0 | M38: =SUMIFS('6. Stamkaart'!CE$35:CE$6012,'6. Stamkaart'!$G$35:$G$6012,'5. Formatie'!$B38) -> 0 | N38: =SUM('5. Formatie'!$C38:$M38) -> 0 | S38: =SUMIFS('6. Stamkaart'!CF$35:CF$6012,'6. Stamkaart'!$G$35:$G$6012,'5. Formatie'!$R38) -> 0 | T38: =SUMIFS('6. Stamkaart'!CG$35:CG$6012,'6. Stamkaart'!$G$35:$G$6012,'5. Formatie'!$R38) -> 0 | U38: =SUMIFS('6. Stamkaart'!CH$35:CH$6012,'6. Stamkaart'!$G$35:$G$6012,'5. Formatie'!$R38) -> 0 | V38: =SUMIFS('6. Stamkaart'!CI$35:CI$6012,'6. Stamkaart'!$G$35:$G$6012,'5. Formatie'!$R38) -> 0 | W38: =SUMIFS('6. Stamkaart'!CJ$35:CJ$6012,'6. Stamkaart'!$G$35:$G$6012,'5. Formatie'!$R38) -> 0 | X38: =SUMIFS('6. Stamkaart'!CK$35:CK$6012,'6. Stamkaart'!$G$35:$G$6012,'5. Formatie'!$R38) -> 0 | Y38: =SUMIFS('6. Stamkaart'!CL$35:CL$6012,'6. Stamkaart'!$G$35:$G$6012,'5. Formatie'!$R38) -> 0 | Z38: =SUMIFS('6. Stamkaart'!CM$35:CM$6012,'6. Stamkaart'!$G$35:$G$6012,'5. Formatie'!$R38) -> 0 | AA38: =SUMIFS('6. Stamkaart'!CN$35:CN$6012,'6. Stamkaart'!$G$35:$G$6012,'5. Formatie'!$R38) -> 0 | AB38: =SUMIFS('6. Stamkaart'!CO$35:CO$6012,'6. Stamkaart'!$G$35:$G$6012,'5. Formatie'!$R38) -> 0 | AC38: =SUMIFS('6. Stamkaart'!CP$35:CP$6012,'6. Stamkaart'!$G$35:$G$6012,'5. Formatie'!$R38) -> 0 | AD38: =SUM('5. Formatie'!$S38:$AC38) -> 0
B39: =Beheer_Salaristabellen!G29 ->  | C39: =SUMIFS('6. Stamkaart'!BU$35:BU$6012,'6. Stamkaart'!$G$35:$G$6012,'5. Formatie'!$B39) -> 0 | D39: =SUMIFS('6. Stamkaart'!BV$35:BV$6012,'6. Stamkaart'!$G$35:$G$6012,'5. Formatie'!$B39) -> 0 | E39: =SUMIFS('6. Stamkaart'!BW$35:BW$6012,'6. Stamkaart'!$G$35:$G$6012,'5. Formatie'!$B39) -> 0 | F39: =SUMIFS('6. Stamkaart'!BX$35:BX$6012,'6. Stamkaart'!$G$35:$G$6012,'5. Formatie'!$B39) -> 0 | G39: =SUMIFS('6. Stamkaart'!BY$35:BY$6012,'6. Stamkaart'!$G$35:$G$6012,'5. Formatie'!$B39) -> 0 | H39: =SUMIFS('6. Stamkaart'!BZ$35:BZ$6012,'6. Stamkaart'!$G$35:$G$6012,'5. Formatie'!$B39) -> 0 | I39: =SUMIFS('6. Stamkaart'!CA$35:CA$6012,'6. Stamkaart'!$G$35:$G$6012,'5. Formatie'!$B39) -> 0 | J39: =SUMIFS('6. Stamkaart'!CB$35:CB$6012,'6. Stamkaart'!$G$35:$G$6012,'5. Formatie'!$B39) -> 0 | K39: =SUMIFS('6. Stamkaart'!CC$35:CC$6012,'6. Stamkaart'!$G$35:$G$6012,'5. Formatie'!$B39) -> 0 | L39: =SUMIFS('6. Stamkaart'!CD$35:CD$6012,'6. Stamkaart'!$G$35:$G$6012,'5. Formatie'!$B39) -> 0 | M39: =SUMIFS('6. Stamkaart'!CE$35:CE$6012,'6. Stamkaart'!$G$35:$G$6012,'5. Formatie'!$B39) -> 0 | N39: =SUM('5. Formatie'!$C39:$M39) -> 0 | S39: =SUMIFS('6. Stamkaart'!CF$35:CF$6012,'6. Stamkaart'!$G$35:$G$6012,'5. Formatie'!$R39) -> 0 | T39: =SUMIFS('6. Stamkaart'!CG$35:CG$6012,'6. Stamkaart'!$G$35:$G$6012,'5. Formatie'!$R39) -> 0 | U39: =SUMIFS('6. Stamkaart'!CH$35:CH$6012,'6. Stamkaart'!$G$35:$G$6012,'5. Formatie'!$R39) -> 0 | V39: =SUMIFS('6. Stamkaart'!CI$35:CI$6012,'6. Stamkaart'!$G$35:$G$6012,'5. Formatie'!$R39) -> 0 | W39: =SUMIFS('6. Stamkaart'!CJ$35:CJ$6012,'6. Stamkaart'!$G$35:$G$6012,'5. Formatie'!$R39) -> 0 | X39: =SUMIFS('6. Stamkaart'!CK$35:CK$6012,'6. Stamkaart'!$G$35:$G$6012,'5. Formatie'!$R39) -> 0 | Y39: =SUMIFS('6. Stamkaart'!CL$35:CL$6012,'6. Stamkaart'!$G$35:$G$6012,'5. Formatie'!$R39) -> 0 | Z39: =SUMIFS('6. Stamkaart'!CM$35:CM$6012,'6. Stamkaart'!$G$35:$G$6012,'5. Formatie'!$R39) -> 0 | AA39: =SUMIFS('6. Stamkaart'!CN$35:CN$6012,'6. Stamkaart'!$G$35:$G$6012,'5. Formatie'!$R39) -> 0 | AB39: =SUMIFS('6. Stamkaart'!CO$35:CO$6012,'6. Stamkaart'!$G$35:$G$6012,'5. Formatie'!$R39) -> 0 | AC39: =SUMIFS('6. Stamkaart'!CP$35:CP$6012,'6. Stamkaart'!$G$35:$G$6012,'5. Formatie'!$R39) -> 0 | AD39: =SUM('5. Formatie'!$S39:$AC39) -> 0
B40: =Beheer_Salaristabellen!G30 ->  | C40: =SUMIFS('6. Stamkaart'!BU$35:BU$6012,'6. Stamkaart'!$G$35:$G$6012,'5. Formatie'!$B40) -> 0 | D40: =SUMIFS('6. Stamkaart'!BV$35:BV$6012,'6. Stamkaart'!$G$35:$G$6012,'5. Formatie'!$B40) -> 0 | E40: =SUMIFS('6. Stamkaart'!BW$35:BW$6012,'6. Stamkaart'!$G$35:$G$6012,'5. Formatie'!$B40) -> 0 | F40: =SUMIFS('6. Stamkaart'!BX$35:BX$6012,'6. Stamkaart'!$G$35:$G$6012,'5. Formatie'!$B40) -> 0 | G40: =SUMIFS('6. Stamkaart'!BY$35:BY$6012,'6. Stamkaart'!$G$35:$G$6012,'5. Formatie'!$B40) -> 0 | H40: =SUMIFS('6. Stamkaart'!BZ$35:BZ$6012,'6. Stamkaart'!$G$35:$G$6012,'5. Formatie'!$B40) -> 0 | I40: =SUMIFS('6. Stamkaart'!CA$35:CA$6012,'6. Stamkaart'!$G$35:$G$6012,'5. Formatie'!$B40) -> 0 | J40: =SUMIFS('6. Stamkaart'!CB$35:CB$6012,'6. Stamkaart'!$G$35:$G$6012,'5. Formatie'!$B40) -> 0 | K40: =SUMIFS('6. Stamkaart'!CC$35:CC$6012,'6. Stamkaart'!$G$35:$G$6012,'5. Formatie'!$B40) -> 0 | L40: =SUMIFS('6. Stamkaart'!CD$35:CD$6012,'6. Stamkaart'!$G$35:$G$6012,'5. Formatie'!$B40) -> 0 | M40: =SUMIFS('6. Stamkaart'!CE$35:CE$6012,'6. Stamkaart'!$G$35:$G$6012,'5. Formatie'!$B40) -> 0 | N40: =SUM('5. Formatie'!$C40:$M40) -> 0 | S40: =SUMIFS('6. Stamkaart'!CF$35:CF$6012,'6. Stamkaart'!$G$35:$G$6012,'5. Formatie'!$R40) -> 0 | T40: =SUMIFS('6. Stamkaart'!CG$35:CG$6012,'6. Stamkaart'!$G$35:$G$6012,'5. Formatie'!$R40) -> 0 | U40: =SUMIFS('6. Stamkaart'!CH$35:CH$6012,'6. Stamkaart'!$G$35:$G$6012,'5. Formatie'!$R40) -> 0 | V40: =SUMIFS('6. Stamkaart'!CI$35:CI$6012,'6. Stamkaart'!$G$35:$G$6012,'5. Formatie'!$R40) -> 0 | W40: =SUMIFS('6. Stamkaart'!CJ$35:CJ$6012,'6. Stamkaart'!$G$35:$G$6012,'5. Formatie'!$R40) -> 0 | X40: =SUMIFS('6. Stamkaart'!CK$35:CK$6012,'6. Stamkaart'!$G$35:$G$6012,'5. Formatie'!$R40) -> 0 | Y40: =SUMIFS('6. Stamkaart'!CL$35:CL$6012,'6. Stamkaart'!$G$35:$G$6012,'5. Formatie'!$R40) -> 0 | Z40: =SUMIFS('6. Stamkaart'!CM$35:CM$6012,'6. Stamkaart'!$G$35:$G$6012,'5. Formatie'!$R40) -> 0 | AA40: =SUMIFS('6. Stamkaart'!CN$35:CN$6012,'6. Stamkaart'!$G$35:$G$6012,'5. Formatie'!$R40) -> 0 | AB40: =SUMIFS('6. Stamkaart'!CO$35:CO$6012,'6. Stamkaart'!$G$35:$G$6012,'5. Formatie'!$R40) -> 0 | AC40: =SUMIFS('6. Stamkaart'!CP$35:CP$6012,'6. Stamkaart'!$G$35:$G$6012,'5. Formatie'!$R40) -> 0 | AD40: =SUM('5. Formatie'!$S40:$AC40) -> 0
B41: =Beheer_Salaristabellen!G31 ->  | C41: =SUMIFS('6. Stamkaart'!BU$35:BU$6012,'6. Stamkaart'!$G$35:$G$6012,'5. Formatie'!$B41) -> 0 | D41: =SUMIFS('6. Stamkaart'!BV$35:BV$6012,'6. Stamkaart'!$G$35:$G$6012,'5. Formatie'!$B41) -> 0 | E41: =SUMIFS('6. Stamkaart'!BW$35:BW$6012,'6. Stamkaart'!$G$35:$G$6012,'5. Formatie'!$B41) -> 0 | F41: =SUMIFS('6. Stamkaart'!BX$35:BX$6012,'6. Stamkaart'!$G$35:$G$6012,'5. Formatie'!$B41) -> 0 | G41: =SUMIFS('6. Stamkaart'!BY$35:BY$6012,'6. Stamkaart'!$G$35:$G$6012,'5. Formatie'!$B41) -> 0 | H41: =SUMIFS('6. Stamkaart'!BZ$35:BZ$6012,'6. Stamkaart'!$G$35:$G$6012,'5. Formatie'!$B41) -> 0 | I41: =SUMIFS('6. Stamkaart'!CA$35:CA$6012,'6. Stamkaart'!$G$35:$G$6012,'5. Formatie'!$B41) -> 0 | J41: =SUMIFS('6. Stamkaart'!CB$35:CB$6012,'6. Stamkaart'!$G$35:$G$6012,'5. Formatie'!$B41) -> 0 | K41: =SUMIFS('6. Stamkaart'!CC$35:CC$6012,'6. Stamkaart'!$G$35:$G$6012,'5. Formatie'!$B41) -> 0 | L41: =SUMIFS('6. Stamkaart'!CD$35:CD$6012,'6. Stamkaart'!$G$35:$G$6012,'5. Formatie'!$B41) -> 0 | M41: =SUMIFS('6. Stamkaart'!CE$35:CE$6012,'6. Stamkaart'!$G$35:$G$6012,'5. Formatie'!$B41) -> 0 | N41: =SUM('5. Formatie'!$C41:$M41) -> 0 | S41: =SUMIFS('6. Stamkaart'!CF$35:CF$6012,'6. Stamkaart'!$G$35:$G$6012,'5. Formatie'!$R41) -> 0 | T41: =SUMIFS('6. Stamkaart'!CG$35:CG$6012,'6. Stamkaart'!$G$35:$G$6012,'5. Formatie'!$R41) -> 0 | U41: =SUMIFS('6. Stamkaart'!CH$35:CH$6012,'6. Stamkaart'!$G$35:$G$6012,'5. Formatie'!$R41) -> 0 | V41: =SUMIFS('6. Stamkaart'!CI$35:CI$6012,'6. Stamkaart'!$G$35:$G$6012,'5. Formatie'!$R41) -> 0 | W41: =SUMIFS('6. Stamkaart'!CJ$35:CJ$6012,'6. Stamkaart'!$G$35:$G$6012,'5. Formatie'!$R41) -> 0 | X41: =SUMIFS('6. Stamkaart'!CK$35:CK$6012,'6. Stamkaart'!$G$35:$G$6012,'5. Formatie'!$R41) -> 0 | Y41: =SUMIFS('6. Stamkaart'!CL$35:CL$6012,'6. Stamkaart'!$G$35:$G$6012,'5. Formatie'!$R41) -> 0 | Z41: =SUMIFS('6. Stamkaart'!CM$35:CM$6012,'6. Stamkaart'!$G$35:$G$6012,'5. Formatie'!$R41) -> 0 | AA41: =SUMIFS('6. Stamkaart'!CN$35:CN$6012,'6. Stamkaart'!$G$35:$G$6012,'5. Formatie'!$R41) -> 0 | AB41: =SUMIFS('6. Stamkaart'!CO$35:CO$6012,'6. Stamkaart'!$G$35:$G$6012,'5. Formatie'!$R41) -> 0 | AC41: =SUMIFS('6. Stamkaart'!CP$35:CP$6012,'6. Stamkaart'!$G$35:$G$6012,'5. Formatie'!$R41) -> 0 | AD41: =SUM('5. Formatie'!$S41:$AC41) -> 0
B42: =Beheer_Salaristabellen!G32 ->  | C42: =SUMIFS('6. Stamkaart'!BU$35:BU$6012,'6. Stamkaart'!$G$35:$G$6012,'5. Formatie'!$B42) -> 0 | D42: =SUMIFS('6. Stamkaart'!BV$35:BV$6012,'6. Stamkaart'!$G$35:$G$6012,'5. Formatie'!$B42) -> 0 | E42: =SUMIFS('6. Stamkaart'!BW$35:BW$6012,'6. Stamkaart'!$G$35:$G$6012,'5. Formatie'!$B42) -> 0 | F42: =SUMIFS('6. Stamkaart'!BX$35:BX$6012,'6. Stamkaart'!$G$35:$G$6012,'5. Formatie'!$B42) -> 0 | G42: =SUMIFS('6. Stamkaart'!BY$35:BY$6012,'6. Stamkaart'!$G$35:$G$6012,'5. Formatie'!$B42) -> 0 | H42: =SUMIFS('6. Stamkaart'!BZ$35:BZ$6012,'6. Stamkaart'!$G$35:$G$6012,'5. Formatie'!$B42) -> 0 | I42: =SUMIFS('6. Stamkaart'!CA$35:CA$6012,'6. Stamkaart'!$G$35:$G$6012,'5. Formatie'!$B42) -> 0 | J42: =SUMIFS('6. Stamkaart'!CB$35:CB$6012,'6. Stamkaart'!$G$35:$G$6012,'5. Formatie'!$B42) -> 0 | K42: =SUMIFS('6. Stamkaart'!CC$35:CC$6012,'6. Stamkaart'!$G$35:$G$6012,'5. Formatie'!$B42) -> 0 | L42: =SUMIFS('6. Stamkaart'!CD$35:CD$6012,'6. Stamkaart'!$G$35:$G$6012,'5. Formatie'!$B42) -> 0 | M42: =SUMIFS('6. Stamkaart'!CE$35:CE$6012,'6. Stamkaart'!$G$35:$G$6012,'5. Formatie'!$B42) -> 0 | N42: =SUM('5. Formatie'!$C42:$M42) -> 0 | S42: =SUMIFS('6. Stamkaart'!CF$35:CF$6012,'6. Stamkaart'!$G$35:$G$6012,'5. Formatie'!$R42) -> 0 | T42: =SUMIFS('6. Stamkaart'!CG$35:CG$6012,'6. Stamkaart'!$G$35:$G$6012,'5. Formatie'!$R42) -> 0 | U42: =SUMIFS('6. Stamkaart'!CH$35:CH$6012,'6. Stamkaart'!$G$35:$G$6012,'5. Formatie'!$R42) -> 0 | V42: =SUMIFS('6. Stamkaart'!CI$35:CI$6012,'6. Stamkaart'!$G$35:$G$6012,'5. Formatie'!$R42) -> 0 | W42: =SUMIFS('6. Stamkaart'!CJ$35:CJ$6012,'6. Stamkaart'!$G$35:$G$6012,'5. Formatie'!$R42) -> 0 | X42: =SUMIFS('6. Stamkaart'!CK$35:CK$6012,'6. Stamkaart'!$G$35:$G$6012,'5. Formatie'!$R42) -> 0 | Y42: =SUMIFS('6. Stamkaart'!CL$35:CL$6012,'6. Stamkaart'!$G$35:$G$6012,'5. Formatie'!$R42) -> 0 | Z42: =SUMIFS('6. Stamkaart'!CM$35:CM$6012,'6. Stamkaart'!$G$35:$G$6012,'5. Formatie'!$R42) -> 0 | AA42: =SUMIFS('6. Stamkaart'!CN$35:CN$6012,'6. Stamkaart'!$G$35:$G$6012,'5. Formatie'!$R42) -> 0 | AB42: =SUMIFS('6. Stamkaart'!CO$35:CO$6012,'6. Stamkaart'!$G$35:$G$6012,'5. Formatie'!$R42) -> 0 | AC42: =SUMIFS('6. Stamkaart'!CP$35:CP$6012,'6. Stamkaart'!$G$35:$G$6012,'5. Formatie'!$R42) -> 0 | AD42: =SUM('5. Formatie'!$S42:$AC42) -> 0
B43: =Beheer_Salaristabellen!G33 ->  | C43: =SUMIFS('6. Stamkaart'!BU$35:BU$6012,'6. Stamkaart'!$G$35:$G$6012,'5. Formatie'!$B43) -> 0 | D43: =SUMIFS('6. Stamkaart'!BV$35:BV$6012,'6. Stamkaart'!$G$35:$G$6012,'5. Formatie'!$B43) -> 0 | E43: =SUMIFS('6. Stamkaart'!BW$35:BW$6012,'6. Stamkaart'!$G$35:$G$6012,'5. Formatie'!$B43) -> 0 | F43: =SUMIFS('6. Stamkaart'!BX$35:BX$6012,'6. Stamkaart'!$G$35:$G$6012,'5. Formatie'!$B43) -> 0 | G43: =SUMIFS('6. Stamkaart'!BY$35:BY$6012,'6. Stamkaart'!$G$35:$G$6012,'5. Formatie'!$B43) -> 0 | H43: =SUMIFS('6. Stamkaart'!BZ$35:BZ$6012,'6. Stamkaart'!$G$35:$G$6012,'5. Formatie'!$B43) -> 0 | I43: =SUMIFS('6. Stamkaart'!CA$35:CA$6012,'6. Stamkaart'!$G$35:$G$6012,'5. Formatie'!$B43) -> 0 | J43: =SUMIFS('6. Stamkaart'!CB$35:CB$6012,'6. Stamkaart'!$G$35:$G$6012,'5. Formatie'!$B43) -> 0 | K43: =SUMIFS('6. Stamkaart'!CC$35:CC$6012,'6. Stamkaart'!$G$35:$G$6012,'5. Formatie'!$B43) -> 0 | L43: =SUMIFS('6. Stamkaart'!CD$35:CD$6012,'6. Stamkaart'!$G$35:$G$6012,'5. Formatie'!$B43) -> 0 | M43: =SUMIFS('6. Stamkaart'!CE$35:CE$6012,'6. Stamkaart'!$G$35:$G$6012,'5. Formatie'!$B43) -> 0 | N43: =SUM('5. Formatie'!$C43:$M43) -> 0 | S43: =SUMIFS('6. Stamkaart'!CF$35:CF$6012,'6. Stamkaart'!$G$35:$G$6012,'5. Formatie'!$R43) -> 0 | T43: =SUMIFS('6. Stamkaart'!CG$35:CG$6012,'6. Stamkaart'!$G$35:$G$6012,'5. Formatie'!$R43) -> 0 | U43: =SUMIFS('6. Stamkaart'!CH$35:CH$6012,'6. Stamkaart'!$G$35:$G$6012,'5. Formatie'!$R43) -> 0 | V43: =SUMIFS('6. Stamkaart'!CI$35:CI$6012,'6. Stamkaart'!$G$35:$G$6012,'5. Formatie'!$R43) -> 0 | W43: =SUMIFS('6. Stamkaart'!CJ$35:CJ$6012,'6. Stamkaart'!$G$35:$G$6012,'5. Formatie'!$R43) -> 0 | X43: =SUMIFS('6. Stamkaart'!CK$35:CK$6012,'6. Stamkaart'!$G$35:$G$6012,'5. Formatie'!$R43) -> 0 | Y43: =SUMIFS('6. Stamkaart'!CL$35:CL$6012,'6. Stamkaart'!$G$35:$G$6012,'5. Formatie'!$R43) -> 0 | Z43: =SUMIFS('6. Stamkaart'!CM$35:CM$6012,'6. Stamkaart'!$G$35:$G$6012,'5. Formatie'!$R43) -> 0 | AA43: =SUMIFS('6. Stamkaart'!CN$35:CN$6012,'6. Stamkaart'!$G$35:$G$6012,'5. Formatie'!$R43) -> 0 | AB43: =SUMIFS('6. Stamkaart'!CO$35:CO$6012,'6. Stamkaart'!$G$35:$G$6012,'5. Formatie'!$R43) -> 0 | AC43: =SUMIFS('6. Stamkaart'!CP$35:CP$6012,'6. Stamkaart'!$G$35:$G$6012,'5. Formatie'!$R43) -> 0 | AD43: =SUM('5. Formatie'!$S43:$AC43) -> 0
B44: =Beheer_Salaristabellen!G34 ->  | C44: =SUMIFS('6. Stamkaart'!BU$35:BU$6012,'6. Stamkaart'!$G$35:$G$6012,'5. Formatie'!$B44) -> 0 | D44: =SUMIFS('6. Stamkaart'!BV$35:BV$6012,'6. Stamkaart'!$G$35:$G$6012,'5. Formatie'!$B44) -> 0 | E44: =SUMIFS('6. Stamkaart'!BW$35:BW$6012,'6. Stamkaart'!$G$35:$G$6012,'5. Formatie'!$B44) -> 0 | F44: =SUMIFS('6. Stamkaart'!BX$35:BX$6012,'6. Stamkaart'!$G$35:$G$6012,'5. Formatie'!$B44) -> 0 | G44: =SUMIFS('6. Stamkaart'!BY$35:BY$6012,'6. Stamkaart'!$G$35:$G$6012,'5. Formatie'!$B44) -> 0 | H44: =SUMIFS('6. Stamkaart'!BZ$35:BZ$6012,'6. Stamkaart'!$G$35:$G$6012,'5. Formatie'!$B44) -> 0 | I44: =SUMIFS('6. Stamkaart'!CA$35:CA$6012,'6. Stamkaart'!$G$35:$G$6012,'5. Formatie'!$B44) -> 0 | J44: =SUMIFS('6. Stamkaart'!CB$35:CB$6012,'6. Stamkaart'!$G$35:$G$6012,'5. Formatie'!$B44) -> 0 | K44: =SUMIFS('6. Stamkaart'!CC$35:CC$6012,'6. Stamkaart'!$G$35:$G$6012,'5. Formatie'!$B44) -> 0 | L44: =SUMIFS('6. Stamkaart'!CD$35:CD$6012,'6. Stamkaart'!$G$35:$G$6012,'5. Formatie'!$B44) -> 0 | M44: =SUMIFS('6. Stamkaart'!CE$35:CE$6012,'6. Stamkaart'!$G$35:$G$6012,'5. Formatie'!$B44) -> 0 | N44: =SUM('5. Formatie'!$C44:$M44) -> 0 | S44: =SUMIFS('6. Stamkaart'!CF$35:CF$6012,'6. Stamkaart'!$G$35:$G$6012,'5. Formatie'!$R44) -> 0 | T44: =SUMIFS('6. Stamkaart'!CG$35:CG$6012,'6. Stamkaart'!$G$35:$G$6012,'5. Formatie'!$R44) -> 0 | U44: =SUMIFS('6. Stamkaart'!CH$35:CH$6012,'6. Stamkaart'!$G$35:$G$6012,'5. Formatie'!$R44) -> 0 | V44: =SUMIFS('6. Stamkaart'!CI$35:CI$6012,'6. Stamkaart'!$G$35:$G$6012,'5. Formatie'!$R44) -> 0 | W44: =SUMIFS('6. Stamkaart'!CJ$35:CJ$6012,'6. Stamkaart'!$G$35:$G$6012,'5. Formatie'!$R44) -> 0 | X44: =SUMIFS('6. Stamkaart'!CK$35:CK$6012,'6. Stamkaart'!$G$35:$G$6012,'5. Formatie'!$R44) -> 0 | Y44: =SUMIFS('6. Stamkaart'!CL$35:CL$6012,'6. Stamkaart'!$G$35:$G$6012,'5. Formatie'!$R44) -> 0 | Z44: =SUMIFS('6. Stamkaart'!CM$35:CM$6012,'6. Stamkaart'!$G$35:$G$6012,'5. Formatie'!$R44) -> 0 | AA44: =SUMIFS('6. Stamkaart'!CN$35:CN$6012,'6. Stamkaart'!$G$35:$G$6012,'5. Formatie'!$R44) -> 0 | AB44: =SUMIFS('6. Stamkaart'!CO$35:CO$6012,'6. Stamkaart'!$G$35:$G$6012,'5. Formatie'!$R44) -> 0 | AC44: =SUMIFS('6. Stamkaart'!CP$35:CP$6012,'6. Stamkaart'!$G$35:$G$6012,'5. Formatie'!$R44) -> 0 | AD44: =SUM('5. Formatie'!$S44:$AC44) -> 0
B45: =Beheer_Salaristabellen!G35 ->  | C45: =SUMIFS('6. Stamkaart'!BU$35:BU$6012,'6. Stamkaart'!$G$35:$G$6012,'5. Formatie'!$B45) -> 0 | D45: =SUMIFS('6. Stamkaart'!BV$35:BV$6012,'6. Stamkaart'!$G$35:$G$6012,'5. Formatie'!$B45) -> 0 | E45: =SUMIFS('6. Stamkaart'!BW$35:BW$6012,'6. Stamkaart'!$G$35:$G$6012,'5. Formatie'!$B45) -> 0 | F45: =SUMIFS('6. Stamkaart'!BX$35:BX$6012,'6. Stamkaart'!$G$35:$G$6012,'5. Formatie'!$B45) -> 0 | G45: =SUMIFS('6. Stamkaart'!BY$35:BY$6012,'6. Stamkaart'!$G$35:$G$6012,'5. Formatie'!$B45) -> 0 | H45: =SUMIFS('6. Stamkaart'!BZ$35:BZ$6012,'6. Stamkaart'!$G$35:$G$6012,'5. Formatie'!$B45) -> 0 | I45: =SUMIFS('6. Stamkaart'!CA$35:CA$6012,'6. Stamkaart'!$G$35:$G$6012,'5. Formatie'!$B45) -> 0 | J45: =SUMIFS('6. Stamkaart'!CB$35:CB$6012,'6. Stamkaart'!$G$35:$G$6012,'5. Formatie'!$B45) -> 0 | K45: =SUMIFS('6. Stamkaart'!CC$35:CC$6012,'6. Stamkaart'!$G$35:$G$6012,'5. Formatie'!$B45) -> 0 | L45: =SUMIFS('6. Stamkaart'!CD$35:CD$6012,'6. Stamkaart'!$G$35:$G$6012,'5. Formatie'!$B45) -> 0 | M45: =SUMIFS('6. Stamkaart'!CE$35:CE$6012,'6. Stamkaart'!$G$35:$G$6012,'5. Formatie'!$B45) -> 0 | N45: =SUM('5. Formatie'!$C45:$M45) -> 0 | S45: =SUMIFS('6. Stamkaart'!CF$35:CF$6012,'6. Stamkaart'!$G$35:$G$6012,'5. Formatie'!$R45) -> 0 | T45: =SUMIFS('6. Stamkaart'!CG$35:CG$6012,'6. Stamkaart'!$G$35:$G$6012,'5. Formatie'!$R45) -> 0 | U45: =SUMIFS('6. Stamkaart'!CH$35:CH$6012,'6. Stamkaart'!$G$35:$G$6012,'5. Formatie'!$R45) -> 0 | V45: =SUMIFS('6. Stamkaart'!CI$35:CI$6012,'6. Stamkaart'!$G$35:$G$6012,'5. Formatie'!$R45) -> 0 | W45: =SUMIFS('6. Stamkaart'!CJ$35:CJ$6012,'6. Stamkaart'!$G$35:$G$6012,'5. Formatie'!$R45) -> 0 | X45: =SUMIFS('6. Stamkaart'!CK$35:CK$6012,'6. Stamkaart'!$G$35:$G$6012,'5. Formatie'!$R45) -> 0 | Y45: =SUMIFS('6. Stamkaart'!CL$35:CL$6012,'6. Stamkaart'!$G$35:$G$6012,'5. Formatie'!$R45) -> 0 | Z45: =SUMIFS('6. Stamkaart'!CM$35:CM$6012,'6. Stamkaart'!$G$35:$G$6012,'5. Formatie'!$R45) -> 0 | AA45: =SUMIFS('6. Stamkaart'!CN$35:CN$6012,'6. Stamkaart'!$G$35:$G$6012,'5. Formatie'!$R45) -> 0 | AB45: =SUMIFS('6. Stamkaart'!CO$35:CO$6012,'6. Stamkaart'!$G$35:$G$6012,'5. Formatie'!$R45) -> 0 | AC45: =SUMIFS('6. Stamkaart'!CP$35:CP$6012,'6. Stamkaart'!$G$35:$G$6012,'5. Formatie'!$R45) -> 0 | AD45: =SUM('5. Formatie'!$S45:$AC45) -> 0
B46: =Beheer_Salaristabellen!G36 ->  | C46: =SUMIFS('6. Stamkaart'!BU$35:BU$6012,'6. Stamkaart'!$G$35:$G$6012,'5. Formatie'!$B46) -> 0 | D46: =SUMIFS('6. Stamkaart'!BV$35:BV$6012,'6. Stamkaart'!$G$35:$G$6012,'5. Formatie'!$B46) -> 0 | E46: =SUMIFS('6. Stamkaart'!BW$35:BW$6012,'6. Stamkaart'!$G$35:$G$6012,'5. Formatie'!$B46) -> 0 | F46: =SUMIFS('6. Stamkaart'!BX$35:BX$6012,'6. Stamkaart'!$G$35:$G$6012,'5. Formatie'!$B46) -> 0 | G46: =SUMIFS('6. Stamkaart'!BY$35:BY$6012,'6. Stamkaart'!$G$35:$G$6012,'5. Formatie'!$B46) -> 0 | H46: =SUMIFS('6. Stamkaart'!BZ$35:BZ$6012,'6. Stamkaart'!$G$35:$G$6012,'5. Formatie'!$B46) -> 0 | I46: =SUMIFS('6. Stamkaart'!CA$35:CA$6012,'6. Stamkaart'!$G$35:$G$6012,'5. Formatie'!$B46) -> 0 | J46: =SUMIFS('6. Stamkaart'!CB$35:CB$6012,'6. Stamkaart'!$G$35:$G$6012,'5. Formatie'!$B46) -> 0 | K46: =SUMIFS('6. Stamkaart'!CC$35:CC$6012,'6. Stamkaart'!$G$35:$G$6012,'5. Formatie'!$B46) -> 0 | L46: =SUMIFS('6. Stamkaart'!CD$35:CD$6012,'6. Stamkaart'!$G$35:$G$6012,'5. Formatie'!$B46) -> 0 | M46: =SUMIFS('6. Stamkaart'!CE$35:CE$6012,'6. Stamkaart'!$G$35:$G$6012,'5. Formatie'!$B46) -> 0 | N46: =SUM('5. Formatie'!$C46:$M46) -> 0 | S46: =SUMIFS('6. Stamkaart'!CF$35:CF$6012,'6. Stamkaart'!$G$35:$G$6012,'5. Formatie'!$R46) -> 0 | T46: =SUMIFS('6. Stamkaart'!CG$35:CG$6012,'6. Stamkaart'!$G$35:$G$6012,'5. Formatie'!$R46) -> 0 | U46: =SUMIFS('6. Stamkaart'!CH$35:CH$6012,'6. Stamkaart'!$G$35:$G$6012,'5. Formatie'!$R46) -> 0 | V46: =SUMIFS('6. Stamkaart'!CI$35:CI$6012,'6. Stamkaart'!$G$35:$G$6012,'5. Formatie'!$R46) -> 0 | W46: =SUMIFS('6. Stamkaart'!CJ$35:CJ$6012,'6. Stamkaart'!$G$35:$G$6012,'5. Formatie'!$R46) -> 0 | X46: =SUMIFS('6. Stamkaart'!CK$35:CK$6012,'6. Stamkaart'!$G$35:$G$6012,'5. Formatie'!$R46) -> 0 | Y46: =SUMIFS('6. Stamkaart'!CL$35:CL$6012,'6. Stamkaart'!$G$35:$G$6012,'5. Formatie'!$R46) -> 0 | Z46: =SUMIFS('6. Stamkaart'!CM$35:CM$6012,'6. Stamkaart'!$G$35:$G$6012,'5. Formatie'!$R46) -> 0 | AA46: =SUMIFS('6. Stamkaart'!CN$35:CN$6012,'6. Stamkaart'!$G$35:$G$6012,'5. Formatie'!$R46) -> 0 | AB46: =SUMIFS('6. Stamkaart'!CO$35:CO$6012,'6. Stamkaart'!$G$35:$G$6012,'5. Formatie'!$R46) -> 0 | AC46: =SUMIFS('6. Stamkaart'!CP$35:CP$6012,'6. Stamkaart'!$G$35:$G$6012,'5. Formatie'!$R46) -> 0 | AD46: =SUM('5. Formatie'!$S46:$AC46) -> 0
B47: =Beheer_Salaristabellen!G37 ->  | C47: =SUMIFS('6. Stamkaart'!BU$35:BU$6012,'6. Stamkaart'!$G$35:$G$6012,'5. Formatie'!$B47) -> 0 | D47: =SUMIFS('6. Stamkaart'!BV$35:BV$6012,'6. Stamkaart'!$G$35:$G$6012,'5. Formatie'!$B47) -> 0 | E47: =SUMIFS('6. Stamkaart'!BW$35:BW$6012,'6. Stamkaart'!$G$35:$G$6012,'5. Formatie'!$B47) -> 0 | F47: =SUMIFS('6. Stamkaart'!BX$35:BX$6012,'6. Stamkaart'!$G$35:$G$6012,'5. Formatie'!$B47) -> 0 | G47: =SUMIFS('6. Stamkaart'!BY$35:BY$6012,'6. Stamkaart'!$G$35:$G$6012,'5. Formatie'!$B47) -> 0 | H47: =SUMIFS('6. Stamkaart'!BZ$35:BZ$6012,'6. Stamkaart'!$G$35:$G$6012,'5. Formatie'!$B47) -> 0 | I47: =SUMIFS('6. Stamkaart'!CA$35:CA$6012,'6. Stamkaart'!$G$35:$G$6012,'5. Formatie'!$B47) -> 0 | J47: =SUMIFS('6. Stamkaart'!CB$35:CB$6012,'6. Stamkaart'!$G$35:$G$6012,'5. Formatie'!$B47) -> 0 | K47: =SUMIFS('6. Stamkaart'!CC$35:CC$6012,'6. Stamkaart'!$G$35:$G$6012,'5. Formatie'!$B47) -> 0 | L47: =SUMIFS('6. Stamkaart'!CD$35:CD$6012,'6. Stamkaart'!$G$35:$G$6012,'5. Formatie'!$B47) -> 0 | M47: =SUMIFS('6. Stamkaart'!CE$35:CE$6012,'6. Stamkaart'!$G$35:$G$6012,'5. Formatie'!$B47) -> 0 | N47: =SUM('5. Formatie'!$C47:$M47) -> 0 | S47: =SUMIFS('6. Stamkaart'!CF$35:CF$6012,'6. Stamkaart'!$G$35:$G$6012,'5. Formatie'!$R47) -> 0 | T47: =SUMIFS('6. Stamkaart'!CG$35:CG$6012,'6. Stamkaart'!$G$35:$G$6012,'5. Formatie'!$R47) -> 0 | U47: =SUMIFS('6. Stamkaart'!CH$35:CH$6012,'6. Stamkaart'!$G$35:$G$6012,'5. Formatie'!$R47) -> 0 | V47: =SUMIFS('6. Stamkaart'!CI$35:CI$6012,'6. Stamkaart'!$G$35:$G$6012,'5. Formatie'!$R47) -> 0 | W47: =SUMIFS('6. Stamkaart'!CJ$35:CJ$6012,'6. Stamkaart'!$G$35:$G$6012,'5. Formatie'!$R47) -> 0 | X47: =SUMIFS('6. Stamkaart'!CK$35:CK$6012,'6. Stamkaart'!$G$35:$G$6012,'5. Formatie'!$R47) -> 0 | Y47: =SUMIFS('6. Stamkaart'!CL$35:CL$6012,'6. Stamkaart'!$G$35:$G$6012,'5. Formatie'!$R47) -> 0 | Z47: =SUMIFS('6. Stamkaart'!CM$35:CM$6012,'6. Stamkaart'!$G$35:$G$6012,'5. Formatie'!$R47) -> 0 | AA47: =SUMIFS('6. Stamkaart'!CN$35:CN$6012,'6. Stamkaart'!$G$35:$G$6012,'5. Formatie'!$R47) -> 0 | AB47: =SUMIFS('6. Stamkaart'!CO$35:CO$6012,'6. Stamkaart'!$G$35:$G$6012,'5. Formatie'!$R47) -> 0 | AC47: =SUMIFS('6. Stamkaart'!CP$35:CP$6012,'6. Stamkaart'!$G$35:$G$6012,'5. Formatie'!$R47) -> 0 | AD47: =SUM('5. Formatie'!$S47:$AC47) -> 0
B48: =Beheer_Salaristabellen!G38 ->  | C48: =SUMIFS('6. Stamkaart'!BU$35:BU$6012,'6. Stamkaart'!$G$35:$G$6012,'5. Formatie'!$B48) -> 0 | D48: =SUMIFS('6. Stamkaart'!BV$35:BV$6012,'6. Stamkaart'!$G$35:$G$6012,'5. Formatie'!$B48) -> 0 | E48: =SUMIFS('6. Stamkaart'!BW$35:BW$6012,'6. Stamkaart'!$G$35:$G$6012,'5. Formatie'!$B48) -> 0 | F48: =SUMIFS('6. Stamkaart'!BX$35:BX$6012,'6. Stamkaart'!$G$35:$G$6012,'5. Formatie'!$B48) -> 0 | G48: =SUMIFS('6. Stamkaart'!BY$35:BY$6012,'6. Stamkaart'!$G$35:$G$6012,'5. Formatie'!$B48) -> 0 | H48: =SUMIFS('6. Stamkaart'!BZ$35:BZ$6012,'6. Stamkaart'!$G$35:$G$6012,'5. Formatie'!$B48) -> 0 | I48: =SUMIFS('6. Stamkaart'!CA$35:CA$6012,'6. Stamkaart'!$G$35:$G$6012,'5. Formatie'!$B48) -> 0 | J48: =SUMIFS('6. Stamkaart'!CB$35:CB$6012,'6. Stamkaart'!$G$35:$G$6012,'5. Formatie'!$B48) -> 0 | K48: =SUMIFS('6. Stamkaart'!CC$35:CC$6012,'6. Stamkaart'!$G$35:$G$6012,'5. Formatie'!$B48) -> 0 | L48: =SUMIFS('6. Stamkaart'!CD$35:CD$6012,'6. Stamkaart'!$G$35:$G$6012,'5. Formatie'!$B48) -> 0 | M48: =SUMIFS('6. Stamkaart'!CE$35:CE$6012,'6. Stamkaart'!$G$35:$G$6012,'5. Formatie'!$B48) -> 0 | N48: =SUM('5. Formatie'!$C48:$M48) -> 0 | S48: =SUMIFS('6. Stamkaart'!CF$35:CF$6012,'6. Stamkaart'!$G$35:$G$6012,'5. Formatie'!$R48) -> 0 | T48: =SUMIFS('6. Stamkaart'!CG$35:CG$6012,'6. Stamkaart'!$G$35:$G$6012,'5. Formatie'!$R48) -> 0 | U48: =SUMIFS('6. Stamkaart'!CH$35:CH$6012,'6. Stamkaart'!$G$35:$G$6012,'5. Formatie'!$R48) -> 0 | V48: =SUMIFS('6. Stamkaart'!CI$35:CI$6012,'6. Stamkaart'!$G$35:$G$6012,'5. Formatie'!$R48) -> 0 | W48: =SUMIFS('6. Stamkaart'!CJ$35:CJ$6012,'6. Stamkaart'!$G$35:$G$6012,'5. Formatie'!$R48) -> 0 | X48: =SUMIFS('6. Stamkaart'!CK$35:CK$6012,'6. Stamkaart'!$G$35:$G$6012,'5. Formatie'!$R48) -> 0 | Y48: =SUMIFS('6. Stamkaart'!CL$35:CL$6012,'6. Stamkaart'!$G$35:$G$6012,'5. Formatie'!$R48) -> 0 | Z48: =SUMIFS('6. Stamkaart'!CM$35:CM$6012,'6. Stamkaart'!$G$35:$G$6012,'5. Formatie'!$R48) -> 0 | AA48: =SUMIFS('6. Stamkaart'!CN$35:CN$6012,'6. Stamkaart'!$G$35:$G$6012,'5. Formatie'!$R48) -> 0 | AB48: =SUMIFS('6. Stamkaart'!CO$35:CO$6012,'6. Stamkaart'!$G$35:$G$6012,'5. Formatie'!$R48) -> 0 | AC48: =SUMIFS('6. Stamkaart'!CP$35:CP$6012,'6. Stamkaart'!$G$35:$G$6012,'5. Formatie'!$R48) -> 0 | AD48: =SUM('5. Formatie'!$S48:$AC48) -> 0
B49: =Beheer_Salaristabellen!G39 ->  | C49: =SUMIFS('6. Stamkaart'!BU$35:BU$6012,'6. Stamkaart'!$G$35:$G$6012,'5. Formatie'!$B49) -> 0 | D49: =SUMIFS('6. Stamkaart'!BV$35:BV$6012,'6. Stamkaart'!$G$35:$G$6012,'5. Formatie'!$B49) -> 0 | E49: =SUMIFS('6. Stamkaart'!BW$35:BW$6012,'6. Stamkaart'!$G$35:$G$6012,'5. Formatie'!$B49) -> 0 | F49: =SUMIFS('6. Stamkaart'!BX$35:BX$6012,'6. Stamkaart'!$G$35:$G$6012,'5. Formatie'!$B49) -> 0 | G49: =SUMIFS('6. Stamkaart'!BY$35:BY$6012,'6. Stamkaart'!$G$35:$G$6012,'5. Formatie'!$B49) -> 0 | H49: =SUMIFS('6. Stamkaart'!BZ$35:BZ$6012,'6. Stamkaart'!$G$35:$G$6012,'5. Formatie'!$B49) -> 0 | I49: =SUMIFS('6. Stamkaart'!CA$35:CA$6012,'6. Stamkaart'!$G$35:$G$6012,'5. Formatie'!$B49) -> 0 | J49: =SUMIFS('6. Stamkaart'!CB$35:CB$6012,'6. Stamkaart'!$G$35:$G$6012,'5. Formatie'!$B49) -> 0 | K49: =SUMIFS('6. Stamkaart'!CC$35:CC$6012,'6. Stamkaart'!$G$35:$G$6012,'5. Formatie'!$B49) -> 0 | L49: =SUMIFS('6. Stamkaart'!CD$35:CD$6012,'6. Stamkaart'!$G$35:$G$6012,'5. Formatie'!$B49) -> 0 | M49: =SUMIFS('6. Stamkaart'!CE$35:CE$6012,'6. Stamkaart'!$G$35:$G$6012,'5. Formatie'!$B49) -> 0 | N49: =SUM('5. Formatie'!$C49:$M49) -> 0 | S49: =SUMIFS('6. Stamkaart'!CF$35:CF$6012,'6. Stamkaart'!$G$35:$G$6012,'5. Formatie'!$R49) -> 0 | T49: =SUMIFS('6. Stamkaart'!CG$35:CG$6012,'6. Stamkaart'!$G$35:$G$6012,'5. Formatie'!$R49) -> 0 | U49: =SUMIFS('6. Stamkaart'!CH$35:CH$6012,'6. Stamkaart'!$G$35:$G$6012,'5. Formatie'!$R49) -> 0 | V49: =SUMIFS('6. Stamkaart'!CI$35:CI$6012,'6. Stamkaart'!$G$35:$G$6012,'5. Formatie'!$R49) -> 0 | W49: =SUMIFS('6. Stamkaart'!CJ$35:CJ$6012,'6. Stamkaart'!$G$35:$G$6012,'5. Formatie'!$R49) -> 0 | X49: =SUMIFS('6. Stamkaart'!CK$35:CK$6012,'6. Stamkaart'!$G$35:$G$6012,'5. Formatie'!$R49) -> 0 | Y49: =SUMIFS('6. Stamkaart'!CL$35:CL$6012,'6. Stamkaart'!$G$35:$G$6012,'5. Formatie'!$R49) -> 0 | Z49: =SUMIFS('6. Stamkaart'!CM$35:CM$6012,'6. Stamkaart'!$G$35:$G$6012,'5. Formatie'!$R49) -> 0 | AA49: =SUMIFS('6. Stamkaart'!CN$35:CN$6012,'6. Stamkaart'!$G$35:$G$6012,'5. Formatie'!$R49) -> 0 | AB49: =SUMIFS('6. Stamkaart'!CO$35:CO$6012,'6. Stamkaart'!$G$35:$G$6012,'5. Formatie'!$R49) -> 0 | AC49: =SUMIFS('6. Stamkaart'!CP$35:CP$6012,'6. Stamkaart'!$G$35:$G$6012,'5. Formatie'!$R49) -> 0 | AD49: =SUM('5. Formatie'!$S49:$AC49) -> 0
B50: =Beheer_Salaristabellen!G40 ->  | C50: =SUMIFS('6. Stamkaart'!BU$35:BU$6012,'6. Stamkaart'!$G$35:$G$6012,'5. Formatie'!$B50) -> 0 | D50: =SUMIFS('6. Stamkaart'!BV$35:BV$6012,'6. Stamkaart'!$G$35:$G$6012,'5. Formatie'!$B50) -> 0 | E50: =SUMIFS('6. Stamkaart'!BW$35:BW$6012,'6. Stamkaart'!$G$35:$G$6012,'5. Formatie'!$B50) -> 0 | F50: =SUMIFS('6. Stamkaart'!BX$35:BX$6012,'6. Stamkaart'!$G$35:$G$6012,'5. Formatie'!$B50) -> 0 | G50: =SUMIFS('6. Stamkaart'!BY$35:BY$6012,'6. Stamkaart'!$G$35:$G$6012,'5. Formatie'!$B50) -> 0 | H50: =SUMIFS('6. Stamkaart'!BZ$35:BZ$6012,'6. Stamkaart'!$G$35:$G$6012,'5. Formatie'!$B50) -> 0 | I50: =SUMIFS('6. Stamkaart'!CA$35:CA$6012,'6. Stamkaart'!$G$35:$G$6012,'5. Formatie'!$B50) -> 0 | J50: =SUMIFS('6. Stamkaart'!CB$35:CB$6012,'6. Stamkaart'!$G$35:$G$6012,'5. Formatie'!$B50) -> 0 | K50: =SUMIFS('6. Stamkaart'!CC$35:CC$6012,'6. Stamkaart'!$G$35:$G$6012,'5. Formatie'!$B50) -> 0 | L50: =SUMIFS('6. Stamkaart'!CD$35:CD$6012,'6. Stamkaart'!$G$35:$G$6012,'5. Formatie'!$B50) -> 0 | M50: =SUMIFS('6. Stamkaart'!CE$35:CE$6012,'6. Stamkaart'!$G$35:$G$6012,'5. Formatie'!$B50) -> 0 | N50: =SUM('5. Formatie'!$C50:$M50) -> 0 | S50: =SUMIFS('6. Stamkaart'!CF$35:CF$6012,'6. Stamkaart'!$G$35:$G$6012,'5. Formatie'!$R50) -> 0 | T50: =SUMIFS('6. Stamkaart'!CG$35:CG$6012,'6. Stamkaart'!$G$35:$G$6012,'5. Formatie'!$R50) -> 0 | U50: =SUMIFS('6. Stamkaart'!CH$35:CH$6012,'6. Stamkaart'!$G$35:$G$6012,'5. Formatie'!$R50) -> 0 | V50: =SUMIFS('6. Stamkaart'!CI$35:CI$6012,'6. Stamkaart'!$G$35:$G$6012,'5. Formatie'!$R50) -> 0 | W50: =SUMIFS('6. Stamkaart'!CJ$35:CJ$6012,'6. Stamkaart'!$G$35:$G$6012,'5. Formatie'!$R50) -> 0 | X50: =SUMIFS('6. Stamkaart'!CK$35:CK$6012,'6. Stamkaart'!$G$35:$G$6012,'5. Formatie'!$R50) -> 0 | Y50: =SUMIFS('6. Stamkaart'!CL$35:CL$6012,'6. Stamkaart'!$G$35:$G$6012,'5. Formatie'!$R50) -> 0 | Z50: =SUMIFS('6. Stamkaart'!CM$35:CM$6012,'6. Stamkaart'!$G$35:$G$6012,'5. Formatie'!$R50) -> 0 | AA50: =SUMIFS('6. Stamkaart'!CN$35:CN$6012,'6. Stamkaart'!$G$35:$G$6012,'5. Formatie'!$R50) -> 0 | AB50: =SUMIFS('6. Stamkaart'!CO$35:CO$6012,'6. Stamkaart'!$G$35:$G$6012,'5. Formatie'!$R50) -> 0 | AC50: =SUMIFS('6. Stamkaart'!CP$35:CP$6012,'6. Stamkaart'!$G$35:$G$6012,'5. Formatie'!$R50) -> 0 | AD50: =SUM('5. Formatie'!$S50:$AC50) -> 0
B51: =Beheer_Salaristabellen!G41 ->  | C51: =SUMIFS('6. Stamkaart'!BU$35:BU$6012,'6. Stamkaart'!$G$35:$G$6012,'5. Formatie'!$B51) -> 0 | D51: =SUMIFS('6. Stamkaart'!BV$35:BV$6012,'6. Stamkaart'!$G$35:$G$6012,'5. Formatie'!$B51) -> 0 | E51: =SUMIFS('6. Stamkaart'!BW$35:BW$6012,'6. Stamkaart'!$G$35:$G$6012,'5. Formatie'!$B51) -> 0 | F51: =SUMIFS('6. Stamkaart'!BX$35:BX$6012,'6. Stamkaart'!$G$35:$G$6012,'5. Formatie'!$B51) -> 0 | G51: =SUMIFS('6. Stamkaart'!BY$35:BY$6012,'6. Stamkaart'!$G$35:$G$6012,'5. Formatie'!$B51) -> 0 | H51: =SUMIFS('6. Stamkaart'!BZ$35:BZ$6012,'6. Stamkaart'!$G$35:$G$6012,'5. Formatie'!$B51) -> 0 | I51: =SUMIFS('6. Stamkaart'!CA$35:CA$6012,'6. Stamkaart'!$G$35:$G$6012,'5. Formatie'!$B51) -> 0 | J51: =SUMIFS('6. Stamkaart'!CB$35:CB$6012,'6. Stamkaart'!$G$35:$G$6012,'5. Formatie'!$B51) -> 0 | K51: =SUMIFS('6. Stamkaart'!CC$35:CC$6012,'6. Stamkaart'!$G$35:$G$6012,'5. Formatie'!$B51) -> 0 | L51: =SUMIFS('6. Stamkaart'!CD$35:CD$6012,'6. Stamkaart'!$G$35:$G$6012,'5. Formatie'!$B51) -> 0 | M51: =SUMIFS('6. Stamkaart'!CE$35:CE$6012,'6. Stamkaart'!$G$35:$G$6012,'5. Formatie'!$B51) -> 0 | N51: =SUM('5. Formatie'!$C51:$M51) -> 0 | S51: =SUMIFS('6. Stamkaart'!CF$35:CF$6012,'6. Stamkaart'!$G$35:$G$6012,'5. Formatie'!$R51) -> 0 | T51: =SUMIFS('6. Stamkaart'!CG$35:CG$6012,'6. Stamkaart'!$G$35:$G$6012,'5. Formatie'!$R51) -> 0 | U51: =SUMIFS('6. Stamkaart'!CH$35:CH$6012,'6. Stamkaart'!$G$35:$G$6012,'5. Formatie'!$R51) -> 0 | V51: =SUMIFS('6. Stamkaart'!CI$35:CI$6012,'6. Stamkaart'!$G$35:$G$6012,'5. Formatie'!$R51) -> 0 | W51: =SUMIFS('6. Stamkaart'!CJ$35:CJ$6012,'6. Stamkaart'!$G$35:$G$6012,'5. Formatie'!$R51) -> 0 | X51: =SUMIFS('6. Stamkaart'!CK$35:CK$6012,'6. Stamkaart'!$G$35:$G$6012,'5. Formatie'!$R51) -> 0 | Y51: =SUMIFS('6. Stamkaart'!CL$35:CL$6012,'6. Stamkaart'!$G$35:$G$6012,'5. Formatie'!$R51) -> 0 | Z51: =SUMIFS('6. Stamkaart'!CM$35:CM$6012,'6. Stamkaart'!$G$35:$G$6012,'5. Formatie'!$R51) -> 0 | AA51: =SUMIFS('6. Stamkaart'!CN$35:CN$6012,'6. Stamkaart'!$G$35:$G$6012,'5. Formatie'!$R51) -> 0 | AB51: =SUMIFS('6. Stamkaart'!CO$35:CO$6012,'6. Stamkaart'!$G$35:$G$6012,'5. Formatie'!$R51) -> 0 | AC51: =SUMIFS('6. Stamkaart'!CP$35:CP$6012,'6. Stamkaart'!$G$35:$G$6012,'5. Formatie'!$R51) -> 0 | AD51: =SUM('5. Formatie'!$S51:$AC51) -> 0
B52: =Beheer_Salaristabellen!G42 ->  | C52: =SUMIFS('6. Stamkaart'!BU$35:BU$6012,'6. Stamkaart'!$G$35:$G$6012,'5. Formatie'!$B52) -> 0 | D52: =SUMIFS('6. Stamkaart'!BV$35:BV$6012,'6. Stamkaart'!$G$35:$G$6012,'5. Formatie'!$B52) -> 0 | E52: =SUMIFS('6. Stamkaart'!BW$35:BW$6012,'6. Stamkaart'!$G$35:$G$6012,'5. Formatie'!$B52) -> 0 | F52: =SUMIFS('6. Stamkaart'!BX$35:BX$6012,'6. Stamkaart'!$G$35:$G$6012,'5. Formatie'!$B52) -> 0 | G52: =SUMIFS('6. Stamkaart'!BY$35:BY$6012,'6. Stamkaart'!$G$35:$G$6012,'5. Formatie'!$B52) -> 0 | H52: =SUMIFS('6. Stamkaart'!BZ$35:BZ$6012,'6. Stamkaart'!$G$35:$G$6012,'5. Formatie'!$B52) -> 0 | I52: =SUMIFS('6. Stamkaart'!CA$35:CA$6012,'6. Stamkaart'!$G$35:$G$6012,'5. Formatie'!$B52) -> 0 | J52: =SUMIFS('6. Stamkaart'!CB$35:CB$6012,'6. Stamkaart'!$G$35:$G$6012,'5. Formatie'!$B52) -> 0 | K52: =SUMIFS('6. Stamkaart'!CC$35:CC$6012,'6. Stamkaart'!$G$35:$G$6012,'5. Formatie'!$B52) -> 0 | L52: =SUMIFS('6. Stamkaart'!CD$35:CD$6012,'6. Stamkaart'!$G$35:$G$6012,'5. Formatie'!$B52) -> 0 | M52: =SUMIFS('6. Stamkaart'!CE$35:CE$6012,'6. Stamkaart'!$G$35:$G$6012,'5. Formatie'!$B52) -> 0 | N52: =SUM('5. Formatie'!$C52:$M52) -> 0 | S52: =SUMIFS('6. Stamkaart'!CF$35:CF$6012,'6. Stamkaart'!$G$35:$G$6012,'5. Formatie'!$R52) -> 0 | T52: =SUMIFS('6. Stamkaart'!CG$35:CG$6012,'6. Stamkaart'!$G$35:$G$6012,'5. Formatie'!$R52) -> 0 | U52: =SUMIFS('6. Stamkaart'!CH$35:CH$6012,'6. Stamkaart'!$G$35:$G$6012,'5. Formatie'!$R52) -> 0 | V52: =SUMIFS('6. Stamkaart'!CI$35:CI$6012,'6. Stamkaart'!$G$35:$G$6012,'5. Formatie'!$R52) -> 0 | W52: =SUMIFS('6. Stamkaart'!CJ$35:CJ$6012,'6. Stamkaart'!$G$35:$G$6012,'5. Formatie'!$R52) -> 0 | X52: =SUMIFS('6. Stamkaart'!CK$35:CK$6012,'6. Stamkaart'!$G$35:$G$6012,'5. Formatie'!$R52) -> 0 | Y52: =SUMIFS('6. Stamkaart'!CL$35:CL$6012,'6. Stamkaart'!$G$35:$G$6012,'5. Formatie'!$R52) -> 0 | Z52: =SUMIFS('6. Stamkaart'!CM$35:CM$6012,'6. Stamkaart'!$G$35:$G$6012,'5. Formatie'!$R52) -> 0 | AA52: =SUMIFS('6. Stamkaart'!CN$35:CN$6012,'6. Stamkaart'!$G$35:$G$6012,'5. Formatie'!$R52) -> 0 | AB52: =SUMIFS('6. Stamkaart'!CO$35:CO$6012,'6. Stamkaart'!$G$35:$G$6012,'5. Formatie'!$R52) -> 0 | AC52: =SUMIFS('6. Stamkaart'!CP$35:CP$6012,'6. Stamkaart'!$G$35:$G$6012,'5. Formatie'!$R52) -> 0 | AD52: =SUM('5. Formatie'!$S52:$AC52) -> 0
B53: =Beheer_Salaristabellen!G43 ->  | C53: =SUMIFS('6. Stamkaart'!BU$35:BU$6012,'6. Stamkaart'!$G$35:$G$6012,'5. Formatie'!$B53) -> 0 | D53: =SUMIFS('6. Stamkaart'!BV$35:BV$6012,'6. Stamkaart'!$G$35:$G$6012,'5. Formatie'!$B53) -> 0 | E53: =SUMIFS('6. Stamkaart'!BW$35:BW$6012,'6. Stamkaart'!$G$35:$G$6012,'5. Formatie'!$B53) -> 0 | F53: =SUMIFS('6. Stamkaart'!BX$35:BX$6012,'6. Stamkaart'!$G$35:$G$6012,'5. Formatie'!$B53) -> 0 | G53: =SUMIFS('6. Stamkaart'!BY$35:BY$6012,'6. Stamkaart'!$G$35:$G$6012,'5. Formatie'!$B53) -> 0 | H53: =SUMIFS('6. Stamkaart'!BZ$35:BZ$6012,'6. Stamkaart'!$G$35:$G$6012,'5. Formatie'!$B53) -> 0 | I53: =SUMIFS('6. Stamkaart'!CA$35:CA$6012,'6. Stamkaart'!$G$35:$G$6012,'5. Formatie'!$B53) -> 0 | J53: =SUMIFS('6. Stamkaart'!CB$35:CB$6012,'6. Stamkaart'!$G$35:$G$6012,'5. Formatie'!$B53) -> 0 | K53: =SUMIFS('6. Stamkaart'!CC$35:CC$6012,'6. Stamkaart'!$G$35:$G$6012,'5. Formatie'!$B53) -> 0 | L53: =SUMIFS('6. Stamkaart'!CD$35:CD$6012,'6. Stamkaart'!$G$35:$G$6012,'5. Formatie'!$B53) -> 0 | M53: =SUMIFS('6. Stamkaart'!CE$35:CE$6012,'6. Stamkaart'!$G$35:$G$6012,'5. Formatie'!$B53) -> 0 | N53: =SUM('5. Formatie'!$C53:$M53) -> 0 | S53: =SUMIFS('6. Stamkaart'!CF$35:CF$6012,'6. Stamkaart'!$G$35:$G$6012,'5. Formatie'!$R53) -> 0 | T53: =SUMIFS('6. Stamkaart'!CG$35:CG$6012,'6. Stamkaart'!$G$35:$G$6012,'5. Formatie'!$R53) -> 0 | U53: =SUMIFS('6. Stamkaart'!CH$35:CH$6012,'6. Stamkaart'!$G$35:$G$6012,'5. Formatie'!$R53) -> 0 | V53: =SUMIFS('6. Stamkaart'!CI$35:CI$6012,'6. Stamkaart'!$G$35:$G$6012,'5. Formatie'!$R53) -> 0 | W53: =SUMIFS('6. Stamkaart'!CJ$35:CJ$6012,'6. Stamkaart'!$G$35:$G$6012,'5. Formatie'!$R53) -> 0 | X53: =SUMIFS('6. Stamkaart'!CK$35:CK$6012,'6. Stamkaart'!$G$35:$G$6012,'5. Formatie'!$R53) -> 0 | Y53: =SUMIFS('6. Stamkaart'!CL$35:CL$6012,'6. Stamkaart'!$G$35:$G$6012,'5. Formatie'!$R53) -> 0 | Z53: =SUMIFS('6. Stamkaart'!CM$35:CM$6012,'6. Stamkaart'!$G$35:$G$6012,'5. Formatie'!$R53) -> 0 | AA53: =SUMIFS('6. Stamkaart'!CN$35:CN$6012,'6. Stamkaart'!$G$35:$G$6012,'5. Formatie'!$R53) -> 0 | AB53: =SUMIFS('6. Stamkaart'!CO$35:CO$6012,'6. Stamkaart'!$G$35:$G$6012,'5. Formatie'!$R53) -> 0 | AC53: =SUMIFS('6. Stamkaart'!CP$35:CP$6012,'6. Stamkaart'!$G$35:$G$6012,'5. Formatie'!$R53) -> 0 | AD53: =SUM('5. Formatie'!$S53:$AC53) -> 0
B54: =Beheer_Salaristabellen!G44 ->  | C54: =SUMIFS('6. Stamkaart'!BU$35:BU$6012,'6. Stamkaart'!$G$35:$G$6012,'5. Formatie'!$B54) -> 0 | D54: =SUMIFS('6. Stamkaart'!BV$35:BV$6012,'6. Stamkaart'!$G$35:$G$6012,'5. Formatie'!$B54) -> 0 | E54: =SUMIFS('6. Stamkaart'!BW$35:BW$6012,'6. Stamkaart'!$G$35:$G$6012,'5. Formatie'!$B54) -> 0 | F54: =SUMIFS('6. Stamkaart'!BX$35:BX$6012,'6. Stamkaart'!$G$35:$G$6012,'5. Formatie'!$B54) -> 0 | G54: =SUMIFS('6. Stamkaart'!BY$35:BY$6012,'6. Stamkaart'!$G$35:$G$6012,'5. Formatie'!$B54) -> 0 | H54: =SUMIFS('6. Stamkaart'!BZ$35:BZ$6012,'6. Stamkaart'!$G$35:$G$6012,'5. Formatie'!$B54) -> 0 | I54: =SUMIFS('6. Stamkaart'!CA$35:CA$6012,'6. Stamkaart'!$G$35:$G$6012,'5. Formatie'!$B54) -> 0 | J54: =SUMIFS('6. Stamkaart'!CB$35:CB$6012,'6. Stamkaart'!$G$35:$G$6012,'5. Formatie'!$B54) -> 0 | K54: =SUMIFS('6. Stamkaart'!CC$35:CC$6012,'6. Stamkaart'!$G$35:$G$6012,'5. Formatie'!$B54) -> 0 | L54: =SUMIFS('6. Stamkaart'!CD$35:CD$6012,'6. Stamkaart'!$G$35:$G$6012,'5. Formatie'!$B54) -> 0 | M54: =SUMIFS('6. Stamkaart'!CE$35:CE$6012,'6. Stamkaart'!$G$35:$G$6012,'5. Formatie'!$B54) -> 0 | N54: =SUM('5. Formatie'!$C54:$M54) -> 0 | S54: =SUMIFS('6. Stamkaart'!CF$35:CF$6012,'6. Stamkaart'!$G$35:$G$6012,'5. Formatie'!$R54) -> 0 | T54: =SUMIFS('6. Stamkaart'!CG$35:CG$6012,'6. Stamkaart'!$G$35:$G$6012,'5. Formatie'!$R54) -> 0 | U54: =SUMIFS('6. Stamkaart'!CH$35:CH$6012,'6. Stamkaart'!$G$35:$G$6012,'5. Formatie'!$R54) -> 0 | V54: =SUMIFS('6. Stamkaart'!CI$35:CI$6012,'6. Stamkaart'!$G$35:$G$6012,'5. Formatie'!$R54) -> 0 | W54: =SUMIFS('6. Stamkaart'!CJ$35:CJ$6012,'6. Stamkaart'!$G$35:$G$6012,'5. Formatie'!$R54) -> 0 | X54: =SUMIFS('6. Stamkaart'!CK$35:CK$6012,'6. Stamkaart'!$G$35:$G$6012,'5. Formatie'!$R54) -> 0 | Y54: =SUMIFS('6. Stamkaart'!CL$35:CL$6012,'6. Stamkaart'!$G$35:$G$6012,'5. Formatie'!$R54) -> 0 | Z54: =SUMIFS('6. Stamkaart'!CM$35:CM$6012,'6. Stamkaart'!$G$35:$G$6012,'5. Formatie'!$R54) -> 0 | AA54: =SUMIFS('6. Stamkaart'!CN$35:CN$6012,'6. Stamkaart'!$G$35:$G$6012,'5. Formatie'!$R54) -> 0 | AB54: =SUMIFS('6. Stamkaart'!CO$35:CO$6012,'6. Stamkaart'!$G$35:$G$6012,'5. Formatie'!$R54) -> 0 | AC54: =SUMIFS('6. Stamkaart'!CP$35:CP$6012,'6. Stamkaart'!$G$35:$G$6012,'5. Formatie'!$R54) -> 0 | AD54: =SUM('5. Formatie'!$S54:$AC54) -> 0
B55: =Beheer_Salaristabellen!G45 ->  | C55: =SUMIFS('6. Stamkaart'!BU$35:BU$6012,'6. Stamkaart'!$G$35:$G$6012,'5. Formatie'!$B55) -> 0 | D55: =SUMIFS('6. Stamkaart'!BV$35:BV$6012,'6. Stamkaart'!$G$35:$G$6012,'5. Formatie'!$B55) -> 0 | E55: =SUMIFS('6. Stamkaart'!BW$35:BW$6012,'6. Stamkaart'!$G$35:$G$6012,'5. Formatie'!$B55) -> 0 | F55: =SUMIFS('6. Stamkaart'!BX$35:BX$6012,'6. Stamkaart'!$G$35:$G$6012,'5. Formatie'!$B55) -> 0 | G55: =SUMIFS('6. Stamkaart'!BY$35:BY$6012,'6. Stamkaart'!$G$35:$G$6012,'5. Formatie'!$B55) -> 0 | H55: =SUMIFS('6. Stamkaart'!BZ$35:BZ$6012,'6. Stamkaart'!$G$35:$G$6012,'5. Formatie'!$B55) -> 0 | I55: =SUMIFS('6. Stamkaart'!CA$35:CA$6012,'6. Stamkaart'!$G$35:$G$6012,'5. Formatie'!$B55) -> 0 | J55: =SUMIFS('6. Stamkaart'!CB$35:CB$6012,'6. Stamkaart'!$G$35:$G$6012,'5. Formatie'!$B55) -> 0 | K55: =SUMIFS('6. Stamkaart'!CC$35:CC$6012,'6. Stamkaart'!$G$35:$G$6012,'5. Formatie'!$B55) -> 0 | L55: =SUMIFS('6. Stamkaart'!CD$35:CD$6012,'6. Stamkaart'!$G$35:$G$6012,'5. Formatie'!$B55) -> 0 | M55: =SUMIFS('6. Stamkaart'!CE$35:CE$6012,'6. Stamkaart'!$G$35:$G$6012,'5. Formatie'!$B55) -> 0 | N55: =SUM('5. Formatie'!$C55:$M55) -> 0 | S55: =SUMIFS('6. Stamkaart'!CF$35:CF$6012,'6. Stamkaart'!$G$35:$G$6012,'5. Formatie'!$R55) -> 0 | T55: =SUMIFS('6. Stamkaart'!CG$35:CG$6012,'6. Stamkaart'!$G$35:$G$6012,'5. Formatie'!$R55) -> 0 | U55: =SUMIFS('6. Stamkaart'!CH$35:CH$6012,'6. Stamkaart'!$G$35:$G$6012,'5. Formatie'!$R55) -> 0 | V55: =SUMIFS('6. Stamkaart'!CI$35:CI$6012,'6. Stamkaart'!$G$35:$G$6012,'5. Formatie'!$R55) -> 0 | W55: =SUMIFS('6. Stamkaart'!CJ$35:CJ$6012,'6. Stamkaart'!$G$35:$G$6012,'5. Formatie'!$R55) -> 0 | X55: =SUMIFS('6. Stamkaart'!CK$35:CK$6012,'6. Stamkaart'!$G$35:$G$6012,'5. Formatie'!$R55) -> 0 | Y55: =SUMIFS('6. Stamkaart'!CL$35:CL$6012,'6. Stamkaart'!$G$35:$G$6012,'5. Formatie'!$R55) -> 0 | Z55: =SUMIFS('6. Stamkaart'!CM$35:CM$6012,'6. Stamkaart'!$G$35:$G$6012,'5. Formatie'!$R55) -> 0 | AA55: =SUMIFS('6. Stamkaart'!CN$35:CN$6012,'6. Stamkaart'!$G$35:$G$6012,'5. Formatie'!$R55) -> 0 | AB55: =SUMIFS('6. Stamkaart'!CO$35:CO$6012,'6. Stamkaart'!$G$35:$G$6012,'5. Formatie'!$R55) -> 0 | AC55: =SUMIFS('6. Stamkaart'!CP$35:CP$6012,'6. Stamkaart'!$G$35:$G$6012,'5. Formatie'!$R55) -> 0 | AD55: =SUM('5. Formatie'!$S55:$AC55) -> 0
B56: =Beheer_Salaristabellen!G46 ->  | N56: =SUM('5. Formatie'!$C56:$M56) -> 0 | AD56: =SUM('5. Formatie'!$S56:$AC56) -> 0

Sheet 6. Stamkaart
B3: ='2. Overzicht'!$B$2 -> Rekentool Regeling Generatiebeleid
B4: 6. Stamkaart
BI26: Instroom in de regeling | BJ26: =COUNTIF(BJ35:BJ6012,">0") -> 0 | BK26: =COUNTIFS(BK35:BK6012,">0",BJ35:BJ6012,0) -> 0 | BL26: 0 | BM26: 0 | BN26: 0 | BO26: 0 | BP26: 0 | BQ26: 0 | BR26: 0 | BS26: 0 | BT26: 0
BI27: Uitstroom uit de regeling | BK27: =COUNTIFS(BJ35:BJ6012,">0",BK35:BK6012,0) -> 0 | BL27: =COUNTIFS(BK35:BK6012,">0",BL35:BL6012,0) -> 0 | BM27: 0 | BN27: 0 | BO27: 0 | BP27: 0 | BQ27: 0 | BR27: 0 | BS27: 0 | BT27: 0
BI28: Deelnemers aan de regeling | BJ28: =COUNTIF(BJ35:BJ6012,">0") -> 0 | BK28: 0 | BL28: 0 | BM28: 0 | BN28: 0 | BO28: 0 | BP28: 0 | BQ28: 0 | BR28: 0 | BS28: 0 | BT28: 0
Q29: Toegepaste variant | AI29: over de hele periode van 10 jaar | AN29: Inclusief VT, EJU en ORT | BA29: 544357.08 | DK29: cross check: | DL29: =SUM(DC32:DM32) -> 0 | DM29: check: | DN29: =DN32=AZ31 -> TRUE
AN30: ='3.Varianten'!C20 -> 0.8 | AP30: ='3.Varianten'!C22 -> 0.1 | AT30: ='3.Varianten'!C20 -> 0.8 | AU30: ='3.Varianten'!C22 -> 0.1 | AV30: =IF(AV31=0,"",1-$AU$30-$AT$30) ->  | BC30: jaren | BD30: jaren | BJ30: =SUM(BJ35:BJ6012) -> 0 | BK30: 0 | BL30: 0 | BM30: 0 | BN30: 0 | BO30: 0 | BP30: 0 | BQ30: 0 | BR30: 0 | BS30: 0 | BT30: 0 | BU30: 0 | BV30: 0 | BW30: 0 | BX30: 0 | BY30: 0 | BZ30: 0 | CA30: 0 | CB30: 0 | CC30: 0 | CD30: 0 | CE30: 0 | CF30: 0 | CG30: 0 | CH30: 0 | CI30: 0 | CJ30: =SUM(CJ35:CJ6012) -> 0 | CK30: 0 | CL30: 0 | CM30: 0 | CN30: 0 | CO30: 0 | CP30: 0 | CQ30: 0 | CR30: 0 | CS30: 0 | CT30: 0 | CU30: 0 | CV30: 0 | CW30: 0 | CX30: 0 | CY30: 0 | CZ30: 0 | DA30: 0 | DB30: 0
E31: ='8. Beheer_Tabellen'!C34 -> 18 | AL31: =SUM(AL35:AL6012) -> 0 | AM31: 0 | AN31: 0 | AO31: 0 | AP31: 0 | AQ31: 0 | AR31: 0 | AS31: 0 | AT31: 0 | AU31: 0 | AV31: 0 | AW31: 0 | AX31: 0 | AY31: 0 | AZ31: 0 | BA31: 0 | BB31: 0 | BC31: 5 | BD31: 8 | BF31: =SUM(BF35:BF6012) -> 0 | BG31: =SUM(BG35:BG6012) -> 0 | BH31: =SUM(BH35:BH6012) -> 0 | BI31: =SUM(BI35:BI6012) -> 0 | BJ31: =Startjaar -> 2024 | BK31: =+BJ31+1 -> 2025 | BL31: =+BK31+1 -> 2026 | BM31: 2027 | BN31: 2028 | BO31: 2029 | BP31: 2030 | BQ31: 2031 | BR31: 2032 | BS31: 2033 | BT31: 2034 | BU31: =BJ31 -> 2024 | BV31: 2025 | BW31: 2026 | BX31: 2027 | BY31: 2028 | BZ31: 2029 | CA31: 2030 | CB31: 2031 | CC31: 2032 | CD31: 2033 | CE31: 2034 | CF31: =BU31 -> 2024 | CG31: 2025 | CH31: 2026 | CI31: 2027 | CJ31: 2028 | CK31: 2029 | CL31: 2030 | CM31: 2031 | CN31: 2032 | CO31: 2033 | CP31: 2034 | CQ31: 2024 | CR31: 2025 | CS31: 2026 | CT31: 2027 | CU31: 2028 | CV31: 2029 | CW31: 2030 | CX31: 2031 | CY31: 2032 | CZ31: 2033 | DA31: 2034 | DB31: Totaal | DC31: =CQ31 -> 2024 | DD31: =CR31 -> 2025 | DE31: 2026 | DF31: 2027 | DG31: 2028 | DH31: 2029 | DI31: 2030 | DJ31: 2031 | DK31: 2032 | DL31: 2033 | DM31: 2034 | DN31: Totaal
B32: Voorbeeld input: | AH32: Voorwaarde 1 | BC32: maanden | BD32: maanden | DC32: =SUM(DC35:DC6012) -> 0 | DD32: 0 | DE32: 0 | DF32: 0 | DG32: 0 | DH32: 0 | DI32: 0 | DJ32: 0 | DK32: 0 | DL32: 0 | DM32: 0 | DN32: =SUM(DN35:DN6012) -> 0
B33: 1 | C33: 1961-05-12 | D33: 2002-07-01 | E33: 1.11 | G33: Verpleegkundige | I33: 7500 | K33: =SUM(K35:K6012) -> 0 | BC33: =BC31*12 -> 60 | BD33: =BD31*12 -> 96 | BG33: 0.5
B34: Personeelsnummer | C34: Geboortedatum | D34: Datum in dienst* | E34: Parttime factor % (b.v. 18 uur: invoer als 50% of 0,5) | F34: Parttime factor o.b.v. realisatie (b.v. 18 uur: invoer als 50% of 0,5) | G34: Functiegroep | H34: werkelijke functiebenaming | I34: Bruto maandsalaris ( salaris obv parttimefactor) | J34: ORT-bedrag (gemiddelde op maandbasis) | K34: Saldo PLB-uren | L34: Feitelijk nieuw werk (%) | M34: Betaald vrijgesteld van werk (%) | N34: Vrijwillige voortzetting (ja/nee) | O34: Jaar eerste deelname mogelijk (niet invullen, wordt berekend) | P34: Feitelijk nieuw werk (toegepast) | Q34: Betaald vrijgesteld van werk (toegepast) | R34: Vrijwillige voortzetting (toegepast) | S34: ="leeftijd in "&YEAR('8. Beheer_Tabellen'!C6) -> leeftijd in 2024 | T34: ="Leeftijdscategorie in "&YEAR('8. Beheer_Tabellen'!C6) -> Leeftijdscategorie in 2024 | U34: Actuele leeftijd | V34: Actuele leeftijdscategorie | W34: PLB | X34: Totaal verlof | Y34: Verzuim | Z34: Niet productief (in uren) | AA34: Inzetbaarheid | AB34: Uren contractueel | AC34: Uren gerealiseerd (t.b.v. in kaart brengen meeruren ouderen) | AD34: Bruto Fulltime maandsalaris (incl.VT en EJU, excl. ORT) | AE34: Bruto Fulltime jaarsalaris (incl.VT en EJU, excl. ORT) voor de regeling voor deelnemers | AF34: Bruto Fulltime jaarsalaris (incl.VT en EJU, excl. ORT) voor hele bestand | AG34: Datum AOW | AH34: Minimum dienstverband | AI34: Deelnemen aan de regeling (1= deelnemen, 0 = niet deelnemen) | AJ34: Dtf deelname (fte) | AK34: Aantal maanden tot AOW (gerechtigd over de -gekozen- periode) of tot einde berekeningsperiode | AL34: Bruto Parttime maandsalaris incl. VT en EJU, excl. ORT (huidig) | AM34: Bruto Parttime maandsalaris incl. VT en EJU, incl. ORT (huidig) | AN34: Nieuw bruto parttime maandsalaris (excl. suppletie) | AO34: Inkomensverlies werknemer op maandbasis | AP34: Suppletie per maand door werkgever | AQ34: Suppletie totaal over looptijd regeling (in jaren) | AR34: Totale pensioenpremie per jaar o.b.v. fte, excl. ORT | AS34: Totale pensioenpremie per jaar o.b.v. huidige dtf (voor deelname aan de generatieregeling) | AT34: Totale pensioenpremie per jaar o.b.v. nieuw feitelijk werk | AU34: Totale pensioenpremie per jaar over suppletie | AV34: =IF('8. Beheer_Tabellen'!$G$34=1,"Totale pensioenpremie over vrijwillige voortzetting per jaar (tot 100%)","Geen vrijwillige voortzetting pensioen") -> Totale pensioenpremie over vrijwillige voortzetting per jaar (tot 100%) | AW34: Kosten pensioenpremie werkgever feitelijk werk over de looptijd | AX34: Kosten pensioenpremie werkgever suppletie over de looptijd | AY34: Kosten pensioenpremie VV over de looptijd | AZ34: Kosten regeling totaal (kosten suppletie, premie OP over suppletie en premie VV) | BA34: uren huidig per jaar | BB34: Huidig aantal werkuren over looptijd regeling | BC34: Datum AOW minus 5 jaar | BD34: Datum 8 jaar in dienst | BE34: Startdatumregeling | BF34: Urenverlies over periode tot aow | BG34: Totaal salaris + pensioenpremies huidige situatie over looptijd regeling | BH34: Totaal salaris + pensioenpremies nieuwe situatie over looptijdregeling | BI34: Vrijval loonkosten over looptijd regeling (in €) | BJ34: ="Gebruik van de regeling maanden "&BJ31 -> Gebruik van de regeling maanden 2024 | BK34: ="Gebruik van de regeling maanden "&BK31 -> Gebruik van de regeling maanden 2025 | BL34: Gebruik van de regeling maanden 2026 | BM34: Gebruik van de regeling maanden 2027 | BN34: Gebruik van de regeling maanden 2028 | BO34: Gebruik van de regeling maanden 2029 | BP34: Gebruik van de regeling maanden 2030 | BQ34: Gebruik van de regeling maanden 2031 | BR34: Gebruik van de regeling maanden 2032 | BS34: Gebruik van de regeling maanden 2033 | BT34: Gebruik van de regeling maanden 2034 | BU34: ="Vrijval in uren "&BU31 -> Vrijval in uren 2024 | BV34: ="Vrijval in uren "&BV31 -> Vrijval in uren 2025 | BW34: Vrijval in uren 2026 | BX34: Vrijval in uren 2027 | BY34: Vrijval in uren 2028 | BZ34: Vrijval in uren 2029 | CA34: Vrijval in uren 2030 | CB34: Vrijval in uren 2031 | CC34: Vrijval in uren 2032 | CD34: Vrijval in uren 2033 | CE34: Vrijval in uren 2034 | CF34: ="Vrijval in fte "&CF31 -> Vrijval in fte 2024 | CG34: ="Vrijval in fte "&CG31 -> Vrijval in fte 2025 | CH34: Vrijval in fte 2026 | CI34: Vrijval in fte 2027 | CJ34: Vrijval in fte 2028 | CK34: Vrijval in fte 2029 | CL34: Vrijval in fte 2030 | CM34: Vrijval in fte 2031 | CN34: Vrijval in fte 2032 | CO34: Vrijval in fte 2033 | CP34: Vrijval in fte 2034 | CQ34: ="Vrijval in € "&CQ31 -> Vrijval in € 2024 | CR34: ="Vrijval in € "&CR31 -> Vrijval in € 2025 | CS34: Vrijval in € 2026 | CT34: Vrijval in € 2027 | CU34: Vrijval in € 2028 | CV34: Vrijval in € 2029 | CW34: Vrijval in € 2030 | CX34: Vrijval in € 2031 | CY34: Vrijval in € 2032 | CZ34: Vrijval in € 2033 | DA34: Vrijval in € 2034 | DB34: Vrijval in € totaal | DC34: ="Kosten regeling "&DC31 -> Kosten regeling 2024 | DD34: ="Kosten regeling "&DD31 -> Kosten regeling 2025 | DE34: Kosten regeling 2026 | DF34: Kosten regeling 2027 | DG34: Kosten regeling 2028 | DH34: Kosten regeling 2029 | DI34: Kosten regeling 2030 | DJ34: Kosten regeling 2031 | DK34: Kosten regeling 2032 | DL34: Kosten regeling 2033 | DM34: Kosten regeling 2034 | DN34: Kosten regeling Totaal
O35: =IFERROR(YEAR(BE35),"") ->  | P35: =IF(Invoer_selectie_varianten=1,IF(ISBLANK(L35),Percentage_werk,L35),Percentage_werk) -> 0.8 | Q35: =IF(Invoer_selectie_varianten=1,IF(ISBLANK(M35),Percentage_betaald_vrijgesteld,M35),Percentage_betaald_vrijgesteld) -> 0.1 | R35: =IF(Invoer_selectie_varianten=1,IF(ISBLANK(N35),'8. Beheer_Tabellen'!$F$34,N35),'8. Beheer_Tabellen'!$F$34) -> ja | S35: =IF(B35="","",Startjaar-YEAR(C35)) ->  | T35: =VLOOKUP(S35,'8. Beheer_Tabellen'!$B$104:$D$115,3,TRUE) ->  | U35: =IF(B35="", "", YEAR(NOW()) -YEAR(C35)) ->  | V35: =VLOOKUP(U35,'8. Beheer_Tabellen'!$B$104:$D$115,3,TRUE) ->  | W35: =IFERROR(VLOOKUP(YEAR(C35),'8. Beheer_Tabellen'!$B$62:$D$80,3,FALSE),57)*E35 -> 0 | X35: =+W35+(Vakantieverlof*E35) -> 0 | Y35: =IFERROR(Uren_per_jaar*E35*VLOOKUP(U35,'8. Beheer_Tabellen'!$B$88:$G$99,6,TRUE),) -> 0 | Z35: =+Y35+X35 -> 0 | AA35: =(AB35-Z35)/AB35 ->  | AB35: =+Uren_per_jaar*E35 -> 0 | AC35: =Uren_per_jaar*F35 -> 0 | AD35: =IFERROR(1/E35*AL35,0) -> 0 | AE35: =AD35*12 -> 0 | AF35: =IF(I35="",0,(((I35*'8. Beheer_Tabellen'!$C$14)+(I35*'8. Beheer_Tabellen'!$C$12)+I35)*12*1/E35)) -> 0 | AG35: =EDATE(C35,VLOOKUP(C35,'8. Beheer_Tabellen'!$B$40:$E$55,4,TRUE)) ->  | AH35: =E35*$P35*'8. Beheer_Tabellen'!$F$12>=$E$31 -> FALSE | AI35: =IFERROR(AH35,)*1 -> 0 | AJ35: =AI35*E35 -> 0 | AK35: =IFERROR(DATEDIF(BE35,MIN(AG35,'8. Beheer_Tabellen'!$C$8),"m")*AI35,0) -> 0 | AL35: =((I35*'8. Beheer_Tabellen'!$C$14)+(I35*'8. Beheer_Tabellen'!$C$12)+I35)*AI35 -> 0 | AM35: =IF('8. Beheer_Tabellen'!$F$32="Ja",AL35+J35,AL35) -> 0 | AN35: =AM35*$P35 -> 0 | AO35: =AM35-AN35 -> 0 | AP35: =$Q35*AM35 -> 0 | AQ35: =AP35*AK35 -> 0 | AR35: =IF(MIN('8. Beheer_Tabellen'!$C$16*(MIN(AE35,'8. Beheer_Tabellen'!$C$20)-'8. Beheer_Tabellen'!$C$18),'8. Beheer_Tabellen'!$C$22)*AI35<0,0,MIN('8. Beheer_Tabellen'!$C$16*(MIN(AE35,'8. Beheer_Tabellen'!$C$20)-'8. Beheer_Tabellen'!$C$18),'8. Beheer_Tabellen'!$C$22)*AI35) -> 0 | AS35: =MIN(AR35*E35,'8. Beheer_Tabellen'!C$22) -> 0 | AT35: =AS35*$P35 -> 0 | AU35: =AS35*$Q35 -> 0 | AV35: =(100%-$P35-$Q35)*AS35*(IF(R35="nee",0,1)) -> 0 | AW35: =(AT35*$AK35/12)*Pensioenpremie_WG -> 0 | AX35: =(AU35*$AK35/12)*Pensioenpremie_WG -> 0 | AY35: =AV35*AK35/12*'8. Beheer_Tabellen'!$C$26 -> 0 | AZ35: =AY35+AX35+AQ35 -> 0 | BA35: =Uren_per_jaar*AJ35 -> 0 | BB35: =BA35*AK35/12 -> 0 | BC35: =IF(AI35=0,"",EDATE(AG35,-$BC$33)) ->  | BD35: =IF(AI35=0,"",EDATE(D35,$BD$33)) ->  | BE35: =IF(AI35=0,"",MAX(Datum_ingang_regeling,BC35,BD35)) ->  | BF35: =(100%-$P35)*BA35*AK35/12 -> 0 | BG35: =(AM35+AS35/12*$BG$33)*AK35 -> 0 | BH35: =AZ35+AW35+AN35*AK35 -> 0 | BI35: =(BG35-BH35)*Percentage_deelname -> 0 | BJ35: =IF($AK35=0,0,IF(YEAR($BE35)>BJ$31,0,IF(YEAR($BE35)=BJ$31,MIN($AK35,12-MONTH($BE35))))) -> 0 | BK35: =IF($AK35=0,0,IF(YEAR($BE35)>BK$31,0,IF(YEAR($BE35)=BK$31,MIN($AK35,13-MONTH($BE35)),IF(BK$31>YEAR($AG35),0,IF(BK$31=YEAR($AG35),$AK35-SUM($BJ35:BJ35),12))))) -> 0 | BL35: =IF($AK35=0,0,IF(YEAR($BE35)>BL$31,0,IF(YEAR($BE35)=BL$31,MIN($AK35,13-MONTH($BE35)),IF(BL$31>YEAR($AG35),0,IF(BL$31=YEAR($AG35),$AK35-SUM($BJ35:BK35),12))))) -> 0 | BM35: =IF($AK35=0,0,IF(YEAR($BE35)>BM$31,0,IF(YEAR($BE35)=BM$31,MIN($AK35,13-MONTH($BE35)),IF(BM$31>YEAR($AG35),0,IF(BM$31=YEAR($AG35),$AK35-SUM($BJ35:BL35),12))))) -> 0 | BN35: =IF($AK35=0,0,IF(YEAR($BE35)>BN$31,0,IF(YEAR($BE35)=BN$31,MIN($AK35,13-MONTH($BE35)),IF(BN$31>YEAR($AG35),0,IF(BN$31=YEAR($AG35),$AK35-SUM($BJ35:BM35),12))))) -> 0 | BO35: =IF($AK35=0,0,IF(YEAR($BE35)>BO$31,0,IF(YEAR($BE35)=BO$31,MIN($AK35,13-MONTH($BE35)),IF(BO$31>YEAR($AG35),0,IF(BO$31=YEAR($AG35),$AK35-SUM($BJ35:BN35),12))))) -> 0 | BP35: =IF($AK35=0,0,IF(YEAR($BE35)>BP$31,0,IF(YEAR($BE35)=BP$31,MIN($AK35,13-MONTH($BE35)),IF(BP$31>YEAR($AG35),0,IF(BP$31=YEAR($AG35),$AK35-SUM($BJ35:BO35),12))))) -> 0 | BQ35: =IF($AK35=0,0,IF(YEAR($BE35)>BQ$31,0,IF(YEAR($BE35)=BQ$31,MIN($AK35,13-MONTH($BE35)),IF(BQ$31>YEAR($AG35),0,IF(BQ$31=YEAR($AG35),$AK35-SUM($BJ35:BP35),12))))) -> 0 | BR35: =IF($AK35=0,0,IF(YEAR($BE35)>BR$31,0,IF(YEAR($BE35)=BR$31,MIN($AK35,13-MONTH($BE35)),IF(BR$31>YEAR($AG35),0,IF(BR$31=YEAR($AG35),$AK35-SUM($BJ35:BQ35),12))))) -> 0 | BS35: =IF($AK35=0,0,IF(YEAR($BE35)>BS$31,0,IF(YEAR($BE35)=BS$31,MIN($AK35,13-MONTH($BE35)),IF(BS$31>YEAR($AG35),0,IF(BS$31=YEAR($AG35),$AK35-SUM($BJ35:BR35),12))))) -> 0 | BT35: =IF($AK35=0,0,IF(YEAR($BE35)>BT$31,0,IF(YEAR($BE35)=BT$31,MIN($AK35,13-MONTH($BE35)),IF(BT$31>YEAR($AG35),0,IF(BT$31=YEAR($AG35),$AK35-SUM($BJ35:BS35),12))))) -> 0 | BU35: =$E35*Uren_per_jaar/12*BJ35*(1-$P35)*Percentage_deelname -> 0 | BV35: =$E35*Uren_per_jaar/12*BK35*(1-$P35)*Percentage_deelname -> 0 | BW35: =$E35*Uren_per_jaar/12*BL35*(1-$P35)*Percentage_deelname -> 0 | BX35: =$E35*Uren_per_jaar/12*BM35*(1-$P35)*Percentage_deelname -> 0 | BY35: =$E35*Uren_per_jaar/12*BN35*(1-$P35)*Percentage_deelname -> 0 | BZ35: =$E35*Uren_per_jaar/12*BO35*(1-$P35)*Percentage_deelname -> 0 | CA35: =$E35*Uren_per_jaar/12*BP35*(1-$P35)*Percentage_deelname -> 0 | CB35: =$E35*Uren_per_jaar/12*BQ35*(1-$P35)*Percentage_deelname -> 0 | CC35: =$E35*Uren_per_jaar/12*BR35*(1-$P35)*Percentage_deelname -> 0 | CD35: =$E35*Uren_per_jaar/12*BS35*(1-$P35)*Percentage_deelname -> 0 | CE35: =$E35*Uren_per_jaar/12*BT35*(1-$P35)*Percentage_deelname -> 0 | CF35: =+BU35/Uren_per_jaar -> 0 | CG35: =+BV35/Uren_per_jaar -> 0 | CH35: =+BW35/Uren_per_jaar -> 0 | CI35: =+BX35/Uren_per_jaar -> 0 | CJ35: =+BY35/Uren_per_jaar -> 0 | CK35: =+BZ35/Uren_per_jaar -> 0 | CL35: =+CA35/Uren_per_jaar -> 0 | CM35: =+CB35/Uren_per_jaar -> 0 | CN35: =+CC35/Uren_per_jaar -> 0 | CO35: =+CD35/Uren_per_jaar -> 0 | CP35: =+CE35/Uren_per_jaar -> 0 | CQ35: =IFERROR(($BI35/SUM($BU35:$CE35))*BU35,0) -> 0 | CR35: =IFERROR(($BI35/SUM($BU35:$CE35))*BV35,0) -> 0 | CS35: =IFERROR(($BI35/SUM($BU35:$CE35))*BW35,0) -> 0 | CT35: =IFERROR(($BI35/SUM($BU35:$CE35))*BX35,0) -> 0 | CU35: =IFERROR(($BI35/SUM($BU35:$CE35))*BY35,0) -> 0 | CV35: =IFERROR(($BI35/SUM($BU35:$CE35))*BZ35,0) -> 0 | CW35: =IFERROR(($BI35/SUM($BU35:$CE35))*CA35,0) -> 0 | CX35: =IFERROR(($BI35/SUM($BU35:$CE35))*CB35,0) -> 0 | CY35: =IFERROR(($BI35/SUM($BU35:$CE35))*CC35,0) -> 0 | CZ35: =IFERROR(($BI35/SUM($BU35:$CE35))*CD35,0) -> 0 | DA35: =IFERROR(($BI35/SUM($BU35:$CE35))*CE35,0) -> 0 | DB35: =SUM(CQ35:DA35) -> 0 | DC35: =IF(OR($AZ35=0,$AZ35="",BJ35=0),0,$AZ35/SUM($BJ35:$BT35)*BJ35)*Percentage_deelname -> 0 | DD35: =IF(OR($AZ35=0,$AZ35="",BK35=0),0,$AZ35/SUM($BJ35:$BT35)*BK35)*Percentage_deelname -> 0 | DE35: =IF(OR($AZ35=0,$AZ35="",BL35=0),0,$AZ35/SUM($BJ35:$BT35)*BL35)*Percentage_deelname -> 0 | DF35: =IF(OR($AZ35=0,$AZ35="",BM35=0),0,$AZ35/SUM($BJ35:$BT35)*BM35)*Percentage_deelname -> 0 | DG35: =IF(OR($AZ35=0,$AZ35="",BN35=0),0,$AZ35/SUM($BJ35:$BT35)*BN35)*Percentage_deelname -> 0 | DH35: =IF(OR($AZ35=0,$AZ35="",BO35=0),0,$AZ35/SUM($BJ35:$BT35)*BO35)*Percentage_deelname -> 0 | DI35: =IF(OR($AZ35=0,$AZ35="",BP35=0),0,$AZ35/SUM($BJ35:$BT35)*BP35)*Percentage_deelname -> 0 | DJ35: =IF(OR($AZ35=0,$AZ35="",BQ35=0),0,$AZ35/SUM($BJ35:$BT35)*BQ35)*Percentage_deelname -> 0 | DK35: =IF(OR($AZ35=0,$AZ35="",BR35=0),0,$AZ35/SUM($BJ35:$BT35)*BR35)*Percentage_deelname -> 0 | DL35: =IF(OR($AZ35=0,$AZ35="",BS35=0),0,$AZ35/SUM($BJ35:$BT35)*BS35)*Percentage_deelname -> 0 | DM35: =IF(OR($AZ35=0,$AZ35="",BT35=0),0,$AZ35/SUM($BJ35:$BT35)*BT35)*Percentage_deelname -> 0 | DN35: =SUM(DC35:DM35) -> 0
O36: =IFERROR(YEAR(BE36),"") ->  | P36: 0.8 | Q36: 0.1 | R36: =IF(Invoer_selectie_varianten=1,IF(ISBLANK(N36),'8. Beheer_Tabellen'!$F$34,N36),'8. Beheer_Tabellen'!$F$34) -> ja | T36: =VLOOKUP(S36,'8. Beheer_Tabellen'!$B$104:$D$115,3,TRUE) ->  | V36: =VLOOKUP(U36,'8. Beheer_Tabellen'!$B$104:$D$115,3,TRUE) ->  | W36: =IFERROR(VLOOKUP(YEAR(C36),'8. Beheer_Tabellen'!$B$62:$D$80,3,FALSE),57)*E36 -> 0 | X36: 0 | Y36: =IFERROR(Uren_per_jaar*E36*VLOOKUP(U36,'8. Beheer_Tabellen'!$B$88:$G$99,6,TRUE),) -> 0 | Z36: =+Y36+X36 -> 0 | AA36: =(AB36-Z36)/AB36 ->  | AB36: 0 | AC36: 0 | AD36: 0 | AE36: 0 | AF36: =IF(I36="",0,(((I36*'8. Beheer_Tabellen'!$C$14)+(I36*'8. Beheer_Tabellen'!$C$12)+I36)*12*1/E36)) -> 0 | AG36: =EDATE(C36,VLOOKUP(C36,'8. Beheer_Tabellen'!$B$40:$E$55,4,TRUE)) ->  | AH36: =E36*$P36*'8. Beheer_Tabellen'!$F$12>=$E$31 -> FALSE | AI36: 0 | AJ36: 0 | AK36: =IFERROR(DATEDIF(BE36,MIN(AG36,'8. Beheer_Tabellen'!$C$8),"m")*AI36,0) -> 0 | AL36: =((I36*'8. Beheer_Tabellen'!$C$14)+(I36*'8. Beheer_Tabellen'!$C$12)+I36)*AI36 -> 0 | AM36: =IF('8. Beheer_Tabellen'!$F$32="Ja",AL36+J36,AL36) -> 0 | AN36: =AM36*$P36 -> 0 | AO36: 0 | AP36: =$Q36*AM36 -> 0 | AQ36: 0 | AR36: =IF(MIN('8. Beheer_Tabellen'!$C$16*(MIN(AE36,'8. Beheer_Tabellen'!$C$20)-'8. Beheer_Tabellen'!$C$18),'8. Beheer_Tabellen'!$C$22)*AI36<0,0,MIN('8. Beheer_Tabellen'!$C$16*(MIN(AE36,'8. Beheer_Tabellen'!$C$20)-'8. Beheer_Tabellen'!$C$18),'8. Beheer_Tabellen'!$C$22)*AI36) -> 0 | AS36: =MIN(AR36*E36,'8. Beheer_Tabellen'!C$22) -> 0 | AT36: =AS36*$P36 -> 0 | AU36: =AS36*$Q36 -> 0 | AV36: 0 | AW36: 0 | AX36: 0 | AY36: =AV36*AK36/12*'8. Beheer_Tabellen'!$C$26 -> 0 | AZ36: =AY36+AX36+AQ36 -> 0 | BA36: 0 | BB36: 0 | BF36: =(100%-$P36)*BA36*AK36/12 -> 0 | BG36: =(AM36+AS36/12*$BG$33)*AK36 -> 0 | BH36: =AZ36+AW36+AN36*AK36 -> 0 | BI36: 0 | BJ36: =IF($AK36=0,0,IF(YEAR($BE36)>BJ$31,0,IF(YEAR($BE36)=BJ$31,MIN($AK36,12-MONTH($BE36))))) -> 0 | BK36: =IF($AK36=0,0,IF(YEAR($BE36)>BK$31,0,IF(YEAR($BE36)=BK$31,MIN($AK36,13-MONTH($BE36)),IF(BK$31>YEAR($AG36),0,IF(BK$31=YEAR($AG36),$AK36-SUM($BJ36:BJ36),12))))) -> 0 | BL36: =IF($AK36=0,0,IF(YEAR($BE36)>BL$31,0,IF(YEAR($BE36)=BL$31,MIN($AK36,13-MONTH($BE36)),IF(BL$31>YEAR($AG36),0,IF(BL$31=YEAR($AG36),$AK36-SUM($BJ36:BK36),12))))) -> 0 | BM36: =IF($AK36=0,0,IF(YEAR($BE36)>BM$31,0,IF(YEAR($BE36)=BM$31,MIN($AK36,13-MONTH($BE36)),IF(BM$31>YEAR($AG36),0,IF(BM$31=YEAR($AG36),$AK36-SUM($BJ36:BL36),12))))) -> 0 | BN36: =IF($AK36=0,0,IF(YEAR($BE36)>BN$31,0,IF(YEAR($BE36)=BN$31,MIN($AK36,13-MONTH($BE36)),IF(BN$31>YEAR($AG36),0,IF(BN$31=YEAR($AG36),$AK36-SUM($BJ36:BM36),12))))) -> 0 | BO36: =IF($AK36=0,0,IF(YEAR($BE36)>BO$31,0,IF(YEAR($BE36)=BO$31,MIN($AK36,13-MONTH($BE36)),IF(BO$31>YEAR($AG36),0,IF(BO$31=YEAR($AG36),$AK36-SUM($BJ36:BN36),12))))) -> 0 | BP36: =IF($AK36=0,0,IF(YEAR($BE36)>BP$31,0,IF(YEAR($BE36)=BP$31,MIN($AK36,13-MONTH($BE36)),IF(BP$31>YEAR($AG36),0,IF(BP$31=YEAR($AG36),$AK36-SUM($BJ36:BO36),12))))) -> 0 | BQ36: =IF($AK36=0,0,IF(YEAR($BE36)>BQ$31,0,IF(YEAR($BE36)=BQ$31,MIN($AK36,13-MONTH($BE36)),IF(BQ$31>YEAR($AG36),0,IF(BQ$31=YEAR($AG36),$AK36-SUM($BJ36:BP36),12))))) -> 0 | BR36: =IF($AK36=0,0,IF(YEAR($BE36)>BR$31,0,IF(YEAR($BE36)=BR$31,MIN($AK36,13-MONTH($BE36)),IF(BR$31>YEAR($AG36),0,IF(BR$31=YEAR($AG36),$AK36-SUM($BJ36:BQ36),12))))) -> 0 | BS36: =IF($AK36=0,0,IF(YEAR($BE36)>BS$31,0,IF(YEAR($BE36)=BS$31,MIN($AK36,13-MONTH($BE36)),IF(BS$31>YEAR($AG36),0,IF(BS$31=YEAR($AG36),$AK36-SUM($BJ36:BR36),12))))) -> 0 | BT36: =IF($AK36=0,0,IF(YEAR($BE36)>BT$31,0,IF(YEAR($BE36)=BT$31,MIN($AK36,13-MONTH($BE36)),IF(BT$31>YEAR($AG36),0,IF(BT$31=YEAR($AG36),$AK36-SUM($BJ36:BS36),12))))) -> 0 | BU36: 0 | BV36: 0 | BW36: 0 | BX36: 0 | BY36: 0 | BZ36: 0 | CA36: 0 | CB36: 0 | CC36: 0 | CD36: 0 | CE36: 0 | CF36: 0 | CG36: 0 | CH36: 0 | CI36: 0 | CJ36: 0 | CK36: 0 | CL36: 0 | CM36: 0 | CN36: 0 | CO36: 0 | CP36: 0 | CQ36: 0 | CR36: 0 | CS36: 0 | CT36: 0 | CU36: 0 | CV36: 0 | CW36: 0 | CX36: 0 | CY36: 0 | CZ36: 0 | DA36: 0 | DB36: =SUM(CQ36:DA36) -> 0 | DC36: 0 | DD36: 0 | DE36: 0 | DF36: 0 | DG36: 0 | DH36: 0 | DI36: 0 | DJ36: 0 | DK36: 0 | DL36: 0 | DM36: 0 | DN36: =SUM(DC36:DM36) -> 0
P37: 0.8 | Q37: 0.1 | R37: =IF(Invoer_selectie_varianten=1,IF(ISBLANK(N37),'8. Beheer_Tabellen'!$F$34,N37),'8. Beheer_Tabellen'!$F$34) -> ja | T37: =VLOOKUP(S37,'8. Beheer_Tabellen'!$B$104:$D$115,3,TRUE) ->  | V37: =VLOOKUP(U37,'8. Beheer_Tabellen'!$B$104:$D$115,3,TRUE) ->  | W37: =IFERROR(VLOOKUP(YEAR(C37),'8. Beheer_Tabellen'!$B$62:$D$80,3,FALSE),57)*E37 -> 0 | X37: 0 | Y37: =IFERROR(Uren_per_jaar*E37*VLOOKUP(U37,'8. Beheer_Tabellen'!$B$88:$G$99,6,TRUE),) -> 0 | Z37: 0 | AB37: 0 | AC37: 0 | AD37: 0 | AE37: 0 | AF37: =IF(I37="",0,(((I37*'8. Beheer_Tabellen'!$C$14)+(I37*'8. Beheer_Tabellen'!$C$12)+I37)*12*1/E37)) -> 0 | AG37: =EDATE(C37,VLOOKUP(C37,'8. Beheer_Tabellen'!$B$40:$E$55,4,TRUE)) ->  | AH37: =E37*$P37*'8. Beheer_Tabellen'!$F$12>=$E$31 -> FALSE | AI37: 0 | AJ37: 0 | AK37: =IFERROR(DATEDIF(BE37,MIN(AG37,'8. Beheer_Tabellen'!$C$8),"m")*AI37,0) -> 0 | AL37: =((I37*'8. Beheer_Tabellen'!$C$14)+(I37*'8. Beheer_Tabellen'!$C$12)+I37)*AI37 -> 0 | AM37: =IF('8. Beheer_Tabellen'!$F$32="Ja",AL37+J37,AL37) -> 0 | AN37: 0 | AO37: 0 | AP37: 0 | AQ37: 0 | AR37: =IF(MIN('8. Beheer_Tabellen'!$C$16*(MIN(AE37,'8. Beheer_Tabellen'!$C$20)-'8. Beheer_Tabellen'!$C$18),'8. Beheer_Tabellen'!$C$22)*AI37<0,0,MIN('8. Beheer_Tabellen'!$C$16*(MIN(AE37,'8. Beheer_Tabellen'!$C$20)-'8. Beheer_Tabellen'!$C$18),'8. Beheer_Tabellen'!$C$22)*AI37) -> 0 | AS37: =MIN(AR37*E37,'8. Beheer_Tabellen'!C$22) -> 0 | AT37: 0 | AU37: 0 | AV37: 0 | AW37: 0 | AX37: 0 | AY37: =AV37*AK37/12*'8. Beheer_Tabellen'!$C$26 -> 0 | AZ37: 0 | BA37: 0 | BB37: 0 | BF37: 0 | BG37: 0 | BH37: 0 | BI37: 0 | BJ37: 0 | BK37: =IF($AK37=0,0,IF(YEAR($BE37)>BK$31,0,IF(YEAR($BE37)=BK$31,MIN($AK37,13-MONTH($BE37)),IF(BK$31>YEAR($AG37),0,IF(BK$31=YEAR($AG37),$AK37-SUM($BJ37:BJ37),12))))) -> 0 | BL37: =IF($AK37=0,0,IF(YEAR($BE37)>BL$31,0,IF(YEAR($BE37)=BL$31,MIN($AK37,13-MONTH($BE37)),IF(BL$31>YEAR($AG37),0,IF(BL$31=YEAR($AG37),$AK37-SUM($BJ37:BK37),12))))) -> 0 | BM37: =IF($AK37=0,0,IF(YEAR($BE37)>BM$31,0,IF(YEAR($BE37)=BM$31,MIN($AK37,13-MONTH($BE37)),IF(BM$31>YEAR($AG37),0,IF(BM$31=YEAR($AG37),$AK37-SUM($BJ37:BL37),12))))) -> 0 | BN37: =IF($AK37=0,0,IF(YEAR($BE37)>BN$31,0,IF(YEAR($BE37)=BN$31,MIN($AK37,13-MONTH($BE37)),IF(BN$31>YEAR($AG37),0,IF(BN$31=YEAR($AG37),$AK37-SUM($BJ37:BM37),12))))) -> 0 | BO37: =IF($AK37=0,0,IF(YEAR($BE37)>BO$31,0,IF(YEAR($BE37)=BO$31,MIN($AK37,13-MONTH($BE37)),IF(BO$31>YEAR($AG37),0,IF(BO$31=YEAR($AG37),$AK37-SUM($BJ37:BN37),12))))) -> 0 | BP37: =IF($AK37=0,0,IF(YEAR($BE37)>BP$31,0,IF(YEAR($BE37)=BP$31,MIN($AK37,13-MONTH($BE37)),IF(BP$31>YEAR($AG37),0,IF(BP$31=YEAR($AG37),$AK37-SUM($BJ37:BO37),12))))) -> 0 | BQ37: =IF($AK37=0,0,IF(YEAR($BE37)>BQ$31,0,IF(YEAR($BE37)=BQ$31,MIN($AK37,13-MONTH($BE37)),IF(BQ$31>YEAR($AG37),0,IF(BQ$31=YEAR($AG37),$AK37-SUM($BJ37:BP37),12))))) -> 0 | BR37: =IF($AK37=0,0,IF(YEAR($BE37)>BR$31,0,IF(YEAR($BE37)=BR$31,MIN($AK37,13-MONTH($BE37)),IF(BR$31>YEAR($AG37),0,IF(BR$31=YEAR($AG37),$AK37-SUM($BJ37:BQ37),12))))) -> 0 | BS37: =IF($AK37=0,0,IF(YEAR($BE37)>BS$31,0,IF(YEAR($BE37)=BS$31,MIN($AK37,13-MONTH($BE37)),IF(BS$31>YEAR($AG37),0,IF(BS$31=YEAR($AG37),$AK37-SUM($BJ37:BR37),12))))) -> 0 | BT37: =IF($AK37=0,0,IF(YEAR($BE37)>BT$31,0,IF(YEAR($BE37)=BT$31,MIN($AK37,13-MONTH($BE37)),IF(BT$31>YEAR($AG37),0,IF(BT$31=YEAR($AG37),$AK37-SUM($BJ37:BS37),12))))) -> 0 | BU37: 0 | BV37: 0 | BW37: 0 | BX37: 0 | BY37: 0 | BZ37: 0 | CA37: 0 | CB37: 0 | CC37: 0 | CD37: 0 | CE37: 0 | CF37: 0 | CG37: 0 | CH37: 0 | CI37: 0 | CJ37: 0 | CK37: 0 | CL37: 0 | CM37: 0 | CN37: 0 | CO37: 0 | CP37: 0 | CQ37: 0 | CR37: 0 | CS37: 0 | CT37: 0 | CU37: 0 | CV37: 0 | CW37: 0 | CX37: 0 | CY37: 0 | CZ37: 0 | DA37: 0 | DB37: 0 | DC37: 0 | DD37: 0 | DE37: 0 | DF37: 0 | DG37: 0 | DH37: 0 | DI37: 0 | DJ37: 0 | DK37: 0 | DL37: 0 | DM37: 0 | DN37: 0
P38: 0.8 | Q38: 0.1 | R38: =IF(Invoer_selectie_varianten=1,IF(ISBLANK(N38),'8. Beheer_Tabellen'!$F$34,N38),'8. Beheer_Tabellen'!$F$34) -> ja | T38: =VLOOKUP(S38,'8. Beheer_Tabellen'!$B$104:$D$115,3,TRUE) ->  | V38: =VLOOKUP(U38,'8. Beheer_Tabellen'!$B$104:$D$115,3,TRUE) ->  | W38: =IFERROR(VLOOKUP(YEAR(C38),'8. Beheer_Tabellen'!$B$62:$D$80,3,FALSE),57)*E38 -> 0 | X38: 0 | Y38: =IFERROR(Uren_per_jaar*E38*VLOOKUP(U38,'8. Beheer_Tabellen'!$B$88:$G$99,6,TRUE),) -> 0 | Z38: 0 | AB38: 0 | AC38: 0 | AD38: 0 | AE38: 0 | AF38: =IF(I38="",0,(((I38*'8. Beheer_Tabellen'!$C$14)+(I38*'8. Beheer_Tabellen'!$C$12)+I38)*12*1/E38)) -> 0 | AG38: =EDATE(C38,VLOOKUP(C38,'8. Beheer_Tabellen'!$B$40:$E$55,4,TRUE)) ->  | AH38: =E38*$P38*'8. Beheer_Tabellen'!$F$12>=$E$31 -> FALSE | AI38: 0 | AJ38: 0 | AK38: =IFERROR(DATEDIF(BE38,MIN(AG38,'8. Beheer_Tabellen'!$C$8),"m")*AI38,0) -> 0 | AL38: =((I38*'8. Beheer_Tabellen'!$C$14)+(I38*'8. Beheer_Tabellen'!$C$12)+I38)*AI38 -> 0 | AM38: =IF('8. Beheer_Tabellen'!$F$32="Ja",AL38+J38,AL38) -> 0 | AN38: 0 | AO38: 0 | AP38: 0 | AQ38: 0 | AR38: =IF(MIN('8. Beheer_Tabellen'!$C$16*(MIN(AE38,'8. Beheer_Tabellen'!$C$20)-'8. Beheer_Tabellen'!$C$18),'8. Beheer_Tabellen'!$C$22)*AI38<0,0,MIN('8. Beheer_Tabellen'!$C$16*(MIN(AE38,'8. Beheer_Tabellen'!$C$20)-'8. Beheer_Tabellen'!$C$18),'8. Beheer_Tabellen'!$C$22)*AI38) -> 0 | AS38: =MIN(AR38*E38,'8. Beheer_Tabellen'!C$22) -> 0 | AT38: 0 | AU38: 0 | AV38: 0 | AW38: 0 | AX38: 0 | AY38: =AV38*AK38/12*'8. Beheer_Tabellen'!$C$26 -> 0 | AZ38: 0 | BA38: 0 | BB38: 0 | BF38: 0 | BG38: 0 | BH38: 0 | BI38: 0 | BJ38: 0 | BK38: =IF($AK38=0,0,IF(YEAR($BE38)>BK$31,0,IF(YEAR($BE38)=BK$31,MIN($AK38,13-MONTH($BE38)),IF(BK$31>YEAR($AG38),0,IF(BK$31=YEAR($AG38),$AK38-SUM($BJ38:BJ38),12))))) -> 0 | BL38: =IF($AK38=0,0,IF(YEAR($BE38)>BL$31,0,IF(YEAR($BE38)=BL$31,MIN($AK38,13-MONTH($BE38)),IF(BL$31>YEAR($AG38),0,IF(BL$31=YEAR($AG38),$AK38-SUM($BJ38:BK38),12))))) -> 0 | BM38: =IF($AK38=0,0,IF(YEAR($BE38)>BM$31,0,IF(YEAR($BE38)=BM$31,MIN($AK38,13-MONTH($BE38)),IF(BM$31>YEAR($AG38),0,IF(BM$31=YEAR($AG38),$AK38-SUM($BJ38:BL38),12))))) -> 0 | BN38: =IF($AK38=0,0,IF(YEAR($BE38)>BN$31,0,IF(YEAR($BE38)=BN$31,MIN($AK38,13-MONTH($BE38)),IF(BN$31>YEAR($AG38),0,IF(BN$31=YEAR($AG38),$AK38-SUM($BJ38:BM38),12))))) -> 0 | BO38: =IF($AK38=0,0,IF(YEAR($BE38)>BO$31,0,IF(YEAR($BE38)=BO$31,MIN($AK38,13-MONTH($BE38)),IF(BO$31>YEAR($AG38),0,IF(BO$31=YEAR($AG38),$AK38-SUM($BJ38:BN38),12))))) -> 0 | BP38: =IF($AK38=0,0,IF(YEAR($BE38)>BP$31,0,IF(YEAR($BE38)=BP$31,MIN($AK38,13-MONTH($BE38)),IF(BP$31>YEAR($AG38),0,IF(BP$31=YEAR($AG38),$AK38-SUM($BJ38:BO38),12))))) -> 0 | BQ38: =IF($AK38=0,0,IF(YEAR($BE38)>BQ$31,0,IF(YEAR($BE38)=BQ$31,MIN($AK38,13-MONTH($BE38)),IF(BQ$31>YEAR($AG38),0,IF(BQ$31=YEAR($AG38),$AK38-SUM($BJ38:BP38),12))))) -> 0 | BR38: =IF($AK38=0,0,IF(YEAR($BE38)>BR$31,0,IF(YEAR($BE38)=BR$31,MIN($AK38,13-MONTH($BE38)),IF(BR$31>YEAR($AG38),0,IF(BR$31=YEAR($AG38),$AK38-SUM($BJ38:BQ38),12))))) -> 0 | BS38: =IF($AK38=0,0,IF(YEAR($BE38)>BS$31,0,IF(YEAR($BE38)=BS$31,MIN($AK38,13-MONTH($BE38)),IF(BS$31>YEAR($AG38),0,IF(BS$31=YEAR($AG38),$AK38-SUM($BJ38:BR38),12))))) -> 0 | BT38: =IF($AK38=0,0,IF(YEAR($BE38)>BT$31,0,IF(YEAR($BE38)=BT$31,MIN($AK38,13-MONTH($BE38)),IF(BT$31>YEAR($AG38),0,IF(BT$31=YEAR($AG38),$AK38-SUM($BJ38:BS38),12))))) -> 0 | BU38: 0 | BV38: 0 | BW38: 0 | BX38: 0 | BY38: 0 | BZ38: 0 | CA38: 0 | CB38: 0 | CC38: 0 | CD38: 0 | CE38: 0 | CF38: 0 | CG38: 0 | CH38: 0 | CI38: 0 | CJ38: 0 | CK38: 0 | CL38: 0 | CM38: 0 | CN38: 0 | CO38: 0 | CP38: 0 | CQ38: 0 | CR38: 0 | CS38: 0 | CT38: 0 | CU38: 0 | CV38: 0 | CW38: 0 | CX38: 0 | CY38: 0 | CZ38: 0 | DA38: 0 | DB38: 0 | DC38: 0 | DD38: 0 | DE38: 0 | DF38: 0 | DG38: 0 | DH38: 0 | DI38: 0 | DJ38: 0 | DK38: 0 | DL38: 0 | DM38: 0 | DN38: 0
P39: 0.8 | Q39: 0.1 | R39: =IF(Invoer_selectie_varianten=1,IF(ISBLANK(N39),'8. Beheer_Tabellen'!$F$34,N39),'8. Beheer_Tabellen'!$F$34) -> ja | T39: =VLOOKUP(S39,'8. Beheer_Tabellen'!$B$104:$D$115,3,TRUE) ->  | V39: =VLOOKUP(U39,'8. Beheer_Tabellen'!$B$104:$D$115,3,TRUE) ->  | W39: =IFERROR(VLOOKUP(YEAR(C39),'8. Beheer_Tabellen'!$B$62:$D$80,3,FALSE),57)*E39 -> 0 | X39: 0 | Y39: =IFERROR(Uren_per_jaar*E39*VLOOKUP(U39,'8. Beheer_Tabellen'!$B$88:$G$99,6,TRUE),) -> 0 | Z39: 0 | AB39: 0 | AC39: 0 | AD39: 0 | AE39: 0 | AF39: =IF(I39="",0,(((I39*'8. Beheer_Tabellen'!$C$14)+(I39*'8. Beheer_Tabellen'!$C$12)+I39)*12*1/E39)) -> 0 | AG39: =EDATE(C39,VLOOKUP(C39,'8. Beheer_Tabellen'!$B$40:$E$55,4,TRUE)) ->  | AH39: =E39*$P39*'8. Beheer_Tabellen'!$F$12>=$E$31 -> FALSE | AI39: 0 | AJ39: 0 | AK39: =IFERROR(DATEDIF(BE39,MIN(AG39,'8. Beheer_Tabellen'!$C$8),"m")*AI39,0) -> 0 | AL39: =((I39*'8. Beheer_Tabellen'!$C$14)+(I39*'8. Beheer_Tabellen'!$C$12)+I39)*AI39 -> 0 | AM39: =IF('8. Beheer_Tabellen'!$F$32="Ja",AL39+J39,AL39) -> 0 | AN39: 0 | AO39: 0 | AP39: 0 | AQ39: 0 | AR39: =IF(MIN('8. Beheer_Tabellen'!$C$16*(MIN(AE39,'8. Beheer_Tabellen'!$C$20)-'8. Beheer_Tabellen'!$C$18),'8. Beheer_Tabellen'!$C$22)*AI39<0,0,MIN('8. Beheer_Tabellen'!$C$16*(MIN(AE39,'8. Beheer_Tabellen'!$C$20)-'8. Beheer_Tabellen'!$C$18),'8. Beheer_Tabellen'!$C$22)*AI39) -> 0 | AS39: =MIN(AR39*E39,'8. Beheer_Tabellen'!C$22) -> 0 | AT39: 0 | AU39: 0 | AV39: 0 | AW39: 0 | AX39: 0 | AY39: =AV39*AK39/12*'8. Beheer_Tabellen'!$C$26 -> 0 | AZ39: 0 | BA39: 0 | BB39: 0 | BF39: 0 | BG39: 0 | BH39: 0 | BI39: 0 | BJ39: 0 | BK39: =IF($AK39=0,0,IF(YEAR($BE39)>BK$31,0,IF(YEAR($BE39)=BK$31,MIN($AK39,13-MONTH($BE39)),IF(BK$31>YEAR($AG39),0,IF(BK$31=YEAR($AG39),$AK39-SUM($BJ39:BJ39),12))))) -> 0 | BL39: =IF($AK39=0,0,IF(YEAR($BE39)>BL$31,0,IF(YEAR($BE39)=BL$31,MIN($AK39,13-MONTH($BE39)),IF(BL$31>YEAR($AG39),0,IF(BL$31=YEAR($AG39),$AK39-SUM($BJ39:BK39),12))))) -> 0 | BM39: =IF($AK39=0,0,IF(YEAR($BE39)>BM$31,0,IF(YEAR($BE39)=BM$31,MIN($AK39,13-MONTH($BE39)),IF(BM$31>YEAR($AG39),0,IF(BM$31=YEAR($AG39),$AK39-SUM($BJ39:BL39),12))))) -> 0 | BN39: =IF($AK39=0,0,IF(YEAR($BE39)>BN$31,0,IF(YEAR($BE39)=BN$31,MIN($AK39,13-MONTH($BE39)),IF(BN$31>YEAR($AG39),0,IF(BN$31=YEAR($AG39),$AK39-SUM($BJ39:BM39),12))))) -> 0 | BO39: =IF($AK39=0,0,IF(YEAR($BE39)>BO$31,0,IF(YEAR($BE39)=BO$31,MIN($AK39,13-MONTH($BE39)),IF(BO$31>YEAR($AG39),0,IF(BO$31=YEAR($AG39),$AK39-SUM($BJ39:BN39),12))))) -> 0 | BP39: =IF($AK39=0,0,IF(YEAR($BE39)>BP$31,0,IF(YEAR($BE39)=BP$31,MIN($AK39,13-MONTH($BE39)),IF(BP$31>YEAR($AG39),0,IF(BP$31=YEAR($AG39),$AK39-SUM($BJ39:BO39),12))))) -> 0 | BQ39: =IF($AK39=0,0,IF(YEAR($BE39)>BQ$31,0,IF(YEAR($BE39)=BQ$31,MIN($AK39,13-MONTH($BE39)),IF(BQ$31>YEAR($AG39),0,IF(BQ$31=YEAR($AG39),$AK39-SUM($BJ39:BP39),12))))) -> 0 | BR39: =IF($AK39=0,0,IF(YEAR($BE39)>BR$31,0,IF(YEAR($BE39)=BR$31,MIN($AK39,13-MONTH($BE39)),IF(BR$31>YEAR($AG39),0,IF(BR$31=YEAR($AG39),$AK39-SUM($BJ39:BQ39),12))))) -> 0 | BS39: =IF($AK39=0,0,IF(YEAR($BE39)>BS$31,0,IF(YEAR($BE39)=BS$31,MIN($AK39,13-MONTH($BE39)),IF(BS$31>YEAR($AG39),0,IF(BS$31=YEAR($AG39),$AK39-SUM($BJ39:BR39),12))))) -> 0 | BT39: =IF($AK39=0,0,IF(YEAR($BE39)>BT$31,0,IF(YEAR($BE39)=BT$31,MIN($AK39,13-MONTH($BE39)),IF(BT$31>YEAR($AG39),0,IF(BT$31=YEAR($AG39),$AK39-SUM($BJ39:BS39),12))))) -> 0 | BU39: 0 | BV39: 0 | BW39: 0 | BX39: 0 | BY39: 0 | BZ39: 0 | CA39: 0 | CB39: 0 | CC39: 0 | CD39: 0 | CE39: 0 | CF39: 0 | CG39: 0 | CH39: 0 | CI39: 0 | CJ39: 0 | CK39: 0 | CL39: 0 | CM39: 0 | CN39: 0 | CO39: 0 | CP39: 0 | CQ39: 0 | CR39: 0 | CS39: 0 | CT39: 0 | CU39: 0 | CV39: 0 | CW39: 0 | CX39: 0 | CY39: 0 | CZ39: 0 | DA39: 0 | DB39: 0 | DC39: 0 | DD39: 0 | DE39: 0 | DF39: 0 | DG39: 0 | DH39: 0 | DI39: 0 | DJ39: 0 | DK39: 0 | DL39: 0 | DM39: 0 | DN39: 0
P40: 0.8 | Q40: 0.1 | R40: =IF(Invoer_selectie_varianten=1,IF(ISBLANK(N40),'8. Beheer_Tabellen'!$F$34,N40),'8. Beheer_Tabellen'!$F$34) -> ja | T40: =VLOOKUP(S40,'8. Beheer_Tabellen'!$B$104:$D$115,3,TRUE) ->  | V40: =VLOOKUP(U40,'8. Beheer_Tabellen'!$B$104:$D$115,3,TRUE) ->  | W40: =IFERROR(VLOOKUP(YEAR(C40),'8. Beheer_Tabellen'!$B$62:$D$80,3,FALSE),57)*E40 -> 0 | X40: 0 | Y40: =IFERROR(Uren_per_jaar*E40*VLOOKUP(U40,'8. Beheer_Tabellen'!$B$88:$G$99,6,TRUE),) -> 0 | Z40: 0 | AB40: 0 | AC40: 0 | AD40: 0 | AE40: 0 | AF40: =IF(I40="",0,(((I40*'8. Beheer_Tabellen'!$C$14)+(I40*'8. Beheer_Tabellen'!$C$12)+I40)*12*1/E40)) -> 0 | AG40: =EDATE(C40,VLOOKUP(C40,'8. Beheer_Tabellen'!$B$40:$E$55,4,TRUE)) ->  | AH40: =E40*$P40*'8. Beheer_Tabellen'!$F$12>=$E$31 -> FALSE | AI40: 0 | AJ40: 0 | AK40: =IFERROR(DATEDIF(BE40,MIN(AG40,'8. Beheer_Tabellen'!$C$8),"m")*AI40,0) -> 0 | AL40: =((I40*'8. Beheer_Tabellen'!$C$14)+(I40*'8. Beheer_Tabellen'!$C$12)+I40)*AI40 -> 0 | AM40: =IF('8. Beheer_Tabellen'!$F$32="Ja",AL40+J40,AL40) -> 0 | AN40: 0 | AO40: 0 | AP40: 0 | AQ40: 0 | AR40: =IF(MIN('8. Beheer_Tabellen'!$C$16*(MIN(AE40,'8. Beheer_Tabellen'!$C$20)-'8. Beheer_Tabellen'!$C$18),'8. Beheer_Tabellen'!$C$22)*AI40<0,0,MIN('8. Beheer_Tabellen'!$C$16*(MIN(AE40,'8. Beheer_Tabellen'!$C$20)-'8. Beheer_Tabellen'!$C$18),'8. Beheer_Tabellen'!$C$22)*AI40) -> 0 | AS40: =MIN(AR40*E40,'8. Beheer_Tabellen'!C$22) -> 0 | AT40: 0 | AU40: 0 | AV40: 0 | AW40: 0 | AX40: 0 | AY40: =AV40*AK40/12*'8. Beheer_Tabellen'!$C$26 -> 0 | AZ40: 0 | BA40: 0 | BB40: 0 | BF40: 0 | BG40: 0 | BH40: 0 | BI40: 0 | BJ40: 0 | BK40: =IF($AK40=0,0,IF(YEAR($BE40)>BK$31,0,IF(YEAR($BE40)=BK$31,MIN($AK40,13-MONTH($BE40)),IF(BK$31>YEAR($AG40),0,IF(BK$31=YEAR($AG40),$AK40-SUM($BJ40:BJ40),12))))) -> 0 | BL40: =IF($AK40=0,0,IF(YEAR($BE40)>BL$31,0,IF(YEAR($BE40)=BL$31,MIN($AK40,13-MONTH($BE40)),IF(BL$31>YEAR($AG40),0,IF(BL$31=YEAR($AG40),$AK40-SUM($BJ40:BK40),12))))) -> 0 | BM40: =IF($AK40=0,0,IF(YEAR($BE40)>BM$31,0,IF(YEAR($BE40)=BM$31,MIN($AK40,13-MONTH($BE40)),IF(BM$31>YEAR($AG40),0,IF(BM$31=YEAR($AG40),$AK40-SUM($BJ40:BL40),12))))) -> 0 | BN40: =IF($AK40=0,0,IF(YEAR($BE40)>BN$31,0,IF(YEAR($BE40)=BN$31,MIN($AK40,13-MONTH($BE40)),IF(BN$31>YEAR($AG40),0,IF(BN$31=YEAR($AG40),$AK40-SUM($BJ40:BM40),12))))) -> 0 | BO40: =IF($AK40=0,0,IF(YEAR($BE40)>BO$31,0,IF(YEAR($BE40)=BO$31,MIN($AK40,13-MONTH($BE40)),IF(BO$31>YEAR($AG40),0,IF(BO$31=YEAR($AG40),$AK40-SUM($BJ40:BN40),12))))) -> 0 | BP40: =IF($AK40=0,0,IF(YEAR($BE40)>BP$31,0,IF(YEAR($BE40)=BP$31,MIN($AK40,13-MONTH($BE40)),IF(BP$31>YEAR($AG40),0,IF(BP$31=YEAR($AG40),$AK40-SUM($BJ40:BO40),12))))) -> 0 | BQ40: =IF($AK40=0,0,IF(YEAR($BE40)>BQ$31,0,IF(YEAR($BE40)=BQ$31,MIN($AK40,13-MONTH($BE40)),IF(BQ$31>YEAR($AG40),0,IF(BQ$31=YEAR($AG40),$AK40-SUM($BJ40:BP40),12))))) -> 0 | BR40: =IF($AK40=0,0,IF(YEAR($BE40)>BR$31,0,IF(YEAR($BE40)=BR$31,MIN($AK40,13-MONTH($BE40)),IF(BR$31>YEAR($AG40),0,IF(BR$31=YEAR($AG40),$AK40-SUM($BJ40:BQ40),12))))) -> 0 | BS40: =IF($AK40=0,0,IF(YEAR($BE40)>BS$31,0,IF(YEAR($BE40)=BS$31,MIN($AK40,13-MONTH($BE40)),IF(BS$31>YEAR($AG40),0,IF(BS$31=YEAR($AG40),$AK40-SUM($BJ40:BR40),12))))) -> 0 | BT40: =IF($AK40=0,0,IF(YEAR($BE40)>BT$31,0,IF(YEAR($BE40)=BT$31,MIN($AK40,13-MONTH($BE40)),IF(BT$31>YEAR($AG40),0,IF(BT$31=YEAR($AG40),$AK40-SUM($BJ40:BS40),12))))) -> 0 | BU40: 0 | BV40: 0 | BW40: 0 | BX40: 0 | BY40: 0 | BZ40: 0 | CA40: 0 | CB40: 0 | CC40: 0 | CD40: 0 | CE40: 0 | CF40: 0 | CG40: 0 | CH40: 0 | CI40: 0 | CJ40: 0 | CK40: 0 | CL40: 0 | CM40: 0 | CN40: 0 | CO40: 0 | CP40: 0 | CQ40: 0 | CR40: 0 | CS40: 0 | CT40: 0 | CU40: 0 | CV40: 0 | CW40: 0 | CX40: 0 | CY40: 0 | CZ40: 0 | DA40: 0 | DB40: 0 | DC40: 0 | DD40: 0 | DE40: 0 | DF40: 0 | DG40: 0 | DH40: 0 | DI40: 0 | DJ40: 0 | DK40: 0 | DL40: 0 | DM40: 0 | DN40: 0
P41: 0.8 | Q41: 0.1 | R41: =IF(Invoer_selectie_varianten=1,IF(ISBLANK(N41),'8. Beheer_Tabellen'!$F$34,N41),'8. Beheer_Tabellen'!$F$34) -> ja | T41: =VLOOKUP(S41,'8. Beheer_Tabellen'!$B$104:$D$115,3,TRUE) ->  | V41: =VLOOKUP(U41,'8. Beheer_Tabellen'!$B$104:$D$115,3,TRUE) ->  | W41: =IFERROR(VLOOKUP(YEAR(C41),'8. Beheer_Tabellen'!$B$62:$D$80,3,FALSE),57)*E41 -> 0 | X41: 0 | Y41: =IFERROR(Uren_per_jaar*E41*VLOOKUP(U41,'8. Beheer_Tabellen'!$B$88:$G$99,6,TRUE),) -> 0 | Z41: 0 | AB41: 0 | AC41: 0 | AD41: 0 | AE41: 0 | AF41: =IF(I41="",0,(((I41*'8. Beheer_Tabellen'!$C$14)+(I41*'8. Beheer_Tabellen'!$C$12)+I41)*12*1/E41)) -> 0 | AG41: =EDATE(C41,VLOOKUP(C41,'8. Beheer_Tabellen'!$B$40:$E$55,4,TRUE)) ->  | AH41: =E41*$P41*'8. Beheer_Tabellen'!$F$12>=$E$31 -> FALSE | AI41: 0 | AJ41: 0 | AK41: =IFERROR(DATEDIF(BE41,MIN(AG41,'8. Beheer_Tabellen'!$C$8),"m")*AI41,0) -> 0 | AL41: =((I41*'8. Beheer_Tabellen'!$C$14)+(I41*'8. Beheer_Tabellen'!$C$12)+I41)*AI41 -> 0 | AM41: =IF('8. Beheer_Tabellen'!$F$32="Ja",AL41+J41,AL41) -> 0 | AN41: 0 | AO41: 0 | AP41: 0 | AQ41: 0 | AR41: =IF(MIN('8. Beheer_Tabellen'!$C$16*(MIN(AE41,'8. Beheer_Tabellen'!$C$20)-'8. Beheer_Tabellen'!$C$18),'8. Beheer_Tabellen'!$C$22)*AI41<0,0,MIN('8. Beheer_Tabellen'!$C$16*(MIN(AE41,'8. Beheer_Tabellen'!$C$20)-'8. Beheer_Tabellen'!$C$18),'8. Beheer_Tabellen'!$C$22)*AI41) -> 0 | AS41: =MIN(AR41*E41,'8. Beheer_Tabellen'!C$22) -> 0 | AT41: 0 | AU41: 0 | AV41: 0 | AW41: 0 | AX41: 0 | AY41: =AV41*AK41/12*'8. Beheer_Tabellen'!$C$26 -> 0 | AZ41: 0 | BA41: 0 | BB41: 0 | BF41: 0 | BG41: 0 | BH41: 0 | BI41: 0 | BJ41: 0 | BK41: =IF($AK41=0,0,IF(YEAR($BE41)>BK$31,0,IF(YEAR($BE41)=BK$31,MIN($AK41,13-MONTH($BE41)),IF(BK$31>YEAR($AG41),0,IF(BK$31=YEAR($AG41),$AK41-SUM($BJ41:BJ41),12))))) -> 0 | BL41: =IF($AK41=0,0,IF(YEAR($BE41)>BL$31,0,IF(YEAR($BE41)=BL$31,MIN($AK41,13-MONTH($BE41)),IF(BL$31>YEAR($AG41),0,IF(BL$31=YEAR($AG41),$AK41-SUM($BJ41:BK41),12))))) -> 0 | BM41: =IF($AK41=0,0,IF(YEAR($BE41)>BM$31,0,IF(YEAR($BE41)=BM$31,MIN($AK41,13-MONTH($BE41)),IF(BM$31>YEAR($AG41),0,IF(BM$31=YEAR($AG41),$AK41-SUM($BJ41:BL41),12))))) -> 0 | BN41: =IF($AK41=0,0,IF(YEAR($BE41)>BN$31,0,IF(YEAR($BE41)=BN$31,MIN($AK41,13-MONTH($BE41)),IF(BN$31>YEAR($AG41),0,IF(BN$31=YEAR($AG41),$AK41-SUM($BJ41:BM41),12))))) -> 0 | BO41: =IF($AK41=0,0,IF(YEAR($BE41)>BO$31,0,IF(YEAR($BE41)=BO$31,MIN($AK41,13-MONTH($BE41)),IF(BO$31>YEAR($AG41),0,IF(BO$31=YEAR($AG41),$AK41-SUM($BJ41:BN41),12))))) -> 0 | BP41: =IF($AK41=0,0,IF(YEAR($BE41)>BP$31,0,IF(YEAR($BE41)=BP$31,MIN($AK41,13-MONTH($BE41)),IF(BP$31>YEAR($AG41),0,IF(BP$31=YEAR($AG41),$AK41-SUM($BJ41:BO41),12))))) -> 0 | BQ41: =IF($AK41=0,0,IF(YEAR($BE41)>BQ$31,0,IF(YEAR($BE41)=BQ$31,MIN($AK41,13-MONTH($BE41)),IF(BQ$31>YEAR($AG41),0,IF(BQ$31=YEAR($AG41),$AK41-SUM($BJ41:BP41),12))))) -> 0 | BR41: =IF($AK41=0,0,IF(YEAR($BE41)>BR$31,0,IF(YEAR($BE41)=BR$31,MIN($AK41,13-MONTH($BE41)),IF(BR$31>YEAR($AG41),0,IF(BR$31=YEAR($AG41),$AK41-SUM($BJ41:BQ41),12))))) -> 0 | BS41: =IF($AK41=0,0,IF(YEAR($BE41)>BS$31,0,IF(YEAR($BE41)=BS$31,MIN($AK41,13-MONTH($BE41)),IF(BS$31>YEAR($AG41),0,IF(BS$31=YEAR($AG41),$AK41-SUM($BJ41:BR41),12))))) -> 0 | BT41: =IF($AK41=0,0,IF(YEAR($BE41)>BT$31,0,IF(YEAR($BE41)=BT$31,MIN($AK41,13-MONTH($BE41)),IF(BT$31>YEAR($AG41),0,IF(BT$31=YEAR($AG41),$AK41-SUM($BJ41:BS41),12))))) -> 0 | BU41: 0 | BV41: 0 | BW41: 0 | BX41: 0 | BY41: 0 | BZ41: 0 | CA41: 0 | CB41: 0 | CC41: 0 | CD41: 0 | CE41: 0 | CF41: 0 | CG41: 0 | CH41: 0 | CI41: 0 | CJ41: 0 | CK41: 0 | CL41: 0 | CM41: 0 | CN41: 0 | CO41: 0 | CP41: 0 | CQ41: 0 | CR41: 0 | CS41: 0 | CT41: 0 | CU41: 0 | CV41: 0 | CW41: 0 | CX41: 0 | CY41: 0 | CZ41: 0 | DA41: 0 | DB41: 0 | DC41: 0 | DD41: 0 | DE41: 0 | DF41: 0 | DG41: 0 | DH41: 0 | DI41: 0 | DJ41: 0 | DK41: 0 | DL41: 0 | DM41: 0 | DN41: 0
P42: 0.8 | Q42: 0.1 | R42: =IF(Invoer_selectie_varianten=1,IF(ISBLANK(N42),'8. Beheer_Tabellen'!$F$34,N42),'8. Beheer_Tabellen'!$F$34) -> ja | T42: =VLOOKUP(S42,'8. Beheer_Tabellen'!$B$104:$D$115,3,TRUE) ->  | V42: =VLOOKUP(U42,'8. Beheer_Tabellen'!$B$104:$D$115,3,TRUE) ->  | W42: =IFERROR(VLOOKUP(YEAR(C42),'8. Beheer_Tabellen'!$B$62:$D$80,3,FALSE),57)*E42 -> 0 | X42: 0 | Y42: =IFERROR(Uren_per_jaar*E42*VLOOKUP(U42,'8. Beheer_Tabellen'!$B$88:$G$99,6,TRUE),) -> 0 | Z42: 0 | AB42: 0 | AC42: 0 | AD42: 0 | AE42: 0 | AF42: =IF(I42="",0,(((I42*'8. Beheer_Tabellen'!$C$14)+(I42*'8. Beheer_Tabellen'!$C$12)+I42)*12*1/E42)) -> 0 | AG42: =EDATE(C42,VLOOKUP(C42,'8. Beheer_Tabellen'!$B$40:$E$55,4,TRUE)) ->  | AH42: =E42*$P42*'8. Beheer_Tabellen'!$F$12>=$E$31 -> FALSE | AI42: 0 | AJ42: 0 | AK42: =IFERROR(DATEDIF(BE42,MIN(AG42,'8. Beheer_Tabellen'!$C$8),"m")*AI42,0) -> 0 | AL42: =((I42*'8. Beheer_Tabellen'!$C$14)+(I42*'8. Beheer_Tabellen'!$C$12)+I42)*AI42 -> 0 | AM42: =IF('8. Beheer_Tabellen'!$F$32="Ja",AL42+J42,AL42) -> 0 | AN42: 0 | AO42: 0 | AP42: 0 | AQ42: 0 | AR42: =IF(MIN('8. Beheer_Tabellen'!$C$16*(MIN(AE42,'8. Beheer_Tabellen'!$C$20)-'8. Beheer_Tabellen'!$C$18),'8. Beheer_Tabellen'!$C$22)*AI42<0,0,MIN('8. Beheer_Tabellen'!$C$16*(MIN(AE42,'8. Beheer_Tabellen'!$C$20)-'8. Beheer_Tabellen'!$C$18),'8. Beheer_Tabellen'!$C$22)*AI42) -> 0 | AS42: =MIN(AR42*E42,'8. Beheer_Tabellen'!C$22) -> 0 | AT42: 0 | AU42: 0 | AV42: 0 | AW42: 0 | AX42: 0 | AY42: =AV42*AK42/12*'8. Beheer_Tabellen'!$C$26 -> 0 | AZ42: 0 | BA42: 0 | BB42: 0 | BF42: 0 | BG42: 0 | BH42: 0 | BI42: 0 | BJ42: 0 | BK42: =IF($AK42=0,0,IF(YEAR($BE42)>BK$31,0,IF(YEAR($BE42)=BK$31,MIN($AK42,13-MONTH($BE42)),IF(BK$31>YEAR($AG42),0,IF(BK$31=YEAR($AG42),$AK42-SUM($BJ42:BJ42),12))))) -> 0 | BL42: =IF($AK42=0,0,IF(YEAR($BE42)>BL$31,0,IF(YEAR($BE42)=BL$31,MIN($AK42,13-MONTH($BE42)),IF(BL$31>YEAR($AG42),0,IF(BL$31=YEAR($AG42),$AK42-SUM($BJ42:BK42),12))))) -> 0 | BM42: =IF($AK42=0,0,IF(YEAR($BE42)>BM$31,0,IF(YEAR($BE42)=BM$31,MIN($AK42,13-MONTH($BE42)),IF(BM$31>YEAR($AG42),0,IF(BM$31=YEAR($AG42),$AK42-SUM($BJ42:BL42),12))))) -> 0 | BN42: =IF($AK42=0,0,IF(YEAR($BE42)>BN$31,0,IF(YEAR($BE42)=BN$31,MIN($AK42,13-MONTH($BE42)),IF(BN$31>YEAR($AG42),0,IF(BN$31=YEAR($AG42),$AK42-SUM($BJ42:BM42),12))))) -> 0 | BO42: =IF($AK42=0,0,IF(YEAR($BE42)>BO$31,0,IF(YEAR($BE42)=BO$31,MIN($AK42,13-MONTH($BE42)),IF(BO$31>YEAR($AG42),0,IF(BO$31=YEAR($AG42),$AK42-SUM($BJ42:BN42),12))))) -> 0 | BP42: =IF($AK42=0,0,IF(YEAR($BE42)>BP$31,0,IF(YEAR($BE42)=BP$31,MIN($AK42,13-MONTH($BE42)),IF(BP$31>YEAR($AG42),0,IF(BP$31=YEAR($AG42),$AK42-SUM($BJ42:BO42),12))))) -> 0 | BQ42: =IF($AK42=0,0,IF(YEAR($BE42)>BQ$31,0,IF(YEAR($BE42)=BQ$31,MIN($AK42,13-MONTH($BE42)),IF(BQ$31>YEAR($AG42),0,IF(BQ$31=YEAR($AG42),$AK42-SUM($BJ42:BP42),12))))) -> 0 | BR42: =IF($AK42=0,0,IF(YEAR($BE42)>BR$31,0,IF(YEAR($BE42)=BR$31,MIN($AK42,13-MONTH($BE42)),IF(BR$31>YEAR($AG42),0,IF(BR$31=YEAR($AG42),$AK42-SUM($BJ42:BQ42),12))))) -> 0 | BS42: =IF($AK42=0,0,IF(YEAR($BE42)>BS$31,0,IF(YEAR($BE42)=BS$31,MIN($AK42,13-MONTH($BE42)),IF(BS$31>YEAR($AG42),0,IF(BS$31=YEAR($AG42),$AK42-SUM($BJ42:BR42),12))))) -> 0 | BT42: =IF($AK42=0,0,IF(YEAR($BE42)>BT$31,0,IF(YEAR($BE42)=BT$31,MIN($AK42,13-MONTH($BE42)),IF(BT$31>YEAR($AG42),0,IF(BT$31=YEAR($AG42),$AK42-SUM($BJ42:BS42),12))))) -> 0 | BU42: 0 | BV42: 0 | BW42: 0 | BX42: 0 | BY42: 0 | BZ42: 0 | CA42: 0 | CB42: 0 | CC42: 0 | CD42: 0 | CE42: 0 | CF42: 0 | CG42: 0 | CH42: 0 | CI42: 0 | CJ42: 0 | CK42: 0 | CL42: 0 | CM42: 0 | CN42: 0 | CO42: 0 | CP42: 0 | CQ42: 0 | CR42: 0 | CS42: 0 | CT42: 0 | CU42: 0 | CV42: 0 | CW42: 0 | CX42: 0 | CY42: 0 | CZ42: 0 | DA42: 0 | DB42: 0 | DC42: 0 | DD42: 0 | DE42: 0 | DF42: 0 | DG42: 0 | DH42: 0 | DI42: 0 | DJ42: 0 | DK42: 0 | DL42: 0 | DM42: 0 | DN42: 0
P43: 0.8 | Q43: 0.1 | R43: =IF(Invoer_selectie_varianten=1,IF(ISBLANK(N43),'8. Beheer_Tabellen'!$F$34,N43),'8. Beheer_Tabellen'!$F$34) -> ja | T43: =VLOOKUP(S43,'8. Beheer_Tabellen'!$B$104:$D$115,3,TRUE) ->  | V43: =VLOOKUP(U43,'8. Beheer_Tabellen'!$B$104:$D$115,3,TRUE) ->  | W43: =IFERROR(VLOOKUP(YEAR(C43),'8. Beheer_Tabellen'!$B$62:$D$80,3,FALSE),57)*E43 -> 0 | X43: 0 | Y43: =IFERROR(Uren_per_jaar*E43*VLOOKUP(U43,'8. Beheer_Tabellen'!$B$88:$G$99,6,TRUE),) -> 0 | Z43: 0 | AB43: 0 | AC43: 0 | AD43: 0 | AE43: 0 | AF43: =IF(I43="",0,(((I43*'8. Beheer_Tabellen'!$C$14)+(I43*'8. Beheer_Tabellen'!$C$12)+I43)*12*1/E43)) -> 0 | AG43: =EDATE(C43,VLOOKUP(C43,'8. Beheer_Tabellen'!$B$40:$E$55,4,TRUE)) ->  | AH43: =E43*$P43*'8. Beheer_Tabellen'!$F$12>=$E$31 -> FALSE | AI43: 0 | AJ43: 0 | AK43: =IFERROR(DATEDIF(BE43,MIN(AG43,'8. Beheer_Tabellen'!$C$8),"m")*AI43,0) -> 0 | AL43: =((I43*'8. Beheer_Tabellen'!$C$14)+(I43*'8. Beheer_Tabellen'!$C$12)+I43)*AI43 -> 0 | AM43: =IF('8. Beheer_Tabellen'!$F$32="Ja",AL43+J43,AL43) -> 0 | AN43: 0 | AO43: 0 | AP43: 0 | AQ43: 0 | AR43: =IF(MIN('8. Beheer_Tabellen'!$C$16*(MIN(AE43,'8. Beheer_Tabellen'!$C$20)-'8. Beheer_Tabellen'!$C$18),'8. Beheer_Tabellen'!$C$22)*AI43<0,0,MIN('8. Beheer_Tabellen'!$C$16*(MIN(AE43,'8. Beheer_Tabellen'!$C$20)-'8. Beheer_Tabellen'!$C$18),'8. Beheer_Tabellen'!$C$22)*AI43) -> 0 | AS43: =MIN(AR43*E43,'8. Beheer_Tabellen'!C$22) -> 0 | AT43: 0 | AU43: 0 | AV43: 0 | AW43: 0 | AX43: 0 | AY43: =AV43*AK43/12*'8. Beheer_Tabellen'!$C$26 -> 0 | AZ43: 0 | BA43: 0 | BB43: 0 | BF43: 0 | BG43: 0 | BH43: 0 | BI43: 0 | BJ43: 0 | BK43: =IF($AK43=0,0,IF(YEAR($BE43)>BK$31,0,IF(YEAR($BE43)=BK$31,MIN($AK43,13-MONTH($BE43)),IF(BK$31>YEAR($AG43),0,IF(BK$31=YEAR($AG43),$AK43-SUM($BJ43:BJ43),12))))) -> 0 | BL43: =IF($AK43=0,0,IF(YEAR($BE43)>BL$31,0,IF(YEAR($BE43)=BL$31,MIN($AK43,13-MONTH($BE43)),IF(BL$31>YEAR($AG43),0,IF(BL$31=YEAR($AG43),$AK43-SUM($BJ43:BK43),12))))) -> 0 | BM43: =IF($AK43=0,0,IF(YEAR($BE43)>BM$31,0,IF(YEAR($BE43)=BM$31,MIN($AK43,13-MONTH($BE43)),IF(BM$31>YEAR($AG43),0,IF(BM$31=YEAR($AG43),$AK43-SUM($BJ43:BL43),12))))) -> 0 | BN43: =IF($AK43=0,0,IF(YEAR($BE43)>BN$31,0,IF(YEAR($BE43)=BN$31,MIN($AK43,13-MONTH($BE43)),IF(BN$31>YEAR($AG43),0,IF(BN$31=YEAR($AG43),$AK43-SUM($BJ43:BM43),12))))) -> 0 | BO43: =IF($AK43=0,0,IF(YEAR($BE43)>BO$31,0,IF(YEAR($BE43)=BO$31,MIN($AK43,13-MONTH($BE43)),IF(BO$31>YEAR($AG43),0,IF(BO$31=YEAR($AG43),$AK43-SUM($BJ43:BN43),12))))) -> 0 | BP43: =IF($AK43=0,0,IF(YEAR($BE43)>BP$31,0,IF(YEAR($BE43)=BP$31,MIN($AK43,13-MONTH($BE43)),IF(BP$31>YEAR($AG43),0,IF(BP$31=YEAR($AG43),$AK43-SUM($BJ43:BO43),12))))) -> 0 | BQ43: =IF($AK43=0,0,IF(YEAR($BE43)>BQ$31,0,IF(YEAR($BE43)=BQ$31,MIN($AK43,13-MONTH($BE43)),IF(BQ$31>YEAR($AG43),0,IF(BQ$31=YEAR($AG43),$AK43-SUM($BJ43:BP43),12))))) -> 0 | BR43: =IF($AK43=0,0,IF(YEAR($BE43)>BR$31,0,IF(YEAR($BE43)=BR$31,MIN($AK43,13-MONTH($BE43)),IF(BR$31>YEAR($AG43),0,IF(BR$31=YEAR($AG43),$AK43-SUM($BJ43:BQ43),12))))) -> 0 | BS43: =IF($AK43=0,0,IF(YEAR($BE43)>BS$31,0,IF(YEAR($BE43)=BS$31,MIN($AK43,13-MONTH($BE43)),IF(BS$31>YEAR($AG43),0,IF(BS$31=YEAR($AG43),$AK43-SUM($BJ43:BR43),12))))) -> 0 | BT43: =IF($AK43=0,0,IF(YEAR($BE43)>BT$31,0,IF(YEAR($BE43)=BT$31,MIN($AK43,13-MONTH($BE43)),IF(BT$31>YEAR($AG43),0,IF(BT$31=YEAR($AG43),$AK43-SUM($BJ43:BS43),12))))) -> 0 | BU43: 0 | BV43: 0 | BW43: 0 | BX43: 0 | BY43: 0 | BZ43: 0 | CA43: 0 | CB43: 0 | CC43: 0 | CD43: 0 | CE43: 0 | CF43: 0 | CG43: 0 | CH43: 0 | CI43: 0 | CJ43: 0 | CK43: 0 | CL43: 0 | CM43: 0 | CN43: 0 | CO43: 0 | CP43: 0 | CQ43: 0 | CR43: 0 | CS43: 0 | CT43: 0 | CU43: 0 | CV43: 0 | CW43: 0 | CX43: 0 | CY43: 0 | CZ43: 0 | DA43: 0 | DB43: 0 | DC43: 0 | DD43: 0 | DE43: 0 | DF43: 0 | DG43: 0 | DH43: 0 | DI43: 0 | DJ43: 0 | DK43: 0 | DL43: 0 | DM43: 0 | DN43: 0
P44: 0.8 | Q44: 0.1 | R44: =IF(Invoer_selectie_varianten=1,IF(ISBLANK(N44),'8. Beheer_Tabellen'!$F$34,N44),'8. Beheer_Tabellen'!$F$34) -> ja | T44: =VLOOKUP(S44,'8. Beheer_Tabellen'!$B$104:$D$115,3,TRUE) ->  | V44: =VLOOKUP(U44,'8. Beheer_Tabellen'!$B$104:$D$115,3,TRUE) ->  | W44: =IFERROR(VLOOKUP(YEAR(C44),'8. Beheer_Tabellen'!$B$62:$D$80,3,FALSE),57)*E44 -> 0 | X44: 0 | Y44: =IFERROR(Uren_per_jaar*E44*VLOOKUP(U44,'8. Beheer_Tabellen'!$B$88:$G$99,6,TRUE),) -> 0 | Z44: 0 | AB44: 0 | AC44: 0 | AD44: 0 | AE44: 0 | AF44: =IF(I44="",0,(((I44*'8. Beheer_Tabellen'!$C$14)+(I44*'8. Beheer_Tabellen'!$C$12)+I44)*12*1/E44)) -> 0 | AG44: =EDATE(C44,VLOOKUP(C44,'8. Beheer_Tabellen'!$B$40:$E$55,4,TRUE)) ->  | AH44: =E44*$P44*'8. Beheer_Tabellen'!$F$12>=$E$31 -> FALSE | AI44: 0 | AJ44: 0 | AK44: =IFERROR(DATEDIF(BE44,MIN(AG44,'8. Beheer_Tabellen'!$C$8),"m")*AI44,0) -> 0 | AL44: =((I44*'8. Beheer_Tabellen'!$C$14)+(I44*'8. Beheer_Tabellen'!$C$12)+I44)*AI44 -> 0 | AM44: =IF('8. Beheer_Tabellen'!$F$32="Ja",AL44+J44,AL44) -> 0 | AN44: 0 | AO44: 0 | AP44: 0 | AQ44: 0 | AR44: =IF(MIN('8. Beheer_Tabellen'!$C$16*(MIN(AE44,'8. Beheer_Tabellen'!$C$20)-'8. Beheer_Tabellen'!$C$18),'8. Beheer_Tabellen'!$C$22)*AI44<0,0,MIN('8. Beheer_Tabellen'!$C$16*(MIN(AE44,'8. Beheer_Tabellen'!$C$20)-'8. Beheer_Tabellen'!$C$18),'8. Beheer_Tabellen'!$C$22)*AI44) -> 0 | AS44: =MIN(AR44*E44,'8. Beheer_Tabellen'!C$22) -> 0 | AT44: 0 | AU44: 0 | AV44: 0 | AW44: 0 | AX44: 0 | AY44: =AV44*AK44/12*'8. Beheer_Tabellen'!$C$26 -> 0 | AZ44: 0 | BA44: 0 | BB44: 0 | BF44: 0 | BG44: 0 | BH44: 0 | BI44: 0 | BJ44: 0 | BK44: =IF($AK44=0,0,IF(YEAR($BE44)>BK$31,0,IF(YEAR($BE44)=BK$31,MIN($AK44,13-MONTH($BE44)),IF(BK$31>YEAR($AG44),0,IF(BK$31=YEAR($AG44),$AK44-SUM($BJ44:BJ44),12))))) -> 0 | BL44: =IF($AK44=0,0,IF(YEAR($BE44)>BL$31,0,IF(YEAR($BE44)=BL$31,MIN($AK44,13-MONTH($BE44)),IF(BL$31>YEAR($AG44),0,IF(BL$31=YEAR($AG44),$AK44-SUM($BJ44:BK44),12))))) -> 0 | BM44: =IF($AK44=0,0,IF(YEAR($BE44)>BM$31,0,IF(YEAR($BE44)=BM$31,MIN($AK44,13-MONTH($BE44)),IF(BM$31>YEAR($AG44),0,IF(BM$31=YEAR($AG44),$AK44-SUM($BJ44:BL44),12))))) -> 0 | BN44: =IF($AK44=0,0,IF(YEAR($BE44)>BN$31,0,IF(YEAR($BE44)=BN$31,MIN($AK44,13-MONTH($BE44)),IF(BN$31>YEAR($AG44),0,IF(BN$31=YEAR($AG44),$AK44-SUM($BJ44:BM44),12))))) -> 0 | BO44: =IF($AK44=0,0,IF(YEAR($BE44)>BO$31,0,IF(YEAR($BE44)=BO$31,MIN($AK44,13-MONTH($BE44)),IF(BO$31>YEAR($AG44),0,IF(BO$31=YEAR($AG44),$AK44-SUM($BJ44:BN44),12))))) -> 0 | BP44: =IF($AK44=0,0,IF(YEAR($BE44)>BP$31,0,IF(YEAR($BE44)=BP$31,MIN($AK44,13-MONTH($BE44)),IF(BP$31>YEAR($AG44),0,IF(BP$31=YEAR($AG44),$AK44-SUM($BJ44:BO44),12))))) -> 0 | BQ44: =IF($AK44=0,0,IF(YEAR($BE44)>BQ$31,0,IF(YEAR($BE44)=BQ$31,MIN($AK44,13-MONTH($BE44)),IF(BQ$31>YEAR($AG44),0,IF(BQ$31=YEAR($AG44),$AK44-SUM($BJ44:BP44),12))))) -> 0 | BR44: =IF($AK44=0,0,IF(YEAR($BE44)>BR$31,0,IF(YEAR($BE44)=BR$31,MIN($AK44,13-MONTH($BE44)),IF(BR$31>YEAR($AG44),0,IF(BR$31=YEAR($AG44),$AK44-SUM($BJ44:BQ44),12))))) -> 0 | BS44: =IF($AK44=0,0,IF(YEAR($BE44)>BS$31,0,IF(YEAR($BE44)=BS$31,MIN($AK44,13-MONTH($BE44)),IF(BS$31>YEAR($AG44),0,IF(BS$31=YEAR($AG44),$AK44-SUM($BJ44:BR44),12))))) -> 0 | BT44: =IF($AK44=0,0,IF(YEAR($BE44)>BT$31,0,IF(YEAR($BE44)=BT$31,MIN($AK44,13-MONTH($BE44)),IF(BT$31>YEAR($AG44),0,IF(BT$31=YEAR($AG44),$AK44-SUM($BJ44:BS44),12))))) -> 0 | BU44: 0 | BV44: 0 | BW44: 0 | BX44: 0 | BY44: 0 | BZ44: 0 | CA44: 0 | CB44: 0 | CC44: 0 | CD44: 0 | CE44: 0 | CF44: 0 | CG44: 0 | CH44: 0 | CI44: 0 | CJ44: 0 | CK44: 0 | CL44: 0 | CM44: 0 | CN44: 0 | CO44: 0 | CP44: 0 | CQ44: 0 | CR44: 0 | CS44: 0 | CT44: 0 | CU44: 0 | CV44: 0 | CW44: 0 | CX44: 0 | CY44: 0 | CZ44: 0 | DA44: 0 | DB44: 0 | DC44: 0 | DD44: 0 | DE44: 0 | DF44: 0 | DG44: 0 | DH44: 0 | DI44: 0 | DJ44: 0 | DK44: 0 | DL44: 0 | DM44: 0 | DN44: 0
P45: 0.8 | Q45: 0.1 | R45: =IF(Invoer_selectie_varianten=1,IF(ISBLANK(N45),'8. Beheer_Tabellen'!$F$34,N45),'8. Beheer_Tabellen'!$F$34) -> ja | T45: =VLOOKUP(S45,'8. Beheer_Tabellen'!$B$104:$D$115,3,TRUE) ->  | V45: =VLOOKUP(U45,'8. Beheer_Tabellen'!$B$104:$D$115,3,TRUE) ->  | W45: =IFERROR(VLOOKUP(YEAR(C45),'8. Beheer_Tabellen'!$B$62:$D$80,3,FALSE),57)*E45 -> 0 | X45: 0 | Y45: =IFERROR(Uren_per_jaar*E45*VLOOKUP(U45,'8. Beheer_Tabellen'!$B$88:$G$99,6,TRUE),) -> 0 | Z45: 0 | AB45: 0 | AC45: 0 | AD45: 0 | AE45: 0 | AF45: =IF(I45="",0,(((I45*'8. Beheer_Tabellen'!$C$14)+(I45*'8. Beheer_Tabellen'!$C$12)+I45)*12*1/E45)) -> 0 | AG45: =EDATE(C45,VLOOKUP(C45,'8. Beheer_Tabellen'!$B$40:$E$55,4,TRUE)) ->  | AH45: =E45*$P45*'8. Beheer_Tabellen'!$F$12>=$E$31 -> FALSE | AI45: 0 | AJ45: 0 | AK45: =IFERROR(DATEDIF(BE45,MIN(AG45,'8. Beheer_Tabellen'!$C$8),"m")*AI45,0) -> 0 | AL45: =((I45*'8. Beheer_Tabellen'!$C$14)+(I45*'8. Beheer_Tabellen'!$C$12)+I45)*AI45 -> 0 | AM45: =IF('8. Beheer_Tabellen'!$F$32="Ja",AL45+J45,AL45) -> 0 | AN45: 0 | AO45: 0 | AP45: 0 | AQ45: 0 | AR45: =IF(MIN('8. Beheer_Tabellen'!$C$16*(MIN(AE45,'8. Beheer_Tabellen'!$C$20)-'8. Beheer_Tabellen'!$C$18),'8. Beheer_Tabellen'!$C$22)*AI45<0,0,MIN('8. Beheer_Tabellen'!$C$16*(MIN(AE45,'8. Beheer_Tabellen'!$C$20)-'8. Beheer_Tabellen'!$C$18),'8. Beheer_Tabellen'!$C$22)*AI45) -> 0 | AS45: =MIN(AR45*E45,'8. Beheer_Tabellen'!C$22) -> 0 | AT45: 0 | AU45: 0 | AV45: 0 | AW45: 0 | AX45: 0 | AY45: =AV45*AK45/12*'8. Beheer_Tabellen'!$C$26 -> 0 | AZ45: 0 | BA45: 0 | BB45: 0 | BF45: 0 | BG45: 0 | BH45: 0 | BI45: 0 | BJ45: 0 | BK45: =IF($AK45=0,0,IF(YEAR($BE45)>BK$31,0,IF(YEAR($BE45)=BK$31,MIN($AK45,13-MONTH($BE45)),IF(BK$31>YEAR($AG45),0,IF(BK$31=YEAR($AG45),$AK45-SUM($BJ45:BJ45),12))))) -> 0 | BL45: =IF($AK45=0,0,IF(YEAR($BE45)>BL$31,0,IF(YEAR($BE45)=BL$31,MIN($AK45,13-MONTH($BE45)),IF(BL$31>YEAR($AG45),0,IF(BL$31=YEAR($AG45),$AK45-SUM($BJ45:BK45),12))))) -> 0 | BM45: =IF($AK45=0,0,IF(YEAR($BE45)>BM$31,0,IF(YEAR($BE45)=BM$31,MIN($AK45,13-MONTH($BE45)),IF(BM$31>YEAR($AG45),0,IF(BM$31=YEAR($AG45),$AK45-SUM($BJ45:BL45),12))))) -> 0 | BN45: =IF($AK45=0,0,IF(YEAR($BE45)>BN$31,0,IF(YEAR($BE45)=BN$31,MIN($AK45,13-MONTH($BE45)),IF(BN$31>YEAR($AG45),0,IF(BN$31=YEAR($AG45),$AK45-SUM($BJ45:BM45),12))))) -> 0 | BO45: =IF($AK45=0,0,IF(YEAR($BE45)>BO$31,0,IF(YEAR($BE45)=BO$31,MIN($AK45,13-MONTH($BE45)),IF(BO$31>YEAR($AG45),0,IF(BO$31=YEAR($AG45),$AK45-SUM($BJ45:BN45),12))))) -> 0 | BP45: =IF($AK45=0,0,IF(YEAR($BE45)>BP$31,0,IF(YEAR($BE45)=BP$31,MIN($AK45,13-MONTH($BE45)),IF(BP$31>YEAR($AG45),0,IF(BP$31=YEAR($AG45),$AK45-SUM($BJ45:BO45),12))))) -> 0 | BQ45: =IF($AK45=0,0,IF(YEAR($BE45)>BQ$31,0,IF(YEAR($BE45)=BQ$31,MIN($AK45,13-MONTH($BE45)),IF(BQ$31>YEAR($AG45),0,IF(BQ$31=YEAR($AG45),$AK45-SUM($BJ45:BP45),12))))) -> 0 | BR45: =IF($AK45=0,0,IF(YEAR($BE45)>BR$31,0,IF(YEAR($BE45)=BR$31,MIN($AK45,13-MONTH($BE45)),IF(BR$31>YEAR($AG45),0,IF(BR$31=YEAR($AG45),$AK45-SUM($BJ45:BQ45),12))))) -> 0 | BS45: =IF($AK45=0,0,IF(YEAR($BE45)>BS$31,0,IF(YEAR($BE45)=BS$31,MIN($AK45,13-MONTH($BE45)),IF(BS$31>YEAR($AG45),0,IF(BS$31=YEAR($AG45),$AK45-SUM($BJ45:BR45),12))))) -> 0 | BT45: =IF($AK45=0,0,IF(YEAR($BE45)>BT$31,0,IF(YEAR($BE45)=BT$31,MIN($AK45,13-MONTH($BE45)),IF(BT$31>YEAR($AG45),0,IF(BT$31=YEAR($AG45),$AK45-SUM($BJ45:BS45),12))))) -> 0 | BU45: 0 | BV45: 0 | BW45: 0 | BX45: 0 | BY45: 0 | BZ45: 0 | CA45: 0 | CB45: 0 | CC45: 0 | CD45: 0 | CE45: 0 | CF45: 0 | CG45: 0 | CH45: 0 | CI45: 0 | CJ45: 0 | CK45: 0 | CL45: 0 | CM45: 0 | CN45: 0 | CO45: 0 | CP45: 0 | CQ45: 0 | CR45: 0 | CS45: 0 | CT45: 0 | CU45: 0 | CV45: 0 | CW45: 0 | CX45: 0 | CY45: 0 | CZ45: 0 | DA45: 0 | DB45: 0 | DC45: 0 | DD45: 0 | DE45: 0 | DF45: 0 | DG45: 0 | DH45: 0 | DI45: 0 | DJ45: 0 | DK45: 0 | DL45: 0 | DM45: 0 | DN45: 0
P46: 0.8 | Q46: 0.1 | R46: =IF(Invoer_selectie_varianten=1,IF(ISBLANK(N46),'8. Beheer_Tabellen'!$F$34,N46),'8. Beheer_Tabellen'!$F$34) -> ja | T46: =VLOOKUP(S46,'8. Beheer_Tabellen'!$B$104:$D$115,3,TRUE) ->  | V46: =VLOOKUP(U46,'8. Beheer_Tabellen'!$B$104:$D$115,3,TRUE) ->  | W46: =IFERROR(VLOOKUP(YEAR(C46),'8. Beheer_Tabellen'!$B$62:$D$80,3,FALSE),57)*E46 -> 0 | X46: 0 | Y46: =IFERROR(Uren_per_jaar*E46*VLOOKUP(U46,'8. Beheer_Tabellen'!$B$88:$G$99,6,TRUE),) -> 0 | Z46: 0 | AB46: 0 | AC46: 0 | AD46: 0 | AE46: 0 | AF46: =IF(I46="",0,(((I46*'8. Beheer_Tabellen'!$C$14)+(I46*'8. Beheer_Tabellen'!$C$12)+I46)*12*1/E46)) -> 0 | AG46: =EDATE(C46,VLOOKUP(C46,'8. Beheer_Tabellen'!$B$40:$E$55,4,TRUE)) ->  | AH46: =E46*$P46*'8. Beheer_Tabellen'!$F$12>=$E$31 -> FALSE | AI46: 0 | AJ46: 0 | AK46: =IFERROR(DATEDIF(BE46,MIN(AG46,'8. Beheer_Tabellen'!$C$8),"m")*AI46,0) -> 0 | AL46: =((I46*'8. Beheer_Tabellen'!$C$14)+(I46*'8. Beheer_Tabellen'!$C$12)+I46)*AI46 -> 0 | AM46: =IF('8. Beheer_Tabellen'!$F$32="Ja",AL46+J46,AL46) -> 0 | AN46: 0 | AO46: 0 | AP46: 0 | AQ46: 0 | AR46: =IF(MIN('8. Beheer_Tabellen'!$C$16*(MIN(AE46,'8. Beheer_Tabellen'!$C$20)-'8. Beheer_Tabellen'!$C$18),'8. Beheer_Tabellen'!$C$22)*AI46<0,0,MIN('8. Beheer_Tabellen'!$C$16*(MIN(AE46,'8. Beheer_Tabellen'!$C$20)-'8. Beheer_Tabellen'!$C$18),'8. Beheer_Tabellen'!$C$22)*AI46) -> 0 | AS46: =MIN(AR46*E46,'8. Beheer_Tabellen'!C$22) -> 0 | AT46: 0 | AU46: 0 | AV46: 0 | AW46: 0 | AX46: 0 | AY46: =AV46*AK46/12*'8. Beheer_Tabellen'!$C$26 -> 0 | AZ46: 0 | BA46: 0 | BB46: 0 | BF46: 0 | BG46: 0 | BH46: 0 | BI46: 0 | BJ46: 0 | BK46: =IF($AK46=0,0,IF(YEAR($BE46)>BK$31,0,IF(YEAR($BE46)=BK$31,MIN($AK46,13-MONTH($BE46)),IF(BK$31>YEAR($AG46),0,IF(BK$31=YEAR($AG46),$AK46-SUM($BJ46:BJ46),12))))) -> 0 | BL46: =IF($AK46=0,0,IF(YEAR($BE46)>BL$31,0,IF(YEAR($BE46)=BL$31,MIN($AK46,13-MONTH($BE46)),IF(BL$31>YEAR($AG46),0,IF(BL$31=YEAR($AG46),$AK46-SUM($BJ46:BK46),12))))) -> 0 | BM46: =IF($AK46=0,0,IF(YEAR($BE46)>BM$31,0,IF(YEAR($BE46)=BM$31,MIN($AK46,13-MONTH($BE46)),IF(BM$31>YEAR($AG46),0,IF(BM$31=YEAR($AG46),$AK46-SUM($BJ46:BL46),12))))) -> 0 | BN46: =IF($AK46=0,0,IF(YEAR($BE46)>BN$31,0,IF(YEAR($BE46)=BN$31,MIN($AK46,13-MONTH($BE46)),IF(BN$31>YEAR($AG46),0,IF(BN$31=YEAR($AG46),$AK46-SUM($BJ46:BM46),12))))) -> 0 | BO46: =IF($AK46=0,0,IF(YEAR($BE46)>BO$31,0,IF(YEAR($BE46)=BO$31,MIN($AK46,13-MONTH($BE46)),IF(BO$31>YEAR($AG46),0,IF(BO$31=YEAR($AG46),$AK46-SUM($BJ46:BN46),12))))) -> 0 | BP46: =IF($AK46=0,0,IF(YEAR($BE46)>BP$31,0,IF(YEAR($BE46)=BP$31,MIN($AK46,13-MONTH($BE46)),IF(BP$31>YEAR($AG46),0,IF(BP$31=YEAR($AG46),$AK46-SUM($BJ46:BO46),12))))) -> 0 | BQ46: =IF($AK46=0,0,IF(YEAR($BE46)>BQ$31,0,IF(YEAR($BE46)=BQ$31,MIN($AK46,13-MONTH($BE46)),IF(BQ$31>YEAR($AG46),0,IF(BQ$31=YEAR($AG46),$AK46-SUM($BJ46:BP46),12))))) -> 0 | BR46: =IF($AK46=0,0,IF(YEAR($BE46)>BR$31,0,IF(YEAR($BE46)=BR$31,MIN($AK46,13-MONTH($BE46)),IF(BR$31>YEAR($AG46),0,IF(BR$31=YEAR($AG46),$AK46-SUM($BJ46:BQ46),12))))) -> 0 | BS46: =IF($AK46=0,0,IF(YEAR($BE46)>BS$31,0,IF(YEAR($BE46)=BS$31,MIN($AK46,13-MONTH($BE46)),IF(BS$31>YEAR($AG46),0,IF(BS$31=YEAR($AG46),$AK46-SUM($BJ46:BR46),12))))) -> 0 | BT46: =IF($AK46=0,0,IF(YEAR($BE46)>BT$31,0,IF(YEAR($BE46)=BT$31,MIN($AK46,13-MONTH($BE46)),IF(BT$31>YEAR($AG46),0,IF(BT$31=YEAR($AG46),$AK46-SUM($BJ46:BS46),12))))) -> 0 | BU46: 0 | BV46: 0 | BW46: 0 | BX46: 0 | BY46: 0 | BZ46: 0 | CA46: 0 | CB46: 0 | CC46: 0 | CD46: 0 | CE46: 0 | CF46: 0 | CG46: 0 | CH46: 0 | CI46: 0 | CJ46: 0 | CK46: 0 | CL46: 0 | CM46: 0 | CN46: 0 | CO46: 0 | CP46: 0 | CQ46: 0 | CR46: 0 | CS46: 0 | CT46: 0 | CU46: 0 | CV46: 0 | CW46: 0 | CX46: 0 | CY46: 0 | CZ46: 0 | DA46: 0 | DB46: 0 | DC46: 0 | DD46: 0 | DE46: 0 | DF46: 0 | DG46: 0 | DH46: 0 | DI46: 0 | DJ46: 0 | DK46: 0 | DL46: 0 | DM46: 0 | DN46: 0
P47: 0.8 | Q47: 0.1 | R47: =IF(Invoer_selectie_varianten=1,IF(ISBLANK(N47),'8. Beheer_Tabellen'!$F$34,N47),'8. Beheer_Tabellen'!$F$34) -> ja | T47: =VLOOKUP(S47,'8. Beheer_Tabellen'!$B$104:$D$115,3,TRUE) ->  | V47: =VLOOKUP(U47,'8. Beheer_Tabellen'!$B$104:$D$115,3,TRUE) ->  | W47: =IFERROR(VLOOKUP(YEAR(C47),'8. Beheer_Tabellen'!$B$62:$D$80,3,FALSE),57)*E47 -> 0 | X47: 0 | Y47: =IFERROR(Uren_per_jaar*E47*VLOOKUP(U47,'8. Beheer_Tabellen'!$B$88:$G$99,6,TRUE),) -> 0 | Z47: 0 | AB47: 0 | AC47: 0 | AD47: 0 | AE47: 0 | AF47: =IF(I47="",0,(((I47*'8. Beheer_Tabellen'!$C$14)+(I47*'8. Beheer_Tabellen'!$C$12)+I47)*12*1/E47)) -> 0 | AG47: =EDATE(C47,VLOOKUP(C47,'8. Beheer_Tabellen'!$B$40:$E$55,4,TRUE)) ->  | AH47: =E47*$P47*'8. Beheer_Tabellen'!$F$12>=$E$31 -> FALSE | AI47: 0 | AJ47: 0 | AK47: =IFERROR(DATEDIF(BE47,MIN(AG47,'8. Beheer_Tabellen'!$C$8),"m")*AI47,0) -> 0 | AL47: =((I47*'8. Beheer_Tabellen'!$C$14)+(I47*'8. Beheer_Tabellen'!$C$12)+I47)*AI47 -> 0 | AM47: =IF('8. Beheer_Tabellen'!$F$32="Ja",AL47+J47,AL47) -> 0 | AN47: 0 | AO47: 0 | AP47: 0 | AQ47: 0 | AR47: =IF(MIN('8. Beheer_Tabellen'!$C$16*(MIN(AE47,'8. Beheer_Tabellen'!$C$20)-'8. Beheer_Tabellen'!$C$18),'8. Beheer_Tabellen'!$C$22)*AI47<0,0,MIN('8. Beheer_Tabellen'!$C$16*(MIN(AE47,'8. Beheer_Tabellen'!$C$20)-'8. Beheer_Tabellen'!$C$18),'8. Beheer_Tabellen'!$C$22)*AI47) -> 0 | AS47: =MIN(AR47*E47,'8. Beheer_Tabellen'!C$22) -> 0 | AT47: 0 | AU47: 0 | AV47: 0 | AW47: 0 | AX47: 0 | AY47: =AV47*AK47/12*'8. Beheer_Tabellen'!$C$26 -> 0 | AZ47: 0 | BA47: 0 | BB47: 0 | BF47: 0 | BG47: 0 | BH47: 0 | BI47: 0 | BJ47: 0 | BK47: =IF($AK47=0,0,IF(YEAR($BE47)>BK$31,0,IF(YEAR($BE47)=BK$31,MIN($AK47,13-MONTH($BE47)),IF(BK$31>YEAR($AG47),0,IF(BK$31=YEAR($AG47),$AK47-SUM($BJ47:BJ47),12))))) -> 0 | BL47: =IF($AK47=0,0,IF(YEAR($BE47)>BL$31,0,IF(YEAR($BE47)=BL$31,MIN($AK47,13-MONTH($BE47)),IF(BL$31>YEAR($AG47),0,IF(BL$31=YEAR($AG47),$AK47-SUM($BJ47:BK47),12))))) -> 0 | BM47: =IF($AK47=0,0,IF(YEAR($BE47)>BM$31,0,IF(YEAR($BE47)=BM$31,MIN($AK47,13-MONTH($BE47)),IF(BM$31>YEAR($AG47),0,IF(BM$31=YEAR($AG47),$AK47-SUM($BJ47:BL47),12))))) -> 0 | BN47: =IF($AK47=0,0,IF(YEAR($BE47)>BN$31,0,IF(YEAR($BE47)=BN$31,MIN($AK47,13-MONTH($BE47)),IF(BN$31>YEAR($AG47),0,IF(BN$31=YEAR($AG47),$AK47-SUM($BJ47:BM47),12))))) -> 0 | BO47: =IF($AK47=0,0,IF(YEAR($BE47)>BO$31,0,IF(YEAR($BE47)=BO$31,MIN($AK47,13-MONTH($BE47)),IF(BO$31>YEAR($AG47),0,IF(BO$31=YEAR($AG47),$AK47-SUM($BJ47:BN47),12))))) -> 0 | BP47: =IF($AK47=0,0,IF(YEAR($BE47)>BP$31,0,IF(YEAR($BE47)=BP$31,MIN($AK47,13-MONTH($BE47)),IF(BP$31>YEAR($AG47),0,IF(BP$31=YEAR($AG47),$AK47-SUM($BJ47:BO47),12))))) -> 0 | BQ47: =IF($AK47=0,0,IF(YEAR($BE47)>BQ$31,0,IF(YEAR($BE47)=BQ$31,MIN($AK47,13-MONTH($BE47)),IF(BQ$31>YEAR($AG47),0,IF(BQ$31=YEAR($AG47),$AK47-SUM($BJ47:BP47),12))))) -> 0 | BR47: =IF($AK47=0,0,IF(YEAR($BE47)>BR$31,0,IF(YEAR($BE47)=BR$31,MIN($AK47,13-MONTH($BE47)),IF(BR$31>YEAR($AG47),0,IF(BR$31=YEAR($AG47),$AK47-SUM($BJ47:BQ47),12))))) -> 0 | BS47: =IF($AK47=0,0,IF(YEAR($BE47)>BS$31,0,IF(YEAR($BE47)=BS$31,MIN($AK47,13-MONTH($BE47)),IF(BS$31>YEAR($AG47),0,IF(BS$31=YEAR($AG47),$AK47-SUM($BJ47:BR47),12))))) -> 0 | BT47: =IF($AK47=0,0,IF(YEAR($BE47)>BT$31,0,IF(YEAR($BE47)=BT$31,MIN($AK47,13-MONTH($BE47)),IF(BT$31>YEAR($AG47),0,IF(BT$31=YEAR($AG47),$AK47-SUM($BJ47:BS47),12))))) -> 0 | BU47: 0 | BV47: 0 | BW47: 0 | BX47: 0 | BY47: 0 | BZ47: 0 | CA47: 0 | CB47: 0 | CC47: 0 | CD47: 0 | CE47: 0 | CF47: 0 | CG47: 0 | CH47: 0 | CI47: 0 | CJ47: 0 | CK47: 0 | CL47: 0 | CM47: 0 | CN47: 0 | CO47: 0 | CP47: 0 | CQ47: 0 | CR47: 0 | CS47: 0 | CT47: 0 | CU47: 0 | CV47: 0 | CW47: 0 | CX47: 0 | CY47: 0 | CZ47: 0 | DA47: 0 | DB47: 0 | DC47: 0 | DD47: 0 | DE47: 0 | DF47: 0 | DG47: 0 | DH47: 0 | DI47: 0 | DJ47: 0 | DK47: 0 | DL47: 0 | DM47: 0 | DN47: 0
P48: 0.8 | Q48: 0.1 | R48: =IF(Invoer_selectie_varianten=1,IF(ISBLANK(N48),'8. Beheer_Tabellen'!$F$34,N48),'8. Beheer_Tabellen'!$F$34) -> ja | T48: =VLOOKUP(S48,'8. Beheer_Tabellen'!$B$104:$D$115,3,TRUE) ->  | V48: =VLOOKUP(U48,'8. Beheer_Tabellen'!$B$104:$D$115,3,TRUE) ->  | W48: =IFERROR(VLOOKUP(YEAR(C48),'8. Beheer_Tabellen'!$B$62:$D$80,3,FALSE),57)*E48 -> 0 | X48: 0 | Y48: =IFERROR(Uren_per_jaar*E48*VLOOKUP(U48,'8. Beheer_Tabellen'!$B$88:$G$99,6,TRUE),) -> 0 | Z48: 0 | AB48: 0 | AC48: 0 | AD48: 0 | AE48: 0 | AF48: =IF(I48="",0,(((I48*'8. Beheer_Tabellen'!$C$14)+(I48*'8. Beheer_Tabellen'!$C$12)+I48)*12*1/E48)) -> 0 | AG48: =EDATE(C48,VLOOKUP(C48,'8. Beheer_Tabellen'!$B$40:$E$55,4,TRUE)) ->  | AH48: =E48*$P48*'8. Beheer_Tabellen'!$F$12>=$E$31 -> FALSE | AI48: 0 | AJ48: 0 | AK48: =IFERROR(DATEDIF(BE48,MIN(AG48,'8. Beheer_Tabellen'!$C$8),"m")*AI48,0) -> 0 | AL48: =((I48*'8. Beheer_Tabellen'!$C$14)+(I48*'8. Beheer_Tabellen'!$C$12)+I48)*AI48 -> 0 | AM48: =IF('8. Beheer_Tabellen'!$F$32="Ja",AL48+J48,AL48) -> 0 | AN48: 0 | AO48: 0 | AP48: 0 | AQ48: 0 | AR48: =IF(MIN('8. Beheer_Tabellen'!$C$16*(MIN(AE48,'8. Beheer_Tabellen'!$C$20)-'8. Beheer_Tabellen'!$C$18),'8. Beheer_Tabellen'!$C$22)*AI48<0,0,MIN('8. Beheer_Tabellen'!$C$16*(MIN(AE48,'8. Beheer_Tabellen'!$C$20)-'8. Beheer_Tabellen'!$C$18),'8. Beheer_Tabellen'!$C$22)*AI48) -> 0 | AS48: =MIN(AR48*E48,'8. Beheer_Tabellen'!C$22) -> 0 | AT48: 0 | AU48: 0 | AV48: 0 | AW48: 0 | AX48: 0 | AY48: =AV48*AK48/12*'8. Beheer_Tabellen'!$C$26 -> 0 | AZ48: 0 | BA48: 0 | BB48: 0 | BF48: 0 | BG48: 0 | BH48: 0 | BI48: 0 | BJ48: 0 | BK48: =IF($AK48=0,0,IF(YEAR($BE48)>BK$31,0,IF(YEAR($BE48)=BK$31,MIN($AK48,13-MONTH($BE48)),IF(BK$31>YEAR($AG48),0,IF(BK$31=YEAR($AG48),$AK48-SUM($BJ48:BJ48),12))))) -> 0 | BL48: =IF($AK48=0,0,IF(YEAR($BE48)>BL$31,0,IF(YEAR($BE48)=BL$31,MIN($AK48,13-MONTH($BE48)),IF(BL$31>YEAR($AG48),0,IF(BL$31=YEAR($AG48),$AK48-SUM($BJ48:BK48),12))))) -> 0 | BM48: =IF($AK48=0,0,IF(YEAR($BE48)>BM$31,0,IF(YEAR($BE48)=BM$31,MIN($AK48,13-MONTH($BE48)),IF(BM$31>YEAR($AG48),0,IF(BM$31=YEAR($AG48),$AK48-SUM($BJ48:BL48),12))))) -> 0 | BN48: =IF($AK48=0,0,IF(YEAR($BE48)>BN$31,0,IF(YEAR($BE48)=BN$31,MIN($AK48,13-MONTH($BE48)),IF(BN$31>YEAR($AG48),0,IF(BN$31=YEAR($AG48),$AK48-SUM($BJ48:BM48),12))))) -> 0 | BO48: =IF($AK48=0,0,IF(YEAR($BE48)>BO$31,0,IF(YEAR($BE48)=BO$31,MIN($AK48,13-MONTH($BE48)),IF(BO$31>YEAR($AG48),0,IF(BO$31=YEAR($AG48),$AK48-SUM($BJ48:BN48),12))))) -> 0 | BP48: =IF($AK48=0,0,IF(YEAR($BE48)>BP$31,0,IF(YEAR($BE48)=BP$31,MIN($AK48,13-MONTH($BE48)),IF(BP$31>YEAR($AG48),0,IF(BP$31=YEAR($AG48),$AK48-SUM($BJ48:BO48),12))))) -> 0 | BQ48: =IF($AK48=0,0,IF(YEAR($BE48)>BQ$31,0,IF(YEAR($BE48)=BQ$31,MIN($AK48,13-MONTH($BE48)),IF(BQ$31>YEAR($AG48),0,IF(BQ$31=YEAR($AG48),$AK48-SUM($BJ48:BP48),12))))) -> 0 | BR48: =IF($AK48=0,0,IF(YEAR($BE48)>BR$31,0,IF(YEAR($BE48)=BR$31,MIN($AK48,13-MONTH($BE48)),IF(BR$31>YEAR($AG48),0,IF(BR$31=YEAR($AG48),$AK48-SUM($BJ48:BQ48),12))))) -> 0 | BS48: =IF($AK48=0,0,IF(YEAR($BE48)>BS$31,0,IF(YEAR($BE48)=BS$31,MIN($AK48,13-MONTH($BE48)),IF(BS$31>YEAR($AG48),0,IF(BS$31=YEAR($AG48),$AK48-SUM($BJ48:BR48),12))))) -> 0 | BT48: =IF($AK48=0,0,IF(YEAR($BE48)>BT$31,0,IF(YEAR($BE48)=BT$31,MIN($AK48,13-MONTH($BE48)),IF(BT$31>YEAR($AG48),0,IF(BT$31=YEAR($AG48),$AK48-SUM($BJ48:BS48),12))))) -> 0 | BU48: 0 | BV48: 0 | BW48: 0 | BX48: 0 | BY48: 0 | BZ48: 0 | CA48: 0 | CB48: 0 | CC48: 0 | CD48: 0 | CE48: 0 | CF48: 0 | CG48: 0 | CH48: 0 | CI48: 0 | CJ48: 0 | CK48: 0 | CL48: 0 | CM48: 0 | CN48: 0 | CO48: 0 | CP48: 0 | CQ48: 0 | CR48: 0 | CS48: 0 | CT48: 0 | CU48: 0 | CV48: 0 | CW48: 0 | CX48: 0 | CY48: 0 | CZ48: 0 | DA48: 0 | DB48: 0 | DC48: 0 | DD48: 0 | DE48: 0 | DF48: 0 | DG48: 0 | DH48: 0 | DI48: 0 | DJ48: 0 | DK48: 0 | DL48: 0 | DM48: 0 | DN48: 0
P49: 0.8 | Q49: 0.1 | R49: =IF(Invoer_selectie_varianten=1,IF(ISBLANK(N49),'8. Beheer_Tabellen'!$F$34,N49),'8. Beheer_Tabellen'!$F$34) -> ja | T49: =VLOOKUP(S49,'8. Beheer_Tabellen'!$B$104:$D$115,3,TRUE) ->  | V49: =VLOOKUP(U49,'8. Beheer_Tabellen'!$B$104:$D$115,3,TRUE) ->  | W49: =IFERROR(VLOOKUP(YEAR(C49),'8. Beheer_Tabellen'!$B$62:$D$80,3,FALSE),57)*E49 -> 0 | X49: 0 | Y49: =IFERROR(Uren_per_jaar*E49*VLOOKUP(U49,'8. Beheer_Tabellen'!$B$88:$G$99,6,TRUE),) -> 0 | Z49: 0 | AB49: 0 | AC49: 0 | AD49: 0 | AE49: 0 | AF49: =IF(I49="",0,(((I49*'8. Beheer_Tabellen'!$C$14)+(I49*'8. Beheer_Tabellen'!$C$12)+I49)*12*1/E49)) -> 0 | AG49: =EDATE(C49,VLOOKUP(C49,'8. Beheer_Tabellen'!$B$40:$E$55,4,TRUE)) ->  | AH49: =E49*$P49*'8. Beheer_Tabellen'!$F$12>=$E$31 -> FALSE | AI49: 0 | AJ49: 0 | AK49: =IFERROR(DATEDIF(BE49,MIN(AG49,'8. Beheer_Tabellen'!$C$8),"m")*AI49,0) -> 0 | AL49: =((I49*'8. Beheer_Tabellen'!$C$14)+(I49*'8. Beheer_Tabellen'!$C$12)+I49)*AI49 -> 0 | AM49: =IF('8. Beheer_Tabellen'!$F$32="Ja",AL49+J49,AL49) -> 0 | AN49: 0 | AO49: 0 | AP49: 0 | AQ49: 0 | AR49: =IF(MIN('8. Beheer_Tabellen'!$C$16*(MIN(AE49,'8. Beheer_Tabellen'!$C$20)-'8. Beheer_Tabellen'!$C$18),'8. Beheer_Tabellen'!$C$22)*AI49<0,0,MIN('8. Beheer_Tabellen'!$C$16*(MIN(AE49,'8. Beheer_Tabellen'!$C$20)-'8. Beheer_Tabellen'!$C$18),'8. Beheer_Tabellen'!$C$22)*AI49) -> 0 | AS49: =MIN(AR49*E49,'8. Beheer_Tabellen'!C$22) -> 0 | AT49: 0 | AU49: 0 | AV49: 0 | AW49: 0 | AX49: 0 | AY49: =AV49*AK49/12*'8. Beheer_Tabellen'!$C$26 -> 0 | AZ49: 0 | BA49: 0 | BB49: 0 | BF49: 0 | BG49: 0 | BH49: 0 | BI49: 0 | BJ49: 0 | BK49: =IF($AK49=0,0,IF(YEAR($BE49)>BK$31,0,IF(YEAR($BE49)=BK$31,MIN($AK49,13-MONTH($BE49)),IF(BK$31>YEAR($AG49),0,IF(BK$31=YEAR($AG49),$AK49-SUM($BJ49:BJ49),12))))) -> 0 | BL49: =IF($AK49=0,0,IF(YEAR($BE49)>BL$31,0,IF(YEAR($BE49)=BL$31,MIN($AK49,13-MONTH($BE49)),IF(BL$31>YEAR($AG49),0,IF(BL$31=YEAR($AG49),$AK49-SUM($BJ49:BK49),12))))) -> 0 | BM49: =IF($AK49=0,0,IF(YEAR($BE49)>BM$31,0,IF(YEAR($BE49)=BM$31,MIN($AK49,13-MONTH($BE49)),IF(BM$31>YEAR($AG49),0,IF(BM$31=YEAR($AG49),$AK49-SUM($BJ49:BL49),12))))) -> 0 | BN49: =IF($AK49=0,0,IF(YEAR($BE49)>BN$31,0,IF(YEAR($BE49)=BN$31,MIN($AK49,13-MONTH($BE49)),IF(BN$31>YEAR($AG49),0,IF(BN$31=YEAR($AG49),$AK49-SUM($BJ49:BM49),12))))) -> 0 | BO49: =IF($AK49=0,0,IF(YEAR($BE49)>BO$31,0,IF(YEAR($BE49)=BO$31,MIN($AK49,13-MONTH($BE49)),IF(BO$31>YEAR($AG49),0,IF(BO$31=YEAR($AG49),$AK49-SUM($BJ49:BN49),12))))) -> 0 | BP49: =IF($AK49=0,0,IF(YEAR($BE49)>BP$31,0,IF(YEAR($BE49)=BP$31,MIN($AK49,13-MONTH($BE49)),IF(BP$31>YEAR($AG49),0,IF(BP$31=YEAR($AG49),$AK49-SUM($BJ49:BO49),12))))) -> 0 | BQ49: =IF($AK49=0,0,IF(YEAR($BE49)>BQ$31,0,IF(YEAR($BE49)=BQ$31,MIN($AK49,13-MONTH($BE49)),IF(BQ$31>YEAR($AG49),0,IF(BQ$31=YEAR($AG49),$AK49-SUM($BJ49:BP49),12))))) -> 0 | BR49: =IF($AK49=0,0,IF(YEAR($BE49)>BR$31,0,IF(YEAR($BE49)=BR$31,MIN($AK49,13-MONTH($BE49)),IF(BR$31>YEAR($AG49),0,IF(BR$31=YEAR($AG49),$AK49-SUM($BJ49:BQ49),12))))) -> 0 | BS49: =IF($AK49=0,0,IF(YEAR($BE49)>BS$31,0,IF(YEAR($BE49)=BS$31,MIN($AK49,13-MONTH($BE49)),IF(BS$31>YEAR($AG49),0,IF(BS$31=YEAR($AG49),$AK49-SUM($BJ49:BR49),12))))) -> 0 | BT49: =IF($AK49=0,0,IF(YEAR($BE49)>BT$31,0,IF(YEAR($BE49)=BT$31,MIN($AK49,13-MONTH($BE49)),IF(BT$31>YEAR($AG49),0,IF(BT$31=YEAR($AG49),$AK49-SUM($BJ49:BS49),12))))) -> 0 | BU49: 0 | BV49: 0 | BW49: 0 | BX49: 0 | BY49: 0 | BZ49: 0 | CA49: 0 | CB49: 0 | CC49: 0 | CD49: 0 | CE49: 0 | CF49: 0 | CG49: 0 | CH49: 0 | CI49: 0 | CJ49: 0 | CK49: 0 | CL49: 0 | CM49: 0 | CN49: 0 | CO49: 0 | CP49: 0 | CQ49: 0 | CR49: 0 | CS49: 0 | CT49: 0 | CU49: 0 | CV49: 0 | CW49: 0 | CX49: 0 | CY49: 0 | CZ49: 0 | DA49: 0 | DB49: 0 | DC49: 0 | DD49: 0 | DE49: 0 | DF49: 0 | DG49: 0 | DH49: 0 | DI49: 0 | DJ49: 0 | DK49: 0 | DL49: 0 | DM49: 0 | DN49: 0
P50: 0.8 | Q50: 0.1 | R50: =IF(Invoer_selectie_varianten=1,IF(ISBLANK(N50),'8. Beheer_Tabellen'!$F$34,N50),'8. Beheer_Tabellen'!$F$34) -> ja | T50: =VLOOKUP(S50,'8. Beheer_Tabellen'!$B$104:$D$115,3,TRUE) ->  | V50: =VLOOKUP(U50,'8. Beheer_Tabellen'!$B$104:$D$115,3,TRUE) ->  | W50: =IFERROR(VLOOKUP(YEAR(C50),'8. Beheer_Tabellen'!$B$62:$D$80,3,FALSE),57)*E50 -> 0 | X50: 0 | Y50: =IFERROR(Uren_per_jaar*E50*VLOOKUP(U50,'8. Beheer_Tabellen'!$B$88:$G$99,6,TRUE),) -> 0 | Z50: 0 | AB50: 0 | AC50: 0 | AD50: 0 | AE50: 0 | AF50: =IF(I50="",0,(((I50*'8. Beheer_Tabellen'!$C$14)+(I50*'8. Beheer_Tabellen'!$C$12)+I50)*12*1/E50)) -> 0 | AG50: =EDATE(C50,VLOOKUP(C50,'8. Beheer_Tabellen'!$B$40:$E$55,4,TRUE)) ->  | AH50: =E50*$P50*'8. Beheer_Tabellen'!$F$12>=$E$31 -> FALSE | AI50: 0 | AJ50: 0 | AK50: =IFERROR(DATEDIF(BE50,MIN(AG50,'8. Beheer_Tabellen'!$C$8),"m")*AI50,0) -> 0 | AL50: =((I50*'8. Beheer_Tabellen'!$C$14)+(I50*'8. Beheer_Tabellen'!$C$12)+I50)*AI50 -> 0 | AM50: =IF('8. Beheer_Tabellen'!$F$32="Ja",AL50+J50,AL50) -> 0 | AN50: 0 | AO50: 0 | AP50: 0 | AQ50: 0 | AR50: =IF(MIN('8. Beheer_Tabellen'!$C$16*(MIN(AE50,'8. Beheer_Tabellen'!$C$20)-'8. Beheer_Tabellen'!$C$18),'8. Beheer_Tabellen'!$C$22)*AI50<0,0,MIN('8. Beheer_Tabellen'!$C$16*(MIN(AE50,'8. Beheer_Tabellen'!$C$20)-'8. Beheer_Tabellen'!$C$18),'8. Beheer_Tabellen'!$C$22)*AI50) -> 0 | AS50: =MIN(AR50*E50,'8. Beheer_Tabellen'!C$22) -> 0 | AT50: 0 | AU50: 0 | AV50: 0 | AW50: 0 | AX50: 0 | AY50: =AV50*AK50/12*'8. Beheer_Tabellen'!$C$26 -> 0 | AZ50: 0 | BA50: 0 | BB50: 0 | BF50: 0 | BG50: 0 | BH50: 0 | BI50: 0 | BJ50: 0 | BK50: =IF($AK50=0,0,IF(YEAR($BE50)>BK$31,0,IF(YEAR($BE50)=BK$31,MIN($AK50,13-MONTH($BE50)),IF(BK$31>YEAR($AG50),0,IF(BK$31=YEAR($AG50),$AK50-SUM($BJ50:BJ50),12))))) -> 0 | BL50: =IF($AK50=0,0,IF(YEAR($BE50)>BL$31,0,IF(YEAR($BE50)=BL$31,MIN($AK50,13-MONTH($BE50)),IF(BL$31>YEAR($AG50),0,IF(BL$31=YEAR($AG50),$AK50-SUM($BJ50:BK50),12))))) -> 0 | BM50: =IF($AK50=0,0,IF(YEAR($BE50)>BM$31,0,IF(YEAR($BE50)=BM$31,MIN($AK50,13-MONTH($BE50)),IF(BM$31>YEAR($AG50),0,IF(BM$31=YEAR($AG50),$AK50-SUM($BJ50:BL50),12))))) -> 0 | BN50: =IF($AK50=0,0,IF(YEAR($BE50)>BN$31,0,IF(YEAR($BE50)=BN$31,MIN($AK50,13-MONTH($BE50)),IF(BN$31>YEAR($AG50),0,IF(BN$31=YEAR($AG50),$AK50-SUM($BJ50:BM50),12))))) -> 0 | BO50: =IF($AK50=0,0,IF(YEAR($BE50)>BO$31,0,IF(YEAR($BE50)=BO$31,MIN($AK50,13-MONTH($BE50)),IF(BO$31>YEAR($AG50),0,IF(BO$31=YEAR($AG50),$AK50-SUM($BJ50:BN50),12))))) -> 0 | BP50: =IF($AK50=0,0,IF(YEAR($BE50)>BP$31,0,IF(YEAR($BE50)=BP$31,MIN($AK50,13-MONTH($BE50)),IF(BP$31>YEAR($AG50),0,IF(BP$31=YEAR($AG50),$AK50-SUM($BJ50:BO50),12))))) -> 0 | BQ50: =IF($AK50=0,0,IF(YEAR($BE50)>BQ$31,0,IF(YEAR($BE50)=BQ$31,MIN($AK50,13-MONTH($BE50)),IF(BQ$31>YEAR($AG50),0,IF(BQ$31=YEAR($AG50),$AK50-SUM($BJ50:BP50),12))))) -> 0 | BR50: =IF($AK50=0,0,IF(YEAR($BE50)>BR$31,0,IF(YEAR($BE50)=BR$31,MIN($AK50,13-MONTH($BE50)),IF(BR$31>YEAR($AG50),0,IF(BR$31=YEAR($AG50),$AK50-SUM($BJ50:BQ50),12))))) -> 0 | BS50: =IF($AK50=0,0,IF(YEAR($BE50)>BS$31,0,IF(YEAR($BE50)=BS$31,MIN($AK50,13-MONTH($BE50)),IF(BS$31>YEAR($AG50),0,IF(BS$31=YEAR($AG50),$AK50-SUM($BJ50:BR50),12))))) -> 0 | BT50: =IF($AK50=0,0,IF(YEAR($BE50)>BT$31,0,IF(YEAR($BE50)=BT$31,MIN($AK50,13-MONTH($BE50)),IF(BT$31>YEAR($AG50),0,IF(BT$31=YEAR($AG50),$AK50-SUM($BJ50:BS50),12))))) -> 0 | BU50: 0 | BV50: 0 | BW50: 0 | BX50: 0 | BY50: 0 | BZ50: 0 | CA50: 0 | CB50: 0 | CC50: 0 | CD50: 0 | CE50: 0 | CF50: 0 | CG50: 0 | CH50: 0 | CI50: 0 | CJ50: 0 | CK50: 0 | CL50: 0 | CM50: 0 | CN50: 0 | CO50: 0 | CP50: 0 | CQ50: 0 | CR50: 0 | CS50: 0 | CT50: 0 | CU50: 0 | CV50: 0 | CW50: 0 | CX50: 0 | CY50: 0 | CZ50: 0 | DA50: 0 | DB50: 0 | DC50: 0 | DD50: 0 | DE50: 0 | DF50: 0 | DG50: 0 | DH50: 0 | DI50: 0 | DJ50: 0 | DK50: 0 | DL50: 0 | DM50: 0 | DN50: 0
P51: 0.8 | Q51: 0.1 | R51: =IF(Invoer_selectie_varianten=1,IF(ISBLANK(N51),'8. Beheer_Tabellen'!$F$34,N51),'8. Beheer_Tabellen'!$F$34) -> ja | T51: =VLOOKUP(S51,'8. Beheer_Tabellen'!$B$104:$D$115,3,TRUE) ->  | V51: =VLOOKUP(U51,'8. Beheer_Tabellen'!$B$104:$D$115,3,TRUE) ->  | W51: =IFERROR(VLOOKUP(YEAR(C51),'8. Beheer_Tabellen'!$B$62:$D$80,3,FALSE),57)*E51 -> 0 | X51: 0 | Y51: =IFERROR(Uren_per_jaar*E51*VLOOKUP(U51,'8. Beheer_Tabellen'!$B$88:$G$99,6,TRUE),) -> 0 | Z51: 0 | AB51: 0 | AC51: 0 | AD51: 0 | AE51: 0 | AF51: =IF(I51="",0,(((I51*'8. Beheer_Tabellen'!$C$14)+(I51*'8. Beheer_Tabellen'!$C$12)+I51)*12*1/E51)) -> 0 | AG51: =EDATE(C51,VLOOKUP(C51,'8. Beheer_Tabellen'!$B$40:$E$55,4,TRUE)) ->  | AH51: =E51*$P51*'8. Beheer_Tabellen'!$F$12>=$E$31 -> FALSE | AI51: 0 | AJ51: 0 | AK51: =IFERROR(DATEDIF(BE51,MIN(AG51,'8. Beheer_Tabellen'!$C$8),"m")*AI51,0) -> 0 | AL51: =((I51*'8. Beheer_Tabellen'!$C$14)+(I51*'8. Beheer_Tabellen'!$C$12)+I51)*AI51 -> 0 | AM51: =IF('8. Beheer_Tabellen'!$F$32="Ja",AL51+J51,AL51) -> 0 | AN51: 0 | AO51: 0 | AP51: 0 | AQ51: 0 | AR51: =IF(MIN('8. Beheer_Tabellen'!$C$16*(MIN(AE51,'8. Beheer_Tabellen'!$C$20)-'8. Beheer_Tabellen'!$C$18),'8. Beheer_Tabellen'!$C$22)*AI51<0,0,MIN('8. Beheer_Tabellen'!$C$16*(MIN(AE51,'8. Beheer_Tabellen'!$C$20)-'8. Beheer_Tabellen'!$C$18),'8. Beheer_Tabellen'!$C$22)*AI51) -> 0 | AS51: =MIN(AR51*E51,'8. Beheer_Tabellen'!C$22) -> 0 | AT51: 0 | AU51: 0 | AV51: 0 | AW51: 0 | AX51: 0 | AY51: =AV51*AK51/12*'8. Beheer_Tabellen'!$C$26 -> 0 | AZ51: 0 | BA51: 0 | BB51: 0 | BF51: 0 | BG51: 0 | BH51: 0 | BI51: 0 | BJ51: 0 | BK51: =IF($AK51=0,0,IF(YEAR($BE51)>BK$31,0,IF(YEAR($BE51)=BK$31,MIN($AK51,13-MONTH($BE51)),IF(BK$31>YEAR($AG51),0,IF(BK$31=YEAR($AG51),$AK51-SUM($BJ51:BJ51),12))))) -> 0 | BL51: =IF($AK51=0,0,IF(YEAR($BE51)>BL$31,0,IF(YEAR($BE51)=BL$31,MIN($AK51,13-MONTH($BE51)),IF(BL$31>YEAR($AG51),0,IF(BL$31=YEAR($AG51),$AK51-SUM($BJ51:BK51),12))))) -> 0 | BM51: =IF($AK51=0,0,IF(YEAR($BE51)>BM$31,0,IF(YEAR($BE51)=BM$31,MIN($AK51,13-MONTH($BE51)),IF(BM$31>YEAR($AG51),0,IF(BM$31=YEAR($AG51),$AK51-SUM($BJ51:BL51),12))))) -> 0 | BN51: =IF($AK51=0,0,IF(YEAR($BE51)>BN$31,0,IF(YEAR($BE51)=BN$31,MIN($AK51,13-MONTH($BE51)),IF(BN$31>YEAR($AG51),0,IF(BN$31=YEAR($AG51),$AK51-SUM($BJ51:BM51),12))))) -> 0 | BO51: =IF($AK51=0,0,IF(YEAR($BE51)>BO$31,0,IF(YEAR($BE51)=BO$31,MIN($AK51,13-MONTH($BE51)),IF(BO$31>YEAR($AG51),0,IF(BO$31=YEAR($AG51),$AK51-SUM($BJ51:BN51),12))))) -> 0 | BP51: =IF($AK51=0,0,IF(YEAR($BE51)>BP$31,0,IF(YEAR($BE51)=BP$31,MIN($AK51,13-MONTH($BE51)),IF(BP$31>YEAR($AG51),0,IF(BP$31=YEAR($AG51),$AK51-SUM($BJ51:BO51),12))))) -> 0 | BQ51: =IF($AK51=0,0,IF(YEAR($BE51)>BQ$31,0,IF(YEAR($BE51)=BQ$31,MIN($AK51,13-MONTH($BE51)),IF(BQ$31>YEAR($AG51),0,IF(BQ$31=YEAR($AG51),$AK51-SUM($BJ51:BP51),12))))) -> 0 | BR51: =IF($AK51=0,0,IF(YEAR($BE51)>BR$31,0,IF(YEAR($BE51)=BR$31,MIN($AK51,13-MONTH($BE51)),IF(BR$31>YEAR($AG51),0,IF(BR$31=YEAR($AG51),$AK51-SUM($BJ51:BQ51),12))))) -> 0 | BS51: =IF($AK51=0,0,IF(YEAR($BE51)>BS$31,0,IF(YEAR($BE51)=BS$31,MIN($AK51,13-MONTH($BE51)),IF(BS$31>YEAR($AG51),0,IF(BS$31=YEAR($AG51),$AK51-SUM($BJ51:BR51),12))))) -> 0 | BT51: =IF($AK51=0,0,IF(YEAR($BE51)>BT$31,0,IF(YEAR($BE51)=BT$31,MIN($AK51,13-MONTH($BE51)),IF(BT$31>YEAR($AG51),0,IF(BT$31=YEAR($AG51),$AK51-SUM($BJ51:BS51),12))))) -> 0 | BU51: 0 | BV51: 0 | BW51: 0 | BX51: 0 | BY51: 0 | BZ51: 0 | CA51: 0 | CB51: 0 | CC51: 0 | CD51: 0 | CE51: 0 | CF51: 0 | CG51: 0 | CH51: 0 | CI51: 0 | CJ51: 0 | CK51: 0 | CL51: 0 | CM51: 0 | CN51: 0 | CO51: 0 | CP51: 0 | CQ51: 0 | CR51: 0 | CS51: 0 | CT51: 0 | CU51: 0 | CV51: 0 | CW51: 0 | CX51: 0 | CY51: 0 | CZ51: 0 | DA51: 0 | DB51: 0 | DC51: 0 | DD51: 0 | DE51: 0 | DF51: 0 | DG51: 0 | DH51: 0 | DI51: 0 | DJ51: 0 | DK51: 0 | DL51: 0 | DM51: 0 | DN51: 0
P52: 0.8 | Q52: 0.1 | R52: =IF(Invoer_selectie_varianten=1,IF(ISBLANK(N52),'8. Beheer_Tabellen'!$F$34,N52),'8. Beheer_Tabellen'!$F$34) -> ja | T52: =VLOOKUP(S52,'8. Beheer_Tabellen'!$B$104:$D$115,3,TRUE) ->  | V52: =VLOOKUP(U52,'8. Beheer_Tabellen'!$B$104:$D$115,3,TRUE) ->  | W52: =IFERROR(VLOOKUP(YEAR(C52),'8. Beheer_Tabellen'!$B$62:$D$80,3,FALSE),57)*E52 -> 0 | X52: 0 | Y52: =IFERROR(Uren_per_jaar*E52*VLOOKUP(U52,'8. Beheer_Tabellen'!$B$88:$G$99,6,TRUE),) -> 0 | Z52: 0 | AB52: 0 | AC52: 0 | AD52: 0 | AE52: 0 | AF52: =IF(I52="",0,(((I52*'8. Beheer_Tabellen'!$C$14)+(I52*'8. Beheer_Tabellen'!$C$12)+I52)*12*1/E52)) -> 0 | AG52: =EDATE(C52,VLOOKUP(C52,'8. Beheer_Tabellen'!$B$40:$E$55,4,TRUE)) ->  | AH52: =E52*$P52*'8. Beheer_Tabellen'!$F$12>=$E$31 -> FALSE | AI52: 0 | AJ52: 0 | AK52: =IFERROR(DATEDIF(BE52,MIN(AG52,'8. Beheer_Tabellen'!$C$8),"m")*AI52,0) -> 0 | AL52: =((I52*'8. Beheer_Tabellen'!$C$14)+(I52*'8. Beheer_Tabellen'!$C$12)+I52)*AI52 -> 0 | AM52: =IF('8. Beheer_Tabellen'!$F$32="Ja",AL52+J52,AL52) -> 0 | AN52: 0 | AO52: 0 | AP52: 0 | AQ52: 0 | AR52: =IF(MIN('8. Beheer_Tabellen'!$C$16*(MIN(AE52,'8. Beheer_Tabellen'!$C$20)-'8. Beheer_Tabellen'!$C$18),'8. Beheer_Tabellen'!$C$22)*AI52<0,0,MIN('8. Beheer_Tabellen'!$C$16*(MIN(AE52,'8. Beheer_Tabellen'!$C$20)-'8. Beheer_Tabellen'!$C$18),'8. Beheer_Tabellen'!$C$22)*AI52) -> 0 | AS52: =MIN(AR52*E52,'8. Beheer_Tabellen'!C$22) -> 0 | AT52: 0 | AU52: 0 | AV52: 0 | AW52: 0 | AX52: 0 | AY52: =AV52*AK52/12*'8. Beheer_Tabellen'!$C$26 -> 0 | AZ52: 0 | BA52: 0 | BB52: 0 | BF52: 0 | BG52: 0 | BH52: 0 | BI52: 0 | BJ52: 0 | BK52: =IF($AK52=0,0,IF(YEAR($BE52)>BK$31,0,IF(YEAR($BE52)=BK$31,MIN($AK52,13-MONTH($BE52)),IF(BK$31>YEAR($AG52),0,IF(BK$31=YEAR($AG52),$AK52-SUM($BJ52:BJ52),12))))) -> 0 | BL52: =IF($AK52=0,0,IF(YEAR($BE52)>BL$31,0,IF(YEAR($BE52)=BL$31,MIN($AK52,13-MONTH($BE52)),IF(BL$31>YEAR($AG52),0,IF(BL$31=YEAR($AG52),$AK52-SUM($BJ52:BK52),12))))) -> 0 | BM52: =IF($AK52=0,0,IF(YEAR($BE52)>BM$31,0,IF(YEAR($BE52)=BM$31,MIN($AK52,13-MONTH($BE52)),IF(BM$31>YEAR($AG52),0,IF(BM$31=YEAR($AG52),$AK52-SUM($BJ52:BL52),12))))) -> 0 | BN52: =IF($AK52=0,0,IF(YEAR($BE52)>BN$31,0,IF(YEAR($BE52)=BN$31,MIN($AK52,13-MONTH($BE52)),IF(BN$31>YEAR($AG52),0,IF(BN$31=YEAR($AG52),$AK52-SUM($BJ52:BM52),12))))) -> 0 | BO52: =IF($AK52=0,0,IF(YEAR($BE52)>BO$31,0,IF(YEAR($BE52)=BO$31,MIN($AK52,13-MONTH($BE52)),IF(BO$31>YEAR($AG52),0,IF(BO$31=YEAR($AG52),$AK52-SUM($BJ52:BN52),12))))) -> 0 | BP52: =IF($AK52=0,0,IF(YEAR($BE52)>BP$31,0,IF(YEAR($BE52)=BP$31,MIN($AK52,13-MONTH($BE52)),IF(BP$31>YEAR($AG52),0,IF(BP$31=YEAR($AG52),$AK52-SUM($BJ52:BO52),12))))) -> 0 | BQ52: =IF($AK52=0,0,IF(YEAR($BE52)>BQ$31,0,IF(YEAR($BE52)=BQ$31,MIN($AK52,13-MONTH($BE52)),IF(BQ$31>YEAR($AG52),0,IF(BQ$31=YEAR($AG52),$AK52-SUM($BJ52:BP52),12))))) -> 0 | BR52: =IF($AK52=0,0,IF(YEAR($BE52)>BR$31,0,IF(YEAR($BE52)=BR$31,MIN($AK52,13-MONTH($BE52)),IF(BR$31>YEAR($AG52),0,IF(BR$31=YEAR($AG52),$AK52-SUM($BJ52:BQ52),12))))) -> 0 | BS52: =IF($AK52=0,0,IF(YEAR($BE52)>BS$31,0,IF(YEAR($BE52)=BS$31,MIN($AK52,13-MONTH($BE52)),IF(BS$31>YEAR($AG52),0,IF(BS$31=YEAR($AG52),$AK52-SUM($BJ52:BR52),12))))) -> 0 | BT52: =IF($AK52=0,0,IF(YEAR($BE52)>BT$31,0,IF(YEAR($BE52)=BT$31,MIN($AK52,13-MONTH($BE52)),IF(BT$31>YEAR($AG52),0,IF(BT$31=YEAR($AG52),$AK52-SUM($BJ52:BS52),12))))) -> 0 | BU52: 0 | BV52: 0 | BW52: 0 | BX52: 0 | BY52: 0 | BZ52: 0 | CA52: 0 | CB52: 0 | CC52: 0 | CD52: 0 | CE52: 0 | CF52: 0 | CG52: 0 | CH52: 0 | CI52: 0 | CJ52: 0 | CK52: 0 | CL52: 0 | CM52: 0 | CN52: 0 | CO52: 0 | CP52: 0 | CQ52: 0 | CR52: 0 | CS52: 0 | CT52: 0 | CU52: 0 | CV52: 0 | CW52: 0 | CX52: 0 | CY52: 0 | CZ52: 0 | DA52: 0 | DB52: 0 | DC52: 0 | DD52: 0 | DE52: 0 | DF52: 0 | DG52: 0 | DH52: 0 | DI52: 0 | DJ52: 0 | DK52: 0 | DL52: 0 | DM52: 0 | DN52: 0
P53: 0.8 | Q53: 0.1 | R53: =IF(Invoer_selectie_varianten=1,IF(ISBLANK(N53),'8. Beheer_Tabellen'!$F$34,N53),'8. Beheer_Tabellen'!$F$34) -> ja | T53: =VLOOKUP(S53,'8. Beheer_Tabellen'!$B$104:$D$115,3,TRUE) ->  | V53: =VLOOKUP(U53,'8. Beheer_Tabellen'!$B$104:$D$115,3,TRUE) ->  | W53: =IFERROR(VLOOKUP(YEAR(C53),'8. Beheer_Tabellen'!$B$62:$D$80,3,FALSE),57)*E53 -> 0 | X53: 0 | Y53: =IFERROR(Uren_per_jaar*E53*VLOOKUP(U53,'8. Beheer_Tabellen'!$B$88:$G$99,6,TRUE),) -> 0 | Z53: 0 | AB53: 0 | AC53: 0 | AD53: 0 | AE53: 0 | AF53: =IF(I53="",0,(((I53*'8. Beheer_Tabellen'!$C$14)+(I53*'8. Beheer_Tabellen'!$C$12)+I53)*12*1/E53)) -> 0 | AG53: =EDATE(C53,VLOOKUP(C53,'8. Beheer_Tabellen'!$B$40:$E$55,4,TRUE)) ->  | AH53: =E53*$P53*'8. Beheer_Tabellen'!$F$12>=$E$31 -> FALSE | AI53: 0 | AJ53: 0 | AK53: =IFERROR(DATEDIF(BE53,MIN(AG53,'8. Beheer_Tabellen'!$C$8),"m")*AI53,0) -> 0 | AL53: =((I53*'8. Beheer_Tabellen'!$C$14)+(I53*'8. Beheer_Tabellen'!$C$12)+I53)*AI53 -> 0 | AM53: =IF('8. Beheer_Tabellen'!$F$32="Ja",AL53+J53,AL53) -> 0 | AN53: 0 | AO53: 0 | AP53: 0 | AQ53: 0 | AR53: =IF(MIN('8. Beheer_Tabellen'!$C$16*(MIN(AE53,'8. Beheer_Tabellen'!$C$20)-'8. Beheer_Tabellen'!$C$18),'8. Beheer_Tabellen'!$C$22)*AI53<0,0,MIN('8. Beheer_Tabellen'!$C$16*(MIN(AE53,'8. Beheer_Tabellen'!$C$20)-'8. Beheer_Tabellen'!$C$18),'8. Beheer_Tabellen'!$C$22)*AI53) -> 0 | AS53: =MIN(AR53*E53,'8. Beheer_Tabellen'!C$22) -> 0 | AT53: 0 | AU53: 0 | AV53: 0 | AW53: 0 | AX53: 0 | AY53: =AV53*AK53/12*'8. Beheer_Tabellen'!$C$26 -> 0 | AZ53: 0 | BA53: 0 | BB53: 0 | BF53: 0 | BG53: 0 | BH53: 0 | BI53: 0 | BJ53: 0 | BK53: =IF($AK53=0,0,IF(YEAR($BE53)>BK$31,0,IF(YEAR($BE53)=BK$31,MIN($AK53,13-MONTH($BE53)),IF(BK$31>YEAR($AG53),0,IF(BK$31=YEAR($AG53),$AK53-SUM($BJ53:BJ53),12))))) -> 0 | BL53: =IF($AK53=0,0,IF(YEAR($BE53)>BL$31,0,IF(YEAR($BE53)=BL$31,MIN($AK53,13-MONTH($BE53)),IF(BL$31>YEAR($AG53),0,IF(BL$31=YEAR($AG53),$AK53-SUM($BJ53:BK53),12))))) -> 0 | BM53: =IF($AK53=0,0,IF(YEAR($BE53)>BM$31,0,IF(YEAR($BE53)=BM$31,MIN($AK53,13-MONTH($BE53)),IF(BM$31>YEAR($AG53),0,IF(BM$31=YEAR($AG53),$AK53-SUM($BJ53:BL53),12))))) -> 0 | BN53: =IF($AK53=0,0,IF(YEAR($BE53)>BN$31,0,IF(YEAR($BE53)=BN$31,MIN($AK53,13-MONTH($BE53)),IF(BN$31>YEAR($AG53),0,IF(BN$31=YEAR($AG53),$AK53-SUM($BJ53:BM53),12))))) -> 0 | BO53: =IF($AK53=0,0,IF(YEAR($BE53)>BO$31,0,IF(YEAR($BE53)=BO$31,MIN($AK53,13-MONTH($BE53)),IF(BO$31>YEAR($AG53),0,IF(BO$31=YEAR($AG53),$AK53-SUM($BJ53:BN53),12))))) -> 0 | BP53: =IF($AK53=0,0,IF(YEAR($BE53)>BP$31,0,IF(YEAR($BE53)=BP$31,MIN($AK53,13-MONTH($BE53)),IF(BP$31>YEAR($AG53),0,IF(BP$31=YEAR($AG53),$AK53-SUM($BJ53:BO53),12))))) -> 0 | BQ53: =IF($AK53=0,0,IF(YEAR($BE53)>BQ$31,0,IF(YEAR($BE53)=BQ$31,MIN($AK53,13-MONTH($BE53)),IF(BQ$31>YEAR($AG53),0,IF(BQ$31=YEAR($AG53),$AK53-SUM($BJ53:BP53),12))))) -> 0 | BR53: =IF($AK53=0,0,IF(YEAR($BE53)>BR$31,0,IF(YEAR($BE53)=BR$31,MIN($AK53,13-MONTH($BE53)),IF(BR$31>YEAR($AG53),0,IF(BR$31=YEAR($AG53),$AK53-SUM($BJ53:BQ53),12))))) -> 0 | BS53: =IF($AK53=0,0,IF(YEAR($BE53)>BS$31,0,IF(YEAR($BE53)=BS$31,MIN($AK53,13-MONTH($BE53)),IF(BS$31>YEAR($AG53),0,IF(BS$31=YEAR($AG53),$AK53-SUM($BJ53:BR53),12))))) -> 0 | BT53: =IF($AK53=0,0,IF(YEAR($BE53)>BT$31,0,IF(YEAR($BE53)=BT$31,MIN($AK53,13-MONTH($BE53)),IF(BT$31>YEAR($AG53),0,IF(BT$31=YEAR($AG53),$AK53-SUM($BJ53:BS53),12))))) -> 0 | BU53: 0 | BV53: 0 | BW53: 0 | BX53: 0 | BY53: 0 | BZ53: 0 | CA53: 0 | CB53: 0 | CC53: 0 | CD53: 0 | CE53: 0 | CF53: 0 | CG53: 0 | CH53: 0 | CI53: 0 | CJ53: 0 | CK53: 0 | CL53: 0 | CM53: 0 | CN53: 0 | CO53: 0 | CP53: 0 | CQ53: 0 | CR53: 0 | CS53: 0 | CT53: 0 | CU53: 0 | CV53: 0 | CW53: 0 | CX53: 0 | CY53: 0 | CZ53: 0 | DA53: 0 | DB53: 0 | DC53: 0 | DD53: 0 | DE53: 0 | DF53: 0 | DG53: 0 | DH53: 0 | DI53: 0 | DJ53: 0 | DK53: 0 | DL53: 0 | DM53: 0 | DN53: 0
P54: 0.8 | Q54: 0.1 | R54: =IF(Invoer_selectie_varianten=1,IF(ISBLANK(N54),'8. Beheer_Tabellen'!$F$34,N54),'8. Beheer_Tabellen'!$F$34) -> ja | T54: =VLOOKUP(S54,'8. Beheer_Tabellen'!$B$104:$D$115,3,TRUE) ->  | V54: =VLOOKUP(U54,'8. Beheer_Tabellen'!$B$104:$D$115,3,TRUE) ->  | W54: =IFERROR(VLOOKUP(YEAR(C54),'8. Beheer_Tabellen'!$B$62:$D$80,3,FALSE),57)*E54 -> 0 | X54: 0 | Y54: =IFERROR(Uren_per_jaar*E54*VLOOKUP(U54,'8. Beheer_Tabellen'!$B$88:$G$99,6,TRUE),) -> 0 | Z54: 0 | AB54: 0 | AC54: 0 | AD54: 0 | AE54: 0 | AF54: =IF(I54="",0,(((I54*'8. Beheer_Tabellen'!$C$14)+(I54*'8. Beheer_Tabellen'!$C$12)+I54)*12*1/E54)) -> 0 | AG54: =EDATE(C54,VLOOKUP(C54,'8. Beheer_Tabellen'!$B$40:$E$55,4,TRUE)) ->  | AH54: =E54*$P54*'8. Beheer_Tabellen'!$F$12>=$E$31 -> FALSE | AI54: 0 | AJ54: 0 | AK54: =IFERROR(DATEDIF(BE54,MIN(AG54,'8. Beheer_Tabellen'!$C$8),"m")*AI54,0) -> 0 | AL54: =((I54*'8. Beheer_Tabellen'!$C$14)+(I54*'8. Beheer_Tabellen'!$C$12)+I54)*AI54 -> 0 | AM54: =IF('8. Beheer_Tabellen'!$F$32="Ja",AL54+J54,AL54) -> 0 | AN54: 0 | AO54: 0 | AP54: 0 | AQ54: 0 | AR54: =IF(MIN('8. Beheer_Tabellen'!$C$16*(MIN(AE54,'8. Beheer_Tabellen'!$C$20)-'8. Beheer_Tabellen'!$C$18),'8. Beheer_Tabellen'!$C$22)*AI54<0,0,MIN('8. Beheer_Tabellen'!$C$16*(MIN(AE54,'8. Beheer_Tabellen'!$C$20)-'8. Beheer_Tabellen'!$C$18),'8. Beheer_Tabellen'!$C$22)*AI54) -> 0 | AS54: =MIN(AR54*E54,'8. Beheer_Tabellen'!C$22) -> 0 | AT54: 0 | AU54: 0 | AV54: 0 | AW54: 0 | AX54: 0 | AY54: =AV54*AK54/12*'8. Beheer_Tabellen'!$C$26 -> 0 | AZ54: 0 | BA54: 0 | BB54: 0 | BF54: 0 | BG54: 0 | BH54: 0 | BI54: 0 | BJ54: 0 | BK54: =IF($AK54=0,0,IF(YEAR($BE54)>BK$31,0,IF(YEAR($BE54)=BK$31,MIN($AK54,13-MONTH($BE54)),IF(BK$31>YEAR($AG54),0,IF(BK$31=YEAR($AG54),$AK54-SUM($BJ54:BJ54),12))))) -> 0 | BL54: =IF($AK54=0,0,IF(YEAR($BE54)>BL$31,0,IF(YEAR($BE54)=BL$31,MIN($AK54,13-MONTH($BE54)),IF(BL$31>YEAR($AG54),0,IF(BL$31=YEAR($AG54),$AK54-SUM($BJ54:BK54),12))))) -> 0 | BM54: =IF($AK54=0,0,IF(YEAR($BE54)>BM$31,0,IF(YEAR($BE54)=BM$31,MIN($AK54,13-MONTH($BE54)),IF(BM$31>YEAR($AG54),0,IF(BM$31=YEAR($AG54),$AK54-SUM($BJ54:BL54),12))))) -> 0 | BN54: =IF($AK54=0,0,IF(YEAR($BE54)>BN$31,0,IF(YEAR($BE54)=BN$31,MIN($AK54,13-MONTH($BE54)),IF(BN$31>YEAR($AG54),0,IF(BN$31=YEAR($AG54),$AK54-SUM($BJ54:BM54),12))))) -> 0 | BO54: =IF($AK54=0,0,IF(YEAR($BE54)>BO$31,0,IF(YEAR($BE54)=BO$31,MIN($AK54,13-MONTH($BE54)),IF(BO$31>YEAR($AG54),0,IF(BO$31=YEAR($AG54),$AK54-SUM($BJ54:BN54),12))))) -> 0 | BP54: =IF($AK54=0,0,IF(YEAR($BE54)>BP$31,0,IF(YEAR($BE54)=BP$31,MIN($AK54,13-MONTH($BE54)),IF(BP$31>YEAR($AG54),0,IF(BP$31=YEAR($AG54),$AK54-SUM($BJ54:BO54),12))))) -> 0 | BQ54: =IF($AK54=0,0,IF(YEAR($BE54)>BQ$31,0,IF(YEAR($BE54)=BQ$31,MIN($AK54,13-MONTH($BE54)),IF(BQ$31>YEAR($AG54),0,IF(BQ$31=YEAR($AG54),$AK54-SUM($BJ54:BP54),12))))) -> 0 | BR54: =IF($AK54=0,0,IF(YEAR($BE54)>BR$31,0,IF(YEAR($BE54)=BR$31,MIN($AK54,13-MONTH($BE54)),IF(BR$31>YEAR($AG54),0,IF(BR$31=YEAR($AG54),$AK54-SUM($BJ54:BQ54),12))))) -> 0 | BS54: =IF($AK54=0,0,IF(YEAR($BE54)>BS$31,0,IF(YEAR($BE54)=BS$31,MIN($AK54,13-MONTH($BE54)),IF(BS$31>YEAR($AG54),0,IF(BS$31=YEAR($AG54),$AK54-SUM($BJ54:BR54),12))))) -> 0 | BT54: =IF($AK54=0,0,IF(YEAR($BE54)>BT$31,0,IF(YEAR($BE54)=BT$31,MIN($AK54,13-MONTH($BE54)),IF(BT$31>YEAR($AG54),0,IF(BT$31=YEAR($AG54),$AK54-SUM($BJ54:BS54),12))))) -> 0 | BU54: 0 | BV54: 0 | BW54: 0 | BX54: 0 | BY54: 0 | BZ54: 0 | CA54: 0 | CB54: 0 | CC54: 0 | CD54: 0 | CE54: 0 | CF54: 0 | CG54: 0 | CH54: 0 | CI54: 0 | CJ54: 0 | CK54: 0 | CL54: 0 | CM54: 0 | CN54: 0 | CO54: 0 | CP54: 0 | CQ54: 0 | CR54: 0 | CS54: 0 | CT54: 0 | CU54: 0 | CV54: 0 | CW54: 0 | CX54: 0 | CY54: 0 | CZ54: 0 | DA54: 0 | DB54: 0 | DC54: 0 | DD54: 0 | DE54: 0 | DF54: 0 | DG54: 0 | DH54: 0 | DI54: 0 | DJ54: 0 | DK54: 0 | DL54: 0 | DM54: 0 | DN54: 0
P55: 0.8 | Q55: 0.1 | R55: =IF(Invoer_selectie_varianten=1,IF(ISBLANK(N55),'8. Beheer_Tabellen'!$F$34,N55),'8. Beheer_Tabellen'!$F$34) -> ja | T55: =VLOOKUP(S55,'8. Beheer_Tabellen'!$B$104:$D$115,3,TRUE) ->  | V55: =VLOOKUP(U55,'8. Beheer_Tabellen'!$B$104:$D$115,3,TRUE) ->  | W55: =IFERROR(VLOOKUP(YEAR(C55),'8. Beheer_Tabellen'!$B$62:$D$80,3,FALSE),57)*E55 -> 0 | X55: 0 | Y55: =IFERROR(Uren_per_jaar*E55*VLOOKUP(U55,'8. Beheer_Tabellen'!$B$88:$G$99,6,TRUE),) -> 0 | Z55: 0 | AB55: 0 | AC55: 0 | AD55: 0 | AE55: 0 | AF55: =IF(I55="",0,(((I55*'8. Beheer_Tabellen'!$C$14)+(I55*'8. Beheer_Tabellen'!$C$12)+I55)*12*1/E55)) -> 0 | AG55: =EDATE(C55,VLOOKUP(C55,'8. Beheer_Tabellen'!$B$40:$E$55,4,TRUE)) ->  | AH55: =E55*$P55*'8. Beheer_Tabellen'!$F$12>=$E$31 -> FALSE | AI55: 0 | AJ55: 0 | AK55: =IFERROR(DATEDIF(BE55,MIN(AG55,'8. Beheer_Tabellen'!$C$8),"m")*AI55,0) -> 0 | AL55: =((I55*'8. Beheer_Tabellen'!$C$14)+(I55*'8. Beheer_Tabellen'!$C$12)+I55)*AI55 -> 0 | AM55: =IF('8. Beheer_Tabellen'!$F$32="Ja",AL55+J55,AL55) -> 0 | AN55: 0 | AO55: 0 | AP55: 0 | AQ55: 0 | AR55: =IF(MIN('8. Beheer_Tabellen'!$C$16*(MIN(AE55,'8. Beheer_Tabellen'!$C$20)-'8. Beheer_Tabellen'!$C$18),'8. Beheer_Tabellen'!$C$22)*AI55<0,0,MIN('8. Beheer_Tabellen'!$C$16*(MIN(AE55,'8. Beheer_Tabellen'!$C$20)-'8. Beheer_Tabellen'!$C$18),'8. Beheer_Tabellen'!$C$22)*AI55) -> 0 | AS55: =MIN(AR55*E55,'8. Beheer_Tabellen'!C$22) -> 0 | AT55: 0 | AU55: 0 | AV55: 0 | AW55: 0 | AX55: 0 | AY55: =AV55*AK55/12*'8. Beheer_Tabellen'!$C$26 -> 0 | AZ55: 0 | BA55: 0 | BB55: 0 | BF55: 0 | BG55: 0 | BH55: 0 | BI55: 0 | BJ55: 0 | BK55: =IF($AK55=0,0,IF(YEAR($BE55)>BK$31,0,IF(YEAR($BE55)=BK$31,MIN($AK55,13-MONTH($BE55)),IF(BK$31>YEAR($AG55),0,IF(BK$31=YEAR($AG55),$AK55-SUM($BJ55:BJ55),12))))) -> 0 | BL55: =IF($AK55=0,0,IF(YEAR($BE55)>BL$31,0,IF(YEAR($BE55)=BL$31,MIN($AK55,13-MONTH($BE55)),IF(BL$31>YEAR($AG55),0,IF(BL$31=YEAR($AG55),$AK55-SUM($BJ55:BK55),12))))) -> 0 | BM55: =IF($AK55=0,0,IF(YEAR($BE55)>BM$31,0,IF(YEAR($BE55)=BM$31,MIN($AK55,13-MONTH($BE55)),IF(BM$31>YEAR($AG55),0,IF(BM$31=YEAR($AG55),$AK55-SUM($BJ55:BL55),12))))) -> 0 | BN55: =IF($AK55=0,0,IF(YEAR($BE55)>BN$31,0,IF(YEAR($BE55)=BN$31,MIN($AK55,13-MONTH($BE55)),IF(BN$31>YEAR($AG55),0,IF(BN$31=YEAR($AG55),$AK55-SUM($BJ55:BM55),12))))) -> 0 | BO55: =IF($AK55=0,0,IF(YEAR($BE55)>BO$31,0,IF(YEAR($BE55)=BO$31,MIN($AK55,13-MONTH($BE55)),IF(BO$31>YEAR($AG55),0,IF(BO$31=YEAR($AG55),$AK55-SUM($BJ55:BN55),12))))) -> 0 | BP55: =IF($AK55=0,0,IF(YEAR($BE55)>BP$31,0,IF(YEAR($BE55)=BP$31,MIN($AK55,13-MONTH($BE55)),IF(BP$31>YEAR($AG55),0,IF(BP$31=YEAR($AG55),$AK55-SUM($BJ55:BO55),12))))) -> 0 | BQ55: =IF($AK55=0,0,IF(YEAR($BE55)>BQ$31,0,IF(YEAR($BE55)=BQ$31,MIN($AK55,13-MONTH($BE55)),IF(BQ$31>YEAR($AG55),0,IF(BQ$31=YEAR($AG55),$AK55-SUM($BJ55:BP55),12))))) -> 0 | BR55: =IF($AK55=0,0,IF(YEAR($BE55)>BR$31,0,IF(YEAR($BE55)=BR$31,MIN($AK55,13-MONTH($BE55)),IF(BR$31>YEAR($AG55),0,IF(BR$31=YEAR($AG55),$AK55-SUM($BJ55:BQ55),12))))) -> 0 | BS55: =IF($AK55=0,0,IF(YEAR($BE55)>BS$31,0,IF(YEAR($BE55)=BS$31,MIN($AK55,13-MONTH($BE55)),IF(BS$31>YEAR($AG55),0,IF(BS$31=YEAR($AG55),$AK55-SUM($BJ55:BR55),12))))) -> 0 | BT55: =IF($AK55=0,0,IF(YEAR($BE55)>BT$31,0,IF(YEAR($BE55)=BT$31,MIN($AK55,13-MONTH($BE55)),IF(BT$31>YEAR($AG55),0,IF(BT$31=YEAR($AG55),$AK55-SUM($BJ55:BS55),12))))) -> 0 | BU55: 0 | BV55: 0 | BW55: 0 | BX55: 0 | BY55: 0 | BZ55: 0 | CA55: 0 | CB55: 0 | CC55: 0 | CD55: 0 | CE55: 0 | CF55: 0 | CG55: 0 | CH55: 0 | CI55: 0 | CJ55: 0 | CK55: 0 | CL55: 0 | CM55: 0 | CN55: 0 | CO55: 0 | CP55: 0 | CQ55: 0 | CR55: 0 | CS55: 0 | CT55: 0 | CU55: 0 | CV55: 0 | CW55: 0 | CX55: 0 | CY55: 0 | CZ55: 0 | DA55: 0 | DB55: 0 | DC55: 0 | DD55: 0 | DE55: 0 | DF55: 0 | DG55: 0 | DH55: 0 | DI55: 0 | DJ55: 0 | DK55: 0 | DL55: 0 | DM55: 0 | DN55: 0
P56: 0.8 | Q56: 0.1 | R56: =IF(Invoer_selectie_varianten=1,IF(ISBLANK(N56),'8. Beheer_Tabellen'!$F$34,N56),'8. Beheer_Tabellen'!$F$34) -> ja | T56: =VLOOKUP(S56,'8. Beheer_Tabellen'!$B$104:$D$115,3,TRUE) ->  | V56: =VLOOKUP(U56,'8. Beheer_Tabellen'!$B$104:$D$115,3,TRUE) ->  | W56: =IFERROR(VLOOKUP(YEAR(C56),'8. Beheer_Tabellen'!$B$62:$D$80,3,FALSE),57)*E56 -> 0 | X56: 0 | Y56: =IFERROR(Uren_per_jaar*E56*VLOOKUP(U56,'8. Beheer_Tabellen'!$B$88:$G$99,6,TRUE),) -> 0 | Z56: 0 | AB56: 0 | AC56: 0 | AD56: 0 | AE56: 0 | AF56: =IF(I56="",0,(((I56*'8. Beheer_Tabellen'!$C$14)+(I56*'8. Beheer_Tabellen'!$C$12)+I56)*12*1/E56)) -> 0 | AG56: =EDATE(C56,VLOOKUP(C56,'8. Beheer_Tabellen'!$B$40:$E$55,4,TRUE)) ->  | AH56: =E56*$P56*'8. Beheer_Tabellen'!$F$12>=$E$31 -> FALSE | AI56: 0 | AJ56: 0 | AK56: =IFERROR(DATEDIF(BE56,MIN(AG56,'8. Beheer_Tabellen'!$C$8),"m")*AI56,0) -> 0 | AL56: =((I56*'8. Beheer_Tabellen'!$C$14)+(I56*'8. Beheer_Tabellen'!$C$12)+I56)*AI56 -> 0 | AM56: =IF('8. Beheer_Tabellen'!$F$32="Ja",AL56+J56,AL56) -> 0 | AN56: 0 | AO56: 0 | AP56: 0 | AQ56: 0 | AR56: =IF(MIN('8. Beheer_Tabellen'!$C$16*(MIN(AE56,'8. Beheer_Tabellen'!$C$20)-'8. Beheer_Tabellen'!$C$18),'8. Beheer_Tabellen'!$C$22)*AI56<0,0,MIN('8. Beheer_Tabellen'!$C$16*(MIN(AE56,'8. Beheer_Tabellen'!$C$20)-'8. Beheer_Tabellen'!$C$18),'8. Beheer_Tabellen'!$C$22)*AI56) -> 0 | AS56: =MIN(AR56*E56,'8. Beheer_Tabellen'!C$22) -> 0 | AT56: 0 | AU56: 0 | AV56: 0 | AW56: 0 | AX56: 0 | AY56: =AV56*AK56/12*'8. Beheer_Tabellen'!$C$26 -> 0 | AZ56: 0 | BA56: 0 | BB56: 0 | BF56: 0 | BG56: 0 | BH56: 0 | BI56: 0 | BJ56: 0 | BK56: =IF($AK56=0,0,IF(YEAR($BE56)>BK$31,0,IF(YEAR($BE56)=BK$31,MIN($AK56,13-MONTH($BE56)),IF(BK$31>YEAR($AG56),0,IF(BK$31=YEAR($AG56),$AK56-SUM($BJ56:BJ56),12))))) -> 0 | BL56: =IF($AK56=0,0,IF(YEAR($BE56)>BL$31,0,IF(YEAR($BE56)=BL$31,MIN($AK56,13-MONTH($BE56)),IF(BL$31>YEAR($AG56),0,IF(BL$31=YEAR($AG56),$AK56-SUM($BJ56:BK56),12))))) -> 0 | BM56: =IF($AK56=0,0,IF(YEAR($BE56)>BM$31,0,IF(YEAR($BE56)=BM$31,MIN($AK56,13-MONTH($BE56)),IF(BM$31>YEAR($AG56),0,IF(BM$31=YEAR($AG56),$AK56-SUM($BJ56:BL56),12))))) -> 0 | BN56: =IF($AK56=0,0,IF(YEAR($BE56)>BN$31,0,IF(YEAR($BE56)=BN$31,MIN($AK56,13-MONTH($BE56)),IF(BN$31>YEAR($AG56),0,IF(BN$31=YEAR($AG56),$AK56-SUM($BJ56:BM56),12))))) -> 0 | BO56: =IF($AK56=0,0,IF(YEAR($BE56)>BO$31,0,IF(YEAR($BE56)=BO$31,MIN($AK56,13-MONTH($BE56)),IF(BO$31>YEAR($AG56),0,IF(BO$31=YEAR($AG56),$AK56-SUM($BJ56:BN56),12))))) -> 0 | BP56: =IF($AK56=0,0,IF(YEAR($BE56)>BP$31,0,IF(YEAR($BE56)=BP$31,MIN($AK56,13-MONTH($BE56)),IF(BP$31>YEAR($AG56),0,IF(BP$31=YEAR($AG56),$AK56-SUM($BJ56:BO56),12))))) -> 0 | BQ56: =IF($AK56=0,0,IF(YEAR($BE56)>BQ$31,0,IF(YEAR($BE56)=BQ$31,MIN($AK56,13-MONTH($BE56)),IF(BQ$31>YEAR($AG56),0,IF(BQ$31=YEAR($AG56),$AK56-SUM($BJ56:BP56),12))))) -> 0 | BR56: =IF($AK56=0,0,IF(YEAR($BE56)>BR$31,0,IF(YEAR($BE56)=BR$31,MIN($AK56,13-MONTH($BE56)),IF(BR$31>YEAR($AG56),0,IF(BR$31=YEAR($AG56),$AK56-SUM($BJ56:BQ56),12))))) -> 0 | BS56: =IF($AK56=0,0,IF(YEAR($BE56)>BS$31,0,IF(YEAR($BE56)=BS$31,MIN($AK56,13-MONTH($BE56)),IF(BS$31>YEAR($AG56),0,IF(BS$31=YEAR($AG56),$AK56-SUM($BJ56:BR56),12))))) -> 0 | BT56: =IF($AK56=0,0,IF(YEAR($BE56)>BT$31,0,IF(YEAR($BE56)=BT$31,MIN($AK56,13-MONTH($BE56)),IF(BT$31>YEAR($AG56),0,IF(BT$31=YEAR($AG56),$AK56-SUM($BJ56:BS56),12))))) -> 0 | BU56: 0 | BV56: 0 | BW56: 0 | BX56: 0 | BY56: 0 | BZ56: 0 | CA56: 0 | CB56: 0 | CC56: 0 | CD56: 0 | CE56: 0 | CF56: 0 | CG56: 0 | CH56: 0 | CI56: 0 | CJ56: 0 | CK56: 0 | CL56: 0 | CM56: 0 | CN56: 0 | CO56: 0 | CP56: 0 | CQ56: 0 | CR56: 0 | CS56: 0 | CT56: 0 | CU56: 0 | CV56: 0 | CW56: 0 | CX56: 0 | CY56: 0 | CZ56: 0 | DA56: 0 | DB56: 0 | DC56: 0 | DD56: 0 | DE56: 0 | DF56: 0 | DG56: 0 | DH56: 0 | DI56: 0 | DJ56: 0 | DK56: 0 | DL56: 0 | DM56: 0 | DN56: 0
P57: 0.8 | Q57: 0.1 | R57: =IF(Invoer_selectie_varianten=1,IF(ISBLANK(N57),'8. Beheer_Tabellen'!$F$34,N57),'8. Beheer_Tabellen'!$F$34) -> ja | T57: =VLOOKUP(S57,'8. Beheer_Tabellen'!$B$104:$D$115,3,TRUE) ->  | V57: =VLOOKUP(U57,'8. Beheer_Tabellen'!$B$104:$D$115,3,TRUE) ->  | W57: =IFERROR(VLOOKUP(YEAR(C57),'8. Beheer_Tabellen'!$B$62:$D$80,3,FALSE),57)*E57 -> 0 | X57: 0 | Y57: =IFERROR(Uren_per_jaar*E57*VLOOKUP(U57,'8. Beheer_Tabellen'!$B$88:$G$99,6,TRUE),) -> 0 | Z57: 0 | AB57: 0 | AC57: 0 | AD57: 0 | AE57: 0 | AF57: =IF(I57="",0,(((I57*'8. Beheer_Tabellen'!$C$14)+(I57*'8. Beheer_Tabellen'!$C$12)+I57)*12*1/E57)) -> 0 | AG57: =EDATE(C57,VLOOKUP(C57,'8. Beheer_Tabellen'!$B$40:$E$55,4,TRUE)) ->  | AH57: =E57*$P57*'8. Beheer_Tabellen'!$F$12>=$E$31 -> FALSE | AI57: 0 | AJ57: 0 | AK57: =IFERROR(DATEDIF(BE57,MIN(AG57,'8. Beheer_Tabellen'!$C$8),"m")*AI57,0) -> 0 | AL57: =((I57*'8. Beheer_Tabellen'!$C$14)+(I57*'8. Beheer_Tabellen'!$C$12)+I57)*AI57 -> 0 | AM57: =IF('8. Beheer_Tabellen'!$F$32="Ja",AL57+J57,AL57) -> 0 | AN57: 0 | AO57: 0 | AP57: 0 | AQ57: 0 | AR57: =IF(MIN('8. Beheer_Tabellen'!$C$16*(MIN(AE57,'8. Beheer_Tabellen'!$C$20)-'8. Beheer_Tabellen'!$C$18),'8. Beheer_Tabellen'!$C$22)*AI57<0,0,MIN('8. Beheer_Tabellen'!$C$16*(MIN(AE57,'8. Beheer_Tabellen'!$C$20)-'8. Beheer_Tabellen'!$C$18),'8. Beheer_Tabellen'!$C$22)*AI57) -> 0 | AS57: =MIN(AR57*E57,'8. Beheer_Tabellen'!C$22) -> 0 | AT57: 0 | AU57: 0 | AV57: 0 | AW57: 0 | AX57: 0 | AY57: =AV57*AK57/12*'8. Beheer_Tabellen'!$C$26 -> 0 | AZ57: 0 | BA57: 0 | BB57: 0 | BF57: 0 | BG57: 0 | BH57: 0 | BI57: 0 | BJ57: 0 | BK57: =IF($AK57=0,0,IF(YEAR($BE57)>BK$31,0,IF(YEAR($BE57)=BK$31,MIN($AK57,13-MONTH($BE57)),IF(BK$31>YEAR($AG57),0,IF(BK$31=YEAR($AG57),$AK57-SUM($BJ57:BJ57),12))))) -> 0 | BL57: =IF($AK57=0,0,IF(YEAR($BE57)>BL$31,0,IF(YEAR($BE57)=BL$31,MIN($AK57,13-MONTH($BE57)),IF(BL$31>YEAR($AG57),0,IF(BL$31=YEAR($AG57),$AK57-SUM($BJ57:BK57),12))))) -> 0 | BM57: =IF($AK57=0,0,IF(YEAR($BE57)>BM$31,0,IF(YEAR($BE57)=BM$31,MIN($AK57,13-MONTH($BE57)),IF(BM$31>YEAR($AG57),0,IF(BM$31=YEAR($AG57),$AK57-SUM($BJ57:BL57),12))))) -> 0 | BN57: =IF($AK57=0,0,IF(YEAR($BE57)>BN$31,0,IF(YEAR($BE57)=BN$31,MIN($AK57,13-MONTH($BE57)),IF(BN$31>YEAR($AG57),0,IF(BN$31=YEAR($AG57),$AK57-SUM($BJ57:BM57),12))))) -> 0 | BO57: =IF($AK57=0,0,IF(YEAR($BE57)>BO$31,0,IF(YEAR($BE57)=BO$31,MIN($AK57,13-MONTH($BE57)),IF(BO$31>YEAR($AG57),0,IF(BO$31=YEAR($AG57),$AK57-SUM($BJ57:BN57),12))))) -> 0 | BP57: =IF($AK57=0,0,IF(YEAR($BE57)>BP$31,0,IF(YEAR($BE57)=BP$31,MIN($AK57,13-MONTH($BE57)),IF(BP$31>YEAR($AG57),0,IF(BP$31=YEAR($AG57),$AK57-SUM($BJ57:BO57),12))))) -> 0 | BQ57: =IF($AK57=0,0,IF(YEAR($BE57)>BQ$31,0,IF(YEAR($BE57)=BQ$31,MIN($AK57,13-MONTH($BE57)),IF(BQ$31>YEAR($AG57),0,IF(BQ$31=YEAR($AG57),$AK57-SUM($BJ57:BP57),12))))) -> 0 | BR57: =IF($AK57=0,0,IF(YEAR($BE57)>BR$31,0,IF(YEAR($BE57)=BR$31,MIN($AK57,13-MONTH($BE57)),IF(BR$31>YEAR($AG57),0,IF(BR$31=YEAR($AG57),$AK57-SUM($BJ57:BQ57),12))))) -> 0 | BS57: =IF($AK57=0,0,IF(YEAR($BE57)>BS$31,0,IF(YEAR($BE57)=BS$31,MIN($AK57,13-MONTH($BE57)),IF(BS$31>YEAR($AG57),0,IF(BS$31=YEAR($AG57),$AK57-SUM($BJ57:BR57),12))))) -> 0 | BT57: =IF($AK57=0,0,IF(YEAR($BE57)>BT$31,0,IF(YEAR($BE57)=BT$31,MIN($AK57,13-MONTH($BE57)),IF(BT$31>YEAR($AG57),0,IF(BT$31=YEAR($AG57),$AK57-SUM($BJ57:BS57),12))))) -> 0 | BU57: 0 | BV57: 0 | BW57: 0 | BX57: 0 | BY57: 0 | BZ57: 0 | CA57: 0 | CB57: 0 | CC57: 0 | CD57: 0 | CE57: 0 | CF57: 0 | CG57: 0 | CH57: 0 | CI57: 0 | CJ57: 0 | CK57: 0 | CL57: 0 | CM57: 0 | CN57: 0 | CO57: 0 | CP57: 0 | CQ57: 0 | CR57: 0 | CS57: 0 | CT57: 0 | CU57: 0 | CV57: 0 | CW57: 0 | CX57: 0 | CY57: 0 | CZ57: 0 | DA57: 0 | DB57: 0 | DC57: 0 | DD57: 0 | DE57: 0 | DF57: 0 | DG57: 0 | DH57: 0 | DI57: 0 | DJ57: 0 | DK57: 0 | DL57: 0 | DM57: 0 | DN57: 0
P58: 0.8 | Q58: 0.1 | R58: =IF(Invoer_selectie_varianten=1,IF(ISBLANK(N58),'8. Beheer_Tabellen'!$F$34,N58),'8. Beheer_Tabellen'!$F$34) -> ja | T58: =VLOOKUP(S58,'8. Beheer_Tabellen'!$B$104:$D$115,3,TRUE) ->  | V58: =VLOOKUP(U58,'8. Beheer_Tabellen'!$B$104:$D$115,3,TRUE) ->  | W58: =IFERROR(VLOOKUP(YEAR(C58),'8. Beheer_Tabellen'!$B$62:$D$80,3,FALSE),57)*E58 -> 0 | X58: 0 | Y58: =IFERROR(Uren_per_jaar*E58*VLOOKUP(U58,'8. Beheer_Tabellen'!$B$88:$G$99,6,TRUE),) -> 0 | Z58: 0 | AB58: 0 | AC58: 0 | AD58: 0 | AE58: 0 | AF58: =IF(I58="",0,(((I58*'8. Beheer_Tabellen'!$C$14)+(I58*'8. Beheer_Tabellen'!$C$12)+I58)*12*1/E58)) -> 0 | AG58: =EDATE(C58,VLOOKUP(C58,'8. Beheer_Tabellen'!$B$40:$E$55,4,TRUE)) ->  | AH58: =E58*$P58*'8. Beheer_Tabellen'!$F$12>=$E$31 -> FALSE | AI58: 0 | AJ58: 0 | AK58: =IFERROR(DATEDIF(BE58,MIN(AG58,'8. Beheer_Tabellen'!$C$8),"m")*AI58,0) -> 0 | AL58: =((I58*'8. Beheer_Tabellen'!$C$14)+(I58*'8. Beheer_Tabellen'!$C$12)+I58)*AI58 -> 0 | AM58: =IF('8. Beheer_Tabellen'!$F$32="Ja",AL58+J58,AL58) -> 0 | AN58: 0 | AO58: 0 | AP58: 0 | AQ58: 0 | AR58: =IF(MIN('8. Beheer_Tabellen'!$C$16*(MIN(AE58,'8. Beheer_Tabellen'!$C$20)-'8. Beheer_Tabellen'!$C$18),'8. Beheer_Tabellen'!$C$22)*AI58<0,0,MIN('8. Beheer_Tabellen'!$C$16*(MIN(AE58,'8. Beheer_Tabellen'!$C$20)-'8. Beheer_Tabellen'!$C$18),'8. Beheer_Tabellen'!$C$22)*AI58) -> 0 | AS58: =MIN(AR58*E58,'8. Beheer_Tabellen'!C$22) -> 0 | AT58: 0 | AU58: 0 | AV58: 0 | AW58: 0 | AX58: 0 | AY58: =AV58*AK58/12*'8. Beheer_Tabellen'!$C$26 -> 0 | AZ58: 0 | BA58: 0 | BB58: 0 | BF58: 0 | BG58: 0 | BH58: 0 | BI58: 0 | BJ58: 0 | BK58: =IF($AK58=0,0,IF(YEAR($BE58)>BK$31,0,IF(YEAR($BE58)=BK$31,MIN($AK58,13-MONTH($BE58)),IF(BK$31>YEAR($AG58),0,IF(BK$31=YEAR($AG58),$AK58-SUM($BJ58:BJ58),12))))) -> 0 | BL58: =IF($AK58=0,0,IF(YEAR($BE58)>BL$31,0,IF(YEAR($BE58)=BL$31,MIN($AK58,13-MONTH($BE58)),IF(BL$31>YEAR($AG58),0,IF(BL$31=YEAR($AG58),$AK58-SUM($BJ58:BK58),12))))) -> 0 | BM58: =IF($AK58=0,0,IF(YEAR($BE58)>BM$31,0,IF(YEAR($BE58)=BM$31,MIN($AK58,13-MONTH($BE58)),IF(BM$31>YEAR($AG58),0,IF(BM$31=YEAR($AG58),$AK58-SUM($BJ58:BL58),12))))) -> 0 | BN58: =IF($AK58=0,0,IF(YEAR($BE58)>BN$31,0,IF(YEAR($BE58)=BN$31,MIN($AK58,13-MONTH($BE58)),IF(BN$31>YEAR($AG58),0,IF(BN$31=YEAR($AG58),$AK58-SUM($BJ58:BM58),12))))) -> 0 | BO58: =IF($AK58=0,0,IF(YEAR($BE58)>BO$31,0,IF(YEAR($BE58)=BO$31,MIN($AK58,13-MONTH($BE58)),IF(BO$31>YEAR($AG58),0,IF(BO$31=YEAR($AG58),$AK58-SUM($BJ58:BN58),12))))) -> 0 | BP58: =IF($AK58=0,0,IF(YEAR($BE58)>BP$31,0,IF(YEAR($BE58)=BP$31,MIN($AK58,13-MONTH($BE58)),IF(BP$31>YEAR($AG58),0,IF(BP$31=YEAR($AG58),$AK58-SUM($BJ58:BO58),12))))) -> 0 | BQ58: =IF($AK58=0,0,IF(YEAR($BE58)>BQ$31,0,IF(YEAR($BE58)=BQ$31,MIN($AK58,13-MONTH($BE58)),IF(BQ$31>YEAR($AG58),0,IF(BQ$31=YEAR($AG58),$AK58-SUM($BJ58:BP58),12))))) -> 0 | BR58: =IF($AK58=0,0,IF(YEAR($BE58)>BR$31,0,IF(YEAR($BE58)=BR$31,MIN($AK58,13-MONTH($BE58)),IF(BR$31>YEAR($AG58),0,IF(BR$31=YEAR($AG58),$AK58-SUM($BJ58:BQ58),12))))) -> 0 | BS58: =IF($AK58=0,0,IF(YEAR($BE58)>BS$31,0,IF(YEAR($BE58)=BS$31,MIN($AK58,13-MONTH($BE58)),IF(BS$31>YEAR($AG58),0,IF(BS$31=YEAR($AG58),$AK58-SUM($BJ58:BR58),12))))) -> 0 | BT58: =IF($AK58=0,0,IF(YEAR($BE58)>BT$31,0,IF(YEAR($BE58)=BT$31,MIN($AK58,13-MONTH($BE58)),IF(BT$31>YEAR($AG58),0,IF(BT$31=YEAR($AG58),$AK58-SUM($BJ58:BS58),12))))) -> 0 | BU58: 0 | BV58: 0 | BW58: 0 | BX58: 0 | BY58: 0 | BZ58: 0 | CA58: 0 | CB58: 0 | CC58: 0 | CD58: 0 | CE58: 0 | CF58: 0 | CG58: 0 | CH58: 0 | CI58: 0 | CJ58: 0 | CK58: 0 | CL58: 0 | CM58: 0 | CN58: 0 | CO58: 0 | CP58: 0 | CQ58: 0 | CR58: 0 | CS58: 0 | CT58: 0 | CU58: 0 | CV58: 0 | CW58: 0 | CX58: 0 | CY58: 0 | CZ58: 0 | DA58: 0 | DB58: 0 | DC58: 0 | DD58: 0 | DE58: 0 | DF58: 0 | DG58: 0 | DH58: 0 | DI58: 0 | DJ58: 0 | DK58: 0 | DL58: 0 | DM58: 0 | DN58: 0
P59: 0.8 | Q59: 0.1 | R59: =IF(Invoer_selectie_varianten=1,IF(ISBLANK(N59),'8. Beheer_Tabellen'!$F$34,N59),'8. Beheer_Tabellen'!$F$34) -> ja | T59: =VLOOKUP(S59,'8. Beheer_Tabellen'!$B$104:$D$115,3,TRUE) ->  | V59: =VLOOKUP(U59,'8. Beheer_Tabellen'!$B$104:$D$115,3,TRUE) ->  | W59: =IFERROR(VLOOKUP(YEAR(C59),'8. Beheer_Tabellen'!$B$62:$D$80,3,FALSE),57)*E59 -> 0 | X59: 0 | Y59: =IFERROR(Uren_per_jaar*E59*VLOOKUP(U59,'8. Beheer_Tabellen'!$B$88:$G$99,6,TRUE),) -> 0 | Z59: 0 | AB59: 0 | AC59: 0 | AD59: 0 | AE59: 0 | AF59: =IF(I59="",0,(((I59*'8. Beheer_Tabellen'!$C$14)+(I59*'8. Beheer_Tabellen'!$C$12)+I59)*12*1/E59)) -> 0 | AG59: =EDATE(C59,VLOOKUP(C59,'8. Beheer_Tabellen'!$B$40:$E$55,4,TRUE)) ->  | AH59: =E59*$P59*'8. Beheer_Tabellen'!$F$12>=$E$31 -> FALSE | AI59: 0 | AJ59: 0 | AK59: =IFERROR(DATEDIF(BE59,MIN(AG59,'8. Beheer_Tabellen'!$C$8),"m")*AI59,0) -> 0 | AL59: =((I59*'8. Beheer_Tabellen'!$C$14)+(I59*'8. Beheer_Tabellen'!$C$12)+I59)*AI59 -> 0 | AM59: =IF('8. Beheer_Tabellen'!$F$32="Ja",AL59+J59,AL59) -> 0 | AN59: 0 | AO59: 0 | AP59: 0 | AQ59: 0 | AR59: =IF(MIN('8. Beheer_Tabellen'!$C$16*(MIN(AE59,'8. Beheer_Tabellen'!$C$20)-'8. Beheer_Tabellen'!$C$18),'8. Beheer_Tabellen'!$C$22)*AI59<0,0,MIN('8. Beheer_Tabellen'!$C$16*(MIN(AE59,'8. Beheer_Tabellen'!$C$20)-'8. Beheer_Tabellen'!$C$18),'8. Beheer_Tabellen'!$C$22)*AI59) -> 0 | AS59: =MIN(AR59*E59,'8. Beheer_Tabellen'!C$22) -> 0 | AT59: 0 | AU59: 0 | AV59: 0 | AW59: 0 | AX59: 0 | AY59: =AV59*AK59/12*'8. Beheer_Tabellen'!$C$26 -> 0 | AZ59: 0 | BA59: 0 | BB59: 0 | BF59: 0 | BG59: 0 | BH59: 0 | BI59: 0 | BJ59: 0 | BK59: =IF($AK59=0,0,IF(YEAR($BE59)>BK$31,0,IF(YEAR($BE59)=BK$31,MIN($AK59,13-MONTH($BE59)),IF(BK$31>YEAR($AG59),0,IF(BK$31=YEAR($AG59),$AK59-SUM($BJ59:BJ59),12))))) -> 0 | BL59: =IF($AK59=0,0,IF(YEAR($BE59)>BL$31,0,IF(YEAR($BE59)=BL$31,MIN($AK59,13-MONTH($BE59)),IF(BL$31>YEAR($AG59),0,IF(BL$31=YEAR($AG59),$AK59-SUM($BJ59:BK59),12))))) -> 0 | BM59: =IF($AK59=0,0,IF(YEAR($BE59)>BM$31,0,IF(YEAR($BE59)=BM$31,MIN($AK59,13-MONTH($BE59)),IF(BM$31>YEAR($AG59),0,IF(BM$31=YEAR($AG59),$AK59-SUM($BJ59:BL59),12))))) -> 0 | BN59: =IF($AK59=0,0,IF(YEAR($BE59)>BN$31,0,IF(YEAR($BE59)=BN$31,MIN($AK59,13-MONTH($BE59)),IF(BN$31>YEAR($AG59),0,IF(BN$31=YEAR($AG59),$AK59-SUM($BJ59:BM59),12))))) -> 0 | BO59: =IF($AK59=0,0,IF(YEAR($BE59)>BO$31,0,IF(YEAR($BE59)=BO$31,MIN($AK59,13-MONTH($BE59)),IF(BO$31>YEAR($AG59),0,IF(BO$31=YEAR($AG59),$AK59-SUM($BJ59:BN59),12))))) -> 0 | BP59: =IF($AK59=0,0,IF(YEAR($BE59)>BP$31,0,IF(YEAR($BE59)=BP$31,MIN($AK59,13-MONTH($BE59)),IF(BP$31>YEAR($AG59),0,IF(BP$31=YEAR($AG59),$AK59-SUM($BJ59:BO59),12))))) -> 0 | BQ59: =IF($AK59=0,0,IF(YEAR($BE59)>BQ$31,0,IF(YEAR($BE59)=BQ$31,MIN($AK59,13-MONTH($BE59)),IF(BQ$31>YEAR($AG59),0,IF(BQ$31=YEAR($AG59),$AK59-SUM($BJ59:BP59),12))))) -> 0 | BR59: =IF($AK59=0,0,IF(YEAR($BE59)>BR$31,0,IF(YEAR($BE59)=BR$31,MIN($AK59,13-MONTH($BE59)),IF(BR$31>YEAR($AG59),0,IF(BR$31=YEAR($AG59),$AK59-SUM($BJ59:BQ59),12))))) -> 0 | BS59: =IF($AK59=0,0,IF(YEAR($BE59)>BS$31,0,IF(YEAR($BE59)=BS$31,MIN($AK59,13-MONTH($BE59)),IF(BS$31>YEAR($AG59),0,IF(BS$31=YEAR($AG59),$AK59-SUM($BJ59:BR59),12))))) -> 0 | BT59: =IF($AK59=0,0,IF(YEAR($BE59)>BT$31,0,IF(YEAR($BE59)=BT$31,MIN($AK59,13-MONTH($BE59)),IF(BT$31>YEAR($AG59),0,IF(BT$31=YEAR($AG59),$AK59-SUM($BJ59:BS59),12))))) -> 0 | BU59: 0 | BV59: 0 | BW59: 0 | BX59: 0 | BY59: 0 | BZ59: 0 | CA59: 0 | CB59: 0 | CC59: 0 | CD59: 0 | CE59: 0 | CF59: 0 | CG59: 0 | CH59: 0 | CI59: 0 | CJ59: 0 | CK59: 0 | CL59: 0 | CM59: 0 | CN59: 0 | CO59: 0 | CP59: 0 | CQ59: 0 | CR59: 0 | CS59: 0 | CT59: 0 | CU59: 0 | CV59: 0 | CW59: 0 | CX59: 0 | CY59: 0 | CZ59: 0 | DA59: 0 | DB59: 0 | DC59: 0 | DD59: 0 | DE59: 0 | DF59: 0 | DG59: 0 | DH59: 0 | DI59: 0 | DJ59: 0 | DK59: 0 | DL59: 0 | DM59: 0 | DN59: 0
P60: 0.8 | Q60: 0.1 | R60: =IF(Invoer_selectie_varianten=1,IF(ISBLANK(N60),'8. Beheer_Tabellen'!$F$34,N60),'8. Beheer_Tabellen'!$F$34) -> ja | T60: =VLOOKUP(S60,'8. Beheer_Tabellen'!$B$104:$D$115,3,TRUE) ->  | V60: =VLOOKUP(U60,'8. Beheer_Tabellen'!$B$104:$D$115,3,TRUE) ->  | W60: =IFERROR(VLOOKUP(YEAR(C60),'8. Beheer_Tabellen'!$B$62:$D$80,3,FALSE),57)*E60 -> 0 | X60: 0 | Y60: =IFERROR(Uren_per_jaar*E60*VLOOKUP(U60,'8. Beheer_Tabellen'!$B$88:$G$99,6,TRUE),) -> 0 | Z60: 0 | AB60: 0 | AC60: 0 | AD60: 0 | AE60: 0 | AF60: =IF(I60="",0,(((I60*'8. Beheer_Tabellen'!$C$14)+(I60*'8. Beheer_Tabellen'!$C$12)+I60)*12*1/E60)) -> 0 | AG60: =EDATE(C60,VLOOKUP(C60,'8. Beheer_Tabellen'!$B$40:$E$55,4,TRUE)) ->  | AH60: =E60*$P60*'8. Beheer_Tabellen'!$F$12>=$E$31 -> FALSE | AI60: 0 | AJ60: 0 | AK60: =IFERROR(DATEDIF(BE60,MIN(AG60,'8. Beheer_Tabellen'!$C$8),"m")*AI60,0) -> 0 | AL60: =((I60*'8. Beheer_Tabellen'!$C$14)+(I60*'8. Beheer_Tabellen'!$C$12)+I60)*AI60 -> 0 | AM60: =IF('8. Beheer_Tabellen'!$F$32="Ja",AL60+J60,AL60) -> 0 | AN60: 0 | AO60: 0 | AP60: 0 | AQ60: 0 | AR60: =IF(MIN('8. Beheer_Tabellen'!$C$16*(MIN(AE60,'8. Beheer_Tabellen'!$C$20)-'8. Beheer_Tabellen'!$C$18),'8. Beheer_Tabellen'!$C$22)*AI60<0,0,MIN('8. Beheer_Tabellen'!$C$16*(MIN(AE60,'8. Beheer_Tabellen'!$C$20)-'8. Beheer_Tabellen'!$C$18),'8. Beheer_Tabellen'!$C$22)*AI60) -> 0 | AS60: =MIN(AR60*E60,'8. Beheer_Tabellen'!C$22) -> 0 | AT60: 0 | AU60: 0 | AV60: 0 | AW60: 0 | AX60: 0 | AY60: =AV60*AK60/12*'8. Beheer_Tabellen'!$C$26 -> 0 | AZ60: 0 | BA60: 0 | BB60: 0 | BF60: 0 | BG60: 0 | BH60: 0 | BI60: 0 | BJ60: 0 | BK60: =IF($AK60=0,0,IF(YEAR($BE60)>BK$31,0,IF(YEAR($BE60)=BK$31,MIN($AK60,13-MONTH($BE60)),IF(BK$31>YEAR($AG60),0,IF(BK$31=YEAR($AG60),$AK60-SUM($BJ60:BJ60),12))))) -> 0 | BL60: =IF($AK60=0,0,IF(YEAR($BE60)>BL$31,0,IF(YEAR($BE60)=BL$31,MIN($AK60,13-MONTH($BE60)),IF(BL$31>YEAR($AG60),0,IF(BL$31=YEAR($AG60),$AK60-SUM($BJ60:BK60),12))))) -> 0 | BM60: =IF($AK60=0,0,IF(YEAR($BE60)>BM$31,0,IF(YEAR($BE60)=BM$31,MIN($AK60,13-MONTH($BE60)),IF(BM$31>YEAR($AG60),0,IF(BM$31=YEAR($AG60),$AK60-SUM($BJ60:BL60),12))))) -> 0 | BN60: =IF($AK60=0,0,IF(YEAR($BE60)>BN$31,0,IF(YEAR($BE60)=BN$31,MIN($AK60,13-MONTH($BE60)),IF(BN$31>YEAR($AG60),0,IF(BN$31=YEAR($AG60),$AK60-SUM($BJ60:BM60),12))))) -> 0 | BO60: =IF($AK60=0,0,IF(YEAR($BE60)>BO$31,0,IF(YEAR($BE60)=BO$31,MIN($AK60,13-MONTH($BE60)),IF(BO$31>YEAR($AG60),0,IF(BO$31=YEAR($AG60),$AK60-SUM($BJ60:BN60),12))))) -> 0 | BP60: =IF($AK60=0,0,IF(YEAR($BE60)>BP$31,0,IF(YEAR($BE60)=BP$31,MIN($AK60,13-MONTH($BE60)),IF(BP$31>YEAR($AG60),0,IF(BP$31=YEAR($AG60),$AK60-SUM($BJ60:BO60),12))))) -> 0 | BQ60: =IF($AK60=0,0,IF(YEAR($BE60)>BQ$31,0,IF(YEAR($BE60)=BQ$31,MIN($AK60,13-MONTH($BE60)),IF(BQ$31>YEAR($AG60),0,IF(BQ$31=YEAR($AG60),$AK60-SUM($BJ60:BP60),12))))) -> 0 | BR60: =IF($AK60=0,0,IF(YEAR($BE60)>BR$31,0,IF(YEAR($BE60)=BR$31,MIN($AK60,13-MONTH($BE60)),IF(BR$31>YEAR($AG60),0,IF(BR$31=YEAR($AG60),$AK60-SUM($BJ60:BQ60),12))))) -> 0 | BS60: =IF($AK60=0,0,IF(YEAR($BE60)>BS$31,0,IF(YEAR($BE60)=BS$31,MIN($AK60,13-MONTH($BE60)),IF(BS$31>YEAR($AG60),0,IF(BS$31=YEAR($AG60),$AK60-SUM($BJ60:BR60),12))))) -> 0 | BT60: =IF($AK60=0,0,IF(YEAR($BE60)>BT$31,0,IF(YEAR($BE60)=BT$31,MIN($AK60,13-MONTH($BE60)),IF(BT$31>YEAR($AG60),0,IF(BT$31=YEAR($AG60),$AK60-SUM($BJ60:BS60),12))))) -> 0 | BU60: 0 | BV60: 0 | BW60: 0 | BX60: 0 | BY60: 0 | BZ60: 0 | CA60: 0 | CB60: 0 | CC60: 0 | CD60: 0 | CE60: 0 | CF60: 0 | CG60: 0 | CH60: 0 | CI60: 0 | CJ60: 0 | CK60: 0 | CL60: 0 | CM60: 0 | CN60: 0 | CO60: 0 | CP60: 0 | CQ60: 0 | CR60: 0 | CS60: 0 | CT60: 0 | CU60: 0 | CV60: 0 | CW60: 0 | CX60: 0 | CY60: 0 | CZ60: 0 | DA60: 0 | DB60: 0 | DC60: 0 | DD60: 0 | DE60: 0 | DF60: 0 | DG60: 0 | DH60: 0 | DI60: 0 | DJ60: 0 | DK60: 0 | DL60: 0 | DM60: 0 | DN60: 0
P61: 0.8 | Q61: 0.1 | R61: =IF(Invoer_selectie_varianten=1,IF(ISBLANK(N61),'8. Beheer_Tabellen'!$F$34,N61),'8. Beheer_Tabellen'!$F$34) -> ja | T61: =VLOOKUP(S61,'8. Beheer_Tabellen'!$B$104:$D$115,3,TRUE) ->  | V61: =VLOOKUP(U61,'8. Beheer_Tabellen'!$B$104:$D$115,3,TRUE) ->  | W61: =IFERROR(VLOOKUP(YEAR(C61),'8. Beheer_Tabellen'!$B$62:$D$80,3,FALSE),57)*E61 -> 0 | X61: 0 | Y61: =IFERROR(Uren_per_jaar*E61*VLOOKUP(U61,'8. Beheer_Tabellen'!$B$88:$G$99,6,TRUE),) -> 0 | Z61: 0 | AB61: 0 | AC61: 0 | AD61: 0 | AE61: 0 | AF61: =IF(I61="",0,(((I61*'8. Beheer_Tabellen'!$C$14)+(I61*'8. Beheer_Tabellen'!$C$12)+I61)*12*1/E61)) -> 0 | AG61: =EDATE(C61,VLOOKUP(C61,'8. Beheer_Tabellen'!$B$40:$E$55,4,TRUE)) ->  | AH61: =E61*$P61*'8. Beheer_Tabellen'!$F$12>=$E$31 -> FALSE | AI61: 0 | AJ61: 0 | AK61: =IFERROR(DATEDIF(BE61,MIN(AG61,'8. Beheer_Tabellen'!$C$8),"m")*AI61,0) -> 0 | AL61: =((I61*'8. Beheer_Tabellen'!$C$14)+(I61*'8. Beheer_Tabellen'!$C$12)+I61)*AI61 -> 0 | AM61: =IF('8. Beheer_Tabellen'!$F$32="Ja",AL61+J61,AL61) -> 0 | AN61: 0 | AO61: 0 | AP61: 0 | AQ61: 0 | AR61: =IF(MIN('8. Beheer_Tabellen'!$C$16*(MIN(AE61,'8. Beheer_Tabellen'!$C$20)-'8. Beheer_Tabellen'!$C$18),'8. Beheer_Tabellen'!$C$22)*AI61<0,0,MIN('8. Beheer_Tabellen'!$C$16*(MIN(AE61,'8. Beheer_Tabellen'!$C$20)-'8. Beheer_Tabellen'!$C$18),'8. Beheer_Tabellen'!$C$22)*AI61) -> 0 | AS61: =MIN(AR61*E61,'8. Beheer_Tabellen'!C$22) -> 0 | AT61: 0 | AU61: 0 | AV61: 0 | AW61: 0 | AX61: 0 | AY61: =AV61*AK61/12*'8. Beheer_Tabellen'!$C$26 -> 0 | AZ61: 0 | BA61: 0 | BB61: 0 | BF61: 0 | BG61: 0 | BH61: 0 | BI61: 0 | BJ61: 0 | BK61: =IF($AK61=0,0,IF(YEAR($BE61)>BK$31,0,IF(YEAR($BE61)=BK$31,MIN($AK61,13-MONTH($BE61)),IF(BK$31>YEAR($AG61),0,IF(BK$31=YEAR($AG61),$AK61-SUM($BJ61:BJ61),12))))) -> 0 | BL61: =IF($AK61=0,0,IF(YEAR($BE61)>BL$31,0,IF(YEAR($BE61)=BL$31,MIN($AK61,13-MONTH($BE61)),IF(BL$31>YEAR($AG61),0,IF(BL$31=YEAR($AG61),$AK61-SUM($BJ61:BK61),12))))) -> 0 | BM61: =IF($AK61=0,0,IF(YEAR($BE61)>BM$31,0,IF(YEAR($BE61)=BM$31,MIN($AK61,13-MONTH($BE61)),IF(BM$31>YEAR($AG61),0,IF(BM$31=YEAR($AG61),$AK61-SUM($BJ61:BL61),12))))) -> 0 | BN61: =IF($AK61=0,0,IF(YEAR($BE61)>BN$31,0,IF(YEAR($BE61)=BN$31,MIN($AK61,13-MONTH($BE61)),IF(BN$31>YEAR($AG61),0,IF(BN$31=YEAR($AG61),$AK61-SUM($BJ61:BM61),12))))) -> 0 | BO61: =IF($AK61=0,0,IF(YEAR($BE61)>BO$31,0,IF(YEAR($BE61)=BO$31,MIN($AK61,13-MONTH($BE61)),IF(BO$31>YEAR($AG61),0,IF(BO$31=YEAR($AG61),$AK61-SUM($BJ61:BN61),12))))) -> 0 | BP61: =IF($AK61=0,0,IF(YEAR($BE61)>BP$31,0,IF(YEAR($BE61)=BP$31,MIN($AK61,13-MONTH($BE61)),IF(BP$31>YEAR($AG61),0,IF(BP$31=YEAR($AG61),$AK61-SUM($BJ61:BO61),12))))) -> 0 | BQ61: =IF($AK61=0,0,IF(YEAR($BE61)>BQ$31,0,IF(YEAR($BE61)=BQ$31,MIN($AK61,13-MONTH($BE61)),IF(BQ$31>YEAR($AG61),0,IF(BQ$31=YEAR($AG61),$AK61-SUM($BJ61:BP61),12))))) -> 0 | BR61: =IF($AK61=0,0,IF(YEAR($BE61)>BR$31,0,IF(YEAR($BE61)=BR$31,MIN($AK61,13-MONTH($BE61)),IF(BR$31>YEAR($AG61),0,IF(BR$31=YEAR($AG61),$AK61-SUM($BJ61:BQ61),12))))) -> 0 | BS61: =IF($AK61=0,0,IF(YEAR($BE61)>BS$31,0,IF(YEAR($BE61)=BS$31,MIN($AK61,13-MONTH($BE61)),IF(BS$31>YEAR($AG61),0,IF(BS$31=YEAR($AG61),$AK61-SUM($BJ61:BR61),12))))) -> 0 | BT61: =IF($AK61=0,0,IF(YEAR($BE61)>BT$31,0,IF(YEAR($BE61)=BT$31,MIN($AK61,13-MONTH($BE61)),IF(BT$31>YEAR($AG61),0,IF(BT$31=YEAR($AG61),$AK61-SUM($BJ61:BS61),12))))) -> 0 | BU61: 0 | BV61: 0 | BW61: 0 | BX61: 0 | BY61: 0 | BZ61: 0 | CA61: 0 | CB61: 0 | CC61: 0 | CD61: 0 | CE61: 0 | CF61: 0 | CG61: 0 | CH61: 0 | CI61: 0 | CJ61: 0 | CK61: 0 | CL61: 0 | CM61: 0 | CN61: 0 | CO61: 0 | CP61: 0 | CQ61: 0 | CR61: 0 | CS61: 0 | CT61: 0 | CU61: 0 | CV61: 0 | CW61: 0 | CX61: 0 | CY61: 0 | CZ61: 0 | DA61: 0 | DB61: 0 | DC61: 0 | DD61: 0 | DE61: 0 | DF61: 0 | DG61: 0 | DH61: 0 | DI61: 0 | DJ61: 0 | DK61: 0 | DL61: 0 | DM61: 0 | DN61: 0
P62: 0.8 | Q62: 0.1 | R62: =IF(Invoer_selectie_varianten=1,IF(ISBLANK(N62),'8. Beheer_Tabellen'!$F$34,N62),'8. Beheer_Tabellen'!$F$34) -> ja | T62: =VLOOKUP(S62,'8. Beheer_Tabellen'!$B$104:$D$115,3,TRUE) ->  | V62: =VLOOKUP(U62,'8. Beheer_Tabellen'!$B$104:$D$115,3,TRUE) ->  | W62: =IFERROR(VLOOKUP(YEAR(C62),'8. Beheer_Tabellen'!$B$62:$D$80,3,FALSE),57)*E62 -> 0 | X62: 0 | Y62: =IFERROR(Uren_per_jaar*E62*VLOOKUP(U62,'8. Beheer_Tabellen'!$B$88:$G$99,6,TRUE),) -> 0 | Z62: 0 | AB62: 0 | AC62: 0 | AD62: 0 | AE62: 0 | AF62: =IF(I62="",0,(((I62*'8. Beheer_Tabellen'!$C$14)+(I62*'8. Beheer_Tabellen'!$C$12)+I62)*12*1/E62)) -> 0 | AG62: =EDATE(C62,VLOOKUP(C62,'8. Beheer_Tabellen'!$B$40:$E$55,4,TRUE)) ->  | AH62: =E62*$P62*'8. Beheer_Tabellen'!$F$12>=$E$31 -> FALSE | AI62: 0 | AJ62: 0 | AK62: =IFERROR(DATEDIF(BE62,MIN(AG62,'8. Beheer_Tabellen'!$C$8),"m")*AI62,0) -> 0 | AL62: =((I62*'8. Beheer_Tabellen'!$C$14)+(I62*'8. Beheer_Tabellen'!$C$12)+I62)*AI62 -> 0 | AM62: =IF('8. Beheer_Tabellen'!$F$32="Ja",AL62+J62,AL62) -> 0 | AN62: 0 | AO62: 0 | AP62: 0 | AQ62: 0 | AR62: =IF(MIN('8. Beheer_Tabellen'!$C$16*(MIN(AE62,'8. Beheer_Tabellen'!$C$20)-'8. Beheer_Tabellen'!$C$18),'8. Beheer_Tabellen'!$C$22)*AI62<0,0,MIN('8. Beheer_Tabellen'!$C$16*(MIN(AE62,'8. Beheer_Tabellen'!$C$20)-'8. Beheer_Tabellen'!$C$18),'8. Beheer_Tabellen'!$C$22)*AI62) -> 0 | AS62: =MIN(AR62*E62,'8. Beheer_Tabellen'!C$22) -> 0 | AT62: 0 | AU62: 0 | AV62: 0 | AW62: 0 | AX62: 0 | AY62: =AV62*AK62/12*'8. Beheer_Tabellen'!$C$26 -> 0 | AZ62: 0 | BA62: 0 | BB62: 0 | BF62: 0 | BG62: 0 | BH62: 0 | BI62: 0 | BJ62: 0 | BK62: =IF($AK62=0,0,IF(YEAR($BE62)>BK$31,0,IF(YEAR($BE62)=BK$31,MIN($AK62,13-MONTH($BE62)),IF(BK$31>YEAR($AG62),0,IF(BK$31=YEAR($AG62),$AK62-SUM($BJ62:BJ62),12))))) -> 0 | BL62: =IF($AK62=0,0,IF(YEAR($BE62)>BL$31,0,IF(YEAR($BE62)=BL$31,MIN($AK62,13-MONTH($BE62)),IF(BL$31>YEAR($AG62),0,IF(BL$31=YEAR($AG62),$AK62-SUM($BJ62:BK62),12))))) -> 0 | BM62: =IF($AK62=0,0,IF(YEAR($BE62)>BM$31,0,IF(YEAR($BE62)=BM$31,MIN($AK62,13-MONTH($BE62)),IF(BM$31>YEAR($AG62),0,IF(BM$31=YEAR($AG62),$AK62-SUM($BJ62:BL62),12))))) -> 0 | BN62: =IF($AK62=0,0,IF(YEAR($BE62)>BN$31,0,IF(YEAR($BE62)=BN$31,MIN($AK62,13-MONTH($BE62)),IF(BN$31>YEAR($AG62),0,IF(BN$31=YEAR($AG62),$AK62-SUM($BJ62:BM62),12))))) -> 0 | BO62: =IF($AK62=0,0,IF(YEAR($BE62)>BO$31,0,IF(YEAR($BE62)=BO$31,MIN($AK62,13-MONTH($BE62)),IF(BO$31>YEAR($AG62),0,IF(BO$31=YEAR($AG62),$AK62-SUM($BJ62:BN62),12))))) -> 0 | BP62: =IF($AK62=0,0,IF(YEAR($BE62)>BP$31,0,IF(YEAR($BE62)=BP$31,MIN($AK62,13-MONTH($BE62)),IF(BP$31>YEAR($AG62),0,IF(BP$31=YEAR($AG62),$AK62-SUM($BJ62:BO62),12))))) -> 0 | BQ62: =IF($AK62=0,0,IF(YEAR($BE62)>BQ$31,0,IF(YEAR($BE62)=BQ$31,MIN($AK62,13-MONTH($BE62)),IF(BQ$31>YEAR($AG62),0,IF(BQ$31=YEAR($AG62),$AK62-SUM($BJ62:BP62),12))))) -> 0 | BR62: =IF($AK62=0,0,IF(YEAR($BE62)>BR$31,0,IF(YEAR($BE62)=BR$31,MIN($AK62,13-MONTH($BE62)),IF(BR$31>YEAR($AG62),0,IF(BR$31=YEAR($AG62),$AK62-SUM($BJ62:BQ62),12))))) -> 0 | BS62: =IF($AK62=0,0,IF(YEAR($BE62)>BS$31,0,IF(YEAR($BE62)=BS$31,MIN($AK62,13-MONTH($BE62)),IF(BS$31>YEAR($AG62),0,IF(BS$31=YEAR($AG62),$AK62-SUM($BJ62:BR62),12))))) -> 0 | BT62: =IF($AK62=0,0,IF(YEAR($BE62)>BT$31,0,IF(YEAR($BE62)=BT$31,MIN($AK62,13-MONTH($BE62)),IF(BT$31>YEAR($AG62),0,IF(BT$31=YEAR($AG62),$AK62-SUM($BJ62:BS62),12))))) -> 0 | BU62: 0 | BV62: 0 | BW62: 0 | BX62: 0 | BY62: 0 | BZ62: 0 | CA62: 0 | CB62: 0 | CC62: 0 | CD62: 0 | CE62: 0 | CF62: 0 | CG62: 0 | CH62: 0 | CI62: 0 | CJ62: 0 | CK62: 0 | CL62: 0 | CM62: 0 | CN62: 0 | CO62: 0 | CP62: 0 | CQ62: 0 | CR62: 0 | CS62: 0 | CT62: 0 | CU62: 0 | CV62: 0 | CW62: 0 | CX62: 0 | CY62: 0 | CZ62: 0 | DA62: 0 | DB62: 0 | DC62: 0 | DD62: 0 | DE62: 0 | DF62: 0 | DG62: 0 | DH62: 0 | DI62: 0 | DJ62: 0 | DK62: 0 | DL62: 0 | DM62: 0 | DN62: 0
P63: 0.8 | Q63: 0.1 | R63: =IF(Invoer_selectie_varianten=1,IF(ISBLANK(N63),'8. Beheer_Tabellen'!$F$34,N63),'8. Beheer_Tabellen'!$F$34) -> ja | T63: =VLOOKUP(S63,'8. Beheer_Tabellen'!$B$104:$D$115,3,TRUE) ->  | V63: =VLOOKUP(U63,'8. Beheer_Tabellen'!$B$104:$D$115,3,TRUE) ->  | W63: =IFERROR(VLOOKUP(YEAR(C63),'8. Beheer_Tabellen'!$B$62:$D$80,3,FALSE),57)*E63 -> 0 | X63: 0 | Y63: =IFERROR(Uren_per_jaar*E63*VLOOKUP(U63,'8. Beheer_Tabellen'!$B$88:$G$99,6,TRUE),) -> 0 | Z63: 0 | AB63: 0 | AC63: 0 | AD63: 0 | AE63: 0 | AF63: =IF(I63="",0,(((I63*'8. Beheer_Tabellen'!$C$14)+(I63*'8. Beheer_Tabellen'!$C$12)+I63)*12*1/E63)) -> 0 | AG63: =EDATE(C63,VLOOKUP(C63,'8. Beheer_Tabellen'!$B$40:$E$55,4,TRUE)) ->  | AH63: =E63*$P63*'8. Beheer_Tabellen'!$F$12>=$E$31 -> FALSE | AI63: 0 | AJ63: 0 | AK63: =IFERROR(DATEDIF(BE63,MIN(AG63,'8. Beheer_Tabellen'!$C$8),"m")*AI63,0) -> 0 | AL63: =((I63*'8. Beheer_Tabellen'!$C$14)+(I63*'8. Beheer_Tabellen'!$C$12)+I63)*AI63 -> 0 | AM63: =IF('8. Beheer_Tabellen'!$F$32="Ja",AL63+J63,AL63) -> 0 | AN63: 0 | AO63: 0 | AP63: 0 | AQ63: 0 | AR63: =IF(MIN('8. Beheer_Tabellen'!$C$16*(MIN(AE63,'8. Beheer_Tabellen'!$C$20)-'8. Beheer_Tabellen'!$C$18),'8. Beheer_Tabellen'!$C$22)*AI63<0,0,MIN('8. Beheer_Tabellen'!$C$16*(MIN(AE63,'8. Beheer_Tabellen'!$C$20)-'8. Beheer_Tabellen'!$C$18),'8. Beheer_Tabellen'!$C$22)*AI63) -> 0 | AS63: =MIN(AR63*E63,'8. Beheer_Tabellen'!C$22) -> 0 | AT63: 0 | AU63: 0 | AV63: 0 | AW63: 0 | AX63: 0 | AY63: =AV63*AK63/12*'8. Beheer_Tabellen'!$C$26 -> 0 | AZ63: 0 | BA63: 0 | BB63: 0 | BF63: 0 | BG63: 0 | BH63: 0 | BI63: 0 | BJ63: 0 | BK63: =IF($AK63=0,0,IF(YEAR($BE63)>BK$31,0,IF(YEAR($BE63)=BK$31,MIN($AK63,13-MONTH($BE63)),IF(BK$31>YEAR($AG63),0,IF(BK$31=YEAR($AG63),$AK63-SUM($BJ63:BJ63),12))))) -> 0 | BL63: =IF($AK63=0,0,IF(YEAR($BE63)>BL$31,0,IF(YEAR($BE63)=BL$31,MIN($AK63,13-MONTH($BE63)),IF(BL$31>YEAR($AG63),0,IF(BL$31=YEAR($AG63),$AK63-SUM($BJ63:BK63),12))))) -> 0 | BM63: =IF($AK63=0,0,IF(YEAR($BE63)>BM$31,0,IF(YEAR($BE63)=BM$31,MIN($AK63,13-MONTH($BE63)),IF(BM$31>YEAR($AG63),0,IF(BM$31=YEAR($AG63),$AK63-SUM($BJ63:BL63),12))))) -> 0 | BN63: =IF($AK63=0,0,IF(YEAR($BE63)>BN$31,0,IF(YEAR($BE63)=BN$31,MIN($AK63,13-MONTH($BE63)),IF(BN$31>YEAR($AG63),0,IF(BN$31=YEAR($AG63),$AK63-SUM($BJ63:BM63),12))))) -> 0 | BO63: =IF($AK63=0,0,IF(YEAR($BE63)>BO$31,0,IF(YEAR($BE63)=BO$31,MIN($AK63,13-MONTH($BE63)),IF(BO$31>YEAR($AG63),0,IF(BO$31=YEAR($AG63),$AK63-SUM($BJ63:BN63),12))))) -> 0 | BP63: =IF($AK63=0,0,IF(YEAR($BE63)>BP$31,0,IF(YEAR($BE63)=BP$31,MIN($AK63,13-MONTH($BE63)),IF(BP$31>YEAR($AG63),0,IF(BP$31=YEAR($AG63),$AK63-SUM($BJ63:BO63),12))))) -> 0 | BQ63: =IF($AK63=0,0,IF(YEAR($BE63)>BQ$31,0,IF(YEAR($BE63)=BQ$31,MIN($AK63,13-MONTH($BE63)),IF(BQ$31>YEAR($AG63),0,IF(BQ$31=YEAR($AG63),$AK63-SUM($BJ63:BP63),12))))) -> 0 | BR63: =IF($AK63=0,0,IF(YEAR($BE63)>BR$31,0,IF(YEAR($BE63)=BR$31,MIN($AK63,13-MONTH($BE63)),IF(BR$31>YEAR($AG63),0,IF(BR$31=YEAR($AG63),$AK63-SUM($BJ63:BQ63),12))))) -> 0 | BS63: =IF($AK63=0,0,IF(YEAR($BE63)>BS$31,0,IF(YEAR($BE63)=BS$31,MIN($AK63,13-MONTH($BE63)),IF(BS$31>YEAR($AG63),0,IF(BS$31=YEAR($AG63),$AK63-SUM($BJ63:BR63),12))))) -> 0 | BT63: =IF($AK63=0,0,IF(YEAR($BE63)>BT$31,0,IF(YEAR($BE63)=BT$31,MIN($AK63,13-MONTH($BE63)),IF(BT$31>YEAR($AG63),0,IF(BT$31=YEAR($AG63),$AK63-SUM($BJ63:BS63),12))))) -> 0 | BU63: 0 | BV63: 0 | BW63: 0 | BX63: 0 | BY63: 0 | BZ63: 0 | CA63: 0 | CB63: 0 | CC63: 0 | CD63: 0 | CE63: 0 | CF63: 0 | CG63: 0 | CH63: 0 | CI63: 0 | CJ63: 0 | CK63: 0 | CL63: 0 | CM63: 0 | CN63: 0 | CO63: 0 | CP63: 0 | CQ63: 0 | CR63: 0 | CS63: 0 | CT63: 0 | CU63: 0 | CV63: 0 | CW63: 0 | CX63: 0 | CY63: 0 | CZ63: 0 | DA63: 0 | DB63: 0 | DC63: 0 | DD63: 0 | DE63: 0 | DF63: 0 | DG63: 0 | DH63: 0 | DI63: 0 | DJ63: 0 | DK63: 0 | DL63: 0 | DM63: 0 | DN63: 0
P64: 0.8 | Q64: 0.1 | R64: =IF(Invoer_selectie_varianten=1,IF(ISBLANK(N64),'8. Beheer_Tabellen'!$F$34,N64),'8. Beheer_Tabellen'!$F$34) -> ja | T64: =VLOOKUP(S64,'8. Beheer_Tabellen'!$B$104:$D$115,3,TRUE) ->  | V64: =VLOOKUP(U64,'8. Beheer_Tabellen'!$B$104:$D$115,3,TRUE) ->  | W64: =IFERROR(VLOOKUP(YEAR(C64),'8. Beheer_Tabellen'!$B$62:$D$80,3,FALSE),57)*E64 -> 0 | X64: 0 | Y64: =IFERROR(Uren_per_jaar*E64*VLOOKUP(U64,'8. Beheer_Tabellen'!$B$88:$G$99,6,TRUE),) -> 0 | Z64: 0 | AB64: 0 | AC64: 0 | AD64: 0 | AE64: 0 | AF64: =IF(I64="",0,(((I64*'8. Beheer_Tabellen'!$C$14)+(I64*'8. Beheer_Tabellen'!$C$12)+I64)*12*1/E64)) -> 0 | AG64: =EDATE(C64,VLOOKUP(C64,'8. Beheer_Tabellen'!$B$40:$E$55,4,TRUE)) ->  | AH64: =E64*$P64*'8. Beheer_Tabellen'!$F$12>=$E$31 -> FALSE | AI64: 0 | AJ64: 0 | AK64: =IFERROR(DATEDIF(BE64,MIN(AG64,'8. Beheer_Tabellen'!$C$8),"m")*AI64,0) -> 0 | AL64: =((I64*'8. Beheer_Tabellen'!$C$14)+(I64*'8. Beheer_Tabellen'!$C$12)+I64)*AI64 -> 0 | AM64: =IF('8. Beheer_Tabellen'!$F$32="Ja",AL64+J64,AL64) -> 0 | AN64: 0 | AO64: 0 | AP64: 0 | AQ64: 0 | AR64: =IF(MIN('8. Beheer_Tabellen'!$C$16*(MIN(AE64,'8. Beheer_Tabellen'!$C$20)-'8. Beheer_Tabellen'!$C$18),'8. Beheer_Tabellen'!$C$22)*AI64<0,0,MIN('8. Beheer_Tabellen'!$C$16*(MIN(AE64,'8. Beheer_Tabellen'!$C$20)-'8. Beheer_Tabellen'!$C$18),'8. Beheer_Tabellen'!$C$22)*AI64) -> 0 | AS64: =MIN(AR64*E64,'8. Beheer_Tabellen'!C$22) -> 0 | AT64: 0 | AU64: 0 | AV64: 0 | AW64: 0 | AX64: 0 | AY64: =AV64*AK64/12*'8. Beheer_Tabellen'!$C$26 -> 0 | AZ64: 0 | BA64: 0 | BB64: 0 | BF64: 0 | BG64: 0 | BH64: 0 | BI64: 0 | BJ64: 0 | BK64: =IF($AK64=0,0,IF(YEAR($BE64)>BK$31,0,IF(YEAR($BE64)=BK$31,MIN($AK64,13-MONTH($BE64)),IF(BK$31>YEAR($AG64),0,IF(BK$31=YEAR($AG64),$AK64-SUM($BJ64:BJ64),12))))) -> 0 | BL64: =IF($AK64=0,0,IF(YEAR($BE64)>BL$31,0,IF(YEAR($BE64)=BL$31,MIN($AK64,13-MONTH($BE64)),IF(BL$31>YEAR($AG64),0,IF(BL$31=YEAR($AG64),$AK64-SUM($BJ64:BK64),12))))) -> 0 | BM64: =IF($AK64=0,0,IF(YEAR($BE64)>BM$31,0,IF(YEAR($BE64)=BM$31,MIN($AK64,13-MONTH($BE64)),IF(BM$31>YEAR($AG64),0,IF(BM$31=YEAR($AG64),$AK64-SUM($BJ64:BL64),12))))) -> 0 | BN64: =IF($AK64=0,0,IF(YEAR($BE64)>BN$31,0,IF(YEAR($BE64)=BN$31,MIN($AK64,13-MONTH($BE64)),IF(BN$31>YEAR($AG64),0,IF(BN$31=YEAR($AG64),$AK64-SUM($BJ64:BM64),12))))) -> 0 | BO64: =IF($AK64=0,0,IF(YEAR($BE64)>BO$31,0,IF(YEAR($BE64)=BO$31,MIN($AK64,13-MONTH($BE64)),IF(BO$31>YEAR($AG64),0,IF(BO$31=YEAR($AG64),$AK64-SUM($BJ64:BN64),12))))) -> 0 | BP64: =IF($AK64=0,0,IF(YEAR($BE64)>BP$31,0,IF(YEAR($BE64)=BP$31,MIN($AK64,13-MONTH($BE64)),IF(BP$31>YEAR($AG64),0,IF(BP$31=YEAR($AG64),$AK64-SUM($BJ64:BO64),12))))) -> 0 | BQ64: =IF($AK64=0,0,IF(YEAR($BE64)>BQ$31,0,IF(YEAR($BE64)=BQ$31,MIN($AK64,13-MONTH($BE64)),IF(BQ$31>YEAR($AG64),0,IF(BQ$31=YEAR($AG64),$AK64-SUM($BJ64:BP64),12))))) -> 0 | BR64: =IF($AK64=0,0,IF(YEAR($BE64)>BR$31,0,IF(YEAR($BE64)=BR$31,MIN($AK64,13-MONTH($BE64)),IF(BR$31>YEAR($AG64),0,IF(BR$31=YEAR($AG64),$AK64-SUM($BJ64:BQ64),12))))) -> 0 | BS64: =IF($AK64=0,0,IF(YEAR($BE64)>BS$31,0,IF(YEAR($BE64)=BS$31,MIN($AK64,13-MONTH($BE64)),IF(BS$31>YEAR($AG64),0,IF(BS$31=YEAR($AG64),$AK64-SUM($BJ64:BR64),12))))) -> 0 | BT64: =IF($AK64=0,0,IF(YEAR($BE64)>BT$31,0,IF(YEAR($BE64)=BT$31,MIN($AK64,13-MONTH($BE64)),IF(BT$31>YEAR($AG64),0,IF(BT$31=YEAR($AG64),$AK64-SUM($BJ64:BS64),12))))) -> 0 | BU64: 0 | BV64: 0 | BW64: 0 | BX64: 0 | BY64: 0 | BZ64: 0 | CA64: 0 | CB64: 0 | CC64: 0 | CD64: 0 | CE64: 0 | CF64: 0 | CG64: 0 | CH64: 0 | CI64: 0 | CJ64: 0 | CK64: 0 | CL64: 0 | CM64: 0 | CN64: 0 | CO64: 0 | CP64: 0 | CQ64: 0 | CR64: 0 | CS64: 0 | CT64: 0 | CU64: 0 | CV64: 0 | CW64: 0 | CX64: 0 | CY64: 0 | CZ64: 0 | DA64: 0 | DB64: 0 | DC64: 0 | DD64: 0 | DE64: 0 | DF64: 0 | DG64: 0 | DH64: 0 | DI64: 0 | DJ64: 0 | DK64: 0 | DL64: 0 | DM64: 0 | DN64: 0
P65: 0.8 | Q65: 0.1 | R65: =IF(Invoer_selectie_varianten=1,IF(ISBLANK(N65),'8. Beheer_Tabellen'!$F$34,N65),'8. Beheer_Tabellen'!$F$34) -> ja | T65: =VLOOKUP(S65,'8. Beheer_Tabellen'!$B$104:$D$115,3,TRUE) ->  | V65: =VLOOKUP(U65,'8. Beheer_Tabellen'!$B$104:$D$115,3,TRUE) ->  | W65: =IFERROR(VLOOKUP(YEAR(C65),'8. Beheer_Tabellen'!$B$62:$D$80,3,FALSE),57)*E65 -> 0 | X65: 0 | Y65: =IFERROR(Uren_per_jaar*E65*VLOOKUP(U65,'8. Beheer_Tabellen'!$B$88:$G$99,6,TRUE),) -> 0 | Z65: 0 | AB65: 0 | AC65: 0 | AD65: 0 | AE65: 0 | AF65: =IF(I65="",0,(((I65*'8. Beheer_Tabellen'!$C$14)+(I65*'8. Beheer_Tabellen'!$C$12)+I65)*12*1/E65)) -> 0 | AG65: =EDATE(C65,VLOOKUP(C65,'8. Beheer_Tabellen'!$B$40:$E$55,4,TRUE)) ->  | AH65: =E65*$P65*'8. Beheer_Tabellen'!$F$12>=$E$31 -> FALSE | AI65: 0 | AJ65: 0 | AK65: =IFERROR(DATEDIF(BE65,MIN(AG65,'8. Beheer_Tabellen'!$C$8),"m")*AI65,0) -> 0 | AL65: =((I65*'8. Beheer_Tabellen'!$C$14)+(I65*'8. Beheer_Tabellen'!$C$12)+I65)*AI65 -> 0 | AM65: =IF('8. Beheer_Tabellen'!$F$32="Ja",AL65+J65,AL65) -> 0 | AN65: 0 | AO65: 0 | AP65: 0 | AQ65: 0 | AR65: =IF(MIN('8. Beheer_Tabellen'!$C$16*(MIN(AE65,'8. Beheer_Tabellen'!$C$20)-'8. Beheer_Tabellen'!$C$18),'8. Beheer_Tabellen'!$C$22)*AI65<0,0,MIN('8. Beheer_Tabellen'!$C$16*(MIN(AE65,'8. Beheer_Tabellen'!$C$20)-'8. Beheer_Tabellen'!$C$18),'8. Beheer_Tabellen'!$C$22)*AI65) -> 0 | AS65: =MIN(AR65*E65,'8. Beheer_Tabellen'!C$22) -> 0 | AT65: 0 | AU65: 0 | AV65: 0 | AW65: 0 | AX65: 0 | AY65: =AV65*AK65/12*'8. Beheer_Tabellen'!$C$26 -> 0 | AZ65: 0 | BA65: 0 | BB65: 0 | BF65: 0 | BG65: 0 | BH65: 0 | BI65: 0 | BJ65: 0 | BK65: =IF($AK65=0,0,IF(YEAR($BE65)>BK$31,0,IF(YEAR($BE65)=BK$31,MIN($AK65,13-MONTH($BE65)),IF(BK$31>YEAR($AG65),0,IF(BK$31=YEAR($AG65),$AK65-SUM($BJ65:BJ65),12))))) -> 0 | BL65: =IF($AK65=0,0,IF(YEAR($BE65)>BL$31,0,IF(YEAR($BE65)=BL$31,MIN($AK65,13-MONTH($BE65)),IF(BL$31>YEAR($AG65),0,IF(BL$31=YEAR($AG65),$AK65-SUM($BJ65:BK65),12))))) -> 0 | BM65: =IF($AK65=0,0,IF(YEAR($BE65)>BM$31,0,IF(YEAR($BE65)=BM$31,MIN($AK65,13-MONTH($BE65)),IF(BM$31>YEAR($AG65),0,IF(BM$31=YEAR($AG65),$AK65-SUM($BJ65:BL65),12))))) -> 0 | BN65: =IF($AK65=0,0,IF(YEAR($BE65)>BN$31,0,IF(YEAR($BE65)=BN$31,MIN($AK65,13-MONTH($BE65)),IF(BN$31>YEAR($AG65),0,IF(BN$31=YEAR($AG65),$AK65-SUM($BJ65:BM65),12))))) -> 0 | BO65: =IF($AK65=0,0,IF(YEAR($BE65)>BO$31,0,IF(YEAR($BE65)=BO$31,MIN($AK65,13-MONTH($BE65)),IF(BO$31>YEAR($AG65),0,IF(BO$31=YEAR($AG65),$AK65-SUM($BJ65:BN65),12))))) -> 0 | BP65: =IF($AK65=0,0,IF(YEAR($BE65)>BP$31,0,IF(YEAR($BE65)=BP$31,MIN($AK65,13-MONTH($BE65)),IF(BP$31>YEAR($AG65),0,IF(BP$31=YEAR($AG65),$AK65-SUM($BJ65:BO65),12))))) -> 0 | BQ65: =IF($AK65=0,0,IF(YEAR($BE65)>BQ$31,0,IF(YEAR($BE65)=BQ$31,MIN($AK65,13-MONTH($BE65)),IF(BQ$31>YEAR($AG65),0,IF(BQ$31=YEAR($AG65),$AK65-SUM($BJ65:BP65),12))))) -> 0 | BR65: =IF($AK65=0,0,IF(YEAR($BE65)>BR$31,0,IF(YEAR($BE65)=BR$31,MIN($AK65,13-MONTH($BE65)),IF(BR$31>YEAR($AG65),0,IF(BR$31=YEAR($AG65),$AK65-SUM($BJ65:BQ65),12))))) -> 0 | BS65: =IF($AK65=0,0,IF(YEAR($BE65)>BS$31,0,IF(YEAR($BE65)=BS$31,MIN($AK65,13-MONTH($BE65)),IF(BS$31>YEAR($AG65),0,IF(BS$31=YEAR($AG65),$AK65-SUM($BJ65:BR65),12))))) -> 0 | BT65: =IF($AK65=0,0,IF(YEAR($BE65)>BT$31,0,IF(YEAR($BE65)=BT$31,MIN($AK65,13-MONTH($BE65)),IF(BT$31>YEAR($AG65),0,IF(BT$31=YEAR($AG65),$AK65-SUM($BJ65:BS65),12))))) -> 0 | BU65: 0 | BV65: 0 | BW65: 0 | BX65: 0 | BY65: 0 | BZ65: 0 | CA65: 0 | CB65: 0 | CC65: 0 | CD65: 0 | CE65: 0 | CF65: 0 | CG65: 0 | CH65: 0 | CI65: 0 | CJ65: 0 | CK65: 0 | CL65: 0 | CM65: 0 | CN65: 0 | CO65: 0 | CP65: 0 | CQ65: 0 | CR65: 0 | CS65: 0 | CT65: 0 | CU65: 0 | CV65: 0 | CW65: 0 | CX65: 0 | CY65: 0 | CZ65: 0 | DA65: 0 | DB65: 0 | DC65: 0 | DD65: 0 | DE65: 0 | DF65: 0 | DG65: 0 | DH65: 0 | DI65: 0 | DJ65: 0 | DK65: 0 | DL65: 0 | DM65: 0 | DN65: 0
P66: 0.8 | Q66: 0.1 | R66: =IF(Invoer_selectie_varianten=1,IF(ISBLANK(N66),'8. Beheer_Tabellen'!$F$34,N66),'8. Beheer_Tabellen'!$F$34) -> ja | T66: =VLOOKUP(S66,'8. Beheer_Tabellen'!$B$104:$D$115,3,TRUE) ->  | V66: =VLOOKUP(U66,'8. Beheer_Tabellen'!$B$104:$D$115,3,TRUE) ->  | W66: =IFERROR(VLOOKUP(YEAR(C66),'8. Beheer_Tabellen'!$B$62:$D$80,3,FALSE),57)*E66 -> 0 | X66: 0 | Y66: =IFERROR(Uren_per_jaar*E66*VLOOKUP(U66,'8. Beheer_Tabellen'!$B$88:$G$99,6,TRUE),) -> 0 | Z66: 0 | AB66: 0 | AC66: 0 | AD66: 0 | AE66: 0 | AF66: =IF(I66="",0,(((I66*'8. Beheer_Tabellen'!$C$14)+(I66*'8. Beheer_Tabellen'!$C$12)+I66)*12*1/E66)) -> 0 | AG66: =EDATE(C66,VLOOKUP(C66,'8. Beheer_Tabellen'!$B$40:$E$55,4,TRUE)) ->  | AH66: =E66*$P66*'8. Beheer_Tabellen'!$F$12>=$E$31 -> FALSE | AI66: 0 | AJ66: 0 | AK66: =IFERROR(DATEDIF(BE66,MIN(AG66,'8. Beheer_Tabellen'!$C$8),"m")*AI66,0) -> 0 | AL66: =((I66*'8. Beheer_Tabellen'!$C$14)+(I66*'8. Beheer_Tabellen'!$C$12)+I66)*AI66 -> 0 | AM66: =IF('8. Beheer_Tabellen'!$F$32="Ja",AL66+J66,AL66) -> 0 | AN66: 0 | AO66: 0 | AP66: 0 | AQ66: 0 | AR66: =IF(MIN('8. Beheer_Tabellen'!$C$16*(MIN(AE66,'8. Beheer_Tabellen'!$C$20)-'8. Beheer_Tabellen'!$C$18),'8. Beheer_Tabellen'!$C$22)*AI66<0,0,MIN('8. Beheer_Tabellen'!$C$16*(MIN(AE66,'8. Beheer_Tabellen'!$C$20)-'8. Beheer_Tabellen'!$C$18),'8. Beheer_Tabellen'!$C$22)*AI66) -> 0 | AS66: =MIN(AR66*E66,'8. Beheer_Tabellen'!C$22) -> 0 | AT66: 0 | AU66: 0 | AV66: 0 | AW66: 0 | AX66: 0 | AY66: =AV66*AK66/12*'8. Beheer_Tabellen'!$C$26 -> 0 | AZ66: 0 | BA66: 0 | BB66: 0 | BF66: 0 | BG66: 0 | BH66: 0 | BI66: 0 | BJ66: 0 | BK66: =IF($AK66=0,0,IF(YEAR($BE66)>BK$31,0,IF(YEAR($BE66)=BK$31,MIN($AK66,13-MONTH($BE66)),IF(BK$31>YEAR($AG66),0,IF(BK$31=YEAR($AG66),$AK66-SUM($BJ66:BJ66),12))))) -> 0 | BL66: =IF($AK66=0,0,IF(YEAR($BE66)>BL$31,0,IF(YEAR($BE66)=BL$31,MIN($AK66,13-MONTH($BE66)),IF(BL$31>YEAR($AG66),0,IF(BL$31=YEAR($AG66),$AK66-SUM($BJ66:BK66),12))))) -> 0 | BM66: =IF($AK66=0,0,IF(YEAR($BE66)>BM$31,0,IF(YEAR($BE66)=BM$31,MIN($AK66,13-MONTH($BE66)),IF(BM$31>YEAR($AG66),0,IF(BM$31=YEAR($AG66),$AK66-SUM($BJ66:BL66),12))))) -> 0 | BN66: =IF($AK66=0,0,IF(YEAR($BE66)>BN$31,0,IF(YEAR($BE66)=BN$31,MIN($AK66,13-MONTH($BE66)),IF(BN$31>YEAR($AG66),0,IF(BN$31=YEAR($AG66),$AK66-SUM($BJ66:BM66),12))))) -> 0 | BO66: =IF($AK66=0,0,IF(YEAR($BE66)>BO$31,0,IF(YEAR($BE66)=BO$31,MIN($AK66,13-MONTH($BE66)),IF(BO$31>YEAR($AG66),0,IF(BO$31=YEAR($AG66),$AK66-SUM($BJ66:BN66),12))))) -> 0 | BP66: =IF($AK66=0,0,IF(YEAR($BE66)>BP$31,0,IF(YEAR($BE66)=BP$31,MIN($AK66,13-MONTH($BE66)),IF(BP$31>YEAR($AG66),0,IF(BP$31=YEAR($AG66),$AK66-SUM($BJ66:BO66),12))))) -> 0 | BQ66: =IF($AK66=0,0,IF(YEAR($BE66)>BQ$31,0,IF(YEAR($BE66)=BQ$31,MIN($AK66,13-MONTH($BE66)),IF(BQ$31>YEAR($AG66),0,IF(BQ$31=YEAR($AG66),$AK66-SUM($BJ66:BP66),12))))) -> 0 | BR66: =IF($AK66=0,0,IF(YEAR($BE66)>BR$31,0,IF(YEAR($BE66)=BR$31,MIN($AK66,13-MONTH($BE66)),IF(BR$31>YEAR($AG66),0,IF(BR$31=YEAR($AG66),$AK66-SUM($BJ66:BQ66),12))))) -> 0 | BS66: =IF($AK66=0,0,IF(YEAR($BE66)>BS$31,0,IF(YEAR($BE66)=BS$31,MIN($AK66,13-MONTH($BE66)),IF(BS$31>YEAR($AG66),0,IF(BS$31=YEAR($AG66),$AK66-SUM($BJ66:BR66),12))))) -> 0 | BT66: =IF($AK66=0,0,IF(YEAR($BE66)>BT$31,0,IF(YEAR($BE66)=BT$31,MIN($AK66,13-MONTH($BE66)),IF(BT$31>YEAR($AG66),0,IF(BT$31=YEAR($AG66),$AK66-SUM($BJ66:BS66),12))))) -> 0 | BU66: 0 | BV66: 0 | BW66: 0 | BX66: 0 | BY66: 0 | BZ66: 0 | CA66: 0 | CB66: 0 | CC66: 0 | CD66: 0 | CE66: 0 | CF66: 0 | CG66: 0 | CH66: 0 | CI66: 0 | CJ66: 0 | CK66: 0 | CL66: 0 | CM66: 0 | CN66: 0 | CO66: 0 | CP66: 0 | CQ66: 0 | CR66: 0 | CS66: 0 | CT66: 0 | CU66: 0 | CV66: 0 | CW66: 0 | CX66: 0 | CY66: 0 | CZ66: 0 | DA66: 0 | DB66: 0 | DC66: 0 | DD66: 0 | DE66: 0 | DF66: 0 | DG66: 0 | DH66: 0 | DI66: 0 | DJ66: 0 | DK66: 0 | DL66: 0 | DM66: 0 | DN66: 0
P67: 0.8 | Q67: 0.1 | R67: =IF(Invoer_selectie_varianten=1,IF(ISBLANK(N67),'8. Beheer_Tabellen'!$F$34,N67),'8. Beheer_Tabellen'!$F$34) -> ja | T67: =VLOOKUP(S67,'8. Beheer_Tabellen'!$B$104:$D$115,3,TRUE) ->  | V67: =VLOOKUP(U67,'8. Beheer_Tabellen'!$B$104:$D$115,3,TRUE) ->  | W67: =IFERROR(VLOOKUP(YEAR(C67),'8. Beheer_Tabellen'!$B$62:$D$80,3,FALSE),57)*E67 -> 0 | X67: 0 | Y67: =IFERROR(Uren_per_jaar*E67*VLOOKUP(U67,'8. Beheer_Tabellen'!$B$88:$G$99,6,TRUE),) -> 0 | Z67: 0 | AB67: 0 | AC67: 0 | AD67: 0 | AE67: 0 | AF67: =IF(I67="",0,(((I67*'8. Beheer_Tabellen'!$C$14)+(I67*'8. Beheer_Tabellen'!$C$12)+I67)*12*1/E67)) -> 0 | AG67: =EDATE(C67,VLOOKUP(C67,'8. Beheer_Tabellen'!$B$40:$E$55,4,TRUE)) ->  | AH67: =E67*$P67*'8. Beheer_Tabellen'!$F$12>=$E$31 -> FALSE | AI67: 0 | AJ67: 0 | AK67: =IFERROR(DATEDIF(BE67,MIN(AG67,'8. Beheer_Tabellen'!$C$8),"m")*AI67,0) -> 0 | AL67: =((I67*'8. Beheer_Tabellen'!$C$14)+(I67*'8. Beheer_Tabellen'!$C$12)+I67)*AI67 -> 0 | AM67: =IF('8. Beheer_Tabellen'!$F$32="Ja",AL67+J67,AL67) -> 0 | AN67: 0 | AO67: 0 | AP67: 0 | AQ67: 0 | AR67: =IF(MIN('8. Beheer_Tabellen'!$C$16*(MIN(AE67,'8. Beheer_Tabellen'!$C$20)-'8. Beheer_Tabellen'!$C$18),'8. Beheer_Tabellen'!$C$22)*AI67<0,0,MIN('8. Beheer_Tabellen'!$C$16*(MIN(AE67,'8. Beheer_Tabellen'!$C$20)-'8. Beheer_Tabellen'!$C$18),'8. Beheer_Tabellen'!$C$22)*AI67) -> 0 | AS67: =MIN(AR67*E67,'8. Beheer_Tabellen'!C$22) -> 0 | AT67: 0 | AU67: 0 | AV67: 0 | AW67: 0 | AX67: 0 | AY67: =AV67*AK67/12*'8. Beheer_Tabellen'!$C$26 -> 0 | AZ67: 0 | BA67: 0 | BB67: 0 | BF67: 0 | BG67: 0 | BH67: 0 | BI67: 0 | BJ67: 0 | BK67: =IF($AK67=0,0,IF(YEAR($BE67)>BK$31,0,IF(YEAR($BE67)=BK$31,MIN($AK67,13-MONTH($BE67)),IF(BK$31>YEAR($AG67),0,IF(BK$31=YEAR($AG67),$AK67-SUM($BJ67:BJ67),12))))) -> 0 | BL67: =IF($AK67=0,0,IF(YEAR($BE67)>BL$31,0,IF(YEAR($BE67)=BL$31,MIN($AK67,13-MONTH($BE67)),IF(BL$31>YEAR($AG67),0,IF(BL$31=YEAR($AG67),$AK67-SUM($BJ67:BK67),12))))) -> 0 | BM67: =IF($AK67=0,0,IF(YEAR($BE67)>BM$31,0,IF(YEAR($BE67)=BM$31,MIN($AK67,13-MONTH($BE67)),IF(BM$31>YEAR($AG67),0,IF(BM$31=YEAR($AG67),$AK67-SUM($BJ67:BL67),12))))) -> 0 | BN67: =IF($AK67=0,0,IF(YEAR($BE67)>BN$31,0,IF(YEAR($BE67)=BN$31,MIN($AK67,13-MONTH($BE67)),IF(BN$31>YEAR($AG67),0,IF(BN$31=YEAR($AG67),$AK67-SUM($BJ67:BM67),12))))) -> 0 | BO67: =IF($AK67=0,0,IF(YEAR($BE67)>BO$31,0,IF(YEAR($BE67)=BO$31,MIN($AK67,13-MONTH($BE67)),IF(BO$31>YEAR($AG67),0,IF(BO$31=YEAR($AG67),$AK67-SUM($BJ67:BN67),12))))) -> 0 | BP67: =IF($AK67=0,0,IF(YEAR($BE67)>BP$31,0,IF(YEAR($BE67)=BP$31,MIN($AK67,13-MONTH($BE67)),IF(BP$31>YEAR($AG67),0,IF(BP$31=YEAR($AG67),$AK67-SUM($BJ67:BO67),12))))) -> 0 | BQ67: =IF($AK67=0,0,IF(YEAR($BE67)>BQ$31,0,IF(YEAR($BE67)=BQ$31,MIN($AK67,13-MONTH($BE67)),IF(BQ$31>YEAR($AG67),0,IF(BQ$31=YEAR($AG67),$AK67-SUM($BJ67:BP67),12))))) -> 0 | BR67: =IF($AK67=0,0,IF(YEAR($BE67)>BR$31,0,IF(YEAR($BE67)=BR$31,MIN($AK67,13-MONTH($BE67)),IF(BR$31>YEAR($AG67),0,IF(BR$31=YEAR($AG67),$AK67-SUM($BJ67:BQ67),12))))) -> 0 | BS67: =IF($AK67=0,0,IF(YEAR($BE67)>BS$31,0,IF(YEAR($BE67)=BS$31,MIN($AK67,13-MONTH($BE67)),IF(BS$31>YEAR($AG67),0,IF(BS$31=YEAR($AG67),$AK67-SUM($BJ67:BR67),12))))) -> 0 | BT67: =IF($AK67=0,0,IF(YEAR($BE67)>BT$31,0,IF(YEAR($BE67)=BT$31,MIN($AK67,13-MONTH($BE67)),IF(BT$31>YEAR($AG67),0,IF(BT$31=YEAR($AG67),$AK67-SUM($BJ67:BS67),12))))) -> 0 | BU67: 0 | BV67: 0 | BW67: 0 | BX67: 0 | BY67: 0 | BZ67: 0 | CA67: 0 | CB67: 0 | CC67: 0 | CD67: 0 | CE67: 0 | CF67: 0 | CG67: 0 | CH67: 0 | CI67: 0 | CJ67: 0 | CK67: 0 | CL67: 0 | CM67: 0 | CN67: 0 | CO67: 0 | CP67: 0 | CQ67: 0 | CR67: 0 | CS67: 0 | CT67: 0 | CU67: 0 | CV67: 0 | CW67: 0 | CX67: 0 | CY67: 0 | CZ67: 0 | DA67: 0 | DB67: 0 | DC67: 0 | DD67: 0 | DE67: 0 | DF67: 0 | DG67: 0 | DH67: 0 | DI67: 0 | DJ67: 0 | DK67: 0 | DL67: 0 | DM67: 0 | DN67: 0
P68: 0.8 | Q68: 0.1 | R68: =IF(Invoer_selectie_varianten=1,IF(ISBLANK(N68),'8. Beheer_Tabellen'!$F$34,N68),'8. Beheer_Tabellen'!$F$34) -> ja | T68: =VLOOKUP(S68,'8. Beheer_Tabellen'!$B$104:$D$115,3,TRUE) ->  | V68: =VLOOKUP(U68,'8. Beheer_Tabellen'!$B$104:$D$115,3,TRUE) ->  | W68: =IFERROR(VLOOKUP(YEAR(C68),'8. Beheer_Tabellen'!$B$62:$D$80,3,FALSE),57)*E68 -> 0 | X68: 0 | Y68: =IFERROR(Uren_per_jaar*E68*VLOOKUP(U68,'8. Beheer_Tabellen'!$B$88:$G$99,6,TRUE),) -> 0 | Z68: 0 | AB68: 0 | AC68: 0 | AD68: 0 | AE68: 0 | AF68: =IF(I68="",0,(((I68*'8. Beheer_Tabellen'!$C$14)+(I68*'8. Beheer_Tabellen'!$C$12)+I68)*12*1/E68)) -> 0 | AG68: =EDATE(C68,VLOOKUP(C68,'8. Beheer_Tabellen'!$B$40:$E$55,4,TRUE)) ->  | AH68: =E68*$P68*'8. Beheer_Tabellen'!$F$12>=$E$31 -> FALSE | AI68: 0 | AJ68: 0 | AK68: =IFERROR(DATEDIF(BE68,MIN(AG68,'8. Beheer_Tabellen'!$C$8),"m")*AI68,0) -> 0 | AL68: =((I68*'8. Beheer_Tabellen'!$C$14)+(I68*'8. Beheer_Tabellen'!$C$12)+I68)*AI68 -> 0 | AM68: =IF('8. Beheer_Tabellen'!$F$32="Ja",AL68+J68,AL68) -> 0 | AN68: 0 | AO68: 0 | AP68: 0 | AQ68: 0 | AR68: =IF(MIN('8. Beheer_Tabellen'!$C$16*(MIN(AE68,'8. Beheer_Tabellen'!$C$20)-'8. Beheer_Tabellen'!$C$18),'8. Beheer_Tabellen'!$C$22)*AI68<0,0,MIN('8. Beheer_Tabellen'!$C$16*(MIN(AE68,'8. Beheer_Tabellen'!$C$20)-'8. Beheer_Tabellen'!$C$18),'8. Beheer_Tabellen'!$C$22)*AI68) -> 0 | AS68: =MIN(AR68*E68,'8. Beheer_Tabellen'!C$22) -> 0 | AT68: 0 | AU68: 0 | AV68: 0 | AW68: 0 | AX68: 0 | AY68: =AV68*AK68/12*'8. Beheer_Tabellen'!$C$26 -> 0 | AZ68: 0 | BA68: 0 | BB68: 0 | BF68: 0 | BG68: 0 | BH68: 0 | BI68: 0 | BJ68: 0 | BK68: =IF($AK68=0,0,IF(YEAR($BE68)>BK$31,0,IF(YEAR($BE68)=BK$31,MIN($AK68,13-MONTH($BE68)),IF(BK$31>YEAR($AG68),0,IF(BK$31=YEAR($AG68),$AK68-SUM($BJ68:BJ68),12))))) -> 0 | BL68: =IF($AK68=0,0,IF(YEAR($BE68)>BL$31,0,IF(YEAR($BE68)=BL$31,MIN($AK68,13-MONTH($BE68)),IF(BL$31>YEAR($AG68),0,IF(BL$31=YEAR($AG68),$AK68-SUM($BJ68:BK68),12))))) -> 0 | BM68: =IF($AK68=0,0,IF(YEAR($BE68)>BM$31,0,IF(YEAR($BE68)=BM$31,MIN($AK68,13-MONTH($BE68)),IF(BM$31>YEAR($AG68),0,IF(BM$31=YEAR($AG68),$AK68-SUM($BJ68:BL68),12))))) -> 0 | BN68: =IF($AK68=0,0,IF(YEAR($BE68)>BN$31,0,IF(YEAR($BE68)=BN$31,MIN($AK68,13-MONTH($BE68)),IF(BN$31>YEAR($AG68),0,IF(BN$31=YEAR($AG68),$AK68-SUM($BJ68:BM68),12))))) -> 0 | BO68: =IF($AK68=0,0,IF(YEAR($BE68)>BO$31,0,IF(YEAR($BE68)=BO$31,MIN($AK68,13-MONTH($BE68)),IF(BO$31>YEAR($AG68),0,IF(BO$31=YEAR($AG68),$AK68-SUM($BJ68:BN68),12))))) -> 0 | BP68: =IF($AK68=0,0,IF(YEAR($BE68)>BP$31,0,IF(YEAR($BE68)=BP$31,MIN($AK68,13-MONTH($BE68)),IF(BP$31>YEAR($AG68),0,IF(BP$31=YEAR($AG68),$AK68-SUM($BJ68:BO68),12))))) -> 0 | BQ68: =IF($AK68=0,0,IF(YEAR($BE68)>BQ$31,0,IF(YEAR($BE68)=BQ$31,MIN($AK68,13-MONTH($BE68)),IF(BQ$31>YEAR($AG68),0,IF(BQ$31=YEAR($AG68),$AK68-SUM($BJ68:BP68),12))))) -> 0 | BR68: =IF($AK68=0,0,IF(YEAR($BE68)>BR$31,0,IF(YEAR($BE68)=BR$31,MIN($AK68,13-MONTH($BE68)),IF(BR$31>YEAR($AG68),0,IF(BR$31=YEAR($AG68),$AK68-SUM($BJ68:BQ68),12))))) -> 0 | BS68: =IF($AK68=0,0,IF(YEAR($BE68)>BS$31,0,IF(YEAR($BE68)=BS$31,MIN($AK68,13-MONTH($BE68)),IF(BS$31>YEAR($AG68),0,IF(BS$31=YEAR($AG68),$AK68-SUM($BJ68:BR68),12))))) -> 0 | BT68: =IF($AK68=0,0,IF(YEAR($BE68)>BT$31,0,IF(YEAR($BE68)=BT$31,MIN($AK68,13-MONTH($BE68)),IF(BT$31>YEAR($AG68),0,IF(BT$31=YEAR($AG68),$AK68-SUM($BJ68:BS68),12))))) -> 0 | BU68: 0 | BV68: 0 | BW68: 0 | BX68: 0 | BY68: 0 | BZ68: 0 | CA68: 0 | CB68: 0 | CC68: 0 | CD68: 0 | CE68: 0 | CF68: 0 | CG68: 0 | CH68: 0 | CI68: 0 | CJ68: 0 | CK68: 0 | CL68: 0 | CM68: 0 | CN68: 0 | CO68: 0 | CP68: 0 | CQ68: 0 | CR68: 0 | CS68: 0 | CT68: 0 | CU68: 0 | CV68: 0 | CW68: 0 | CX68: 0 | CY68: 0 | CZ68: 0 | DA68: 0 | DB68: 0 | DC68: 0 | DD68: 0 | DE68: 0 | DF68: 0 | DG68: 0 | DH68: 0 | DI68: 0 | DJ68: 0 | DK68: 0 | DL68: 0 | DM68: 0 | DN68: 0
P69: 0.8 | Q69: 0.1 | R69: =IF(Invoer_selectie_varianten=1,IF(ISBLANK(N69),'8. Beheer_Tabellen'!$F$34,N69),'8. Beheer_Tabellen'!$F$34) -> ja | T69: =VLOOKUP(S69,'8. Beheer_Tabellen'!$B$104:$D$115,3,TRUE) ->  | V69: =VLOOKUP(U69,'8. Beheer_Tabellen'!$B$104:$D$115,3,TRUE) ->  | W69: =IFERROR(VLOOKUP(YEAR(C69),'8. Beheer_Tabellen'!$B$62:$D$80,3,FALSE),57)*E69 -> 0 | X69: 0 | Y69: =IFERROR(Uren_per_jaar*E69*VLOOKUP(U69,'8. Beheer_Tabellen'!$B$88:$G$99,6,TRUE),) -> 0 | Z69: 0 | AB69: 0 | AC69: 0 | AD69: 0 | AE69: 0 | AF69: =IF(I69="",0,(((I69*'8. Beheer_Tabellen'!$C$14)+(I69*'8. Beheer_Tabellen'!$C$12)+I69)*12*1/E69)) -> 0 | AG69: =EDATE(C69,VLOOKUP(C69,'8. Beheer_Tabellen'!$B$40:$E$55,4,TRUE)) ->  | AH69: =E69*$P69*'8. Beheer_Tabellen'!$F$12>=$E$31 -> FALSE | AI69: 0 | AJ69: 0 | AK69: =IFERROR(DATEDIF(BE69,MIN(AG69,'8. Beheer_Tabellen'!$C$8),"m")*AI69,0) -> 0 | AL69: =((I69*'8. Beheer_Tabellen'!$C$14)+(I69*'8. Beheer_Tabellen'!$C$12)+I69)*AI69 -> 0 | AM69: =IF('8. Beheer_Tabellen'!$F$32="Ja",AL69+J69,AL69) -> 0 | AN69: 0 | AO69: 0 | AP69: 0 | AQ69: 0 | AR69: =IF(MIN('8. Beheer_Tabellen'!$C$16*(MIN(AE69,'8. Beheer_Tabellen'!$C$20)-'8. Beheer_Tabellen'!$C$18),'8. Beheer_Tabellen'!$C$22)*AI69<0,0,MIN('8. Beheer_Tabellen'!$C$16*(MIN(AE69,'8. Beheer_Tabellen'!$C$20)-'8. Beheer_Tabellen'!$C$18),'8. Beheer_Tabellen'!$C$22)*AI69) -> 0 | AS69: =MIN(AR69*E69,'8. Beheer_Tabellen'!C$22) -> 0 | AT69: 0 | AU69: 0 | AV69: 0 | AW69: 0 | AX69: 0 | AY69: =AV69*AK69/12*'8. Beheer_Tabellen'!$C$26 -> 0 | AZ69: 0 | BA69: 0 | BB69: 0 | BF69: 0 | BG69: 0 | BH69: 0 | BI69: 0 | BJ69: 0 | BK69: =IF($AK69=0,0,IF(YEAR($BE69)>BK$31,0,IF(YEAR($BE69)=BK$31,MIN($AK69,13-MONTH($BE69)),IF(BK$31>YEAR($AG69),0,IF(BK$31=YEAR($AG69),$AK69-SUM($BJ69:BJ69),12))))) -> 0 | BL69: =IF($AK69=0,0,IF(YEAR($BE69)>BL$31,0,IF(YEAR($BE69)=BL$31,MIN($AK69,13-MONTH($BE69)),IF(BL$31>YEAR($AG69),0,IF(BL$31=YEAR($AG69),$AK69-SUM($BJ69:BK69),12))))) -> 0 | BM69: =IF($AK69=0,0,IF(YEAR($BE69)>BM$31,0,IF(YEAR($BE69)=BM$31,MIN($AK69,13-MONTH($BE69)),IF(BM$31>YEAR($AG69),0,IF(BM$31=YEAR($AG69),$AK69-SUM($BJ69:BL69),12))))) -> 0 | BN69: =IF($AK69=0,0,IF(YEAR($BE69)>BN$31,0,IF(YEAR($BE69)=BN$31,MIN($AK69,13-MONTH($BE69)),IF(BN$31>YEAR($AG69),0,IF(BN$31=YEAR($AG69),$AK69-SUM($BJ69:BM69),12))))) -> 0 | BO69: =IF($AK69=0,0,IF(YEAR($BE69)>BO$31,0,IF(YEAR($BE69)=BO$31,MIN($AK69,13-MONTH($BE69)),IF(BO$31>YEAR($AG69),0,IF(BO$31=YEAR($AG69),$AK69-SUM($BJ69:BN69),12))))) -> 0 | BP69: =IF($AK69=0,0,IF(YEAR($BE69)>BP$31,0,IF(YEAR($BE69)=BP$31,MIN($AK69,13-MONTH($BE69)),IF(BP$31>YEAR($AG69),0,IF(BP$31=YEAR($AG69),$AK69-SUM($BJ69:BO69),12))))) -> 0 | BQ69: =IF($AK69=0,0,IF(YEAR($BE69)>BQ$31,0,IF(YEAR($BE69)=BQ$31,MIN($AK69,13-MONTH($BE69)),IF(BQ$31>YEAR($AG69),0,IF(BQ$31=YEAR($AG69),$AK69-SUM($BJ69:BP69),12))))) -> 0 | BR69: =IF($AK69=0,0,IF(YEAR($BE69)>BR$31,0,IF(YEAR($BE69)=BR$31,MIN($AK69,13-MONTH($BE69)),IF(BR$31>YEAR($AG69),0,IF(BR$31=YEAR($AG69),$AK69-SUM($BJ69:BQ69),12))))) -> 0 | BS69: =IF($AK69=0,0,IF(YEAR($BE69)>BS$31,0,IF(YEAR($BE69)=BS$31,MIN($AK69,13-MONTH($BE69)),IF(BS$31>YEAR($AG69),0,IF(BS$31=YEAR($AG69),$AK69-SUM($BJ69:BR69),12))))) -> 0 | BT69: =IF($AK69=0,0,IF(YEAR($BE69)>BT$31,0,IF(YEAR($BE69)=BT$31,MIN($AK69,13-MONTH($BE69)),IF(BT$31>YEAR($AG69),0,IF(BT$31=YEAR($AG69),$AK69-SUM($BJ69:BS69),12))))) -> 0 | BU69: 0 | BV69: 0 | BW69: 0 | BX69: 0 | BY69: 0 | BZ69: 0 | CA69: 0 | CB69: 0 | CC69: 0 | CD69: 0 | CE69: 0 | CF69: 0 | CG69: 0 | CH69: 0 | CI69: 0 | CJ69: 0 | CK69: 0 | CL69: 0 | CM69: 0 | CN69: 0 | CO69: 0 | CP69: 0 | CQ69: 0 | CR69: 0 | CS69: 0 | CT69: 0 | CU69: 0 | CV69: 0 | CW69: 0 | CX69: 0 | CY69: 0 | CZ69: 0 | DA69: 0 | DB69: 0 | DC69: 0 | DD69: 0 | DE69: 0 | DF69: 0 | DG69: 0 | DH69: 0 | DI69: 0 | DJ69: 0 | DK69: 0 | DL69: 0 | DM69: 0 | DN69: 0
P70: 0.8 | Q70: 0.1 | R70: =IF(Invoer_selectie_varianten=1,IF(ISBLANK(N70),'8. Beheer_Tabellen'!$F$34,N70),'8. Beheer_Tabellen'!$F$34) -> ja | T70: =VLOOKUP(S70,'8. Beheer_Tabellen'!$B$104:$D$115,3,TRUE) ->  | V70: =VLOOKUP(U70,'8. Beheer_Tabellen'!$B$104:$D$115,3,TRUE) ->  | W70: =IFERROR(VLOOKUP(YEAR(C70),'8. Beheer_Tabellen'!$B$62:$D$80,3,FALSE),57)*E70 -> 0 | X70: 0 | Y70: =IFERROR(Uren_per_jaar*E70*VLOOKUP(U70,'8. Beheer_Tabellen'!$B$88:$G$99,6,TRUE),) -> 0 | Z70: 0 | AB70: 0 | AC70: 0 | AD70: 0 | AE70: 0 | AF70: =IF(I70="",0,(((I70*'8. Beheer_Tabellen'!$C$14)+(I70*'8. Beheer_Tabellen'!$C$12)+I70)*12*1/E70)) -> 0 | AG70: =EDATE(C70,VLOOKUP(C70,'8. Beheer_Tabellen'!$B$40:$E$55,4,TRUE)) ->  | AH70: =E70*$P70*'8. Beheer_Tabellen'!$F$12>=$E$31 -> FALSE | AI70: 0 | AJ70: 0 | AK70: =IFERROR(DATEDIF(BE70,MIN(AG70,'8. Beheer_Tabellen'!$C$8),"m")*AI70,0) -> 0 | AL70: =((I70*'8. Beheer_Tabellen'!$C$14)+(I70*'8. Beheer_Tabellen'!$C$12)+I70)*AI70 -> 0 | AM70: =IF('8. Beheer_Tabellen'!$F$32="Ja",AL70+J70,AL70) -> 0 | AN70: 0 | AO70: 0 | AP70: 0 | AQ70: 0 | AR70: =IF(MIN('8. Beheer_Tabellen'!$C$16*(MIN(AE70,'8. Beheer_Tabellen'!$C$20)-'8. Beheer_Tabellen'!$C$18),'8. Beheer_Tabellen'!$C$22)*AI70<0,0,MIN('8. Beheer_Tabellen'!$C$16*(MIN(AE70,'8. Beheer_Tabellen'!$C$20)-'8. Beheer_Tabellen'!$C$18),'8. Beheer_Tabellen'!$C$22)*AI70) -> 0 | AS70: =MIN(AR70*E70,'8. Beheer_Tabellen'!C$22) -> 0 | AT70: 0 | AU70: 0 | AV70: 0 | AW70: 0 | AX70: 0 | AY70: =AV70*AK70/12*'8. Beheer_Tabellen'!$C$26 -> 0 | AZ70: 0 | BA70: 0 | BB70: 0 | BF70: 0 | BG70: 0 | BH70: 0 | BI70: 0 | BJ70: 0 | BK70: =IF($AK70=0,0,IF(YEAR($BE70)>BK$31,0,IF(YEAR($BE70)=BK$31,MIN($AK70,13-MONTH($BE70)),IF(BK$31>YEAR($AG70),0,IF(BK$31=YEAR($AG70),$AK70-SUM($BJ70:BJ70),12))))) -> 0 | BL70: =IF($AK70=0,0,IF(YEAR($BE70)>BL$31,0,IF(YEAR($BE70)=BL$31,MIN($AK70,13-MONTH($BE70)),IF(BL$31>YEAR($AG70),0,IF(BL$31=YEAR($AG70),$AK70-SUM($BJ70:BK70),12))))) -> 0 | BM70: =IF($AK70=0,0,IF(YEAR($BE70)>BM$31,0,IF(YEAR($BE70)=BM$31,MIN($AK70,13-MONTH($BE70)),IF(BM$31>YEAR($AG70),0,IF(BM$31=YEAR($AG70),$AK70-SUM($BJ70:BL70),12))))) -> 0 | BN70: =IF($AK70=0,0,IF(YEAR($BE70)>BN$31,0,IF(YEAR($BE70)=BN$31,MIN($AK70,13-MONTH($BE70)),IF(BN$31>YEAR($AG70),0,IF(BN$31=YEAR($AG70),$AK70-SUM($BJ70:BM70),12))))) -> 0 | BO70: =IF($AK70=0,0,IF(YEAR($BE70)>BO$31,0,IF(YEAR($BE70)=BO$31,MIN($AK70,13-MONTH($BE70)),IF(BO$31>YEAR($AG70),0,IF(BO$31=YEAR($AG70),$AK70-SUM($BJ70:BN70),12))))) -> 0 | BP70: =IF($AK70=0,0,IF(YEAR($BE70)>BP$31,0,IF(YEAR($BE70)=BP$31,MIN($AK70,13-MONTH($BE70)),IF(BP$31>YEAR($AG70),0,IF(BP$31=YEAR($AG70),$AK70-SUM($BJ70:BO70),12))))) -> 0 | BQ70: =IF($AK70=0,0,IF(YEAR($BE70)>BQ$31,0,IF(YEAR($BE70)=BQ$31,MIN($AK70,13-MONTH($BE70)),IF(BQ$31>YEAR($AG70),0,IF(BQ$31=YEAR($AG70),$AK70-SUM($BJ70:BP70),12))))) -> 0 | BR70: =IF($AK70=0,0,IF(YEAR($BE70)>BR$31,0,IF(YEAR($BE70)=BR$31,MIN($AK70,13-MONTH($BE70)),IF(BR$31>YEAR($AG70),0,IF(BR$31=YEAR($AG70),$AK70-SUM($BJ70:BQ70),12))))) -> 0 | BS70: =IF($AK70=0,0,IF(YEAR($BE70)>BS$31,0,IF(YEAR($BE70)=BS$31,MIN($AK70,13-MONTH($BE70)),IF(BS$31>YEAR($AG70),0,IF(BS$31=YEAR($AG70),$AK70-SUM($BJ70:BR70),12))))) -> 0 | BT70: =IF($AK70=0,0,IF(YEAR($BE70)>BT$31,0,IF(YEAR($BE70)=BT$31,MIN($AK70,13-MONTH($BE70)),IF(BT$31>YEAR($AG70),0,IF(BT$31=YEAR($AG70),$AK70-SUM($BJ70:BS70),12))))) -> 0 | BU70: 0 | BV70: 0 | BW70: 0 | BX70: 0 | BY70: 0 | BZ70: 0 | CA70: 0 | CB70: 0 | CC70: 0 | CD70: 0 | CE70: 0 | CF70: 0 | CG70: 0 | CH70: 0 | CI70: 0 | CJ70: 0 | CK70: 0 | CL70: 0 | CM70: 0 | CN70: 0 | CO70: 0 | CP70: 0 | CQ70: 0 | CR70: 0 | CS70: 0 | CT70: 0 | CU70: 0 | CV70: 0 | CW70: 0 | CX70: 0 | CY70: 0 | CZ70: 0 | DA70: 0 | DB70: 0 | DC70: 0 | DD70: 0 | DE70: 0 | DF70: 0 | DG70: 0 | DH70: 0 | DI70: 0 | DJ70: 0 | DK70: 0 | DL70: 0 | DM70: 0 | DN70: 0
